{"text_format":"1","workbook":"xlsx","n_sheets":360,"sheets":["01-04-2017","02-04-2017","03-04-2017","04-04-2017","05-04-2017","06-04-2017","07-04-2017","08-04-2017","09-04-2017","10-04-2017","11-04-2017","12-04-2017","13-04-2017","14-04-2017","15-04-2017","16-04-2017","17-04-2017","18-04-2017","19-04-2017","20-04-2017","21-04-2017","22-04-2017","24-04-2017","23-04-2017","25-04-2017","26-04-2017","27-04-2017","28-04-2017","29-04-2017","30-04-2017","31-03-2017","Sheet4"," 04-05-2017"," 08-05-2017","15-05-2017","16-05-2017","17-05-2017","22-05-2017"," 24-05-2017"," 25-05-2017","28-05-2017"," 06-06-2017","14-06-2017","20-06-2017","05-07-2017"," 07-07-2017","10-07-2017","12-07-2017"," 26-07-2017"," 01-08-2017"," 07-08-2017","08-08-2017"," 09-08-2017"," 18-08-2017","21-08-2017","23-08-2017","29-08-2017","11-09-2017","13-09-2017","22-09-2017","26-09-2017","04-10-2017","03-10-2017","05-10-2017","13-10-2017","16-10-2017","17-10-2017","20-10-2017","23-10-2017"," 25-10-2017","30-10-2017","31-10-2017"," 08-11-2017"," 13-11-2017","15-11-2017"," 16-11-2017"," 18-11-2017","22-11-2017","24-11-2017","28-11-2017","04-12-2017"," 05-12-2017"," 7-12-2017","23-12-2017"," 25-12-2017"," 05-01-2018"," 07-01-2018","9-01-2018"," 11-01-2018","17-01-2018","18-01-2018"," ","19-01-2018","21-01-2018","23-01-2018","24-01-2018","26-01-2018"," 28-01-2018"," 30-01-2018"," 02-02-2018","04-02-2018","06-02-2018","08-02-2018","12-02-2018"," 13-02-2018"," 16-02-2018","19-02-2018","20-02-2018","22-02-2018","28-02-2018","06-03-2018","08-03-2018","12-03-2018","13-03-2018"," 20-03-2018","04-04-2018","06-04-2018"," 08-04"," 16-04-2018","23-04-2018"," 25-04-2018","26-04-2018","30-04-2018","07-05-2018"," 08-05-2018","09-05-2018","10-05-2018","13-05-2018","15-05-2018","16-05-2018","17-05-2018","18-05-2018"," 21-05-2018","22-05-2018","24-05-2018"," 27-05-2018"," 30-05-2018","01-06-2018","04-06-2018","05-06-2018","06-06-2018","08-06-2018","11-06-2018","12-06-2018","15-06-2018","19-06-2018","20-06-2018","21-06-2018","22-06-2018","26-06-2018"," 27-06-2018","29-06-2018","02-07-2018","03-07-2018","05-07-2018","06-07-2018","09-07-2018","11-07-2018","12-07-2018","18-07-2018","30-07-2018","01-08-2018","08-08-2018","11-08-2018","20-09-2018","26-09-2018","6-10-2018","11-10-2018","22-10-2018","24-10-2018","2-11-2018","3-11-2018","06-11-2018","09-11-2018","10-11-2018","12-11-2018","21-11-2018","22-11-2018","23-11-2018","26-11-2018"," 27-11-2018","28-11-2018","30-11-2018","03-12-2018","04-12-2018","06-12-2018","07-12-2018","10-12-2018","11-12-2018","12-12-2018","13-12-2018","21-12-2018","23-12-2018","27-12-2018","28-12-2018","09-01-2019","12-01-2019","16-01-2019","17-01-2019","18-01-2019","21-01-2019","23-01-2019","25-01-2019","28-01-2019","29-01-2019","1-02-2019","05-02-2019","06-02-2019","07-02-2019","11-02-2019"," 13-02-2019","14-02-2019","15-02-2019","01-03-2019","06-03-2019","07-03-2019","19-03-2019","20-03-2019","21-03-2019","27-03-2019","31-03-2019","03-04-2019","04-04-2019","08-04-2019","09-04-2019","10-04-2019","16-04-2019","17-04-2019"," 23-04-2019","24-04-2019"," 26-04-2019","29-04-2019"," 03-05-2019","04-05-2019","07-05-2019","10-05-2019","13-05-2019","14-05-2019","15-05-2019","16-05-2019","17-05-2019","18-05-2019","20-05-2019","21-05-2019","22-05-2019","24-05-2019","30-05-2019","02-06-2019","4-06-2019","06-06-2019","10-06-2019","13-06-2019","15-06-2019","18-06-2019","20-06-2019","21-06-2019","24-06-2019","26-06-2019","27-06-2019","29-06-2019","01-07-2019","5-07-2019","08-07-2019","11-07-2019"," 14-07-2019","17-07-2019","23-07-2019","24-07-2019","25-07-2019","26-07-2019","29-07-2019","30-7-2019"," 03-08-2019","04-08-2019","07-08-2019","08-08-2019","15-08-2019","16-08-2019","19-08-2019","21-08-2019","22-08-2019","23-08-2019","27-08-2019","30-8-2019","03-09-2019","05-09-2019","Sheet7","07-09-2019","10-09-2019","12-09-2019","13-09-2019"," 16-09-2019","17-09-2019","18-09-2019","19-09-2019","21-09-2019"," 24-09-2019","25-09-2019"," 27-09-2019","03-10-2019","04-10-2019","07-10-2019","08-10-2019","10-10-2019","12-10-2019","15-10-2019","16-10-2019","17-10-2019","23-10-2019","24-10-2019","28-10-2019","30-10-2019","31-10-2019","2-11-2019","05-11-2019","07-11-2019","08-11-2019","11-11-2019","13-11-2019","15-11-2019","18-11-2019","19-11-2019","20-11-2019","22-11-2019","25-11-2019"," 26-11-2019","27-11-2019","29-11-2019","03-12-2019"," 04-12-2019","05-12-2019","07-12-2019","11-12-2019","23-12-2019","29-12-2019","31-12-2019","02-01-2020","06-01-2020","17-01-2020","18-01-2020","22-01-2020","24-01-2020","27-01-2020","31-01-2020","07-02-2020"," 10-02-2020","12-02-2020"," 13-02-2020","17-02-2020"," 18-02-2020","20-02-2020","24-02-2020","25-02-2020","26-02-2020","27-02-2020"," 29-02-2020","04-03-2020","05-03-2020","09-03-2020","10-02-2020"],"not_rendered":{"charts":0,"images":0,"macros":0,"external_links":0,"defined_names":0,"comments":0,"pivot_tables":0},"unopened":[],"bounds":{"document_bytes":16777216,"sheet_cells":100000,"rows_first":2000,"rows_last":500,"rows_between":2000,"halvings":0,"cell_chars":16384,"cell_head_chars":4096},"cells_cut":0,"cells_raw":0,"read":"whole","date_system":"1900"}

{"sheet":"01-04-2017","index":0,"n_rows":1,"n_cols":16,"rows_kept":1,"cut":false,"hidden":false,"merged":[]}
["Date","Vehicle Number","Filling Station","Mileage","Type","Quantity","Amount per Litre","TRACKING REPORT LITRE","Variance","RATE","PURCHASE POINT","CONTRACT","NAME","PHONE NO","COMMENT","VEHICLE MAKE"]

{"sheet":"02-04-2017","index":1,"n_rows":1,"n_cols":16,"rows_kept":1,"cut":false,"hidden":false,"merged":[]}
["Date","Vehicle Number","Filling Station","Mileage","Type","Quantity","Amount per Litre","TRACKING REPORT LITRE","Variance","RATE","PURCHASE POINT","CONTRACT","NAME","PHONE NO","COMMENT","VEHICLE MAKE"]

{"sheet":"03-04-2017","index":2,"n_rows":9,"n_cols":16,"rows_kept":9,"cut":false,"hidden":false,"merged":[]}
[]
[null,null,null,null,null,"HUAWEI FUEL RETIREMENT FOR 3/4/2017 BY IKECHUKWU ROBERT E."]
["Date","Vehicle Number","Filling Station","Mileage","Type","Quantity","Amount per Litre","TRACKING REPORT LITRE","Variance","RATE","PURCHASE POINT","CONTRACT","NAME","PHONE NO","COMMENT","VEHICLE MAKE"]
["31/3/2017","XB 415 JRT","HUMMER FILLING STATION",207089,"PETROL",28,145,"NOT REPORTING",".","4,000:00","UMUAHIA","HUAWEI","KENNETH ONOS OTOIBHILI",8180134519,"SUPPORT NO: 824","TOYOTA HILUX P/UP"]
["2017-01-04","KRD 539 XF","FORTE OIL",217427,"PETROL",48,145,32,16,"7,000:00","UMUAHIA","HUAWEI","SANI WILLIAM","08093909028 & 08166130744","SUPPORT NO: 825","MITS.L200 P/UP"]
["2017-01-04","XB 415 JRT","HUMMER FILLING STATION",207211,"PETROL",28,145,"NOT REPORTING",".","4,000:00","UMUAHIA","HUAWEI","KENNETH ONOS OTOIBHILI",8180134519,"SUPPORT NO: 824","TOYOTA HILUX P/UP"]
[]
[]
[null,null,null,null,null,null,null,null,"TOTAL ","15,000:00"]

{"sheet":"04-04-2017","index":3,"n_rows":12,"n_cols":16,"rows_kept":12,"cut":false,"hidden":false,"merged":[]}
[null,null,null,null,null,"HUAWEI FUEL RETIREMENT FOR 05-4-2017 BY IKECHUKWU ROBERT E."]
["Date","Vehicle Number","Filling Station","Mileage","Type","Quantity","Amount per Litre","TRACKING REPORT LITRE","Variance","RATE","PURCHASE POINT","CONTRACT","NAME"," ","COMMENT","VEHICLE MAKE"]
[" "," "," ","  "," "," "," "," "," "," "," "," "," "," "," "," "]
[" "," "," "," "," "," "," "," "," "," "," "," "," "," "," "," "]
[" "," "," "," "," "," "," "," "," "," "," "," "," "," "," "," "]
[" "," "," "," "," "," "," "," "," "," "," "," "," "," "," "," "]
[" "," "," "," "," "," "," "," "," "," "," "," "," "," "," "," "]
[" "," "," "," "," "," "," "," "," "," "," "," "," "," "," "," "]
[" "," "," "," "," "," "," "," "," "," "," "," "," ","  "," "," "]
[]
[]
[null,null,null,null,null,null,null,null," "," "]

{"sheet":"05-04-2017","index":4,"n_rows":12,"n_cols":16,"rows_kept":12,"cut":false,"hidden":false,"merged":[]}
[null,null,null,null,null,"HUAWEI FUEL RETIREMENT FOR 05-4-2017 BY IKECHUKWU ROBERT E."]
["Date","Vehicle Number","Filling Station","Mileage","Type","Quantity","Amount per Litre","TRACKING REPORT LITRE","Variance","RATE","PURCHASE POINT","CONTRACT","NAME","PHONE NO","COMMENT","VEHICLE MAKE"]
[" 03/04/2017","XB 415 JRT","FORTE OIL",207390,"PETROL",28,145,"NOT REPORTING",".","4,000:00","UMUAHIA","HUAWEI","KENNETH ONOS OTOIBHILI",8180134519,"Support Ticket Opened [#826]","TOYOTA HILUX P/UP"]
[" 03/04/2017","KMC 44 XA","TONIMAS",197381,"PETROL",14,145,11,3,"2,000:00"," ABA","HUAWEI","REUBAN EGBEWHO",8035417621," ","TOYOTA HILUX P/UP"]
[" 03/04/2017","KMC 39 XA","AVINS",256347,"PETROL",28,145,"NOT REPORTING",".","4,000:00","ABA","HUAWEI","ERIC OWHONDA",8035417621,"Support Ticket Opened [#826]","TOYOTA HILUX P/UP"]
[" 04/04/2017","XB 415 JRT","HUMMER",207498,"PETROL",28,145,"NOT REPORTING",".","4,000:00","UMUAHIA","HUAWEI","KENNETH ONOS OTOIBHILI",8180134519,"Support Ticket Opened [#826]","TOYOTA HILUX P/UP"]
[" 04/04/2017","KMC 44 XA"," OANDO",197488,"PETROL",21,145,21,0,"3,000:00"," ABA","HUAWEI","NDIANA ANTHONY ROBSON",8068817568,"Relieve driver ","TOYOTA HILUX P/UP"]
[" 05/04/2017","KMC 44 XA","NUA",197670,"PETROL",28,145,23,5,"4,000:00"," ABA","HUAWEI","NDIANA ANTHONY ROBSON",8068817568,"Relieve driver ","TOYOTA HILUX P/UP"]
[" 05/04/2017","KMC 39 XA","NUA",256589,"PETROL",21,145,"NOT REPORTING",".","3,000:00","ABA","HUAWEI","ERIC OWHONDA",8035417621,"Support Ticket Opened [#826]","TOYOTA HILUX P/UP"]
[]
[]
[null,null,null,null,null,null,null,null,"TOTAL ","24,000:00"]

{"sheet":"06-04-2017","index":5,"n_rows":10,"n_cols":17,"rows_kept":10,"cut":false,"hidden":false,"merged":[]}
[]
[null,null,null,null,null,"HUAWEI FUEL RETIREMENT FOR 06-04-2017 BY IKECHUKWU ROBERT E."]
["Date","Vehicle Number","Filling Station","Mileage","Type","Quantity","Amount per Litre","TRACKING REPORT LITRE","Variance","RATE","PURCHASE POINT","CONTRACT","NAME","PHONE NO","COMMENT","VEHICLE MAKE"]
[" 05/04/2017","KRD 539 XF","FORTE OIL",218196,"PETROL",41,145,40,1,"6,000:00","UMUAHIA","HUAWEI","SANI WILLIAM","08093909028 & 08166130744"," ","MITS.L200 P/UP"]
[" 06/04/2017","XB 415 JRT","FORTE OIL",207787,"PETROL",28,145,"NOT REPORTING",".","4,000:00","UMUAHIA","HUAWEI","KENNETH ONOS OTOIBHILI",8180134519,"Support Ticket Opened [#826]","TOYOTA HILUX P/UP"]
[" "," "," "," "," "," "," "," "," "," "," "," "," "," "," "," "]
[" "," "," "," "," "," "," "," ","TOTAL ","10,000:00"," "," "," "," "," "," "]
[" "," "," "," "," "," "," "," "," "," "," "," "," "," "," "," "," "]
[" "," "," "," "," "," "," "," "," "," "," "," "," "," "," "," "]
[" "," "," "," "," "," "," "," "," "," "," "," "," "," "," "," "]

{"sheet":"07-04-2017","index":6,"n_rows":9,"n_cols":16,"rows_kept":9,"cut":false,"hidden":false,"merged":[]}
[]
[null,null,null,null,null,"HUAWEI FUEL RETIREMENT FOR 07-04-2017 BY IKECHUKWU ROBERT E."]
["Date","Vehicle Number","Filling Station","Mileage","Type","Quantity","Amount per Litre","TRACKING REPORT LITRE","Variance","RATE","PURCHASE POINT","CONTRACT","NAME","PHONE NO","COMMENT","VEHICLE MAKE"]
[" 07/04/2017","XB 415 JRT","FORTE OIL",207938,"PETROL",28,145,"NOT REPORTING",".","4,000:00","UMUAHIA","HUAWEI","KENNETH ONOS OTOIBHILI",8180134519,"Support Ticket Opened [#826]","TOYOTA HILUX P/UP"]
[" "," "," "," "," "," "," "," "," "," "," "," "," "," "," "," "]
[" "," "," "," "," "," "," "," ","TOTAL ","4,000:00"," "," "," "," "," "," "]
[" "," "," "," "," "," "," "," "," "," "," "," "," "," "," "," "]
[" "," "," "," "," "," "," "," "," "," "," "," "," "," "," "," "]
[" "," "," "," "," "," "," "," "," "," "," "," "," "," "," "," "]

{"sheet":"08-04-2017","index":7,"n_rows":1,"n_cols":16,"rows_kept":1,"cut":false,"hidden":false,"merged":[]}
["Date","Vehicle Number","Filling Station","Mileage","Type","Quantity","Amount per Litre","TRACKING REPORT LITRE","Variance","RATE","PURCHASE POINT","CONTRACT","NAME","PHONE NO","COMMENT","VEHICLE MAKE"]

{"sheet":"09-04-2017","index":8,"n_rows":1,"n_cols":16,"rows_kept":1,"cut":false,"hidden":false,"merged":[]}
["Date","Vehicle Number","Filling Station","Mileage","Type","Quantity","Amount per Litre","TRACKING REPORT LITRE","Variance","RATE","PURCHASE POINT","CONTRACT","NAME","PHONE NO","COMMENT","VEHICLE MAKE"]

{"sheet":"10-04-2017","index":9,"n_rows":1,"n_cols":16,"rows_kept":1,"cut":false,"hidden":false,"merged":[]}
["Date","Vehicle Number","Filling Station","Mileage","Type","Quantity","Amount per Litre","TRACKING REPORT LITRE","Variance","RATE","PURCHASE POINT","CONTRACT","NAME","PHONE NO","COMMENT","VEHICLE MAKE"]

{"sheet":"11-04-2017","index":10,"n_rows":6,"n_cols":16,"rows_kept":6,"cut":false,"hidden":false,"merged":[]}
[null,null,null,null,null,null,null,null,null,null,"HUAWEI FUEL RETIREMENT FOR 11-04-2017 BY IKECHUKWU ROBERT E."]
["Date","Vehicle Number","Filling Station","Mileage","Type","Quantity","Amount per Litre","TRACKING REPORT LITRE","Variance","RATE","PURCHASE POINT","CONTRACT","NAME","PHONE NO","COMMENT","VEHICLE MAKE"]
[" 11/04/2017","KRD 539 XF","FORTE OIL",219479,"PETROL",34.5,145,28,6.5,"5,000:00","UMUAHIA","HUAWEI","SANI WILLIAM","08093909028 & 08166130744","Support Ticket Opened [#830]","MITS.L200 P/UP"]
[]
[]
[null,null,null,null,null,null,null,null,"TOTAL","5,000:00"]

{"sheet":"12-04-2017","index":11,"n_rows":1,"n_cols":16,"rows_kept":1,"cut":false,"hidden":false,"merged":[]}
["Date","Vehicle Number","Filling Station","Mileage","Type","Quantity","Amount per Litre","TRACKING REPORT LITRE","Variance","RATE","PURCHASE POINT","CONTRACT","NAME","PHONE NO","COMMENT","VEHICLE MAKE"]

{"sheet":"13-04-2017","index":12,"n_rows":1,"n_cols":16,"rows_kept":1,"cut":false,"hidden":false,"merged":[]}
["Date","Vehicle Number","Filling Station","Mileage","Type","Quantity","Amount per Litre","TRACKING REPORT LITRE","Variance","RATE","PURCHASE POINT","CONTRACT","NAME","PHONE NO","COMMENT","VEHICLE MAKE"]

{"sheet":"14-04-2017","index":13,"n_rows":1,"n_cols":16,"rows_kept":1,"cut":false,"hidden":false,"merged":[]}
["Date","Vehicle Number","Filling Station","Mileage","Type","Quantity","Amount per Litre","TRACKING REPORT LITRE","Variance","RATE","PURCHASE POINT","CONTRACT","NAME","PHONE NO","COMMENT","VEHICLE MAKE"]

{"sheet":"15-04-2017","index":14,"n_rows":1,"n_cols":16,"rows_kept":1,"cut":false,"hidden":false,"merged":[]}
["Date","Vehicle Number","Filling Station","Mileage","Type","Quantity","Amount per Litre","TRACKING REPORT LITRE","Variance","RATE","PURCHASE POINT","CONTRACT","NAME","PHONE NO","COMMENT","VEHICLE MAKE"]

{"sheet":"16-04-2017","index":15,"n_rows":1,"n_cols":16,"rows_kept":1,"cut":false,"hidden":false,"merged":[]}
["Date","Vehicle Number","Filling Station","Mileage","Type","Quantity","Amount per Litre","TRACKING REPORT LITRE","Variance","RATE","PURCHASE POINT","CONTRACT","NAME","PHONE NO","COMMENT","VEHICLE MAKE"]

{"sheet":"17-04-2017","index":16,"n_rows":1,"n_cols":16,"rows_kept":1,"cut":false,"hidden":false,"merged":[]}
["Date","Vehicle Number","Filling Station","Mileage","Type","Quantity","Amount per Litre","TRACKING REPORT LITRE","Variance","RATE","PURCHASE POINT","CONTRACT","NAME","PHONE NO","COMMENT","VEHICLE MAKE"]

{"sheet":"18-04-2017","index":17,"n_rows":10,"n_cols":16,"rows_kept":10,"cut":false,"hidden":false,"merged":[]}
[]
[null,null,null,null,null,null,"HUAWEI FUEL RETIREMENT FOR 18-04-2017 BY IKECHUKWU ROBERT E."]
["Date","Vehicle Number","Filling Station","Mileage","Type","Quantity","Amount per Litre","TRACKING REPORT LITRE","Variance","RATE","PURCHASE POINT","CONTRACT","NAME","PHONE NO","COMMENT","VEHICLE MAKE"]
["17/04/2017","YA 174 MUS","NUA",226524,"PETROL",14,145,9,5,"2,000:00","ABA","HUAWEI","NDIANA ANTHONY ROBSON",8068817568,"RELIEVE DRIVER","TOYOTA HILUX P/UP"]
[" 17/04/2017","KMC 39 XA","TONIMAS",257589,"PETROL",14,145,"NOT REPORTING",".","2,000:00","ABA","HUAWEI","ERIC OWHONDA",8035417621,"Support Ticket Opened [#835]","TOYOTA HILUX P/UP"]
["18/04/2017","YA 174 MUS","NUA",226606,"PETROL",21,145,14,7,"3,000:00","ABA","HUAWEI","EGBEWHO REUBEN",8060047928," ","TOYOTA HILUX P/UP"]
[" 18/04/2017","KMC 39 XA","TONIMAS",257664,"PETROL",21,145,"NOT REPORTING",".","3,000:00","ABA","HUAWEI","ERIC OWHONDA",8035417621,"Support Ticket Opened [#835]","TOYOTA HILUX P/UP"]
[]
[]
[null,null,null,null,null,null,null,null,"TOTAL","10,000:00"]

{"sheet":"19-04-2017","index":18,"n_rows":8,"n_cols":16,"rows_kept":8,"cut":false,"hidden":false,"merged":[]}
[]
[null,null,null,null,null,null,"HUAWEI FUEL RETIREMENT FOR 19-04-2017 BY IKECHUKWU ROBERT E."]
["Date","Vehicle Number","Filling Station","Mileage","Type","Quantity","Amount per Litre","TRACKING REPORT LITRE","Variance","RATE","PURCHASE POINT","CONTRACT","NAME","PHONE NO","COMMENT","VEHICLE MAKE"]
["18/04/2017","YA 174 MUS","VICKVANS",226686,"PETROL",21,145,11,10,"3,000:00","ABA","HUAWEI","EGBEWHO REUBEN",8060047928," ","TOYOTA HILUX P/UP"]
[" 19/04/2017","XB 415 JRT"," FORTE OIL",209091,"PETROL",28,145,"NOT REPORTING",".","4,000:00","ABA","HUAWEI","ERIC OWHONDA",8035417621,"Support Ticket Opened [#835]","TOYOTA HILUX P/UP"]
[]
[]
[null,null,null,null,null,null,null,null,"TOTAL","7,000:00"]

{"sheet":"20-04-2017","index":19,"n_rows":1,"n_cols":16,"rows_kept":1,"cut":false,"hidden":false,"merged":[]}
["Date","Vehicle Number","Filling Station","Mileage","Type","Quantity","Amount per Litre","TRACKING REPORT LITRE","Variance","RATE","PURCHASE POINT","CONTRACT","NAME","PHONE NO","COMMENT","VEHICLE MAKE"]

{"sheet":"21-04-2017","index":20,"n_rows":1,"n_cols":16,"rows_kept":1,"cut":false,"hidden":false,"merged":[]}
["Date","Vehicle Number","Filling Station","Mileage","Type","Quantity","Amount per Litre","TRACKING REPORT LITRE","Variance","RATE","PURCHASE POINT","CONTRACT","NAME","PHONE NO","COMMENT","VEHICLE MAKE"]

{"sheet":"22-04-2017","index":21,"n_rows":1,"n_cols":16,"rows_kept":1,"cut":false,"hidden":false,"merged":[]}
["Date","Vehicle Number","Filling Station","Mileage","Type","Quantity","Amount per Litre","TRACKING REPORT LITRE","Variance","RATE","PURCHASE POINT","CONTRACT","NAME","PHONE NO","COMMENT","VEHICLE MAKE"]

{"sheet":"24-04-2017","index":22,"n_rows":10,"n_cols":17,"rows_kept":10,"cut":false,"hidden":false,"merged":[]}
[]
[null,null,null,null,null,"HUAWEI FUEL RETIREMENT FOR 24-04-2017 BY IKECHUKWU ROBERT E."]
["Date","Vehicle Number","Filling Station","Mileage","Type","Quantity","Amount per Litre","TRACKING REPORT LITRE","Variance","RATE","PURCHASE POINT","CONTRACT","NAME","PHONE NO","COMMENT","VEHICLE MAKE"]
[" 22/04/2017","KRD 539 XF","CHUCKS D PET",221218,"PETROL",34.5,145,33,1.5," 5,000:00","UMUAHIA","HUAWEI","SANI WILLIAM","08093909028 & 08166130744"," ","MITS.L200 P/UP"]
[" 23/04/2017","KRD 539 XF","FORTE OIL",221459,"PETROL",34.5,145,22,12.5,"5,000:00","UMUAHIA","HUAWEI","SANI WILLIAM","08093909028 & 08166130744"," ","MITS.L200 P/UP"]
[" "," "," "," "," "," "," "," "," "," "," "," "," "," "," "," "]
[" "," "," "," "," "," "," "," ","TOTAL ","10,000:00"," "," "," "," "," "," "]
[" "," "," "," "," "," "," "," "," "," "," "," "," "," "," "," "," "]
[" "," "," "," "," "," "," "," "," "," "," "," "," "," "," "," "]
[" "," "," "," "," "," "," "," "," "," "," "," "," "," "," "," "]

{"sheet":"23-04-2017","index":23,"n_rows":1,"n_cols":16,"rows_kept":1,"cut":false,"hidden":false,"merged":[]}
["Date","Vehicle Number","Filling Station","Mileage","Type","Quantity","Amount per Litre","TRACKING REPORT LITRE","Variance","RATE","PURCHASE POINT","CONTRACT","NAME","PHONE NO","COMMENT","VEHICLE MAKE"]

{"sheet":"25-04-2017","index":24,"n_rows":9,"n_cols":16,"rows_kept":9,"cut":false,"hidden":false,"merged":[]}
[]
[null,null,null,null,null,"HUAWEI FUEL RETIREMENT FOR 25-04-2017 BY IKECHUKWU ROBERT E."]
["Date","Vehicle Number","Filling Station","Mileage","Type","Quantity","Amount per Litre","TRACKING REPORT LITRE","Variance","RATE","PURCHASE POINT","CONTRACT","NAME","PHONE NO","COMMENT","VEHICLE MAKE"]
[" 24/04/2017","KRD 539 XF","HUMMER",221711,"PETROL",34.5,145,13,21.5," 5,000:00","UMUAHIA","HUAWEI","SANI WILLIAM","08093909028 & 08166130744","Support Ticket Opened [#843]","MITS.L200 P/UP"]
[" 25/04/2017","XB 415 JRT","NGOZI",209784,"PETROL",28,145," NOT REPORTING"," -","4,000:00","UMUAHIA","HUAWEI","KENNETH OTOIBHILI",8180134519,"Support Ticket Opened [#843]","MITS.L200 P/UP"]
[" "," "," "," "," "," "," "," "," "," "," "," "," "," "," "," "]
[" "," "," "," "," "," "," "," ","TOTAL ","9,000:00"," "," "," "," "," "," "]
[" "," "," "," "," "," "," "," "," "," "," "," "," "," "," "," "]
[" "," "," "," "," "," "," "," "," "," "," "," "," "," "," "," "]

{"sheet":"26-04-2017","index":25,"n_rows":9,"n_cols":16,"rows_kept":9,"cut":false,"hidden":false,"merged":[]}
[]
[null,null,null,null,null,"HUAWEI FUEL RETIREMENT FOR 25-04-2017 BY IKECHUKWU ROBERT E. (B)"]
["Date","Vehicle Number","Filling Station","Mileage","Type","Quantity","Amount per Litre","TRACKING REPORT LITRE","Variance","RATE","PURCHASE POINT","CONTRACT","NAME","PHONE NO","COMMENT","VEHICLE MAKE"]
[" 25/04/2017","KRD 539 XF","NGOZI PET",222010,"PETROL",41,145,17,24," 6,000:00","UMUAHIA","HUAWEI","SANI WILLIAM","08093909028 & 08166130744","Support Ticket Opened [#843]","MITS.L200 P/UP"]
[" "," "," "," "," "," "," "," "," "," "," "," "," "," "," "," "]
[" "," "," "," "," "," "," "," "," "," "," "," "," "," "," "," "]
[" "," "," "," "," "," "," "," ","TOTAL ","6,000:00"," "," "," "," "," "," "]
[" "," "," "," "," "," "," "," "," "," "," "," "," "," "," "," "]
[" "," "," "," "," "," "," "," "," "," "," "," "," "," "," "," "]

{"sheet":"27-04-2017","index":26,"n_rows":10,"n_cols":16,"rows_kept":10,"cut":false,"hidden":false,"merged":[]}
[]
[]
[null,null,null,null,null,"HUAWEI FUEL RETIREMENT FOR 26-04-2017 BY IKECHUKWU ROBERT E. (B)"]
["Date","Vehicle Number","Filling Station","Mileage","Type","Quantity","Amount per Litre","TRACKING REPORT LITRE","Variance","RATE","PURCHASE POINT","CONTRACT","NAME","PHONE NO","COMMENT","VEHICLE MAKE"]
[" 26/04/2017","KRD 539 XF","NGOZI PET",222311,"PETROL",41,145,27,14," 6,000:00","UMUAHIA","HUAWEI","SANI WILLIAM","08093909028 & 08166130744","Support Ticket Opened [#843]","MITS.L200 P/UP"]
[" "," "," "," "," "," "," "," "," "," "," "," "," "," "," "," "]
[" "," "," "," "," "," "," "," "," "," "," "," "," "," "," "," "]
[" "," "," "," "," "," "," "," ","TOTAL ","6,000:00"," "," "," "," "," "," "]
[" "," "," "," "," "," "," "," "," "," "," "," "," "," "," "," "]
[" "," "," "," "," "," "," "," "," "," "," "," "," "," "," "," "]

{"sheet":"28-04-2017","index":27,"n_rows":1,"n_cols":16,"rows_kept":1,"cut":false,"hidden":false,"merged":[]}
["Date","Vehicle Number","Filling Station","Mileage","Type","Quantity","Amount per Litre","TRACKING REPORT LITRE","Variance","RATE","PURCHASE POINT","CONTRACT","NAME","PHONE NO","COMMENT","VEHICLE MAKE"]

{"sheet":"29-04-2017","index":28,"n_rows":1,"n_cols":16,"rows_kept":1,"cut":false,"hidden":false,"merged":[]}
["Date","Vehicle Number","Filling Station","Mileage","Type","Quantity","Amount per Litre","TRACKING REPORT LITRE","Variance","RATE","PURCHASE POINT","CONTRACT","NAME","PHONE NO","COMMENT","VEHICLE MAKE"]

{"sheet":"30-04-2017","index":29,"n_rows":1,"n_cols":16,"rows_kept":1,"cut":false,"hidden":false,"merged":[]}
["Date","Vehicle Number","Filling Station","Mileage","Type","Quantity","Amount per Litre","TRACKING REPORT LITRE","Variance","RATE","PURCHASE POINT","CONTRACT","NAME","PHONE NO","COMMENT","VEHICLE MAKE"]

{"sheet":"31-03-2017","index":30,"n_rows":1,"n_cols":16,"rows_kept":1,"cut":false,"hidden":false,"merged":[]}
["Date","Vehicle Number","Filling Station","Mileage","Type","Quantity","Amount per Litre","TRACKING REPORT LITRE","Variance","RATE","PURCHASE POINT","CONTRACT","NAME","PHONE NO","COMMENT","VEHICLE MAKE"]

{"sheet":"Sheet4","index":31,"n_rows":1462,"n_cols":3,"rows_kept":1462,"cut":false,"hidden":false,"merged":[]}
["01/04/2017","3rd Party","DIESEL"]
["02/04/2017","AAA 118 XT","Petrol"]
["03/04/2017","AAA 119 XT"]
["04/04/2017","AAA 120 XT"]
["05/04/2017","AAA 121 XT"]
["06/04/2017","AAA 122 XT"]
["07/04/2017","AAA 123 XT"]
["08/04/2017","AAA 147 CD"]
["09/04/2017","AAA 153 CW"]
["10/04/2017","AAA 179 BQ"]
["11/04/2017","AAA 181 BQ"]
["12/04/2017","AAA 187 XL"]
["13/04/2017","AAA 188 XL"]
["14/04/2017","AAA 189 XL"]
["15/04/2017","AAA 190 DV"]
["16/04/2017","AAA 190 XL"]
["17/04/2017","AAA 191 XL"]
["18/04/2017","AAA 193 XL"]
["19/04/2017","AAA 194 XL"]
["20/04/2017","AAA 197 XL"]
["21/04/2017","AAA 198 XL"]
["22/04/2017","AAA 199 XL"]
["23/04/2017","AAA 200 XL"]
["24/04/2017","AAA 201 XL"]
["25/04/2017","AAA 202 XL"]
["26/04/2017","AAA 203 XL"]
["27/04/2017","AAA 204 XL"]
["28/04/2017","AAA 206 XL"]
["29/04/2017","AAA 207 XL"]
["30/04/2017","AAA 208 XL"]
["31/03/2017","AAA 228 XC"]
["30/03/2017","AAA 231 XC"]
["29/03/2017","AAA 233 XC"]
["28/03/2017","AAA 234 XC"]
["27/03/2017","AAA 235 XC"]
["26/03/2017","AAA 236 XC"]
[null,"AAA 237 XC"]
[null,"AAA 238 XC"]
[null,"AAA 239 XC"]
[null,"AAA 241 XC"]
[null,"AAA 254 XQ"]
[null,"AAA 255 XQ"]
[null,"AAA 256 XQ"]
[null,"AAA 257 XQ"]
[null,"AAA 258 XQ"]
[null,"AAA 261 XQ"]
[null,"AAA 262 XQ"]
[null,"AAA 263 XQ"]
[null,"AAA 264 XQ"]
[null,"AAA 340 CQ"]
[null,"AAA 341 CQ"]
[null,"AAA 342 CQ"]
[null,"AAA 343 CQ"]
[null,"AAA 344 CQ"]
[null,"AAA 346 XC"]
[null,"AAA 415 DY"]
[null,"AAA 421 CB"]
[null,"AAA 438 BT"]
[null,"AAA 440 BT"]
[null,"AAA 49 DJ"]
[null,"AAA 51 CZ"]
[null,"AAA 516 XR"]
[null,"AAA 517 CW"]
[null,"AAA 517 XR"]
[null,"AAA 518 XR"]
[null,"AAA 519 XR"]
[null,"AAA 520 XR"]
[null,"AAA 521 XR"]
[null,"AAA 522 XR"]
[null,"AAA 523 XR"]
[null,"AAA 524 XR"]
[null,"AAA 525 XR"]
[null,"AAA 526 XR"]
[null,"AAA 527 XR"]
[null,"AAA 528 XQ"]
[null,"AAA 528 XR"]
[null,"AAA 529 CW"]
[null,"AAA 529 XR"]
[null,"AAA 530 XR"]
[null,"AAA 531 XR"]
[null,"AAA 532 XR"]
[null,"AAA 533 XR"]
[null,"AAA 534 XR"]
[null,"AAA 535 XR"]
[null,"AAA 536 XR"]
[null,"AAA 537 XR"]
[null,"AAA 538 XR"]
[null,"AAA 539 XR"]
[null,"AAA 54 XM"]
[null,"AAA 540 XR"]
[null,"AAA 541 XR"]
[null,"AAA 542 XR"]
[null,"AAA 543 XR"]
[null,"AAA 544 XR"]
[null,"AAA 545 XR"]
[null,"AAA 546 XR"]
[null,"AAA 547 XR"]
[null,"AAA 548 XR"]
[null,"AAA 549 XR"]
[null,"AAA 55 XM"]
[null,"AAA 550 XR"]
[null,"AAA 551 XR"]
[null,"AAA 552 XR"]
[null,"AAA 553 XR"]
[null,"AAA 554 XR"]
[null,"AAA 555 XR"]
[null,"AAA 556 XR"]
[null,"AAA 557 XR"]
[null,"AAA 558 XR"]
[null,"AAA 559 XR"]
[null,"AAA 560 XR"]
[null,"AAA 561 XR"]
[null,"AAA 562 XR"]
[null,"AAA 563 XR"]
[null,"AAA 564 XR"]
[null,"AAA 565 XR"]
[null,"AAA 630 XK"]
[null,"AAA 631 XK"]
[null,"AAA 631 XM"]
[null,"AAA 632 XK"]
[null,"AAA 632 XM"]
[null,"AAA 633 XK"]
[null,"AAA 633 XM"]
[null,"AAA 634 XK"]
[null,"AAA 634 XM"]
[null,"AAA 635 XK"]
[null,"AAA 635 XM"]
[null,"AAA 636 XK"]
[null,"AAA 636 XM"]
[null,"AAA 637 XK"]
[null,"AAA 637 XM"]
[null,"AAA 638 XK"]
[null,"AAA 638 XM"]
[null,"AAA 639 XK"]
[null,"AAA 639 XM"]
[null,"AAA 640 XK"]
[null,"AAA 640 XM"]
[null,"AAA 641 XM"]
[null,"AAA 642 XK"]
[null,"AAA 642 XM"]
[null,"AAA 643 XK"]
[null,"AAA 643 XM"]
[null,"AAA 644 XM"]
[null,"AAA 645 XM"]
[null,"AAA 646 XM"]
[null,"AAA 647 XK"]
[null,"AAA 647 XM"]
[null,"AAA 648 XM"]
[null,"AAA 649 XM"]
[null,"AAA 657 XM"]
[null,"AAA 658 XM"]
[null,"AAA 66 XL"]
[null,"AAA 661 BZ"]
[null,"AAA 663 BZ"]
[null,"AAA 665 BZ"]
[null,"AAA 67 XL"]
[null,"AAA 68 XL"]
[null,"AAA 810 AT"]
[null,"AAA 811 AT"]
[null,"AAA 849 CK"]
[null,"AAA 891 EG"]
[null,"AAA 945 CH"]
[null,"AAA 948 DC"]
[null,"AAA 960 DH"]
[null,"AAA 962 CU"]
[null,"AAA 982 XD"]
[null,"AAA 983XD"]
[null,"AE 419 AYT"]
[null,"AE 890 KLT"]
[null,"AE 951 GSW"]
[null,"AGL 156 AP"]
[null,"AGL 169 XS"]
[null,"AGL 17 XL"]
[null,"AGL 173 XS"]
[null,"AGL 253 XK"]
[null,"AGL 254 XK"]
[null,"AGL 258 XK"]
[null,"AGL 323 AL"]
[null,"AGL 343 DX"]
[null,"AGL 436 BH"]
[null,"AGL 437 BH"]
[null,"AGL 451 DP"]
[null,"AGL 459 XD"]
[null,"AGL 460 XD"]
[null,"AGL 461 XD"]
[null,"AGL 533 XL"]
[null,"AGL 534 XL"]
[null,"AGL 657 XE"]
[null,"AGL 659 DF"]
[null,"AGL 660 DF"]
[null,"AGL 661 DF"]
[null,"AGL 662 DF"]
[null,"AGL 663 DF"]
[null,"AGL 664 DF"]
[null,"AGL 665 CY"]
[null,"AGL 665 DF"]
[null,"AGL 666 DF"]
[null,"AGL 667 DF"]
[null,"AGL 668 DF"]
[null,"AGL 685 DX"]
[null,"AGL 687 DX"]
[null,"AGL 688 DX"]
[null,"AGL 689 DX"]
[null,"AGL 690 DX"]
[null,"AGL 691 DX"]
[null,"AGL 692 DX"]
[null,"AGL 693 DX"]
[null,"AGL 694 DX"]
[null,"AGL 695 DX"]
[null,"AGL 696 DX"]
[null,"AGL 697 DX"]
[null,"AGL 698 DX"]
[null,"AGL 699 DX"]
[null,"AGL 74 DY"]
[null,"AGL 75 DY"]
[null,"AGL 76 CX"]
[null,"AGL 76 DY"]
[null,"AGL 77 DY"]
[null,"AGL 78 DY"]
[null,"AGL 79 DY"]
[null,"AGL 80 DY"]
[null,"AGL 806 BF"]
[null,"AGL 808  BF"]
[null,"AGL 81 DY"]
[null,"AGL 812 BF"]
[null,"AGL 82 DY"]
[null,"AGL 83 DY"]
[null,"AGL 84 DY"]
[null,"AGL 860 BB"]
[null,"AGL 87 CX"]
[null,"AGL 917 AM"]
[null,"AH 414 GGU"]
[null,"AH 651 BRR"]
[null,"AJ 826 KWC"]
[null,"AJ 827 KWC"]
[null,"AJ 829 KWC"]
[null,"AJ 834 KWC"]
[null,"AJ 835 KWC"]
[null,"AJ 881 DEG"]
[null,"AJ 883 DEG"]
[null,"AJG 57 AA"]
[null,"AJG 58 AA"]
[null,"AJG 59 AA"]
[null,"AKD 102 XS"]
[null,"AKD 103 XS"]
[null,"AKD 131 XG"]
[null,"AKD 179 DU"]
[null,"AKD 196 XD"]
[null,"AKD 197 XD"]
[null,"AKD 219 XN"]
[null,"AKD 220 XN"]
[null,"AKD 221 XN"]
[null,"AKD 31 DE"]
[null,"AKD 34 XE"]
[null,"AKD 35 XE"]
[null,"AKD 367 AQ"]
[null,"AKD 38 XE"]
[null,"AKD 39 XE"]
[null,"AKD 403 CF"]
[null,"AKD 409 CP"]
[null,"AKD 457 AV"]
[null,"AKD 610 CY"]
[null,"AKD 635 BP"]
[null,"AKD 65 XS"]
[null,"AKD 652 DX"]
[null,"AKD 654 BC"]
[null,"AKD 682 CY"]
[null,"AKD 703 DE"]
[null,"AKD 704 DE"]
[null,"AKD 705 DE"]
[null,"AKD 706 DE"]
[null,"AKD 708 DE"]
[null,"AKD 722 DK"]
[null,"AKD 723 DK"]
[null,"AKD 735 QC"]
[null,"AKD 829 AL"]
[null,"AKD 830 AL"]
[null,"AKD 831 AV"]
[null,"AKD 832 AV"]
[null,"AKD 833 AV"]
[null,"AKD 834 AV"]
[null,"AKD 835 AV"]
[null,"AKD 836 AV"]
[null,"AKD 836 DR"]
[null,"AKD 837 DR"]
[null,"AKD 839 DR"]
[null,"AKD 840 AV"]
[null,"AKD 841 AV"]
[null,"AKD 91 CQ"]
[null,"AKD 930 DH"]
[null,"AKD 931 DH"]
[null,"AKD 932 DH"]
[null,"AKD 933 DH"]
[null,"AKD 934 DH"]
[null,"AKD 938 AG"]
[null,"AKD 939 AG"]
[null,"AKD 940 AG"]
[null,"AKD 955 EP"]
[null,"AKD 961 CZ"]
[null,"AKD 962 CZ"]
[null,"AKD 965 CG"]
[null,"AKD 968 AC"]
[null,"AKD 970 AH"]
[null,"AKD109 DZ"]
[null,"AL 761 AFM"]
[null,"APP 08 DU"]
[null,"APP 126 XE"]
[null,"APP 128 XE"]
[null,"APP 130 XE"]
[null,"APP 283 BG"]
[null,"APP 291 CY"]
[null,"APP 292 CY"]
[null,"APP 359 XL"]
[null,"APP 360 XL"]
[null,"APP 420 DC"]
[null,"APP 423 DC"]
[null,"APP 464 AP"]
[null,"APP 464 AT"]
[null,"APP 469 DC"]
[null,"APP 474 DC"]
[null,"APP 508 CJ"]
[null,"APP 558 CQ"]
[null,"APP 65 XM"]
[null,"APP 66 XM"]
[null,"APP 67 XM"]
[null,"APP 68 XM"]
[null,"APP 714 BP"]
[null,"APP 719 BP"]
[null,"APP 72 XM"]
[null,"APP 73 XM"]
[null,"APP 74 XM"]
[null,"APP 852 BW"]
[null,"APP 887 DB"]
[null,"APP 889 CW"]
[null,"APP 975 DB"]
[null,"APP 999 CB"]
[null,"AX 24 GME"]
[null,"BARAK DEFENDER"]
[null,"BC 244 USL"]
[null,"BDG 163 XS"]
[null,"BDG 215 BG"]
[null,"BDG 216 BG"]
[null,"BDG 219 BG"]
[null,"BDG 236 CU"]
[null,"BDG 265 CP"]
[null,"BDG 384 DP"]
[null,"BDG 384DP"]
[null,"BDG 400 XG"]
[null,"BDG 430 QD"]
[null,"BDG 458 CB"]
[null,"BDG 461 CW"]
[null,"BDG 527 BG"]
[null,"BDG 530 BG"]
[null,"BDG 531 BG"]
[null,"BDG 607 BD"]
[null,"BDG 612 BL"]
[null,"BDG 636 XL"]
[null,"BDG 637 XL"]
[null,"BDG 651 DU"]
[null,"BDG 727 BE"]
[null,"BDG 728 BE"]
[null,"BDG 732 BE"]
[null,"BDG 734 BD"]
[null,"BDG 734 BE"]
[null,"BDG 736 BE"]
[null,"BDG 739 EA"]
[null,"BDG 740 BE"]
[null,"BDG 740 EA"]
[null,"BDG 741 EA"]
[null,"BDG 744 BE"]
[null,"BDG 753 DP"]
[null,"BDG 764 AM"]
[null,"BDG 765 AM"]
[null,"BDG 792 XP"]
[null,"BDG 793 XP"]
[null,"BDG 795 XP"]
[null,"BDG 796 XP"]
[null,"BDG 800 XM"]
[null,"BDG 889 CJ"]
[null,"BDG 890 DP"]
[null,"BDG 894 AL"]
[null,"BDG 971 CB"]
[null,"BDG 972 CB"]
[null,"BDG 973 CB"]
[null,"BGW 40 AA"]
[null,"BGW 41 AA"]
[null,"BGW 42 AA"]
[null,"BJ 363 BDG"]
[null,"BJ 622 BWR"]
[null,"BM 953 BDG"]
[null,"BP 887 BDG"]
[null,"BP 903 BDG "]
[null,"BP 966 BDG/EPE 938 BE"]
[null,"BQ 781 AGL"]
[null,"BR 493 BDG"]
[null,"BR 630 BDG"]
[null,"BRS 571 DQ"]
[null,"BRS 573 DQ"]
[null,"BT 195  BDG"]
[null,"BT 195 BDG"]
[null,"BV 931 AGL"]
[null,"BW 583 AGL"]
[null,"BW 714 AKD"]
[null,"BW 973 AGL"]
[null,"BW 975 AGL"]
[null,"BX 592  KSF"]
[null,"BZ 758 KSF"]
[null,"BZ 759 KSF"]
[null,"BZ 828 KSF"]
[null,"CC 772 AGL"]
[null,"CD 734 FKJ"]
[null,"CD 735  FKJ"]
[null,"CG176KSF"]
[null,"CL 344 KTU"]
[null,"CU 167 RSH"]
[null,"CU 170 RSH"]
[null,"CX 926 KTU"]
[null,"CZ 105 RBC"]
[null,"CZ 110 RBC"]
[null,"CZ 932 MUS"]
[null,"DD 615  LSD"]
[null,"DF 962 MUS"]
[null,"DG 910 JJJ"]
[null,"DL  218 APP"]
[null,"DN 298 FST"]
[null,"DN 735 JJJ"]
[null,"DP 276 JJJ"]
[null,"DP 729 JJJ"]
[null,"DQ 781 APP"]
[null,"DQ 86 LSD"]
[null,"DU 832 FST"]
[null,"DZ 218 APP"]
[null,"EA 472 FST"]
[null,"EC 963 LSD"]
[null,"EJ 512 GGE"]
[null,"EKY 153 AT"]
[null,"EKY 196 XF"]
[null,"EKY 201 XF"]
[null,"EKY 202 XF"]
[null,"EKY 221 XF"]
[null,"EKY 222 XF"]
[null,"EKY 223 XF"]
[null,"EKY 231 EC"]
[null,"EKY 232 EC"]
[null,"EKY 233 EC"]
[null,"EKY 234 EC"]
[null,"EKY 235 EC"]
[null,"EKY 236 EC"]
[null,"EKY 237 EC"]
[null,"EKY 238 EC"]
[null,"EKY 292 DP"]
[null,"EKY 334 CK"]
[null,"EKY 397 EP"]
[null,"EKY 405 BP"]
[null,"EKY 415 BK"]
[null,"EKY 416 BK"]
[null,"EKY 417 BK"]
[null,"EKY 468 DB"]
[null,"EKY 483 DF"]
[null,"EKY 494 XR"]
[null,"EKY 62 XT"]
[null,"EKY 63 XT"]
[null,"EKY 64 XT"]
[null,"EKY 648 BZ"]
[null,"EKY 649 BZ"]
[null,"EKY 652 BZ"]
[null,"EKY 653 BZ"]
[null,"EKY 663 BC"]
[null,"EKY 663 BL"]
[null,"EKY 664 BL"]
[null,"EKY 744 CB"]
[null,"EKY 759 AY"]
[null,"EKY 881 CX"]
[null,"EKY 882 CX"]
[null,"EKY 883 CX"]
[null,"EKY 931 XD"]
[null,"EKY 932 XD"]
[null,"EP 148 FST"]
[null,"EPE  294 DG"]
[null,"EPE 136 CP"]
[null,"EPE 185 DX"]
[null,"EPE 220 EA"]
[null,"EPE 221 EA"]
[null,"EPE 222 EA"]
[null,"EPE 223 EA"]
[null,"EPE 224 EA"]
[null,"EPE 225 EA"]
[null,"EPE 226 EA"]
[null,"EPE 227 EA"]
[null,"EPE 228 EA"]
[null,"EPE 229 EA"]
[null,"EPE 246 DG"]
[null,"EPE 247 DG"]
[null,"EPE 248 DG"]
[null,"EPE 294 DG"]
[null,"EPE 295 DG"]
[null,"EPE 349 BJ"]
[null,"EPE 351 BJ"]
[null,"EPE 465 XQ"]
[null,"EPE 466 XQ"]
[null,"EPE 467 XQ"]
[null,"EPE 468 XQ"]
[null,"EPE 469 BD"]
[null,"EPE 469 XQ"]
[null,"EPE 470 XQ"]
[null,"EPE 471 XQ"]
[null,"EPE 472 XQ"]
[null,"EPE 473 XQ"]
[null,"EPE 474 BG"]
[null,"EPE 474 XQ"]
[null,"EPE 475 XQ"]
[null,"EPE 476 XQ"]
[null,"EPE 477 XQ"]
[null,"EPE 478 XQ"]
[null,"EPE 479 XQ"]
[null,"EPE 480 XQ"]
[null,"EPE 481 XQ"]
[null,"EPE 482 XQ"]
[null,"EPE 483 BC"]
[null,"EPE 483 XQ"]
[null,"EPE 594 CQ"]
[null,"EPE 675 XN"]
[null,"EPE 678 XN"]
[null,"EPE 679 XN"]
[null,"EPE 680 XN"]
[null,"EPE 681 XN"]
[null,"EPE 682 XN"]
[null,"EPE 683 XN"]
[null,"EPE 684 XN"]
[null,"EPE 685 XN"]
[null,"EPE 686 XN"]
[null,"EPE 687 XN"]
[null,"EPE 688 XN"]
[null,"EPE 710 XD"]
[null,"EPE 728 BH"]
[null,"EPE 731 BH"]
[null,"EPE 753 BE "]
[null,"EPE 814 XQ"]
[null,"EPE 925 BE"]
[null,"EPE 926 CN"]
[null,"EPE 927 BE"]
[null,"EPE 928 BE"]
[null,"EPE 932 BE"]
[null,"EPE 933 BE"]
[null,"EPE 934 BE"]
[null,"EPE 941 BE"]
[null,"EPE 946 BE"]
[null,"EPE 954 CN"]
[null,"EPE 973 BJ"]
[null,"EPE 978 BF"]
[null,"EPE 979 BF"]
[null,"EPE 983 BF"]
[null,"EPE 986 BF"]
[null,"EV 481 KRD"]
[null,"EW 550 PHC"]
[null,"EX 635  ABUJA"]
[null,"EY 985 KRD"]
[null,"EZ 846 APP"]
[null,"EZ 848 APP"]
[null,"FA 530 APP"]
[null,"FA 650 KRD"]
[null,"FC 695 LSR"]
[null,"FD 238 LND"]
[null,"FD 525 APP"]
[null,"FJ 589 KRD"]
[null,"FKJ 06 CQ"]
[null,"FKJ 353 XC"]
[null,"FKJ 354 XC"]
[null,"FKJ 355 XC"]
[null,"FKJ 357 XC"]
[null,"FKJ 358 XC"]
[null,"FKJ 359 XC"]
[null,"FKJ 360 XC"]
[null,"FKJ 361 XC"]
[null,"FKJ 362 XC"]
[null,"FKJ 363 XC"]
[null,"FKJ 364 XC"]
[null,"FKJ 365 XC"]
[null,"FKJ 412 EA"]
[null,"FKJ 413 EA"]
[null,"FKJ 414 EA"]
[null,"FKJ 423 XH"]
[null,"FKJ 424 XH"]
[null,"FKJ 425 XH"]
[null,"FKJ 46 DD"]
[null,"FKJ 487 CN"]
[null,"FKJ 490 CN"]
[null,"FKJ 504 BG"]
[null,"FKJ 586 XP"]
[null,"FKJ 587 XP"]
[null,"FKJ 588 XP"]
[null,"FKJ 630 DE"]
[null,"FKJ 631 DE"]
[null,"FKJ 632 DE"]
[null,"FKJ 633 DE"]
[null,"FKJ 634 DE"]
[null,"FKJ 64 CZ"]
[null,"FKJ 67 XE"]
[null,"FKJ 68 XE"]
[null,"FKJ 695 CC"]
[null,"FKJ 749 DQ"]
[null,"FKJ 817AC"]
[null,"FKJ 82 AP"]
[null,"FKJ 847 DP"]
[null,"FST 155 CJ"]
[null,"FST 206 AX"]
[null,"FST 235 XG"]
[null,"FST 236 XG"]
[null,"FST 237 XG"]
[null,"FST 426 DJ"]
[null,"FST 487 CN"]
[null,"FST 54 BL"]
[null,"FST 56 BL"]
[null,"FST 58 BL"]
[null,"FST 602 BP"]
[null,"FST 602 CX"]
[null,"FST 713 AG"]
[null,"FST 713 DG"]
[null,"FST 728 XL"]
[null,"FST 788 DC"]
[null,"FST 842 XS"]
[null,"FST 843 XS"]
[null,"FST 89 XN"]
[null,"FST89 XN"]
[null,"FU 680 ABJ"]
[null,"FW 566 EKY "]
[null,"GA 687 LSR"]
[null,"GC 105 LSR"]
[null,"GC 487 EKY"]
[null,"GF 570 LSR"]
[null,"GF 641 LSR"]
[null,"GG 946 LSR"]
[null,"GGE 114 XE"]
[null,"GGE 123 EC"]
[null,"GGE 145 XP"]
[null,"GGE 165 DP"]
[null,"GGE 279 EH"]
[null,"GGE 285 EH"]
[null,"GGE 286 EH"]
[null,"GGE 287 AT"]
[null,"GGE 289 EH"]
[null,"GGE 40 XL"]
[null,"GGE 414 EA"]
[null,"GGE 416 EA"]
[null,"GGE 447 CV"]
[null,"GGE 457 DM"]
[null,"GGE 458 DM"]
[null,"GGE 475 XD"]
[null,"GGE 50 XL"]
[null,"GGE 500 XE"]
[null,"GGE 501 XE"]
[null,"GGE 540 XE"]
[null,"GGE 541 XE"]
[null,"GGE 542 XE"]
[null,"GGE 543 XE"]
[null,"GGE 544 XE"]
[null,"GGE 545 XE"]
[null,"GGE 546 XC"]
[null,"GGE 546 XE"]
[null,"GGE 601 XM"]
[null,"GGE 645 XG"]
[null,"GGE 646 XG"]
[null,"GGE 647 XG"]
[null,"GGE 648 XG"]
[null,"GGE 649 XG"]
[null,"GGE 650 XG"]
[null,"GGE 835 DV"]
[null,"GGE 938 AH"]
[null,"GH 598 LND"]
[null,"GJ 418 LND"]
[null,"GJ182LSR"]
[null,"GN 373 LND"]
[null,"GN 391 LND"]
[null,"GN 392 LND"]
[null,"GN 974 LND"]
[null,"HA 366 EKY"]
[null,"HK 196 EKY"]
[null,"HP 302 EKY"]
[null,"HS 258 EKY"]
[null,"HS 916 ABC"]
[null,"HS916 ABC"]
[null,"HT 214 EKY"]
[null,"JJJ 134 XH"]
[null,"JJJ 135 XH"]
[null,"JJJ 136 XH"]
[null,"JJJ 137 XH"]
[null,"JJJ 152 XH"]
[null,"JJJ 153 XH"]
[null,"JJJ 154 XH"]
[null,"JJJ 155 XH"]
[null,"JJJ 156 XH"]
[null,"JJJ 172 CV"]
[null,"JJJ 191 BG"]
[null,"JJJ 192 BG"]
[null,"JJJ 314 BE"]
[null,"JJJ 340 BP"]
[null,"JJJ 340 DP"]
[null,"JJJ 343 BP"]
[null,"JJJ 343 DP"]
[null,"JJJ 566 XM"]
[null,"JJJ 721 XL"]
[null,"JJJ 723 XC"]
[null,"JJJ 724 XC"]
[null,"JJJ 83 DF"]
[null,"JJJ 84 DF"]
[null,"JJJ 85 DF"]
[null,"JJJ 86 DF"]
[null,"JJJ 88 EH"]
[null,"JJJ 937 BG"]
[null,"JN 223 EKY"]
[null,"KJA 491 DQ"]
[null,"KJA 581 XL"]
[null,"KJA 629 CB"]
[null,"KJA 662 CK"]
[null,"KJA 713 XG"]
[null,"KJA 715 XG"]
[null,"KJA 716 XG"]
[null,"KJA 73 XC"]
[null,"KJA 74 XC"]
[null,"KJA 78 XC"]
[null,"KJA 835 XQ"]
[null,"KJA 904 DB"]
[null,"KJA 97 CL"]
[null,"KMC 20 XA"]
[null,"KMC 21 XA"]
[null,"KMC 22 XA/MHA 618 UV"]
[null,"KMC 23 XA"]
[null,"KMC 25 XA"]
[null,"KMC 27 XA"]
[null,"KMC 28 XA"]
[null,"KMC 29 XA"]
[null,"KMC 31 XA"]
[null,"KMC 32 XA"]
[null,"KMC 33 XA"]
[null,"KMC 35 XA"]
[null,"KMC 36 XA"]
[null,"KMC 39 XA"]
[null,"KMC 42 XA"]
[null,"KMC 44 XA"]
[null,"KMC 46 XA"]
[null,"KMC 48 XA"]
[null,"KMC 50 XA"]
[null,"KNM 726 HW"]
[null,"KNM 727 HW"]
[null,"kp 690 kja"]
[null,"KRD 117 DC"]
[null,"KRD 125 CB"]
[null,"KRD 131 XG"]
[null,"KRD 132 XG"]
[null,"KRD 133 XG"]
[null,"KRD 134 BL"]
[null,"KRD 134 XG"]
[null,"KRD 135 BL"]
[null,"KRD 136 BL"]
[null,"KRD 137 BL"]
[null,"KRD 138 BL"]
[null,"KRD 139 BL"]
[null,"KRD 145 CC"]
[null,"KRD 146 CC"]
[null,"KRD 275 XL"]
[null,"KRD 276 XL"]
[null,"KRD 277 XL"]
[null,"KRD 278 XL"]
[null,"KRD 279 XL"]
[null,"KRD 280 XL"]
[null,"KRD 281 XL"]
[null,"KRD 282 XL"]
[null,"KRD 283 XL"]
[null,"KRD 339 BC"]
[null,"KRD 340 BC"]
[null,"KRD 342 BC"]
[null,"KRD 343 BC"]
[null,"KRD 344 BC"]
[null,"KRD 345 BC"]
[null,"KRD 426 AS"]
[null,"KRD 427 AS"]
[null,"KRD 428 AS"]
[null,"KRD 522 DU"]
[null,"KRD 528 CQ"]
[null,"KRD 530 CL"]
[null,"KRD 531 CQ"]
[null,"KRD 539 XF"]
[null,"KRD 557 AE"]
[null,"KRD 558 CL"]
[null,"KRD 593 BV"]
[null,"KRD 596 BV"]
[null,"KRD 600 BV"]
[null,"KRD 601 BV"]
[null,"KRD 603 BV"]
[null,"KRD 606 BV"]
[null,"KRD 609 BV"]
[null,"KRD 610 BV"]
[null,"KRD 612 BV"]
[null,"KRD 615 BV"]
[null,"KRD 616 BV"]
[null,"KRD 646 XE"]
[null,"KRD 652 BW"]
[null,"KRD 684 CQ"]
[null,"KRD 695 XC"]
[null,"KRD 696 XC"]
[null,"KRD 700 XC"]
[null,"KRD 706 CQ"]
[null,"KRD 71 XC"]
[null,"KRD 72 XC"]
[null,"KRD 725 BT"]
[null,"KRD 726 BT"]
[null,"KRD 73 XC"]
[null,"KRD 74 XC"]
[null,"KRD 75 XC"]
[null,"KRD 76 XC"]
[null,"KRD 77 XC"]
[null,"KRD 78 XC"]
[null,"KRD 79 XC"]
[null,"KRD 794 XN"]
[null,"KRD 797 XN"]
[null,"KRD 80 XC"]
[null,"KRD 847 DC"]
[null,"KRD 87 XM"]
[null,"KRD 88 XM"]
[null,"KRD 89 XM"]
[null,"KRD 890 BD"]
[null,"KRD 90 XM"]
[null,"KRD 91 CQ"]
[null,"KRD 934 DH"]
[null,"KRD 935 DK"]
[null,"KRD 938 AG"]
[null,"KRD 939 AG"]
[null,"KRD 957 AT"]
[null,"KRD 961 CA"]
[null,"KRDV 602 BV"]
[null,"KS 224 EKY"]
[null,"KS 244 EKY."]
[null,"KSF 104 XA"]
[null,"KSF 105 XA"]
[null,"KSF 107 XA"]
[null,"KSF 108 DH"]
[null,"KSF 145 BB"]
[null,"KSF 182 DS"]
[null,"KSF 202 XB"]
[null,"KSF 209 AY"]
[null,"KSF 223 XB"]
[null,"KSF 286 DX"]
[null,"KSF 287 DX"]
[null,"KSF 356 BF"]
[null,"KSF 365 BF"]
[null,"KSF 366 BF"]
[null,"KSF 485 EE"]
[null,"KSF 590 DU"]
[null,"KSF 591 XS"]
[null,"KSF 592 XS"]
[null,"KSF 593 XS"]
[null,"KSF 594 XS"]
[null,"KSF 595 XS"]
[null,"KSF 596 XS"]
[null,"KSF 597 XS"]
[null,"KSF 603 XS"]
[null,"KSF 604 XS"]
[null,"KSF 605 XS"]
[null,"KSF 626 BE"]
[null,"KSF 684 DK"]
[null,"KSF 758 BQ"]
[null,"KSF 803 DS"]
[null,"KSF 902 BF"]
[null,"KSF 915 BF"]
[null,"KSF 919 BF"]
[null,"KSF 921 BF"]
[null,"KSF 923 BF"]
[null,"KSF 937 BB"]
[null,"KSF 976 BS"]
[null,"KSF 981 XL"]
[null,"KSF 982 XL"]
[null,"KST 223 XB"]
[null,"KTU  419 AR"]
[null,"KTU 123 DA"]
[null,"KTU 134 DA"]
[null,"KTU 139 DA"]
[null,"KTU 144 DA"]
[null,"KTU 171 XS"]
[null,"KTU 172 XS"]
[null,"KTU 173 XS"]
[null,"KTU 174 XS"]
[null,"KTU 175 XS"]
[null,"KTU 176 XS"]
[null,"KTU 177 XS"]
[null,"KTU 178 XS"]
[null,"KTU 179 XS"]
[null,"KTU 180 XS"]
[null,"KTU 181 XS"]
[null,"KTU 182 XS"]
[null,"KTU 183 XS"]
[null,"KTU 185 XS"]
[null,"KTU 190 XT"]
[null,"KTU 191 XT"]
[null,"KTU 192 XT"]
[null,"KTU 193 XT"]
[null,"KTU 202 DN"]
[null,"KTU 203 DN"]
[null,"KTU 254 EA"]
[null,"KTU 255 EA"]
[null,"KTU 274 DW"]
[null,"KTU 350 DD"]
[null,"KTU 370 DM"]
[null,"KTU 371 AQ"]
[null,"KTU 413 AR"]
[null,"KTU 414 AR"]
[null,"KTU 416 AR"]
[null,"KTU 417 AR"]
[null,"KTU 418 AR"]
[null,"KTU 419 AR"]
[null,"KTU 420 AR"]
[null,"KTU 513 AT"]
[null,"KTU 514 AT"]
[null,"KTU 515 AT"]
[null,"KTU 516 AT"]
[null,"KTU 517 AT"]
[null,"KTU 517 XC"]
[null,"KTU 518 AT"]
[null,"KTU 518 XC"]
[null,"KTU 519 AT"]
[null,"KTU 519 XC"]
[null,"KTU 520 AT"]
[null,"KTU 520 XC"]
[null,"KTU 521 AT"]
[null,"KTU 521 XC"]
[null,"KTU 522 AT"]
[null,"KTU 523 AT"]
[null,"KTU 523 XS"]
[null,"KTU 525 AT"]
[null,"KTU 526 AT"]
[null,"KTU 527 AT"]
[null,"KTU 531 XS"]
[null,"KTU 532 XS"]
[null,"KTU 541 XC"]
[null,"KTU 542 XC"]
[null,"KTU 558 XS"]
[null,"KTU 559 XS"]
[null,"KTU 635 CG"]
[null,"KTU 636 CB"]
[null,"KTU 637 CG"]
[null,"KTU 638 CG"]
[null,"KTU 639 CG"]
[null,"KTU 640 CG"]
[null,"KTU 641 CG"]
[null,"KTU 720 DG"]
[null,"KTU 721 DG"]
[null,"KTU 737 DN"]
[null,"KTU 738 BB"]
[null,"KTU 761 CA"]
[null,"KTU 763 BH"]
[null,"KTU 764 BH"]
[null,"KTU 777 XE"]
[null,"KTU 780 XE"]
[null,"KTU 792 XA"]
[null,"KTU 793 XA"]
[null,"KTU 794 XA"]
[null,"KTU 795 XA"]
[null,"KTU 796 XA"]
[null,"KTU 850 XQ"]
[null,"KTU 851 EG"]
[null,"KTU 851 XQ"]
[null,"KTU 852 XQ"]
[null,"KTU 853 XQ"]
[null,"KTU 873 BD"]
[null,"KTU 878 XE"]
[null,"KTU 879 BD"]
[null,"KTU 879 XE"]
[null,"KTU 880 XE"]
[null,"KTU 881 XE"]
[null,"KTU 882 XE"]
[null,"KTU 883 XE"]
[null,"KTU 884 XE"]
[null,"KTU 885 XE"]
[null,"KTU 886 XE"]
[null,"KTU 914 XT"]
[null,"KTU 916 DS"]
[null,"KTU 922 EC"]
[null,"KTU 923 EC"]
[null,"KTU 924 DS"]
[null,"KTU 925 DS"]
[null,"KTU 979 XP"]
[null,"KTU 980 XP"]
[null,"KTU 981 XP"]
[null,"KTU 981XP"]
[null,"KTU 982 DK"]
[null,"KTU 983 DK"]
[null,"KTU 983 XS"]
[null,"KUR 17 XA"]
[null,"KUR 18 XA"]
[null,"KUR 22 XA"]
[null,"KWL 567 FB"]
[null,"KWL 568 FB"]
[null,"KWL 569 FB"]
[null,"KWL 570 FB"]
[null,"KWL 575 FB"]
[null,"KWL 576 FB"]
[null,"KWL 577 FB"]
[null,"KWL 602 FB"]
[null,"KWL 603 FB"]
[null,"KWL 624 FB"]
[null,"KWL 625 FB"]
[null,"KWL 626 FB"]
[null,"KWL 927 FB"]
[null,"KWL 928 FB"]
[null,"LND 278 XS"]
[null,"LND 279 XS"]
[null,"LND 298 XS"]
[null,"LND 299 XS"]
[null,"LND 326 DF"]
[null,"LND 327 DF"]
[null,"LND 381 DY"]
[null,"LND 394 DE"]
[null,"LND 395 DE"]
[null,"LND 508 CK"]
[null,"LND 51 CX"]
[null,"LND 54 EA"]
[null,"LND 565 XM"]
[null,"LND 567 XM"]
[null,"LND 581 XM"]
[null,"LND 582 XM"]
[null,"LND 583 XM"]
[null,"LND 590 CC"]
[null,"LND 629 CZ"]
[null,"LND 665 XA"]
[null,"LND 709 DU"]
[null,"LND 711 DU"]
[null,"LND 712 DU"]
[null,"LND 713 DU"]
[null,"LND 714 DU"]
[null,"LND 721 DU"]
[null,"LND 722 DF"]
[null,"LND 723 DU"]
[null,"LND 725 DU"]
[null,"LND 726 DU"]
[null,"LND 729 DU"]
[null,"LND 734 DU"]
[null,"LND 735 DU"]
[null,"LND 736 DU"]
[null,"LND 736 EE"]
[null,"LND 831 XQ"]
[null,"LND 832 XQ"]
[null,"LND 833 XQ"]
[null,"LND 834 XQ"]
[null,"LND 902 CX"]
[null,"LND 903 CX"]
[null,"LND 923 EA"]
[null,"LND 924 EA"]
[null,"LND 925 EA"]
[null,"LND 940 AG"]
[null,"LND 954 DN"]
[null,"LND 971 AH"]
[null,"LSD 111 XR"]
[null,"LSD 168 DE"]
[null,"LSD 174 DE"]
[null,"LSD 175 DE"]
[null,"LSD 179 DU"]
[null,"LSD 180 CZ"]
[null,"LSD 180 DU"]
[null,"LSD 181 DU"]
[null,"LSD 256 DZ"]
[null,"LSD 267 XB"]
[null,"LSD 268 XB"]
[null,"LSD 326 CB"]
[null,"LSD 327 CB"]
[null,"LSD 329 CB"]
[null,"LSD 348 XM"]
[null,"LSD 349 XM"]
[null,"LSD 350 XM"]
[null,"LSD 374 BM"]
[null,"LSD 379 EA"]
[null,"LSD 403 XU"]
[null,"LSD 415 CU"]
[null,"LSD 416 CU"]
[null,"LSD 417 CU"]
[null,"LSD 418 CU"]
[null,"LSD 419 CU"]
[null,"LSD 420 CU"]
[null,"LSD 421 CU"]
[null,"LSD 422 CU"]
[null,"LSD 423 CU"]
[null,"LSD 424 CU"]
[null,"LSD 426 CU"]
[null,"LSD 429 CP"]
[null,"LSD 432 CE"]
[null,"LSD 437 XP"]
[null,"LSD 438 XP"]
[null,"LSD 453 XM"]
[null,"LSD 454 XM"]
[null,"LSD 455 XM"]
[null,"LSD 456 XM"]
[null,"LSD 457 XM"]
[null,"LSD 458 XM"]
[null,"LSD 459 XM"]
[null,"LSD 460 XM"]
[null,"LSD 461 XM"]
[null,"LSD 462 XM"]
[null,"LSD 496 AV"]
[null,"LSD 552 CY"]
[null,"LSD 565 EC"]
[null,"LSD 566 EC"]
[null,"LSD 567 EC"]
[null,"LSD 612 DG"]
[null,"LSD 637 BP"]
[null,"LSD 638 BP"]
[null,"LSD 647 BC"]
[null,"LSD 654 EC"]
[null,"LSD 698 XH"]
[null,"LSD 700 XH"]
[null,"LSD 701 XH"]
[null,"LSD 719 DF"]
[null,"LSD 721 DF"]
[null,"LSD 722 DF"]
[null,"LSD 723 DF"]
[null,"LSD 740 XC"]
[null,"LSD 741 XC"]
[null,"LSD 745 XL"]
[null,"LSD 793 CG"]
[null,"LSD 813 CW"]
[null,"LSD 814 CW"]
[null,"LSD 816 CW"]
[null,"LSD 817 CW"]
[null,"LSD 821 CK"]
[null,"LSD 832 DR"]
[null,"LSD 851 AE"]
[null,"LSD 878 XM"]
[null,"LSD 879 XM"]
[null,"LSD 880 XM"]
[null,"LSD 881 XM"]
[null,"LSD 882 XM"]
[null,"LSD 883 XM"]
[null,"LSR 137 AP"]
[null,"LSR 138 AP"]
[null,"LSR 139 AP"]
[null,"LSR 140 AP"]
[null,"LSR 141 AP"]
[null,"LSR 18 DQ"]
[null,"LSR 202 DG"]
[null,"LSR 204 DG"]
[null,"LSR 205 DG"]
[null,"LSR 221 DB"]
[null,"LSR 239 DU"]
[null,"LSR 265 XL"]
[null,"LSR 266 XL"]
[null,"LSR 267 XL"]
[null,"LSR 268 XL"]
[null,"LSR 269 XL"]
[null,"LSR 270 XL"]
[null,"LSR 312 DK"]
[null,"LSR 318 CZ"]
[null,"LSR 321 CZ"]
[null,"LSR 327 EJ"]
[null,"LSR 329 BB"]
[null,"LSR 375 ER"]
[null,"LSR 405 CA"]
[null,"LSR 419 DC"]
[null,"LSR 430 CE"]
[null,"LSR 432 CE"]
[null,"LSR 529 BB"]
[null,"LSR 55 XQ"]
[null,"LSR 56 XQ"]
[null,"LSR 57 XQ"]
[null,"LSR 58 XQ"]
[null,"LSR 59 XQ"]
[null,"LSR 60 XQ"]
[null,"LSR 61 XQ"]
[null,"LSR 62 XQ"]
[null,"LSR 63 XQ"]
[null,"LSR 64 XQ"]
[null,"LSR 677 EJ"]
[null,"LSR 687 EJ"]
[null,"LSR 688 EJ"]
[null,"LSR 721 DF"]
[null,"LSR 723 DF"]
[null,"LSR 790 DY"]
[null,"LSR 814 CW"]
[null,"LSR 828 CJ"]
[null,"LSR 852 XT"]
[null,"LSR 885 CB"]
[null,"LSR 907 DU"]
[null,"LSR 908 DU"]
[null,"LSR 911 DU"]
[null,"LSR 911 XL"]
[null,"LSR 912 DU"]
[null,"LSR 912 XL"]
[null,"LSR 913 XL"]
[null,"LSR 914 XL"]
[null,"LSR 915 XL"]
[null,"LSR 916 XL"]
[null,"LSR 948 DF"]
[null,"LSR 949 DF"]
[null,"LSR 950 DF"]
[null,"LSR 951 DF"]
[null,"LSR 960 BQ"]
[null,"LSR 961 BQ"]
[null,"LSR 962 BQ"]
[null,"LSR 992 XL"]
[null,"LSR 993 XL"]
[null,"LSR 994 XL"]
[null,"LSR 995 XL"]
[null,"LSR 996 XL"]
[null,"LSR 997 XL"]
[null,"LSR 998 XL"]
[null,"MT 339 AAA"]
[null,"MUS 180 CW"]
[null,"MUS 245 XR"]
[null,"MUS 246 CD"]
[null,"MUS 403 DY"]
[null,"MUS 426 DY"]
[null,"MUS 43 EL"]
[null,"MUS 453 AG"]
[null,"MUS 482 BT"]
[null,"MUS 489 BE"]
[null,"MUS 494 XP"]
[null,"MUS 532 AW"]
[null,"MUS 571 DM"]
[null,"MUS 576 AY"]
[null,"MUS 655 AS"]
[null,"MUS 663 CD"]
[null,"MUS 714 AY"]
[null,"MUS 727 XG"]
[null,"MUS 736 BD"]
[null,"MUS 737 BD"]
[null,"MUS 738 BD"]
[null,"MUS 739 BD"]
[null,"MUS 740 BD"]
[null,"MUS 741 BD"]
[null,"MUS 742 BD"]
[null,"MUS 743 BD"]
[null,"MUS 744 BD"]
[null,"MUS 745 BD"]
[null,"MUS 746 BD"]
[null,"MUS 747 BD"]
[null,"MUS 749 BD"]
[null,"MUS 750 BD"]
[null,"MUS 751 BD"]
[null,"MUS 752 BD"]
[null,"MUS 754 BD"]
[null,"MUS 755 BD"]
[null,"MUS 757 BD"]
[null,"MUS 758 XC"]
[null,"MUS 778 DJ"]
[null,"MUS 844 XK"]
[null,"MUS 861 CF"]
[null,"MUS 861 CN"]
[null,"MUS 862 CF"]
[null,"MUS 869 CN"]
[null,"MUS 882 CN"]
[null,"MUS 883 YB"]
[null,"MUS 896 CN"]
[null,"MUS 961 CU"]
[null,"MUS 962 CY"]
[null,"MUS 963 CY"]
[null,"MUS 964 CY"]
[null,"MUS 965 CY"]
[null,"MUS 966 CY"]
[null,"MUS 967 CY"]
[null,"MUS 968 CY"]
[null,"MUS 969 CY"]
[null,"MUS 970 CY"]
[null,"MUS 971 CY"]
[null,"MUS 972 CY"]
[null,"MUS 973 CY"]
[null,"MUS 974 CY"]
[null,"NCH 257 AA"]
[null,"NZ 259 AAA"]
[null,"PHC 534 NM"]
[null,"RG 766 KJA"]
[null,"RN 604 KJA"]
[null,"RP 151 AAA/AGL 688 BD"]
[null,"SMK 102 EE"]
[null,"SMK 103 EE"]
[null,"SMK 104 EE"]
[null,"SMK 112 EE"]
[null,"SMK 122 EE"]
[null,"SMK 124 EE"]
[null,"SMK 125 EE"]
[null,"SMK 126 EE"]
[null,"SMK 127 EE"]
[null,"SMK 128 EE"]
[null,"SMK 131 EE"]
[null,"SMK 136 XQ"]
[null,"SMK 137 XQ"]
[null,"SMK 150 XS"]
[null,"SMK 151 XS"]
[null,"SMK 152 XS"]
[null,"SMK 153 XS"]
[null,"SMK 154 XS"]
[null,"SMK 155 XS"]
[null,"SMK 156 XS"]
[null,"SMK 157 XS"]
[null,"SMK 160 XS"]
[null,"SMK 170 CA"]
[null,"SMK 176 EA"]
[null,"SMK 177 EA"]
[null,"SMK 178 EA"]
[null,"SMK 179 EA"]
[null,"SMK 180 EA"]
[null,"SMK 181 EA"]
[null,"SMK 182 EA"]
[null,"SMK 183 EA"]
[null,"SMK 184 EA"]
[null,"SMK 185 EA"]
[null,"SMK 280 DS"]
[null,"SMK 282 BL"]
[null,"SMK 31 DE"]
[null,"SMK 327 CC"]
[null,"SMK 328 CC"]
[null,"SMK 345 XC"]
[null,"SMK 347 CG"]
[null,"SMK 349 CG"]
[null,"SMK 350 CG"]
[null,"SMK 351 CG"]
[null,"SMK 352 CG"]
[null,"SMK 353 CG"]
[null,"SMK 354 CG"]
[null,"SMK 355 CG"]
[null,"SMK 356 CG"]
[null,"SMK 357 CG"]
[null,"SMK 358 CG"]
[null,"SMK 359 CG"]
[null,"SMK 360 CG"]
[null,"SMK 361 CG"]
[null,"SMK 42 CA"]
[null,"SMK 426 CQ"]
[null,"SMK 428 CQ"]
[null,"SMK 43 CA"]
[null,"SMK 447 CZ"]
[null,"SMK 451 DN"]
[null,"SMK 452 DN"]
[null,"SMK 453 DN"]
[null,"SMK 491 BZ"]
[null,"SMK 492 BZ"]
[null,"SMK 501 BZ"]
[null,"SMK 516 BD"]
[null,"SMK 53 XG"]
[null,"SMK 54 XG"]
[null,"SMK 572 BD"]
[null,"SMK 573 BD"]
[null,"SMK 574 BD"]
[null,"SMK 575 BD"]
[null,"SMK 577 BD"]
[null,"SMK 578 BD"]
[null,"SMK 607 BM"]
[null,"SMK 607 MB"]
[null,"SMK 608 BM"]
[null,"SMK 609 BM"]
[null,"SMK 610 AG"]
[null,"SMK 611 AG"]
[null,"SMK 611 BM"]
[null,"SMK 612 AG"]
[null,"SMK 612 BM"]
[null,"SMK 613 AG"]
[null,"SMK 613 BM"]
[null,"SMK 614 AG"]
[null,"SMK 614 BM"]
[null,"SMK 615 BM"]
[null,"SMK 616 BM"]
[null,"SMK 616 CB"]
[null,"SMK 617 DA"]
[null,"SMK 618 BM"]
[null,"SMK 619 BM"]
[null,"SMK 677 DZ"]
[null,"SMK 701 BZ"]
[null,"SMK 740 DB"]
[null,"SMK 751 BD "]
[null,"SMK 792 AU"]
[null,"SMK 793 AU"]
[null,"SMK 805 EG"]
[null,"SMK 806 EG"]
[null,"SMK 816 CB"]
[null,"SMK 853 DH"]
[null,"SMK 855 DH"]
[null,"SMK 872 DD"]
[null,"SMK 872 XA "]
[null,"SMK 960 DZ"]
[null,"SMK 971 EC"]
[null,"SMK 972 EC"]
[null,"SMK 995 DG"]
[null,"ST 00 AFF"]
[null,"SU 507 AGL"]
[null,"SW 582 AAA"]
[null,"SZ 685 KJA"]
[null,"TAK 27 AA"]
[null,"TAK 29 AA"]
[null,"TAK 30 AA"]
[null,"TAK 32 AA"]
[null,"TAK 33 AA"]
[null,"TH 234 AAA"]
[null,"TL 987 AAA"]
[null,"TU 470 KJA"]
[null,"TW 492 AAA"]
[null,"UG 792 KJA"]
[null,"UL 578 KJA"]
[null,"XA 870 TWD"]
[null,"XA 871 TWD"]
[null,"XA 872 TWD"]
[null,"XB 101 YDB"]
[null,"XB 133 YDB"]
[null,"XB 142 YDB"]
[null,"XB 299 KWC"]
[null,"XB 336 JRT"]
[null,"XB 336 KHE"]
[null,"XB 415 JRT"]
[null,"XB 503 AGL"]
[null,"XB 832 BLG"]
[null,"XC 200 YNF"]
[null,"XC 201 YNF"]
[null,"XC 288 YRE"]
[null,"XC 317 AKN"]
[null,"XJ 692 EKY"]
[null,"XJ 770 LSR"]
[null,"XJ 771 LSR"]
[null,"XN 338 KTU"]
[null,"XP 231 KTU"]
[null,"XQ 379 LSD"]
[null,"XQ 892 LSD"]
[null,"XS 812 KTU"]
[null,"XS 813 KTU"]
[null,"XS 815 KTU"]
[null,"XS 816 KTU"]
[null,"XS 817 KTU"]
[null,"XS 818 KTU"]
[null,"XT 256 GGE"]
[null,"XT 257 GGE"]
[null,"XT 564 KRD"]
[null,"XT 566 KRD"]
[null,"XT 567 KRD"]
[null,"XU 509 AGL"]
[null,"XU 745 JJJ"]
[null,"XU 782 AGL"]
[null,"XU 786 AGL"]
[null,"XV 745 JJJ"]
[null,"XW 279 AGL"]
[null,"XW 536 FKJ"]
[null,"XW 582 AAA"]
[null,"XW 963 JJJ"]
[null,"XW 967 JJJ"]
[null,"XX 279 AGL"]
[null,"XX 294 AGL"]
[null,"XX 307 AGL"]
[null,"XX 355 AGL"]
[null,"XX 356 AGL"]
[null,"XY 53 APP"]
[null,"XZ 279 GGE"]
[null,"YA 171 MUS"]
[null,"YA 174 MUS"]
[null,"YA 176 MUS"]
[null,"YA 462 AKD"]
[null,"YA 463 AKD"]
[null,"YA 801 EPE"]
[null,"YA 802 EPE"]
[null,"YA 804 EPE"]
[null,"YA 805 EPE"]
[null,"YB 609 MUS"]
[null,"YB 765 EKY"]
[null,"YB 876 MUS"]
[null,"YB 877 MUS"]
[null,"YB 878 MUS"]
[null,"YB 880 MUS"]
[null,"YB 882 MUS"]
[null,"YB 884 MUS"]
[null,"YEN 708 QH"]
[null,"SMK 125 EE"]

{"sheet":" 04-05-2017","index":32,"n_rows":8,"n_cols":16,"rows_kept":8,"cut":false,"hidden":false,"merged":[]}
[]
[null,null,null,null,null,null,"HUAWEI FUEL RETIREMENT FOR 04-05-2017 BY IKECHUKWU ROBERT E."]
["Date","Vehicle Number","Filling Station","Mileage","Type","Quantity","Amount per Litre","TRACKING REPORT LITRE","Variance","RATE","PURCHASE POINT","CONTRACT","NAME","PHONE NO","COMMENT","VEHICLE MAKE"]
[" 03/05/2017","YA 174 MUS","NUA",229178,"PETROL",14,145,8,6,"2,000:00","ABA","HUAWEI","EGBEWHO REUBEN",8060047928," ","TOYOTA HILUX P/UP"]
[" 04/05/2017","YA 174 MUS","TONIMAS",229206,"PETROL",14,145,14,0,"2,000:00","ABA","HUAWEI","EGBEWHO REUBEN",8060047928," ","TOYOTA HILUX P/UP"]
[" 04/05/2017","XB 415 JRT","CITY BASE",210700,"PETROL",24,145," NOT REPORTING"," -"," 3,500:00","UMUAHIA","HUAWEI","KENNETH OTOIBHILI",8180134519,"Support Ticket Opened [#843]","TOYOTA HILUX P/UP"]
[]
[null,null,null,null,null,null,null,null,"TOTAL","7,500:00"]

{"sheet":" 08-05-2017","index":33,"n_rows":11,"n_cols":16,"rows_kept":11,"cut":false,"hidden":false,"merged":[]}
[]
[]
[null,null,null,null,null,null,"HUAWEI FUEL RETIREMENT FOR 06-05-2017 BY IKECHUKWU ROBERT E."]
["Date","Vehicle Number","Filling Station","Mileage","Type","Quantity","Amount per Litre","TRACKING REPORT LITRE","Variance","RATE","PURCHASE POINT","CONTRACT","NAME","PHONE NO","COMMENT","VEHICLE MAKE"]
[" 04/05/2017","YA 174 MUS","OANDO",229829,"PETROL",21,145,21,0,"3,000:00","ABA","HUAWEI","EGBEWHO REUBEN",8060047928," ","TOYOTA HILUX P/UP"]
[" 05/05/2017","XB 415 JRT","CITY BASE",210925,"PETROL",21,145,14,7," 3,000:00","UMUAHIA","HUAWEI","KENNETH OTOIBHILI",8180134519," ","TOYOTA HILUX P/UP"]
[" 05/05/2017","KMC 39 XA","TONIMAS",259091,"PETROL",21,145," NOT REPORTING"," -"," 3,000:00","ABA","HUAWEI","ERIC OWHONDA",8035417621,"Support Ticket Opened [#849]","TOYOTA HILUX P/UP"]
[" 05/05/2017","KRD 539 XF","OANDO",223950,"PETROL",41,145,19.5,21.5,"6,000:00","UMUAHIA","HUAWEI","SANNI WILLIAMS",8166130744,"Support Ticket Opened [#849]","MITS.L200"]
[" 05/05/2017","YA 174 MUS","TONIMAS",229829,"PETROL",14,145,9,5,"2,000:00","ABA","HUAWEI","EGBEWHO REUBEN",8060047928," ","TOYOTA HILUX P/UP"]
[]
[null,null,null,null,null,null,null,null,"TOTAL","17,000:00"]

{"sheet":"15-05-2017","index":34,"n_rows":13,"n_cols":16,"rows_kept":13,"cut":false,"hidden":false,"merged":[]}
[]
[]
[]
[]
[null,null,null,null,null,null,"HUAWEI FUEL RETIREMENT FOR 15-05-2017 BY IKECHUKWU ROBERT E."]
["Date","Vehicle Number","Filling Station","Mileage","Type","Quantity","Amount per Litre","TRACKING REPORT LITRE","Variance","RATE","PURCHASE POINT","CONTRACT","NAME","PHONE NO","COMMENT","VEHICLE MAKE"]
[" 12/05/2017","JJJ 723 XC","BENNEE PET",309843,"PETROL",14,145,21,7,"2,000:00","BORI","HUAWEI","AMAECHI OKECHUKWU",9076500356," ","MITS.L200  P/UP"]
[" 13/05/2017","JJJ 723 XC"," TOTAL",310046,"PETROL",64,145,64,0,"9,300:00","PHC","HUAWEI","AMAECHI OKECHUKWU",9076500356,"FAULTY TOTAL CARD","MITS.L200  P/UP"]
[" "," "," "," ","  "," "," "," "," "," "," "," "," "," "," "," "]
[" "," "," "," "," "," "," "," "," "," "," "," "," "," "," "," "]
[" "," "," "," "," "," "," "," "," "," "," "," "," "," "," "," "]
[]
[null,null,null,null,null,null,null,null,"TOTAL","11,300:00"]

{"sheet":"16-05-2017","index":35,"n_rows":10,"n_cols":16,"rows_kept":10,"cut":false,"hidden":false,"merged":[]}
[]
[]
[]
[null,null,null,null,null,null,"HUAWEI FUEL RETIREMENT FOR 16-05-2017 BY IKECHUKWU ROBERT E."]
["Date","Vehicle Number","Filling Station","Mileage","Type","Quantity","Amount per Litre","TRACKING REPORT LITRE","Variance","RATE","PURCHASE POINT","CONTRACT","NAME","PHONE NO","COMMENT","VEHICLE MAKE"]
[" 15/05/2017","KRD 539 XF","OANDO",225935,"PETROL",41,145,25,21.5,"6,000:00","UMUAHIA","HUAWEI","SANNI WILLIAMS",8166130744,"Support Ticket Opened [#849]","MITS.L200"]
[" 15/05/2017","JJJ 723 XC","SOSO",310142,"PETROL",28,145,19.5,0,"4,000:00","PHC","HUAWEI","AMAECHI OKECHUKWU",9076500356,null,"MITS.L200  P/UP"]
["16/5/2017","XB 415 JRT","HUMMER",212324,"PETROL",21,145,"NOT REPORTING",".","3,000:00","UMUAHIA","HUAWEI","KENNETH OTOIBHILI",8180134519,"Support Ticket Opened [#843]","TOYOTA HILUX P/UP (Paid into Huawei's engineer's account, Driver has issues with his ATM)"]
[]
[null,null,null,null,null,null,null,null,"TOTAL","13,000:00"]

{"sheet":"17-05-2017","index":36,"n_rows":11,"n_cols":16,"rows_kept":11,"cut":false,"hidden":false,"merged":[]}
[]
[]
[null,null,null,null,null,null,"HUAWEI FUEL RETIREMENT FOR 17-05-2017 BY IKECHUKWU ROBERT E."]
["Date","Vehicle Number","Filling Station","Mileage","Type","Quantity","Amount per Litre","TRACKING REPORT LITRE","Variance","RATE","PURCHASE POINT","CONTRACT","NAME","PHONE NO","COMMENT","VEHICLE MAKE"]
["16/05/2017","JJJ 723 XC","SOSO",310212,"PETROL",28,145,26,2,"4,000:00","PHC","HUAWEI","AMAECHI OKECHUKWU",9076500356,null,"MITS.L200  P/UP"]
["16/05/2017","KMC 44 XA","NUA",200659,"PETROL",14,145,13,1,"2,000:00","ABA","HUAWEI","EGEBEWHO REUBEN",8060047928," ","TOYOTA HILUX P/UP"]
["17/05/2017","KRD 539 XF","FORTE ",226242,"PETROL",48,145,30,18,"7,000:00","UMUAHIA","HUAWEI","SANNI WILLIAMS",8166130744,"Support Ticket Opened [#849]","MITS.L200"]
["17/05/2017","KMC 44 XA","NUA",200780,"PETROL",21,145,21,0,"3,000:00","ABA","HUAWEI","EGEBEWHO REUBEN",8060047928," ","TOYOTA HILUX P/UP"]
["17/05/2017","JJJ 723 XC","MOBIL",310428,"PETROL",41,145,41,4,"6,000:00","PHC","HUAWEI","AMAECHI OKECHUKWU",9076500356,null,"MITS.L200  P/UP"]
["18/05/2017","JJJ 723 XC","OANDO",310589,"PETROL",21,145,21,4,"3,000:00","ONNE","HUAWEI","AMAECHI OKECHUKWU",9076500356,null,"MITS.L200  P/UP"]
[null,null,null,null,null,null,null,null,"TOTAL","25,000:00"]

{"sheet":"22-05-2017","index":37,"n_rows":12,"n_cols":16,"rows_kept":12,"cut":false,"hidden":false,"merged":[]}
[]
[]
[]
[null,null,null,null,null,null,"HUAWEI FUEL RETIREMENT FOR 22-05-2017 BY IKECHUKWU ROBERT E."]
["Date","Vehicle Number","Filling Station","Mileage","Type","Quantity","Amount per Litre","TRACKING REPORT LITRE","Variance","RATE","PURCHASE POINT","CONTRACT","NAME","PHONE NO","COMMENT","VEHICLE MAKE"]
["19/05/2017","JJJ 723 XC","PROPEL",310698,"PETROL",41,145,44,3,"6,000:00","PHC","HUAWEI","AMAECHI OKECHUKWU",9076500356,null,"MITS.L200  P/UP"]
["20/05/2017","JJJ 723 XC","CHELSEA",310851,"PETROL",34.5,145,31,3.5,"5,000:00","PHC","HUAWEI","AMAECHI OKECHUKWU",9076500356,null,"MITS.L200  P/UP"]
["22/05/2017","JJJ 723 XC","ETERNA",311008,"PETROL",34.5,145,41,6.5,"5,000:00","PHC","HUAWEI","AMAECHI OKECHUKWU",9076500356,null,"MITS.L200  P/UP"]
[" "," "," "," ","  "," "," ","  "," "," ","  "," "," "," "," "," "]
[" "," "," "," "," "," "," "," "," "," "," "," "," "," "," "," "]
[" ","  "," "," "," "," "," "," "," "," "," "," "," "," "," "," "]
[null,null,null,null,null,null,null,null,"TOTAL","16,000:00"]

{"sheet":" 24-05-2017","index":38,"n_rows":8,"n_cols":16,"rows_kept":8,"cut":false,"hidden":false,"merged":[]}
[]
[]
[null,null,null,null,null,null,"HUAWEI FUEL RETIREMENT FOR 24-05-2017 BY IKECHUKWU ROBERT E."]
["Date","Vehicle Number","Filling Station","Mileage","Type","Quantity","Amount per Litre","TRACKING REPORT LITRE","Variance","RATE","PURCHASE POINT","CONTRACT","NAME","PHONE NO","COMMENT","VEHICLE MAKE"]
["23/05/2017","JJJ 723 XC","PROPEL",311197,"PETROL",34.5,145,40,5.5,"5,000:00","PHC","HUAWEI","AMAECHI OKECHUKWU",9076500356,null,"MITS.L200  P/UP"]
["24/5/2017","XB 415 JRT","HUMMER",213311,"PETROL",24,145,"NOT REPORTING",".","3,500:00","UMUAHIA","HUAWEI","KENNETH OTOIBHILI",8180134519,"Support Ticket Opened [#855]","T/HILUX"]
[]
[null,null,null,null,null,null,null,null,"TOTAL","8,500:00"]

{"sheet":" 25-05-2017","index":39,"n_rows":10,"n_cols":16,"rows_kept":10,"cut":false,"hidden":false,"merged":[]}
[]
[]
[]
[]
[null,null,null,null,null,null,"HUAWEI FUEL RETIREMENT FOR 24-05-2017 BY IKECHUKWU ROBERT E. (2)"]
["Date","Vehicle Number","Filling Station","Mileage","Type","Quantity","Amount per Litre","TRACKING REPORT LITRE","Variance","RATE","PURCHASE POINT","CONTRACT","NAME","PHONE NO","COMMENT","VEHICLE MAKE"]
["24/05/2017","JJJ 723 XC","OANDO",311356,"PETROL",34.5,145,25,9.5,"5,000:00","PHC","HUAWEI","AMAECHI OKECHUKWU",9076500356,null,"MITS.L200  P/UP"]
[" "," "," "," "," "," "," "," "," "," "," "," "," "," "," "," "]
[]
[null,null,null,null,null,null,null,null,"TOTAL","5,000:00"]

{"sheet":"28-05-2017","index":40,"n_rows":6,"n_cols":16,"rows_kept":6,"cut":false,"hidden":false,"merged":[]}
[]
[]
[]
[null,null,null,null,null,null,"HUAWEI FUEL RETIREMENT FOR 29-05-2017 BY IKECHUKWU ROBERT E."]
["Date","Vehicle Number","Filling Station","Mileage","Type","Quantity","Amount per Litre","TRACKING REPORT LITRE","Variance","RATE","PURCHASE POINT","CONTRACT","NAME","PHONE NO","COMMENT","VEHICLE MAKE"]
["28/05/2017","KRD 539 XF","FORTE ",228057,"PETROL",34,145,27,7,"5,000:00","UMUAHIA","HUAWEI","SANNI WILLIAMS",8166130744," ","MITS.L200"]

{"sheet":" 06-06-2017","index":41,"n_rows":9,"n_cols":17,"rows_kept":9,"cut":false,"hidden":false,"merged":[]}
[]
[]
[]
[null,null,null,null,null,null,null,"HUAWEI FUEL RETIREMENT FOR 06-06-2017 BY IKECHUKWU ROBERT E."]
[null,"Date","Vehicle Number","Filling Station","Mileage","Type","Quantity","Amount per Litre","TRACKING REPORT LITRE","Variance","RATE","PURCHASE POINT","CONTRACT","NAME","PHONE NO","COMMENT","VEHICLE MAKE"]
[null,"2017-05-06","YA 174 MUS","GREEN PAC",230923,"PETROL",21,145,14.5,6.5,3000,"ABA","HUAWEI","EGEBEWHO REUBEN",8060047928," ","TOYOTA HILUX"]
[null,"2017-06-06","YA 174 MUS"," NUA",231009,"PETROL",21,145,14,7,3000,"ABA","HUAWEI","EGEBEWHO REUBEN",8060047928," ","TOYOTA HILUX"]
[]
[null,null,null,null,null,null,null,null,null,null,6000]

{"sheet":"14-06-2017","index":42,"n_rows":6,"n_cols":16,"rows_kept":6,"cut":false,"hidden":false,"merged":[]}
[]
[]
[]
[null,null,null,null,null,null,"HUAWEI FUEL RETIREMENT FOR 14-06-2017 BY IKECHUKWU ROBERT E."]
["Date","Vehicle Number","Filling Station","Mileage","Type","Quantity","Amount per Litre","TRACKING REPORT LITRE","Variance","RATE","PURCHASE POINT","CONTRACT","NAME","PHONE NO","COMMENT","VEHICLE MAKE"]
["14/06/2017","XB 415 JRT","FORTE ",215290,"PETROL",41,145,29,12,"6,000:00","UMUAHIA","HUAWEI","SANNI WILLIAMS",8166130744,"Kindly deduct ₦1,740. from the driver","T/HILUX"]

{"sheet":"20-06-2017","index":43,"n_rows":8,"n_cols":16,"rows_kept":8,"cut":false,"hidden":false,"merged":[]}
[]
[]
[]
[]
[]
[null,null,null,null,null,null,"HUAWEI FUEL RETIREMENT FOR 20-JUNE-2017 BY IKECHUKWU ROBERT E."]
["Date","Vehicle Number","Filling Station","Mileage","Type","Quantity","Amount per Litre","TRACKING REPORT LITRE","Variance","RATE","PURCHASE POINT","CONTRACT","NAME","PHONE NO","COMMENT","VEHICLE MAKE"]
["20/6/2017","YA 174 MUS","NUA",232544,"PETROL",21,145,12,9,3000,"ABA","HUAWEI","EGEBEWHO REUBEN",8060047928,"Deduct ₦1,305.00 from the driver","TOYOTA HILUX"]

{"sheet":"05-07-2017","index":44,"n_rows":9,"n_cols":17,"rows_kept":9,"cut":false,"hidden":false,"merged":[]}
[]
[]
[]
[null,null,null,null,null,null,null,"HUAWEI FUEL RETIREMENT FOR 05-07-2017 BY IKECHUKWU ROBERT E."]
[null,"Date","Vehicle Number","Filling Station","Mileage","Type","Quantity","Amount per Litre","TRACKING REPORT LITRE","Variance","RATE","PURCHASE POINT","CONTRACT","NAME","PHONE NO","COMMENT","VEHICLE MAKE"]
[null,"27/06/2017","XB 415 JRT","FORTE",217791,"PETROL",14,145,17,3,"2,000:00","UMUAHIA","HUAWEI","SANNI WILLIAMS",8166130744," ","T/HILUX"]
[null,"28/6/2017","XB 415 JRT","FORTE",217862,"PETROL",28,145,28,0,"4,000:00","UMUAHIA","HUAWEI","SANNI WILLIAMS",8166130744," ","T/HILUX"]
[null,"2017-05-07","KMC 44 XA","NUA",205333,"PETROL",28,145,18.5,9.5,"4,000:00","ABA","HUAWEI","ERIC OWHONDA",8035417621,"Deduct ₦1.377.50 from driver","TOYOTA HILUX P/UP"]
[null,null,null,null,null,null,null,null,null,"TOTAL","10,000:00"]

{"sheet":" 07-07-2017","index":45,"n_rows":9,"n_cols":17,"rows_kept":9,"cut":false,"hidden":false,"merged":[]}
[]
[]
[]
[null,null,null,null,null,null,null,"HUAWEI FUEL RETIREMENT FOR 07-07-2017 BY IKECHUKWU ROBERT E."]
[null,"Date","Vehicle Number","Filling Station","Mileage","Type","Quantity","Amount per Litre","TRACKING REPORT LITRE","Variance","RATE","PURCHASE POINT","CONTRACT","NAME","PHONE NO","COMMENT","VEHICLE MAKE"]
[null,"2017-07-07","KRD 539 XF"," HUMMER",231257,"PETROL",14,145,13,1,"2,000:00","UMUAHIA","HUAWEI","SANNI WILLIAMS",8166130744," ","T/HILUX"]
[null,"2017-07-07","KRD 539 XF","FORTE ",231289,"PETROL",28,145,16,12,"4,000:00","UMUAHIA","HUAWEI","SANNI WILLIAMS",8166130744,"Kindly deduct ₦1,740. from the driver","T/HILUX"]
[null," "," "," "," "," "," "," "," "," "," "," "," "," "," "," "," "]
[null,null,null,null,null,null,null,null,null,"TOTAL","6,000:00"]

{"sheet":"10-07-2017","index":46,"n_rows":10,"n_cols":16,"rows_kept":10,"cut":false,"hidden":false,"merged":[]}
[]
[]
[]
[null,null,null,null,null,null,"HUAWEI FUEL RETIREMENT FOR 10-07-2017 BY IKECHUKWU ROBERT E."]
["Date","Vehicle Number","Filling Station","Mileage","Type","Quantity","Amount per Litre","TRACKING REPORT LITRE","Variance","RATE","PURCHASE POINT","CONTRACT","NAME","PHONE NO","COMMENT","VEHICLE MAKE"]
["2017-08-07","KRD 539 XF","FORTE ",231477,"PETROL",40,145,20,20,6000,"UMUAHIA","HUAWEI","SANNI WILLIAMS",8166130744,"Kindly deduct ₦2,900. from the driver","MITS.L200 PICK/UP"]
["2017-10-07","KRD 539 XF","HUMMER",231704,"PETROL",34,145,9,25,5000,"UMUAHIA","HUAWEI","SANNI WILLIAMS",8166130744,"Kindly deduct ₦3,625. from the driver","MITS.L200 PICK/UP"]
["2017-10-07","YA 171 MUS","MASTER ENERGY",205265,"PETROL",24,145,20,8,4000,"UMUAHIA","HUAWEI","KENNETH OTOIBHILI",8180134519,"Kindly deduct ₦1,160. from the driver","T/HILUX"]
[" "," "," "," "," "," "," "," "," "," "," "," "," "," "," "," "]
[null,null,null,null,null,null,null,null,"TOTAL",15000]

{"sheet":"12-07-2017","index":47,"n_rows":9,"n_cols":17,"rows_kept":9,"cut":false,"hidden":false,"merged":[]}
[]
[]
[]
[null,null,null,null,null,null,null,"HUAWEI FUEL RETIREMENT FOR 12-07-2017 BY IKECHUKWU ROBERT E."]
[null,"Date","Vehicle Number","Filling Station","Mileage","Type","Quantity","Amount per Litre","TRACKING REPORT LITRE","Variance","RATE","PURCHASE POINT","CONTRACT","NAME","PHONE NO","COMMENT","VEHICLE MAKE"]
[null,"2017-11-07","KRD 539 XF","HUMMER",231925,"PETROL",28,145,"NOT REPORTING",0,4000,"UMUAHIA","HUAWEI","SANNI WILLIAMS",8166130744,"Support Ticket Opened [#868] (TRACKER DEVICE NEEDS UPGRADE, AWAITING VEHICLE FOR DEVICE UPGRADE)","MITS.L200 PICK/UP"]
[null,"2017-12-07","YA 171 MUS","MASTER ENERGY",205360,"PETROL",21,145,17,4,3000,"UMUAHIA","HUAWEI","KENNETH OTOIBHILI",8180134519," ","T/HILUX"]
[null," "," "," "," "," "," "," "," "," "," "," "," "," "," "," "," "]
[null,null,null,null,null,null,null,null,null,"TOTAL",7000]

{"sheet":" 26-07-2017","index":48,"n_rows":15,"n_cols":16,"rows_kept":15,"cut":false,"hidden":false,"merged":[]}
[]
[]
[]
[]
[null,null,null,null,null,null,"HUAWEI FUEL RETIREMENT FOR 26-07-2017 BY IKECHUKWU ROBERT E."]
["Date","Vehicle Number","Filling Station","Mileage","Type","Quantity","Amount per Litre","TRACKING REPORT LITRE","Variance","RATE","PURCHASE POINT","CONTRACT","NAME","PHONE NO","COMMENT","VEHICLE MAKE"]
["26/7/2017","KRD 539 XF","FORTE OIL",235024,"PETROL",41,145,38,2,6000,"UMUAHIA","HUAWEI","SANNI WILLIAMS",8166130744," ","MITS.L200 PICK/UP"]
[" "," "," "," "," "," "," "," "," "," "," "," "," "," "," "," "]
[" "," "," "," "," "," "," "," "," "," "," "," "," "," "," "," "]
[null,null,null,null,null,null,null,null,"TOTAL",6000]
[]
[]
[]
[]
[null,null,null,null,null,null,null," "]

{"sheet":" 01-08-2017","index":49,"n_rows":10,"n_cols":17,"rows_kept":10,"cut":false,"hidden":false,"merged":[]}
[]
[]
[]
[]
[null,null,null,null,null,null,null,"HUAWEI FUEL RETIREMENT FOR 01-08-2017 BY IKECHUKWU ROBERT E."]
[null,"Date","Vehicle Number","Filling Station","Mileage","Type","Quantity","Amount per Litre","TRACKING REPORT LITRE","Variance","RATE","PURCHASE POINT","CONTRACT","NAME","PHONE NO","COMMENT","VEHICLE MAKE"]
[null,"2017-01-08","YA 171 MUS","MASTER ENERGY",208231,"PETROL",28,145,27,1,4000,"UMUAHIA","HUAWEI","KENNETH OTOIBHILI",8180134519," ","T/HILUX"]
[null," "," "," "," "," "," "," "," "," "," "," "," "," "," "," "," "]
[null," "," "," "," "," "," "," "," "," "," "," "," "," "," "," "," "]
[null,null,null,null,null,null,null,null,null,"TOTAL",4000]

{"sheet":" 07-08-2017","index":50,"n_rows":11,"n_cols":16,"rows_kept":11,"cut":false,"hidden":false,"merged":[]}
[]
[]
[]
[]
[]
[null,null,null,null,null,null,"HUAWEI FUEL RETIREMENT FOR 07-08-2017 BY IKECHUKWU ROBERT E."]
["Date","Vehicle Number","Filling Station","Mileage","Type","Quantity","Amount per Litre","TRACKING REPORT LITRE","Variance","RATE","PURCHASE POINT","CONTRACT","NAME","PHONE NO","COMMENT","VEHICLE MAKE"]
["2017-06-08","KRD 539 XF","FORTE OIL",237156,"PETROL",41,145,45,4,6000,"UMUAHIA","HUAWEI","SANNI WILLIAMS",8166130744," ","MITS.L200 PICK/UP"]
["2017-07-08","KRD 539 XF","MOBIL",237457,"PETROL",34,145,28,6,5000,"UMUAHIA","HUAWEI","SANNI WILLIAMS",8166130744," ","MITS.L200 PICK/UP"]
[" "," "," "," "," "," "," "," "," "," "," "," "," "," "," "," "]
[null,null,null,null,null,null,null,null,"TOTAL",11000]

{"sheet":"08-08-2017","index":51,"n_rows":11,"n_cols":16,"rows_kept":11,"cut":false,"hidden":false,"merged":[]}
[]
[]
[]
[]
[]
[]
[null,null,null,null,null,null,"HUAWEI FUEL RETIREMENT FOR 08-08-2017 BY IKECHUKWU ROBERT E."]
["Date","Vehicle Number","Filling Station","Mileage","Type","Quantity","Amount per Litre","TRACKING REPORT LITRE","Variance","RATE","PURCHASE POINT","CONTRACT","NAME","PHONE NO","COMMENT","VEHICLE MAKE"]
["2017-08-08","KRD 539 XF","FORTE OIL",237687,"PETROL",41,145,36.5,4.5,6000,"UMUAHIA","HUAWEI","SANNI WILLIAMS",8166130744," ","MITS.L200 PICK/UP"]
[" "," "," "," "," "," "," "," "," "," "," "," "," "," "," "," "]
[null,null,null,null,null,null,null,null,"TOTAL",6000]

{"sheet":" 09-08-2017","index":52,"n_rows":12,"n_cols":17,"rows_kept":12,"cut":false,"hidden":false,"merged":[]}
[]
[]
[]
[]
[]
[]
[]
[null,null,null,null,null,null,null,"HUAWEI FUEL RETIREMENT FOR 09-08-2017 BY IKECHUKWU ROBERT E."]
[null,"Date","Vehicle Number","Filling Station","Mileage","Type","Quantity","Amount per Litre","TRACKING REPORT LITRE","Variance","RATE","PURCHASE POINT","CONTRACT","NAME","PHONE NO","COMMENT","VEHICLE MAKE"]
[null,"2017-09-08","KRD 539 XF","MOBIL",237898,"PETROL",41,145,38,3,6000,"UMUAHIA","HUAWEI","SANNI WILLIAMS",8166130744," ","MITS.L200 PICK/UP"]
[null," "," "," "," "," "," "," "," "," "," "," "," "," "," "," "," "]
[null,null,null,null,null,null,null,null,null,"TOTAL",6000]

{"sheet":" 18-08-2017","index":53,"n_rows":9,"n_cols":17,"rows_kept":9,"cut":false,"hidden":false,"merged":[]}
[]
[]
[]
[null,null,null,null,null,null,null,"HUAWEI FUEL RETIREMENT FOR 18-08-2017 BY IKECHUKWU ROBERT E."]
[null,"Date","Vehicle Number","Filling Station","Mileage","Type","Quantity","Amount per Litre","TRACKING REPORT LITRE","Variance","RATE","PURCHASE POINT","CONTRACT","NAME","PHONE NO","COMMENT","VEHICLE MAKE"]
[null,"2017-09-08","YA 171 MUS","HUMMER",209495,"PETROL",28,145,26,2,4000,"UMUAHIA","HUAWEI"," KENNETH ONOS",8180134519," "," TOYOTA HILUX"]
[null,"15/7/2017","KRD 539 XF","FORTE OIL",239192,"PETROL",41,145,37.5,3.5,6000,"UMUAHIA","HUAWEI","SANNI WILLIAMS",8166130744," ","MITS.L200 PICK/UP"]
[null,"17/7/2017","KRD 539 XF"," MOBIL",239605,"PETROL",41,145,32,9,6000,"UMUAHIA","HUAWEI","SANNI WILLIAMS",8166130744,"Deduct ₦1305 from driver","MITS.L200 PICK/UP"]
[null,null,null,null,null,null,null,null,null,"TOTAL",16000]

{"sheet":"21-08-2017","index":54,"n_rows":8,"n_cols":16,"rows_kept":8,"cut":false,"hidden":false,"merged":[]}
[]
[]
[]
[]
[null,null,null,null,null,null,"HUAWEI FUEL RETIREMENT FOR 21-08-2017 BY IKECHUKWU ROBERT E."]
["Date","Vehicle Number","Filling Station","Mileage","Type","Quantity","Amount per Litre","TRACKING REPORT LITRE","Variance","RATE","PURCHASE POINT","CONTRACT","NAME","PHONE NO","COMMENT","VEHICLE MAKE"]
["21/8/2017","KRD 539 XF","FORTE OIL",240519,"PETROL",41,145,44,3,6000,"UMUAHIA","HUAWEI","SANNI WILLIAMS",8166130744," ","MITS.L200 PICK/UP"]
[null,null,null,null,null,null,null,null,"TOTAL",6000]

{"sheet":"23-08-2017","index":55,"n_rows":8,"n_cols":17,"rows_kept":8,"cut":false,"hidden":false,"merged":[]}
[]
[]
[]
[]
[null,null,null,null,null,null,null,"HUAWEI FUEL RETIREMENT FOR 23-08-2017 BY IKECHUKWU ROBERT E."]
[null,"Date","Vehicle Number","Filling Station","Mileage","Type","Quantity","Amount per Litre","TRACKING REPORT LITRE","Variance","RATE","PURCHASE POINT","CONTRACT","NAME","PHONE NO","COMMENT","VEHICLE MAKE"]
[null,"23/8/2017","KRD 539 XF","FORTE OIL",240799,"PETROL",41,145,34.5,7,6000,"UMUAHIA","HUAWEI","SANNI WILLIAMS",8166130744," ","MITS.L200 PICK/UP"]
[null,null,null,null,null,null,null,null,null,"TOTAL",6000]

{"sheet":"29-08-2017","index":56,"n_rows":10,"n_cols":17,"rows_kept":10,"cut":false,"hidden":false,"merged":[]}
[]
[]
[]
[]
[null,null,null,null,null,null,null,"HUAWEI FUEL RETIREMENT FOR 29-08-2017 BY IKECHUKWU ROBERT E."]
[null,"Date","Vehicle Number","Filling Station","Mileage","Type","Quantity","Amount per Litre","TRACKING REPORT LITRE","Variance","RATE","PURCHASE POINT","CONTRACT","NAME","PHONE NO","COMMENT","VEHICLE MAKE"]
[null,"29/8/2017","KRD 539 XF","FORTE OIL",241644,"PETROL",41,145,38,3,6000,"UMUAHIA","HUAWEI","SANNI WILLIAMS",8166130744," ","MITS.L200 PICK/UP"]
[null,"29/8/2017","YA 171 MUS","NGOZI PET",211130,"PETROL",28,145,27,1,4000,"UMUAHIA","HUAWEI"," KENNETH ONOS",8180134519," "," TOYOTA HILUX"]
[]
[null,null,null,null,null,null,null,null,null,"TOTAL",10000]

{"sheet":"11-09-2017","index":57,"n_rows":10,"n_cols":19,"rows_kept":10,"cut":false,"hidden":false,"merged":[]}
[]
[]
[]
[]
[null,null,null,null,null,null,null,null,"HUAWEI FUEL RETIREMENT FOR 11-09-2017 BY IKECHUKWU ROBERT E."]
[null,null,"Date","Vehicle Number","Filling Station","Mileage","Type","Quantity","Amount per Litre","TRACKING REPORT LITRE","Variance","RATE","PURCHASE POINT","CONTRACT","NAME","PHONE NO","COMMENT","VEHICLE MAKE"]
[null,null,"2017-11-09","KRD 539 XF","FORTE OIL",243659,"PETROL",41,145,37,4,6000,"UMUAHIA","HUAWEI","SANNI WILLIAMS",8166130744," ","MITS.L200 PICK/UP"]
[null,null," "," "," "," "," "," "," "," "," "," "," "," "," "," "," "," "," "]
[]
[null,null,null,null,null,null,null,null,null,null,"TOTAL",6000]

{"sheet":"13-09-2017","index":58,"n_rows":10,"n_cols":18,"rows_kept":10,"cut":false,"hidden":false,"merged":[]}
[]
[]
[]
[]
[null,null,null,null,null,null,null,"HUAWEI FUEL RETIREMENT FOR 13-09-2017 BY IKECHUKWU ROBERT E."]
[null,"Date","Vehicle Number","Filling Station","Mileage","Type","Quantity","Amount per Litre","TRACKING REPORT LITRE","Variance","RATE","PURCHASE POINT","CONTRACT","NAME","PHONE NO","COMMENT","VEHICLE MAKE"]
[null,"13/9/2017","KRD 539 XF","FORTE OIL",244102,"PETROL",41,145,36,5,6000,"UMUAHIA","HUAWEI","SANNI WILLIAMS",8166130744," ","MITS.L200 PICK/UP"]
[null," "," "," "," "," "," "," "," "," "," "," "," "," "," "," "," "," "]
[]
[null,null,null,null,null,null,null,null,null,"TOTAL",6000]

{"sheet":"22-09-2017","index":59,"n_rows":11,"n_cols":19,"rows_kept":11,"cut":false,"hidden":false,"merged":[]}
[]
[]
[]
[]
[]
[null,null,null,null,null,null,null,null,"HUAWEI FUEL RETIREMENT FOR 22-09-2017 BY IKECHUKWU ROBERT E."]
[null,null,"Date","Vehicle Number","Filling Station","Mileage","Type","Quantity","Amount per Litre","TRACKING REPORT LITRE","Variance","RATE","PURCHASE POINT","CONTRACT","NAME","PHONE NO","COMMENT","VEHICLE MAKE"]
[null,null,"21/9/2017","KMC 44 XA","NUA",209046,"PETROL",14,145,14,0,2000,"ABA","HUAWEI","ERIC OWHONDA",8035417621," ","TOYOTA HILUX P/UP"]
[null,null,"22/9/2017","KMC 44 XA","NUA",209457,"PETROL",21,145,20,1,3000,"ABA","HUAWEI","ERIC OWHONDA",8035417621," ","TOYOTA HILUX P/UP"," "]
[]
[null,null,null,null,null,null,null,null,null,null,"TOTAL",5000]

{"sheet":"26-09-2017","index":60,"n_rows":22,"n_cols":47,"rows_kept":22,"cut":false,"hidden":false,"merged":[]}
[]
[]
[]
[]
[null,null,null,null,null,null,30]
[null,null,null,null,null,null,null,"HUAWEI FUEL RETIREMENT FOR 27-09-2017 BY IKECHUKWU ROBERT E."]
[null,"Date","Vehicle Number","Filling Station","Mileage","Type","Quantity","Amount per Litre","TRACKING REPORT LITRE","Variance","RATE","PURCHASE POINT","CONTRACT","NAME","PHONE NO","COMMENT","VEHICLE MAKE"]
[null,"25/9/2017","KMC 44 XA","NUA",209513,"PETROL",28,145,0,28,4000,"ABA","HUAWEI","ERIC OWHONDA",8035417621,"Kindly deduct 4,000. from driver.","TOYOTA HILUX P/UP"]
[null,"26/9/2017","KMC 44 XA","NUA",209660,"PETROL",20,145,14,6,3000,"ABA","HUAWEI","ERIC OWHONDA",8035417621," ","TOYOTA HILUX P/UP"," "]
[null,"27/9/2017","YA 171 MUS","HUMMER PET",213600,"PETROL",20,145,22,-2,3000,"UMUAHIA","HUAWEI"," KENNETH ONOS",8180134519," "," TOYOTA HILUX"]
[null,"27/9/2017","KMC 44 XA","TONIMAS",209689,"PETROL",20,145,16,4,3000,"ABA","HUAWEI","ERIC OWHONDA",8035417621,null,"TOYOTA HILUX P/UP"]
[null,null,null,null,null,null,null,null,null,"TOTAL",13000]
[]
[]
[]
[]
[]
[]
[]
[]
[]
[null,null,null,null,null,null,null,null,null,null,null,null,null,null,null,null,null,null,null,null,null,null,null,null,null,null,null,null,null,null,null,null,null,null,null,null,null,null,null,null,null,null,null,null,null,null,"HUAWEI"]

{"sheet":"04-10-2017","index":61,"n_rows":11,"n_cols":17,"rows_kept":11,"cut":false,"hidden":false,"merged":[]}
[]
[]
[]
[]
[]
[null,null,null,null,null,null,null,"HUAWEI FUEL RETIREMENT FOR 04-10-2017 BY IKECHUKWU ROBERT E."]
[null,"Date","Vehicle Number","Filling Station","Mileage","Type","Quantity","Amount per Litre","TRACKING REPORT LITRE","Variance","RATE","PURCHASE POINT","CONTRACT","NAME","PHONE NO","COMMENT","VEHICLE MAKE"]
[null,"2017-03-10","YA 171 MUS","NGOZI PET",214436,"PETROL",21,145,21,0,3000,"UMUAHIA","HUAWEI"," KENNETH ONOS",8180134519," "," TOYOTA HILUX"]
[null,"2017-04-10","YA 171 MUS","NGOZI PET",214669,"PETROL",28,145,22,6,4000,"UMUAHIA","HUAWEI"," KENNETH ONOS",8180134519," "," TOYOTA HILUX"]
[]
[null,null,null,null,null,null,null,null,null,"TOTAL",7000]

{"sheet":"03-10-2017","index":62,"n_rows":11,"n_cols":18,"rows_kept":11,"cut":false,"hidden":false,"merged":[]}
[]
[]
[]
[]
[]
[]
[null,null,null,null,null,null,null,"HUAWEI FUEL RETIREMENT FOR 03-10-2017 BY IKECHUKWU ROBERT E."]
[null,"Date","Vehicle Number","Filling Station","HUAWEI RETURNED (MARKED FOR SALE)","Type","Quantity","Amount per Litre","TRACKING REPORT LITRE","Variance","RATE","PURCHASE POINT","CONTRACT","NAME","PHONE NO","COMMENT","VEHICLE MAKE"]
[null,"30/9/2017","KMC 44 XA","NUA",209869,"PETROL",34,145,13,21,5000,"ABA","HUAWEI","ERIC OWHONDA",8035417621,"Kindly deduct N3,045. from driver.","TOYOTA HILUX P/UP"]
[null,"2017-03-10","KMC 44 XA","TONIMAS",209952,"PETROL",28,145,13,15,4000,"ABA","HUAWEI","ERIC OWHONDA",8035417621,"Kindly deduct N2,175. from driver.","TOYOTA HILUX P/UP"," "]
[null,null,null,null,null,null,null,null,null,"TOTAL",9000]

{"sheet":"05-10-2017","index":63,"n_rows":9,"n_cols":18,"rows_kept":9,"cut":false,"hidden":false,"merged":[]}
[]
[]
[]
[]
[]
[null,null,null,null,null,null,null,"HUAWEI FUEL RETIREMENT FOR 03-10-2017 BY IKECHUKWU ROBERT E."]
[null,"Date","Vehicle Number","Filling Station","HUAWEI RETURNED (MARKED FOR SALE)","Type","Quantity","Amount per Litre","TRACKING REPORT LITRE","Variance","RATE","PURCHASE POINT","CONTRACT","NAME","PHONE NO","COMMENT","VEHICLE MAKE"]
[null,"2017-05-10","KMC 44 XA","TONIMAS",210087,"PETROL",20,145,9,11,3000,"ABA","HUAWEI","ERIC OWHONDA",8035417621,"Kindly deduct N2,175. from driver.","TOYOTA HILUX P/UP"," "]
[null,null,null,null,null,null,null,null,null,"TOTAL",3000]

{"sheet":"13-10-2017","index":64,"n_rows":10,"n_cols":18,"rows_kept":10,"cut":false,"hidden":false,"merged":[]}
[]
[]
[]
[]
[null,null,null,null,null,null,null,"HUAWEI FUEL RETIREMENT FOR 13-10-2017 BY IKECHUKWU ROBERT E."]
[null,"Date","Vehicle Number","Filling Station","Mileage","Type","Quantity","Amount per Litre","TRACKING REPORT LITRE","Variance","RATE","PURCHASE POINT","CONTRACT","NAME","PHONE NO","COMMENT","VEHICLE MAKE"]
[null,"13/10/2017","KRD 539 XF","FORTE OIL",247349,"PETROL",34,145,31.5,2.5,5000,"UMUAHIA","HUAWEI","SANNI WILLIAMS",8166130744," ","MITS.L200 PICK/UP"]
[null," "," "," "," "," "," "," "," "," "," "," "," "," "," "," "," "," "]
[]
[null,null,null,null,null,null,null,null,null,"TOTAL",5000]

{"sheet":"16-10-2017","index":65,"n_rows":19,"n_cols":18,"rows_kept":19,"cut":false,"hidden":false,"merged":[]}
[]
[]
[]
[]
[]
[null,null,null,null,null,null,null,"HUAWEI FUEL RETIREMENT FOR 16-10-2017 BY IKECHUKWU ROBERT E."]
[null,"Date","Vehicle Number","Filling Station","Mileage","Type","Quantity","Amount per Litre","TRACKING REPORT LITRE","Variance","RATE","PURCHASE POINT","CONTRACT","NAME","PHONE NO","COMMENT","VEHICLE MAKE"]
[null,"14/10/2017","KRD 539 XF","FORTE OIL",247579,"PETROL",34,145,29,5,5000,"UMUAHIA","HUAWEI","SANNI WILLIAMS",8166130744," ","MITS.L200 PICK/UP"]
[null,"16/10/2017","KRD 539 XF","FORTE OIL",247853,"PETROL",34,145,36,2,5000,"UMUAHIA","HUAWEI","SANNI WILLIAMS",8166130744," ","MITS.L200 PICK/UP"]
[]
[null,null,null,null,null,null,null,null,null,"TOTAL",10000]
[]
[]
[]
[]
[]
[]
[]
[null,null,null,null,null,null,null,null,null,null,null,null,null,null,null,null,null," "]

{"sheet":"17-10-2017","index":66,"n_rows":11,"n_cols":17,"rows_kept":11,"cut":false,"hidden":false,"merged":[]}
[]
[]
[]
[]
[]
[null,null,null,null,null,null,null,"HUAWEI FUEL RETIREMENT FOR 19-10-2017 BY IKECHUKWU ROBERT E."]
[null,"Date","Vehicle Number","Filling Station","Mileage","Type","Quantity","Amount per Litre","TRACKING REPORT LITRE","Variance","RATE","PURCHASE POINT","CONTRACT","NAME","PHONE NO","COMMENT","VEHICLE MAKE"]
[null,"19/10/2017","KRD 539 XF","FORTE OIL",248644,"PETROL",20,145,15,5,3000,"UMUAHIA","HUAWEI","SANNI WILLIAMS",8166130744," ","MITS.L200 PICK/UP"]
[null,"19/10/2017","KRD 539 XF","FORTE OIL",248651,"PETROL",12,145,12,1,2000,"UMUAHIA","HUAWEI","SANNI WILLIAMS",8166130745," ","MITS.L200 PICK/UP"]
[]
[null,null,null,null,null,null,null,null,null,"TOTAL",5000]

{"sheet":"20-10-2017","index":67,"n_rows":10,"n_cols":17,"rows_kept":10,"cut":false,"hidden":false,"merged":[]}
[]
[]
[]
[]
[null,null,null,null,null,null,null,"HUAWEI FUEL RETIREMENT FOR 19-10-2017 BY IKECHUKWU ROBERT E."]
[null,"Date","Vehicle Number","Filling Station","Mileage","Type","Quantity","Amount per Litre","TRACKING REPORT LITRE","Variance","RATE","PURCHASE POINT","CONTRACT","NAME","PHONE NO","COMMENT","VEHICLE MAKE"]
[null,"19/10/2017","KRD 539 XF","FORTE OIL",248644,"PETROL",20,145,15,5,3000,"UMUAHIA","HUAWEI","SANNI WILLIAMS",8166130744," ","MITS.L200 PICK/UP"]
[null,"19/10/2017","KRD 539 XF","FORTE OIL",248651,"PETROL",12,145,12,1,2000,"UMUAHIA","HUAWEI","SANNI WILLIAMS",8166130745," ","MITS.L200 PICK/UP"]
[]
[null,null,null,null,null,null,null,null,null,"TOTAL",5000]

{"sheet":"23-10-2017","index":68,"n_rows":8,"n_cols":17,"rows_kept":8,"cut":false,"hidden":false,"merged":[]}
[]
[]
[]
[null,null,null,null,null,null,null,"HUAWEI FUEL RETIREMENT FOR 23-10-2017 BY IKECHUKWU ROBERT E."]
[null,"Date","Vehicle Number","Filling Station","Mileage","Type","Quantity","Amount per Litre","TRACKING REPORT LITRE","Variance","RATE","PURCHASE POINT","CONTRACT","NAME","PHONE NO","COMMENT","VEHICLE MAKE"]
[null,"23/10/2017","YA 174 MUS","NUA FILLING STATION",238968,"PETROL",28,145,22,6,4000,"ABA","HUAWEI","ORJI SOLOMON",8084005292," ","TOYOTA HILUX PICK/UP"]
[]
[null,null,null,null,null,null,null,null,null,null,4000]

{"sheet":" 25-10-2017","index":69,"n_rows":8,"n_cols":17,"rows_kept":8,"cut":false,"hidden":false,"merged":[]}
[]
[]
[]
[null,null,null,null,null,null,null,"HUAWEI FUEL RETIREMENT FOR 25-10-2017 BY IKECHUKWU ROBERT E."]
[null,"Date","Vehicle Number","Filling Station","Mileage","Type","Quantity","Amount per Litre","TRACKING REPORT LITRE","Variance","RATE","PURCHASE POINT","CONTRACT","NAME","PHONE NO","COMMENT","VEHICLE MAKE"]
[null,"24/10/2017","YA 174 MUS","NUA FILLING STATION",239118,"PETROL",20,145,17,3,3000,"ABA","HUAWEI","ORJI SOLOMON",8084005292," ","TOYOTA HILUX PICK/UP"]
[null,"25/10/2017","YA 174 MUS","NUA FILLING STATION",239239,"PETROL",7,145,6,1,1000,"ABA","HUAWEI","ORJI SOLOMON",8084005292," ","TOYOTA HILUX PICK/UP"]
[null,null,null,null,null,null,null,null,null,null,4000]

{"sheet":"30-10-2017","index":70,"n_rows":9,"n_cols":17,"rows_kept":9,"cut":false,"hidden":false,"merged":[]}
[3]
[]
[]
[null,null,null,null,null,null,null,"HUAWEI FUEL RETIREMENT FOR 30-10-2017 BY IKECHUKWU ROBERT E."]
[null,"Date","Vehicle Number","Filling Station","Mileage","Type","Quantity","Amount per Litre","TRACKING REPORT LITRE","Variance","RATE","PURCHASE POINT","CONTRACT","NAME","PHONE NO","COMMENT","VEHICLE MAKE"]
[null,"29/10/2017","KRD 539 XF","FORTE OIL",249756,"PETROL",34,145,31,3,5000,"UMUAHIA","HUAWEI","SANNI WILLIAMS",8166130744," ","MITS.L200 PICK/UP"]
[null,"30/10/2017","KRD 539 XF","FORTE OIL",249993,"PETROL",34,145,32.5,1.5,5000,"UMUAHIA","HUAWEI","SANNI WILLIAMS",8166130745," ","MITS.L200 PICK/UP"]
[]
[null,null,null,null,null,null,null,null,null,"TOTAL",10000]

{"sheet":"31-10-2017","index":71,"n_rows":11,"n_cols":18,"rows_kept":11,"cut":false,"hidden":false,"merged":[]}
[]
[]
[]
[]
[null,null,null,null,null,null,null,"HUAWEI FUEL RETIREMENT FOR 31-10-2017 BY IKECHUKWU ROBERT E."]
[null,"Date","Vehicle Number","Filling Station","Mileage","Type","Quantity","Amount per Litre","TRACKING REPORT LITRE","Variance","RATE","PURCHASE POINT","CONTRACT","NAME","PHONE NO","COMMENT","VEHICLE MAKE"]
[null,"31/10/2017","KRD 539 XF","FORTE OIL",250234,"PETROL",34,145,30,4,5000,"UMUAHIA","HUAWEI","SANNI WILLIAMS",8166130744," ","MITS.L200 PICK/UP"]
[null," "," "," "," "," "," "," "," "," "," "," "," "," "," "," "," "," "]
[]
[null,null,null,null,null,null,null,null,null,"TOTAL",5000]
[null,null,null,null,null," "]

{"sheet":" 08-11-2017","index":72,"n_rows":12,"n_cols":18,"rows_kept":12,"cut":false,"hidden":false,"merged":[]}
[]
[]
[]
[]
[]
[null,null,null,null,null,null,null,"HUAWEI FUEL RETIREMENT FOR 08-11-2017 BY IKECHUKWU ROBERT E."]
[null,"Date","Vehicle Number","Filling Station","Mileage","Type","Quantity","Amount per Litre","TRACKING REPORT LITRE","Variance","RATE","PURCHASE POINT","CONTRACT","NAME","PHONE NO","COMMENT","VEHICLE MAKE"]
[null,"2017-08-11","KRD 539 XF","FORTE OIL",251633,"PETROL",34,145,34,0,5000,"UMUAHIA","HUAWEI","SANNI WILLIAMS",8166130744," ","MITS.L200 PICK/UP"]
[null," "," "," "," "," "," "," "," "," "," "," "," "," "," "," "," "," "]
[]
[null,null,null,null,null,null,null,null,null,"TOTAL",5000]
[null,null,null,null,null," "]

{"sheet":" 13-11-2017","index":73,"n_rows":14,"n_cols":18,"rows_kept":14,"cut":false,"hidden":false,"merged":[]}
[]
[]
[]
[]
[null,null,null,null,null,null,null,"HUAWEI FUEL RETIREMENT FOR 13-11-2017 BY IKECHUKWU ROBERT E."]
[null,"Date","Vehicle Number","Filling Station","Mileage","Type","Quantity","Amount per Litre","TRACKING REPORT LITRE","Variance","RATE","PURCHASE POINT","CONTRACT","NAME","PHONE NO","COMMENT","VEHICLE MAKE"]
[null,"2017-09-11","KRD 539 XF","FORTE OIL",251852,"PETROL",34,145,31,3,5000,"UMUAHIA","HUAWEI","SANNI WILLIAMS",8166130744," ","MITS.L200 PICK/UP"]
[null,"2017-10-11","KRD 539 XF","FORTE OIL",252063,"PETROL",34,145,32,2,5000,"UMUAHIA","HUAWEI","SANNI WILLIAMS",8166130745," ","MITS.L200 PICK/UP"," "]
[null,"13/11/2017","KRD 539 XF","FORTE OIL",252305,"PETROL",34,145,35,1,5000,"UMUAHIA","HUAWEI","SANNI WILLIAMS",8166130746," ","MITS.L200 PICK/UP"]
[null,"2017-10-11","YA 171 MUS","NUA",217118,"PETROL",14,145,11,3,2000," ABA","HUAWEI","KENNETH ONOS O. ",7038064191," ","MITS.L200 PICK/UP"]
[null,"2017-11-11","YA 171 MUS","NUA",217197,"PETROL",14,145,15,1,2000," ABA","HUAWEI","KENNETH ONOS O. ",7038064192," ","MITS.L200 PICK/UP"]
[null,"13/11/2017","YA 171 MUS","NUA",217348,"PETROL",34,145,33,1,5000," ABA","HUAWEI","KENNETH ONOS O. ",7038064193," ","MITS.L200 PICK/UP"]
[null,null,null,null,null,null,null,null,null,"TOTAL",24000]
[null,null,null,null,null," "]

{"sheet":"15-11-2017","index":74,"n_rows":10,"n_cols":17,"rows_kept":10,"cut":false,"hidden":false,"merged":[]}
[]
[]
[]
[]
[null,null,null,null,null,null,null,"HUAWEI FUEL RETIREMENT FOR 14-11-2017 BY IKECHUKWU ROBERT E."]
[null,"Date","Vehicle Number","Filling Station","Mileage","Type","Quantity","Amount per Litre","TRACKING REPORT LITRE","Variance","RATE","PURCHASE POINT","CONTRACT","NAME","PHONE NO","COMMENT","VEHICLE MAKE"]
[null,"14/11/2017","KRD 539 XF","MOBIL",252540,"PETROL",34,145,32,2,5000,"UMUAHIA","HUAWEI","SANNI WILLIAMS",8166130746," ","MITS.L200 PICK/UP"]
[null,"14/11/2017","YA 171 MUS","NUA",217413,"PETROL",28,145,21,7,4000," ABA","HUAWEI","KENNETH ONOS O. ",7038064193," ","MITS.L200 PICK/UP"]
[null,null,null,null,null,null,null,null,null,"TOTAL",9000]
[null,null,null,null,null," "]

{"sheet":" 16-11-2017","index":75,"n_rows":8,"n_cols":17,"rows_kept":8,"cut":false,"hidden":false,"merged":[]}
[]
[]
[]
[null,null,null,null,null,null,null,"HUAWEI FUEL RETIREMENT FOR 16-11-2017 BY IKECHUKWU ROBERT E."]
[null,"Date","Vehicle Number","Filling Station","Mileage","Type","Quantity","Amount per Litre","TRACKING REPORT LITRE","Variance","RATE","PURCHASE POINT","CONTRACT","NAME","PHONE NO","COMMENT","VEHICLE MAKE"]
[null,"15/11/2017","YA 174 MUS","NUA FILLING STATION",241402,"PETROL",28,145,9.5,18.5,4000,"ABA","HUAWEI","ORJI SOLOMON",8084005292,"Kindly deduct N2,682.50 from the driver","TOYOTA HILUX PICK/UP"]
[null,"16/11/2017","KRD 539 XF","NUA FILLING STATION",252782,"PETROL",34,145,34,0,5000,"UMUAHIA","HUAWEI","SANNI WILLIAMS",8166130746," ","MITS.L200 PICK/UP"]
[null,null,null,null,null,null,null,null,null,null,9000]

{"sheet":" 18-11-2017","index":76,"n_rows":11,"n_cols":19,"rows_kept":11,"cut":false,"hidden":false,"merged":[]}
[]
[]
[]
[]
[null,null,null,null,null,null,null,null,"HUAWEI FUEL RETIREMENT FOR 18-11-2017 BY IKECHUKWU ROBERT E."]
[null,null,"Date","Vehicle Number","Filling Station","Mileage","Type","Quantity","Amount per Litre","TRACKING REPORT LITRE","Variance","RATE","PURCHASE POINT","CONTRACT","NAME","PHONE NO","COMMENT","VEHICLE MAKE"]
[null,null,"18/11/2017","KRD 539 XF","HUMMER FILLING STATION",253247,"PETROL",34,145,29,5,5000,"UMUAHIA","HUAWEI","SANNI WILLIAMS",8166130744," ","MITS.L200 PICK/UP"]
[null,null," "," "," "," "," "," "," "," "," "," "," "," "," "," "," "," "," "]
[]
[null,null,null,null,null,null,null,null,null,null,"TOTAL",5000]
[null,null,null,null,null,null," "]

{"sheet":"22-11-2017","index":77,"n_rows":12,"n_cols":19,"rows_kept":12,"cut":false,"hidden":false,"merged":[]}
[" "]
[]
[]
[]
[]
[null,null,null,null,null,null,null,null,"HUAWEI FUEL RETIREMENT FOR 22-11-2017 BY IKECHUKWU ROBERT E."]
[null,null,"Date","Vehicle Number","Filling Station","Mileage","Type","Quantity","Amount per Litre","TRACKING REPORT LITRE","Variance","RATE","PURCHASE POINT","CONTRACT","NAME","PHONE NO","COMMENT","VEHICLE MAKE"]
[null,null,"21/11/2017","KMC 39 XA"," NUA FILLING",263054,"PETROL",20,145," NOT CAPTURED"," NOT CAPTURED",3000,"ABA","HUAWEI","ERIC OWHONDA",8035417621,"Support Ticket Opened [#899]","T/HILUX PICK/UP"]
[null,null,"22/11/2017","KMC 39 XA"," NUA FILLING",263162,"PETROL",20,145," NOT CAPTURED"," NOT CAPTURED",3000,"ABA","HUAWEI","ERIC OWHONDA",8035417621,"Support Ticket Opened [#899]","T/HILUX PICK/UP"," "]
[]
[null,null,null,null,null,null,null,null,null,null,"TOTAL",6000]
[null,null,null,null,null,null," "]

{"sheet":"24-11-2017","index":78,"n_rows":11,"n_cols":18,"rows_kept":11,"cut":false,"hidden":false,"merged":[]}
[]
[]
[]
[]
[null,null,null,null,null,null,null,"HUAWEI FUEL RETIREMENT FOR 24-11-2017 BY IKECHUKWU ROBERT E."]
[null,"Date","Vehicle Number","Filling Station","Mileage","Type","Quantity","Amount per Litre","TRACKING REPORT LITRE","Variance","RATE","PURCHASE POINT","CONTRACT","NAME","PHONE NO","COMMENT","VEHICLE MAKE"]
[null,"24/11/2017","KRD 539 XF","HUMMER FILLING STATION",254409,"PETROL",34,145,30,4,5000,"UMUAHIA","HUAWEI","SANNI WILLIAMS",8166130744," ","MITS.L200 PICK/UP"]
[null," "," "," "," "," "," "," "," "," "," "," "," "," "," "," "," "," "]
[]
[null,null,null,null,null,null,null,null,null,"TOTAL",5000]
[null,null,null,null,null," "]

{"sheet":"28-11-2017","index":79,"n_rows":12,"n_cols":18,"rows_kept":12,"cut":false,"hidden":false,"merged":[]}
[]
[]
[]
[]
[]
[null,null,null,null,null,null,null,"HUAWEI FUEL RETIREMENT FOR 28-1-2017 BY IKECHUKWU ROBERT E."]
[null,"Date","Vehicle Number","Filling Station","Mileage","Type","Quantity","Amount per Litre","TRACKING REPORT LITRE","Variance","RATE","PURCHASE POINT","CONTRACT","NAME","PHONE NO","COMMENT","VEHICLE MAKE"]
[null,"26/11/2017","KRD 539 XF","HUMMER FILLING STATION",254665,"PETROL",34,145,30,4,5000,"UMUAHIA","HUAWEI","SANNI WILLIAMS",8166130744," ","MITS.L200 PICK/UP"]
[null,"26/11/2017","KRD 539 XF","HUMMER FILLING STATION",254995,"PETROL",34,145,35,1,5000,"UMUAHIA","HUAWEI","SANNI WILLIAMS",8166130745," ","MITS.L200 PICK/UP"," "]
[null,"28/11/2017","YA 174 MUS","NUA FILLING STATION",243060,"PETROL",14,145,12,2,3000,"ABA","HUAWEI","ORJI SOLOMON",8084005292," ","TOYOTA HILUX PICK/UP"]
[null,null,null,null,null,null,null,null,null,"TOTAL",13000]
[null,null,null,null,null," "]

{"sheet":"04-12-2017","index":80,"n_rows":12,"n_cols":18,"rows_kept":12,"cut":false,"hidden":false,"merged":[]}
[]
[]
[]
[]
[]
[null,null,null,null,null,null,null,null,"HUAWEI FUEL RETIREMENT FOR 04-12-2017 BY IKECHUKWU ROBERT E."]
[null,null,"Date","Vehicle Number","Filling Station","Mileage","Type","Quantity","Amount per Litre","TRACKING REPORT LITRE","Variance","RATE","PURCHASE POINT","CONTRACT","NAME","PHONE NO","COMMENT","VEHICLE MAKE"]
[null,null,"29/11/2017","YA 174 MUS","NUA FILLING STATION",243217,"PETROL",14,145,12,2,3000,"ABA","HUAWEI","ORJI SOLOMON",8084005292," ","TOYOTA HILUX PICK/UP"]
[null,null,"2017-03-12","KRD 539 XF","HUMMER FILLING STATION",256278,"PETROL",34,145,31,4,5000,"UMUAHIA","HUAWEI","SANNI WILLIAMS",8166130745," ","MITS.L200 PICK/UP"]
[null,null," "," "," "," "," "," "," "," "," "," "," "," "," "," "," "," "]
[null,null,null,null,null,null,null,null,null,null,"TOTAL",8000]
[null,null,null,null,null,null," "]

{"sheet":" 05-12-2017","index":81,"n_rows":11,"n_cols":18,"rows_kept":11,"cut":false,"hidden":false,"merged":[]}
[]
[]
[]
[]
[]
[null,null,null,null,null,null,null,"HUAWEI FUEL RETIREMENT FOR 05-12-2017 BY IKECHUKWU ROBERT E."]
[null,"Date","Vehicle Number","Filling Station","Mileage","Type","Quantity","Amount per Litre","TRACKING REPORT LITRE","Variance","RATE","PURCHASE POINT","CONTRACT","NAME","PHONE NO","COMMENT","VEHICLE MAKE"]
[null,"2017-04-12","KRD 539 XF","HUMMER FILLING STATION",256499,"PETROL",34,145,34,0,5000,"UMUAHIA","HUAWEI","SANNI WILLIAMS",8166130744," ","MITS.L200 PICK/UP"]
[null,"2017-05-12","KRD 539 XF","FORTE OIL",256809,"PETROL",34,145,31,3,5000,"UMUAHIA","HUAWEI","SANNI WILLIAMS",8166130745," ","MITS.L200 PICK/UP"," "]
[null,null,null,null,null,null,null,null,null,"TOTAL",10000]
[null,null,null,null,null," "]

{"sheet":" 7-12-2017","index":82,"n_rows":10,"n_cols":18,"rows_kept":10,"cut":false,"hidden":false,"merged":[]}
[]
[]
[]
[]
[]
[null,null,null,null,null,null,null,"HUAWEI FUEL RETIREMENT FOR 07-12-2017 BY IKECHUKWU ROBERT E."]
[null,"Date","Vehicle Number","Filling Station","Mileage","Type","Quantity","Amount per Litre","TRACKING REPORT LITRE","Variance","RATE","PURCHASE POINT","CONTRACT","NAME","PHONE NO","COMMENT","VEHICLE MAKE"]
[null,"2017-07-12","KRD 539 XF","FORTE OIL",256998,"PETROL",34,145,30.5,3.5,5000,"UMUAHIA","HUAWEI","SANNI WILLIAMS",8166130745," ","MITS.L200 PICK/UP"," "]
[null,null,null,null,null,null,null,null,null,"TOTAL",5000]
[null,null,null,null,null," "]

{"sheet":"23-12-2017","index":83,"n_rows":12,"n_cols":18,"rows_kept":12,"cut":false,"hidden":false,"merged":[]}
[]
[]
[]
[]
[]
[null,null,null,null,null,null,null,"HUAWEI FUEL RETIREMENT FOR 23-12-2017 BY IKECHUKWU ROBERT E."]
[null,"Date","Vehicle Number","Filling Station","Mileage","Type","Quantity","Amount per Litre","TRACKING REPORT LITRE","Variance","RATE","PURCHASE POINT","CONTRACT","NAME","PHONE NO","COMMENT","VEHICLE MAKE"]
[null,"13/12/2017","KRD 539 XF","FORTE OIL",258529,"PETROL",34,145,36,4,5000,"UMUAHIA","HUAWEI","SANNI WILLIAMS",8166130745," ","MITS.L200 PICK/UP"," "]
[null,"23/12/2017","KRD 539 XF","FORTE OIL",259351,"PETROL",17,145,16,1,2500,"UMUAHIA","HUAWEI","SANNI WILLIAMS",8166130746," ","MITS.L200 PICK/UP"]
[null,"23/12/2017","KRD 539 XF","FORTE OIL",259426,"PETROL",17,145,15,2,2500,"UMUAHIA","HUAWEI","SANNI WILLIAMS",8166130747," ","MITS.L200 PICK/UP"]
[null,null,null,null,null,null,null,null,null,"TOTAL",10000]
[null,null,null,null,null," "]

{"sheet":" 25-12-2017","index":84,"n_rows":10,"n_cols":17,"rows_kept":10,"cut":false,"hidden":false,"merged":[]}
[]
[]
[]
[]
[null,null,null,null,null,null,null,"HUAWEI FUEL RETIREMENT FOR 25-12-2017 BY IKECHUKWU ROBERT E."]
[null,"Date","Vehicle Number","Filling Station","Mileage","Type","Quantity","Amount per Litre","TRACKING REPORT LITRE","Variance","RATE","PURCHASE POINT","CONTRACT","NAME","PHONE NO","COMMENT","VEHICLE MAKE"]
[null,"25/12/2017","KRD 539 XF","FORTE OIL",259501,"PETROL",17,145,19,2,2500,"UMUAHIA","HUAWEI","SANNI WILLIAMS",8166130746," ","MITS.L200 PICK/UP"]
[null,"25/12/2017","KRD 539 XF","FORTE OIL",259596,"PETROL",17,145,19,2,2500,"UMUAHIA","HUAWEI","SANNI WILLIAMS",8166130747," ","MITS.L200 PICK/UP"]
[null,null,null,null,null,null,null,null,null,"TOTAL",5000]
[null,null,null,null,null," "]

{"sheet":" 05-01-2018","index":85,"n_rows":10,"n_cols":17,"rows_kept":10,"cut":false,"hidden":false,"merged":[]}
[]
[]
[]
[]
[null,null,null,null,null,null,null,"HUAWEI FUEL RETIREMENT FOR 05-01-2018 BY IKECHUKWU ROBERT E."]
[null,"Date","Vehicle Number","Filling Station","Mileage","Type","Quantity","Amount per Litre","TRACKING REPORT LITRE","Variance","RATE","PURCHASE POINT","CONTRACT","NAME","PHONE NO","COMMENT","VEHICLE MAKE"]
[null,"2018-05-01","KRD 539 XF","NGOZI PETROLUEM",261560,"PETROL",34,250,37,3,8500,"UMUAHIA","HUAWEI","SANNI WILLIAMS",8166130746,"Fuel pirchased above official pump price ","MITS.L200 PICK/UP"]
[null," "," "," "," "," "," "," "," "," "," "," "," "," "," "," "," "]
[null,null,null,null,null,null,null,null,null,"TOTAL",8500]
[null,null,null,null,null," "]

{"sheet":" 07-01-2018","index":86,"n_rows":10,"n_cols":17,"rows_kept":10,"cut":false,"hidden":false,"merged":[]}
[]
[]
[]
[]
[null,null,null,null,null,null,null,"HUAWEI FUEL RETIREMENT FOR 07-01-2018 BY IKECHUKWU ROBERT E."]
[null,"Date","Vehicle Number","Filling Station","Mileage","Type","Quantity","Amount per Litre","TRACKING REPORT LITRE","Variance","RATE","PURCHASE POINT","CONTRACT","NAME","PHONE NO","COMMENT","VEHICLE MAKE"]
[null,"2018-07-01","KRD 539 XF","NGOZI PETROLUEM",261876,"PETROL",39,230,41,2,9000,"UMUAHIA","HUAWEI","SANNI WILLIAMS",8166130746,"Fuel pirchased above official pump price ","MITS.L200 PICK/UP"]
[null," "," "," "," "," "," "," "," "," "," "," "," "," "," "," "," "]
[null,null,null,null,null,null,null,null,null,"TOTAL",9000]
[null,null,null,null,null," "]

{"sheet":"9-01-2018","index":87,"n_rows":10,"n_cols":17,"rows_kept":10,"cut":false,"hidden":false,"merged":[]}
[]
[]
[]
[]
[null,null,null,null,null,null,null,"HUAWEI FUEL RETIREMENT FOR 09-01-2018 BY IKECHUKWU ROBERT E."]
[null,"Date","Vehicle Number","Filling Station","Mileage","Type","Quantity","Amount per Litre","TRACKING REPORT LITRE","Variance","RATE","PURCHASE POINT","CONTRACT","NAME","PHONE NO","COMMENT","VEHICLE MAKE"]
[null,"2018-09-01","KRD 539 XF","NGOZI PETROLUEM",263324,"PETROL",32,220,40,8,7000,"UMUAHIA","HUAWEI","SANNI WILLIAMS",8166130746,"Fuel pirchased above official pump price ","MITS.L200 PICK/UP"]
[null," "," "," "," "," "," "," "," "," "," "," "," "," "," "," "," "]
[null,null,null,null,null,null,null,null,null,"TOTAL",7000]
[null,null,null,null,null," "]

{"sheet":" 11-01-2018","index":88,"n_rows":9,"n_cols":17,"rows_kept":9,"cut":false,"hidden":false,"merged":[]}
[]
[]
[]
[null,null,null,null,null,null,null,"HUAWEI FUEL RETIREMENT FOR 11-01-2018 BY IKECHUKWU ROBERT E."]
[null,"Date","Vehicle Number","Filling Station","Mileage","Type","Quantity","Amount per Litre","TRACKING REPORT LITRE","Variance","RATE","PURCHASE POINT","CONTRACT","NAME","PHONE NO","COMMENT","VEHICLE MAKE"]
[null,"2018-11-01","KMC 44 XA","TONIMAS",214709,"PETROL",26,230,17.5,8.5,6000,"ABA","HUAWEI","ERIC OWHONDA",8035417621,"Fuel pirchased above official pump price ","TOYOTA HILUX"]
[null," "," "," "," "," "," "," "," "," "," "," "," "," "," "," "," "]
[null,null,null,null,null,null,null,null,null,"TOTAL",6000]
[null,null,null,null,null," "]

{"sheet":"17-01-2018","index":89,"n_rows":9,"n_cols":17,"rows_kept":9,"cut":false,"hidden":false,"merged":[]}
[" "]
[]
[]
[null,null,null,null,null,null,null,"HUAWEI FUEL RETIREMENT FOR 17-01-2018 BY IKECHUKWU ROBERT E."]
[null,"Date","Vehicle Number","Filling Station","Mileage","Type","Quantity","Amount per Litre","TRACKING REPORT LITRE","Variance","RATE","PURCHASE POINT","CONTRACT","NAME","PHONE NO","COMMENT","VEHICLE MAKE"]
[null,"17/1/2018","KRD 539 XF","NGOZI PETROLUEM",263433,"PETROL",20,210,18.399999999999999,1.6,4200,"UMUAHIA","HUAWEI","SANNI WILLIAMS",8166130746,"Fuel pirchased above official pump price ","MITS.L200 PICK/UP"]
[null,"17/1/2018","KRD 539 XF","NGOZI PETROLUEM",263436,"PETROL",22,210,24.4,2.4,4800,"UMUAHIA","HUAWEI","SANNI WILLIAMS",8166130747,"Fuel pirchased above official pump price ","MITS.L200 PICK/UP"]
[null,null,null,null,null,null,null,null,null,"TOTAL",9000]
[null,null,null,null,null," "]

{"sheet":"18-01-2018","index":90,"n_rows":8,"n_cols":17,"rows_kept":8,"cut":false,"hidden":false,"merged":[]}
[]
[]
[]
[null,null,null,null,null,null,null,"HUAWEI FUEL RETIREMENT FOR 18-01-2018 BY IKECHUKWU ROBERT E."]
[null,"Date","Vehicle Number","Filling Station","Mileage","Type","Quantity","Amount per Litre","TRACKING REPORT LITRE","Variance","RATE","PURCHASE POINT","CONTRACT","NAME","PHONE NO","COMMENT","VEHICLE MAKE"]
[null,"18/1/2018","KRD 539 XF","NGOZI PETROLUEM",263734,"PETROL",38,210,47,9,8000,"UMUAHIA","HUAWEI","SANNI WILLIAMS",8166130747,"Fuel pirchased above official pump price ","MITS.L200 PICK/UP"]
[null,null,null,null,null,null,null,null,null,"TOTAL",8000]
[null,null,null,null,null," "]

{"sheet":" ","index":91,"n_rows":0,"n_cols":0,"rows_kept":0,"cut":false,"hidden":false,"merged":[]}

{"sheet":"19-01-2018","index":92,"n_rows":9,"n_cols":17,"rows_kept":9,"cut":false,"hidden":false,"merged":[]}
[]
[]
[]
[]
[null,null,null,null,null,null,null,"HUAWEI FUEL RETIREMENT FOR 19-01-2018 BY IKECHUKWU ROBERT E."]
[null,"Date","Vehicle Number","Filling Station","Mileage","Type","Quantity","Amount per Litre","TRACKING REPORT LITRE","Variance","RATE","PURCHASE POINT","CONTRACT","NAME","PHONE NO","COMMENT","VEHICLE MAKE"]
[null,"19/1/2018","KRD 539 XF","NGOZI PETROLUEM",264015,"PETROL",38,210,36,2,8000,"UMUAHIA","HUAWEI","SANNI WILLIAMS",8166130747,"Fuel pirchased above official pump price ","MITS.L200 PICK/UP"]
[null,null,null,null,null,null,null,null,null,"TOTAL",8000]
[null,null,null,null,null," "]

{"sheet":"21-01-2018","index":93,"n_rows":8,"n_cols":17,"rows_kept":8,"cut":false,"hidden":false,"merged":[]}
[]
[]
[]
[null,null,null,null,null,null,null,"HUAWEI FUEL RETIREMENT FOR 21-01-2018 BY IKECHUKWU ROBERT E."]
[null,"Date","Vehicle Number","Filling Station","Mileage","Type","Quantity","Amount per Litre","TRACKING REPORT LITRE","Variance","RATE","PURCHASE POINT","CONTRACT","NAME","PHONE NO","COMMENT","VEHICLE MAKE"]
[null,"21/1/2018","KRD 539 XF","NGOZI PETROLUEM",264297,"PETROL",28.5,210,30,1.5,6000,"UMUAHIA","HUAWEI","SANNI WILLIAMS",8166130747,"Fuel pirchased above official pump price ","MITS.L200 PICK/UP"]
[null,null,null,null,null,null,null,null,null,"TOTAL",6000]
[null,null,null,null,null," "]

{"sheet":"23-01-2018","index":94,"n_rows":9,"n_cols":17,"rows_kept":9,"cut":false,"hidden":false,"merged":[]}
[]
[]
[]
[]
[null,null,null,null,null,null,null,"HUAWEI FUEL RETIREMENT FOR 23-01-2018 BY IKECHUKWU ROBERT E."]
[null,"Date","Vehicle Number","Filling Station","Mileage","Type","Quantity","Amount per Litre","TRACKING REPORT LITRE","Variance","RATE","PURCHASE POINT","CONTRACT","NAME","PHONE NO","COMMENT","VEHICLE MAKE"]
[null,"23/1/2018","KRD 539 XF","NGOZI PETROLUEM",264512,"PETROL",40,200,39,1,8000,"UMUAHIA","HUAWEI","SANNI WILLIAMS",8166130747,"Fuel pirchased above official pump price ","MITS.L200 PICK/UP"]
[null,null,null,null,null,null,null,null,null,"TOTAL",8000]
[null,null,null,null,null," "]

{"sheet":"24-01-2018","index":95,"n_rows":9,"n_cols":17,"rows_kept":9,"cut":false,"hidden":false,"merged":[]}
[]
[]
[]
[]
[null,null,null,null,null,null,null,"HUAWEI FUEL RETIREMENT FOR 23-01-2018 BY IKECHUKWU ROBERT E."]
[null,"Date","Vehicle Number","Filling Station","Mileage","Type","Quantity","Amount per Litre","TRACKING REPORT LITRE","Variance","RATE","PURCHASE POINT","CONTRACT","NAME","PHONE NO","COMMENT","VEHICLE MAKE"]
[null,"24/1/2018","KRD 539 XF","NGOZI PETROLUEM",264761,"PETROL",40,200,43,3,8000,"UMUAHIA","HUAWEI","SANNI WILLIAMS",8166130747,"Fuel pirchased above official pump price ","MITS.L200 PICK/UP"]
[null,null,null,null,null,null,null,null,null,"TOTAL",8000]
[null,null,null,null,null," "]

{"sheet":"26-01-2018","index":96,"n_rows":9,"n_cols":17,"rows_kept":9,"cut":false,"hidden":false,"merged":[]}
[]
[]
[]
[]
[null,null,null,null,null,null,null,"HUAWEI FUEL RETIREMENT FOR 26-01-2018 BY IKECHUKWU ROBERT E."]
[null,"Date","Vehicle Number","Filling Station","Mileage","Type","Quantity","Amount per Litre","TRACKING REPORT LITRE","Variance","RATE","PURCHASE POINT","CONTRACT","NAME","PHONE NO","COMMENT","VEHICLE MAKE"]
[null,"26/1/2018","KRD 539 XF","NGOZI PET",265030,"PETROL",40,200,41,1,8000,"UMUAHIA","HUAWEI","SANNI WILLIAMS",8166130747,"Fuel pirchased above official pump price ","MITS.L200 PICK/UP"]
[null,null,null,null,null,null,null,null,null,"TOTAL",8000]
[null,null,null,null,null," "]

{"sheet":" 28-01-2018","index":97,"n_rows":11,"n_cols":17,"rows_kept":11,"cut":false,"hidden":false,"merged":[]}
[]
[]
[]
[null,null,null,null,null,null,null,"HUAWEI FUEL RETIREMENT FOR 28-01-2018 BY IKECHUKWU ROBERT E."]
[null,"Date","Vehicle Number","Filling Station","Mileage","Type","Quantity","Amount per Litre","TRACKING REPORT LITRE","Variance","RATE","PURCHASE POINT","CONTRACT","NAME","PHONE NO","COMMENT","VEHICLE MAKE"]
[null,"27/1/2018","KMC 44 XA","NUA",215744,"PETROL",30,200,25,5,6000,"ABA","HUAWEI","KENNETH ONOS O.",7038064191,"Fuel pirchased above official pump price ","MITS.L200 PICK/UP"]
[null,"27/1/2020","YA 171 MUS ","HEN PET",221970,"PETROL",30,200,"Not Captured",0,6000,"ABA","HUAWEI","ERIC OWHONDA",8035417621,"Fuel pirchased above official pump price ","MITS.L200 PICK/UP"]
[null,"27/1/2019","YA 174 MUS","TONIMAS","  249088","PETROL",20,200,21,1,5000,"ABA","HUAWEI","ORJI SOLOMON",8084005292,"Fuel pirchased above official pump price ","MITS.L200 PICK/UP"]
[null,"28/1/2018","YA 174 MUS","TONIMAS","  249198 ","PETROL",10,200,8,2,1000,"ABA","HUAWEI","ORJI SOLOMON",8084005292,"Fuel pirchased above official pump price ","MITS.L200 PICK/UP"]
[null,"28/1/2018","KRD 539 XF","NGOZI PET",265325,"PETROL",50,200,51,1,10000,"UMUAHIA","HUAWEI","SANNI WILLIAMS",8166130747,"Fuel pirchased above official pump price ","MITS.L200 PICK/UP"]
[null,null,null,null,null,null,null,null,null,"TOTAL",28000]

{"sheet":" 30-01-2018","index":98,"n_rows":8,"n_cols":17,"rows_kept":8,"cut":false,"hidden":false,"merged":[]}
[]
[]
[]
[]
[null,null,null,null,null,null,null,"HUAWEI FUEL RETIREMENT FOR 30-01-2018 BY IKECHUKWU ROBERT E."]
[null,"Date","Vehicle Number","Filling Station","Mileage","Type","Quantity","Amount per Litre","TRACKING REPORT LITRE","Variance","RATE","PURCHASE POINT","CONTRACT","NAME","PHONE NO","COMMENT","VEHICLE MAKE"]
[null,"30/1/2018","KRD 539 XF","TONIMAS",265673,"PETROL",54,185,60.5,5.5,10000,"UMUAHIA","HUAWEI","SANNI WILLIAMS",8166130747,"Fuel pirchased above official pump price ","MITS.L200 PICK/UP"]
[null,null,null,null,null,null,null,null,null,"TOTAL",10000]

{"sheet":" 02-02-2018","index":99,"n_rows":7,"n_cols":17,"rows_kept":7,"cut":false,"hidden":false,"merged":[]}
[]
[]
[]
[null,null,null,null,null,null,null,"HUAWEI FUEL RETIREMENT FOR 02-02-2018 BY IKECHUKWU ROBERT E."]
[null,"Date","Vehicle Number","Filling Station","Mileage","Type","Quantity","Amount per Litre","TRACKING REPORT LITRE","Variance","RATE","PURCHASE POINT","CONTRACT","NAME","PHONE NO","COMMENT","VEHICLE MAKE"]
[null,"2018-02-02","KRD 539 XF","TONIMAS",266126,"PETROL",54,185,58,4,10000,"UMUAHIA","HUAWEI","SANNI WILLIAMS",8166130747,"Fuel pirchased above official pump price ","MITS.L200 PICK/UP"]
[null,null,null,null,null,null,null,null,null,"TOTAL",10000]

{"sheet":"04-02-2018","index":100,"n_rows":7,"n_cols":17,"rows_kept":7,"cut":false,"hidden":false,"merged":[]}
[]
[]
[]
[null,null,null,null,null,null,null,"HUAWEI FUEL RETIREMENT FOR 05-02-2018 BY IKECHUKWU ROBERT E."]
[null,"Date","Vehicle Number","Filling Station","Mileage","Type","Quantity","Amount per Litre","TRACKING REPORT LITRE","Variance","RATE","PURCHASE POINT","CONTRACT","NAME","PHONE NO","COMMENT","VEHICLE MAKE"]
[null,"2018-04-02","KRD 539 XF","TONIMAS",266465,"PETROL",54,185,52,2,10000,"UMUAHIA","HUAWEI","SANNI WILLIAMS",8166130747,"Fuel pirchased above official pump price ","MITS.L200 PICK/UP"]
[null,null,null,null,null,null,null,null,null,"TOTAL",10000]

{"sheet":"06-02-2018","index":101,"n_rows":12,"n_cols":18,"rows_kept":12,"cut":false,"hidden":false,"merged":[]}
[]
[]
[]
[]
[null,null,null,null,null,null,null,"HUAWEI FUEL RETIREMENT FOR 06-02-2018 BY IKECHUKWU ROBERT E."]
[null,"Date","Vehicle Number","Filling Station","Mileage","Type","Quantity","Amount per Litre","TRACKING REPORT LITRE","Variance","RATE","PURCHASE POINT","CONTRACT","NAME","PHONE NO","COMMENT","VEHICLE MAKE"]
[null,"2018-06-02","KMC 44 XA","NUA",215954,"PETROL",28,180,22,6,5000,"ABA","HUAWEI","KENNETH ONOS O.",7038064191,"Fuel pirchased above official pump price ","MITS.L200 PICK/UP"]
[null,"2018-06-02","YA 171 MUS ","HEN PET",222779,"PETROL",28,180,"NOT CAPTURED",0,5000,"ABA","HUAWEI","ERIC OWHONDA",8035417621,"Fuel pirchased above official pump price ","MITS.L200 PICK/UP","Support Ticket Opened [#910]"]
[null,"2018-06-02","YA 174 MUS","TONIMAS",250054,"PETROL",28,180,14.5,13.5,5000,"ABA","HUAWEI","ORJI SOLOMON",8084005292,"Fuel pirchased above official pump price ","MITS.L200 PICK/UP","Deduct N2430. FROM THE DRIVER."]
[]
[]
[null,null,null,null,null,null,null,null,null,"TOTAL",15000]

{"sheet":"08-02-2018","index":102,"n_rows":11,"n_cols":18,"rows_kept":11,"cut":false,"hidden":false,"merged":[]}
[]
[]
[]
[null,null,null,null,null,null,null,"HUAWEI FUEL RETIREMENT FOR 08-02-2018 BY IKECHUKWU ROBERT E."]
[null,"Date","Vehicle Number","Filling Station","Mileage","Type","Quantity","Amount per Litre","TRACKING REPORT LITRE","Variance","RATE","PURCHASE POINT","CONTRACT","NAME","PHONE NO","COMMENT","VEHICLE MAKE"]
[null,"2018-07-02","KRD 539 XF","NGOZI PET",266838,"PETROL",55,185,53,2,10000,"UMUAHIA","HUAWEI","SANNI WILLIAMS",8166130747,"Fuel pirchased above official pump price ","MITS.L200 PICK/UP"]
[null,"2018-08-02","YA 171 MUS ","TONIMAS",222857,"PETROL",26,190,"NOT CAPTURED",0,5000,"ABA","HUAWEI","KENNETH ONOS O.",7038064191,"Fuel pirchased above official pump price ","MITS.L200 PICK/UP","Support Ticket Opened [#912]"]
[null,"2018-08-02","YA 174 MUS","TONIMAS",250212,"PETROL",26,190,10,16,5000,"ABA","HUAWEI","ORJI SOLOMON",8084005292,"Fuel pirchased above official pump price ","MITS.L200 PICK/UP","Deduct N3040. FROM THE DRIVER."]
[]
[]
[null,null,null,null,null,null,null,null,null,"TOTAL",20000]

{"sheet":"12-02-2018","index":103,"n_rows":11,"n_cols":18,"rows_kept":11,"cut":false,"hidden":false,"merged":[]}
[]
[]
[]
[null,null,null,null,null,null,null,"HUAWEI FUEL RETIREMENT FOR 12-02-2018 BY IKECHUKWU ROBERT E."]
[null,"Date","Vehicle Number","Filling Station","Mileage","Type","Quantity","Amount per Litre","TRACKING REPORT LITRE","Variance","RATE","PURCHASE POINT","CONTRACT","NAME","PHONE NO","COMMENT","VEHICLE MAKE"]
[null,"2018-10-02","KMC 44 XA","NUA",216144,"PETROL",26,190,24.5,1.5,5000,"ABA","HUAWEI","ERIC OWHONDA",8035417621,"Fuel pirchased above official pump price ","MITS.L200 PICK/UP"]
[null,"2018-10-02","YA 171 MUS ","TONIMAS",222908,"PETROL",26,190,"NOT CAPTURED",0,5000,"ABA","HUAWEI","KENNETH ONOS O.",7038064191,"Fuel pirchased above official pump price ","MITS.L200 PICK/UP","Support Ticket Opened [#913]"]
[null,"2018-10-02","YA 174 MUS","TONIMAS",250675,"PETROL",26,190,14,12,5000,"ABA","HUAWEI","ORJI SOLOMON",8084005292,"Fuel pirchased above official pump price ","MITS.L200 PICK/UP","Deduct N2,280. FROM THE DRIVER."]
[]
[]
[null,null,null,null,null,null,null,null,null,"TOTAL",15000]

{"sheet":" 13-02-2018","index":104,"n_rows":12,"n_cols":18,"rows_kept":12,"cut":false,"hidden":false,"merged":[]}
[]
[]
[]
[]
[null,null,null,null,null,null,null,"HUAWEI FUEL RETIREMENT FOR 13-02-2018 BY IKECHUKWU ROBERT E. (B) VEHICLES RELEASED FROM HUAWEI CONTRACT)"]
[null,"Date","Vehicle Number","Filling Station","Mileage","Type","Quantity","Amount per Litre","TRACKING REPORT LITRE","Variance","RATE","PURCHASE POINT","CONTRACT","NAME","PHONE NO","COMMENT","VEHICLE MAKE"]
[null,"2018-12-02","KMC 44 XA","NUA",216380,"PETROL",13,190,10,2,2500,"ABA","HUAWEI","ERIC OWHONDA",8035417621,"Fuel pirchased above official pump price ","MITS.L200 PICK/UP"]
[null,"2018-12-02","YA 171 MUS ","TONIMAS",223100,"PETROL",13,190,"NOT CAPTURED",0,2500,"ABA","HUAWEI","KENNETH ONOS O.",7038064191,"Fuel pirchased above official pump price ","MITS.L200 PICK/UP","Support Ticket Opened [#914] (Vehicle to be attended to today by Citracks."]
[null,"2018-12-02","YA 174 MUS","TONIMAS",250679,"PETROL",13,190,8,5,2500,"ABA","HUAWEI","ORJI SOLOMON",8084005292,"Fuel pirchased above official pump price ","MITS.L200 PICK/UP"," "]
[]
[]
[null,null,null,null,null,null,null,null,null,"TOTAL",7500]

{"sheet":" 16-02-2018","index":105,"n_rows":9,"n_cols":17,"rows_kept":9,"cut":false,"hidden":false,"merged":[]}
[]
[]
[]
[]
[null,null,null,null,null,null,null,"HUAWEI FUEL RETIREMENT FOR 16-02-2018 BY IKECHUKWU ROBERT E."]
[null,"Date","Vehicle Number","Filling Station","Mileage","Type","Quantity","Amount per Litre","TRACKING REPORT LITRE","Variance","RATE","PURCHASE POINT","CONTRACT","NAME","PHONE NO","COMMENT","VEHICLE MAKE"]
[null,"14/2/2018","KRD 539 XF","TONIMAS",268360,"PETROL",54,185,58,4,10000,"UMUAHIA","HUAWEI","SANNI WILLIAMS",8166130747,"Fuel pirchased above official pump price ","MITS.L200 PICK/UP"]
[null,"16/2/2018","KRD 539 XF","TONIMAS",268635,"PETROL",55.5,180,50,5.5,10000,"UMUAHIA","HUAWEI","SANNI WILLIAMS",8166130748,"Fuel pirchased above official pump price ","MITS.L200 PICK/UP"]
[null,null,null,null,null,null,null,null,null,"TOTAL",20000]

{"sheet":"19-02-2018","index":106,"n_rows":9,"n_cols":18,"rows_kept":9,"cut":false,"hidden":false,"merged":[]}
[]
[]
[]
[]
[]
[null,null,null,null,null,null,null,null,"HUAWEI FUEL RETIREMENT FOR 19-02-2018 BY IKECHUKWU ROBERT E."]
[null,null,"Date","Vehicle Number","Filling Station","Mileage","Type","Quantity","Amount per Litre","TRACKING REPORT LITRE","Variance","RATE","PURCHASE POINT","CONTRACT","NAME","PHONE NO","COMMENT","VEHICLE MAKE"]
[null,null,"18/2/2018","KRD 539 XF","TONIMAS",269035,"PETROL",55.5,180,54,1.5,10000,"UMUAHIA","HUAWEI","SANNI WILLIAMS",8166130748,"KINDLY DEDUCT N2,790. FROM THE DRIVER.","MITS.L200 PICK/UP"]
[null,null,null,null,null,null,null,null,null,null,"TOTAL",10000]

{"sheet":"20-02-2018","index":107,"n_rows":6,"n_cols":17,"rows_kept":6,"cut":false,"hidden":false,"merged":[]}
[]
[]
[null,null,null,null,null,null,null,"HUAWEI FUEL RETIREMENT FOR 20-02-2018 BY IKECHUKWU ROBERT E."]
[null,"Date","Vehicle Number","Filling Station","Mileage","Type","Quantity","Amount per Litre","TRACKING REPORT LITRE","Variance","RATE","PURCHASE POINT","CONTRACT","NAME","PHONE NO","COMMENT","VEHICLE MAKE"]
[null,"20/2/2018","KRD 539 XF","TONIMAS",269405,"PETROL",55.5,180,40,15.5,10000,"UMUAHIA","HUAWEI","SANNI WILLIAMS",8166130748,"KINDLY DEDUCT N2,790. FROM THE DRIVER.","MITS.L200 PICK/UP"]
[null,null,null,null,null,null,null,null,null,"TOTAL",10000]

{"sheet":"22-02-2018","index":108,"n_rows":8,"n_cols":17,"rows_kept":8,"cut":false,"hidden":false,"merged":[]}
[]
[]
[]
[]
[null,null,null,null,null,null,null,"HUAWEI FUEL RETIREMENT FOR 22-02-2018 BY IKECHUKWU ROBERT E."]
[null,"Date","Vehicle Number","Filling Station","Mileage","Type","Quantity","Amount per Litre","TRACKING REPORT LITRE","Variance","RATE","PURCHASE POINT","CONTRACT","NAME","PHONE NO","COMMENT","VEHICLE MAKE"]
[null,"22/2/2018","KRD 539 XF","TONIMAS",269815,"PETROL",55.5,180,56,0.5,10000,"UMUAHIA","HUAWEI","SANNI WILLIAMS",8166130748," ","MITS.L200 PICK/UP"]
[null,null,null,null,null,null,null,null,null,"TOTAL",10000]

{"sheet":"28-02-2018","index":109,"n_rows":8,"n_cols":17,"rows_kept":8,"cut":false,"hidden":false,"merged":[]}
[]
[]
[]
[]
[null,null,null,null,null,null,null,"HUAWEI FUEL RETIREMENT FOR 28-02-2018 BY IKECHUKWU ROBERT E."]
[null,"Date","Vehicle Number","Filling Station","Mileage","Type","Quantity","Amount per Litre","TRACKING REPORT LITRE","Variance","RATE","PURCHASE POINT","CONTRACT","NAME","PHONE NO","COMMENT","VEHICLE MAKE"]
[null,"28/2/2018","KRD 539 XF","TONIMAS",270148,"PETROL",55.5,180,51,4.5,10000,"UMUAHIA","HUAWEI","SANNI WILLIAMS",8166130748," ","MITS.L200 PICK/UP"]
[null,null,null,null,null,null,null,null,null,"TOTAL",10000]

{"sheet":"06-03-2018","index":110,"n_rows":7,"n_cols":17,"rows_kept":7,"cut":false,"hidden":false,"merged":[]}
[]
[]
[]
[null,null,null,null,null,null,null,"HUAWEI FUEL RETIREMENT FOR 06-03-2018 BY IKECHUKWU ROBERT E."]
[null,"Date","Vehicle Number","Filling Station","Mileage","Type","Quantity","Amount per Litre","TRACKING REPORT LITRE","Variance","RATE","PURCHASE POINT","CONTRACT","NAME","PHONE NO","COMMENT","VEHICLE MAKE"]
[null,"2018-06-03","KRD 539 XF","TONIMAS",271365,"PETROL",57,180,51,6,10000,"UMUAHIA","HUAWEI","SANNI WILLIAMS",8166130748," ","MITS.L200 PICK/UP"]
[null,null,null,null,null,null,null,null,null,"TOTAL",10000]

{"sheet":"08-03-2018","index":111,"n_rows":8,"n_cols":17,"rows_kept":8,"cut":false,"hidden":false,"merged":[]}
[]
[]
[]
[]
[null,null,null,null,null,null,null,"HUAWEI FUEL RETIREMENT FOR 08-03-2018 BY IKECHUKWU ROBERT E."]
[null,"Date","Vehicle Number","Filling Station","Mileage","Type","Quantity","Amount per Litre","TRACKING REPORT LITRE","Variance","RATE","PURCHASE POINT","CONTRACT","NAME","PHONE NO","COMMENT","VEHICLE MAKE"]
[null,"2018-08-03","KRD 539 XF","TONIMAS",271708,"PETROL",57,175,49,8,10000,"UMUAHIA","HUAWEI","SANNI WILLIAMS",8166130748,"KINDLY DEDUCT N1,425. FROM THE DRIVER.","MITS.L200 PICK/UP"]
[null,null,null,null,null,null,null,null,null,"TOTAL",10000]

{"sheet":"12-03-2018","index":112,"n_rows":8,"n_cols":17,"rows_kept":8,"cut":false,"hidden":false,"merged":[]}
[]
[]
[]
[]
[null,null,null,null,null,null,null,"HUAWEI FUEL RETIREMENT FOR 12-03-2018 BY IKECHUKWU ROBERT E."]
[null,"Date","Vehicle Number","Filling Station","Mileage","Type","Quantity","Amount per Litre","TRACKING REPORT LITRE","Variance","RATE","PURCHASE POINT","CONTRACT","NAME","PHONE NO","COMMENT","VEHICLE MAKE"]
[null,"2018-10-03","KRD 539 XF","TONIMAS",272396,"PETROL",58,170,49,9,10000,"UMUAHIA","HUAWEI","SANNI WILLIAMS",8166130748,"KINDLY DEDUCT N1,530. FROM THE DRIVER.","MITS.L200 PICK/UP"]
[null,null,null,null,null,null,null,null,null,"TOTAL",10000]

{"sheet":"13-03-2018","index":113,"n_rows":8,"n_cols":17,"rows_kept":8,"cut":false,"hidden":false,"merged":[]}
[]
[]
[]
[]
[null,null,null,null,null,null,null,"HUAWEI FUEL RETIREMENT FOR 13-03-2018 BY IKECHUKWU ROBERT E."]
[null,"Date","Vehicle Number","Filling Station","Mileage","Type","Quantity","Amount per Litre","TRACKING REPORT LITRE","Variance","RATE","PURCHASE POINT","CONTRACT","NAME","PHONE NO","COMMENT","VEHICLE MAKE"]
[null,"2018-12-03","KRD 539 XF","NGOZI PET",272587,"PETROL",58,170,52,6,10000,"UMUAHIA","HUAWEI","SANNI WILLIAMS",8166130748," ","MITS.L200 PICK/UP"]
[null,null,null,null,null,null,null,null,null,"TOTAL",10000]

{"sheet":" 20-03-2018","index":114,"n_rows":7,"n_cols":17,"rows_kept":7,"cut":false,"hidden":false,"merged":[]}
[]
[]
[]
[null,null,null,null,null,null,null,"HUAWEI FUEL RETIREMENT FOR 20-03-2018 BY IKECHUKWU ROBERT E."]
[null,"Date","Vehicle Number","Filling Station","Mileage","Type","Quantity","Amount per Litre","TRACKING REPORT LITRE","Variance","RATE","PURCHASE POINT","CONTRACT","NAME","PHONE NO","COMMENT","VEHICLE MAKE"]
[null,"20/3/2018","KRD 539 XF","NGOZI PET",273667,"PETROL",58,170,61,4,10000,"UMUAHIA","HUAWEI","SANNI WILLIAMS",8166130748," ","MITS.L200 PICK/UP"]
[null,null,null,null,null,null,null,null,null,"TOTAL",10000]

{"sheet":"04-04-2018","index":115,"n_rows":10,"n_cols":17,"rows_kept":10,"cut":false,"hidden":false,"merged":[]}
[]
[]
[]
[null,null,null,null,null,null,null,"HUAWEI FUEL RETIREMENT FOR 04-04-2018 BY IKECHUKWU ROBERT E."]
[]
[null,"Date","Vehicle Number","Filling Station","Mileage","Type","Quantity","Amount per Litre","TRACKING REPORT LITRE","Variance","RATE","PURCHASE POINT","CONTRACT","NAME","PHONE NO","COMMENT","VEHICLE MAKE"]
[null,"2018-02-04","AAA 258 XQ","FORTE OIL",164416,"PETROL",28,145,28,0,4000,"PHC","HUAWEI","CHRISTIAN IROEGBULAM",7064593147,null,"MITS.L200 PICK/UP"]
[null,"2018-02-04","KRD 539 XF","NGOZI PET",275666,"PETROL",34,145,22,12,5000,"UMUAHIA","HUAWEI","SANNI WILLIAMS",8166130748,"KINDLY DEDUCT N1,740. FROM THE DRIVER.","MITS.L200 PICK/UP"]
[null,"2018-03-04","LND 565 XM","FORTE OIL",160385,"PETROL",28,145,21,7,4000,"PHC","HUAWEI","SUUNDAY OGUNNIAKE",8035263691,null,"MITS.L200 PICK/UP"]
[null,null,null,null,null,null,null,null,null,"TOTAL",13000]

{"sheet":"06-04-2018","index":116,"n_rows":35,"n_cols":18,"rows_kept":35,"cut":false,"hidden":false,"merged":[]}
[]
[]
[null,null,null,null,null,null,null,"HUAWEI FUEL RETIREMENT FOR 06-04-2018 BY IKECHUKWU ROBERT E."]
[]
[null,"Date","Vehicle Number","Filling Station","Mileage","Type","Quantity","Amount per Litre","TRACKING REPORT LITRE","Variance","RATE","PURCHASE POINT","CONTRACT","NAME","PHONE NO","COMMENT","VEHICLE MAKE"]
[null,"2018-04-04","KRD 539 XF","NGOZI PET",275876,"PETROL",34,145,32,2,5000,"UMUAHIA","HUAWEI","SANNI WILLIAMS",8166130748," ","MITS.L200 PICK/UP"]
[null,"2018-04-04","LND 565 XM","FORTE OIL",160501,"PETROL",7,145,8,0,1000,"PHC","HUAWEI","SUUNDAY OGUNNIAKE",8035263691,null,"MITS.L200 PICK/UP"]
[null,"2018-04-04","LND 565 XM","FORTE OIL",160554,"PETROL",13,145,8,5,2000,"PHC","HUAWEI","SUUNDAY OGUNNIAKE",8035263691,null,"MITS.L200 PICK/UP"]
[null,"2018-05-04","LND 565 XM","FORTE OIL",160603,"PETROL",20,145,7,13,3000,"PHC","HUAWEI","SUUNDAY OGUNNIAKE",8035263691,"KINDLY DEDUCT N1,885.00 from the driver","MITS.L200 PICK/UP"," "]
[null,"2018-05-04","KRD 539 XF","NGOZI PET",276123,"PETROL",34,145,40,6,5000,"UMUAHIA","HUAWEI","SANNI WILLIAMS",8166130748," ","MITS.L200 PICK/UP"]
[null,"2018-06-04","LND 565 XM","MBT PETROL",160694,"PETROL",28,145,12,16,4000,"PHC","HUAWEI","SUUNDAY OGUNNIAKE",8035263691,"KINDLY DEDUCT N2,320.00 from the driver","MITS.L200 PICK/UP"]
[null,"2018-06-04","AAA 258 XQ","TOTAL",162432,"PETROL",28,145,"NOT CAPTURED",0,4000,"PHC","HUAWEI","CHRISTIAN IROEGBULAM ",7064593147,"Support Ticket Opened [#917]","MITS.L200 PICK/UP","Support Ticket Opened [#917]"]
[null,null,null,null,null,null,null,null,null,"TOTAL",24000]
[]
[]
[]
[]
[]
[]
[]
[]
[]
[]
[]
[]
[]
[]
[]
[]
[]
[]
[]
[]
[]
[null,null,null,null,"IMO-STATE"]

{"sheet":" 08-04","index":117,"n_rows":16,"n_cols":18,"rows_kept":16,"cut":false,"hidden":false,"merged":[]}
[]
[]
[]
[null,null,null,null,null,null,null,"HUAWEI FUEL RETIREMENT FOR 08-04-2018 BY IKECHUKWU ROBERT E."]
[]
[null,"Date","Vehicle Number","Filling Station","Mileage","Type","Quantity","Amount per Litre","TRACKING REPORT LITRE","Variance","RATE","PURCHASE POINT","CONTRACT","NAME","PHONE NO","COMMENT","VEHICLE MAKE"]
[null,"2018-06-04","KRD 539 XF","NGOZI PET",276506,"PETROL",34,145,28,6,5000,"UMUAHIA","HUAWEI","SANNI WILLIAMS",8166130748," ","MITS.L200 PICK/UP"]
[null,"2018-07-04","AAA 258 XQ","PICO",162785,"PETROL",28,145,14,14,4000,"OWERRI","HUAWEI","CHRISTIAN IROEGBULAM ",7064593147,"Support Ticket Opened [#919]","MITS.L200 PICK/UP"]
[null,"2018-07-04","KRD 539 XF","FORTE OIL",276721,"PETROL",28,145,28.5,5.5,5000,"UMUAHIA","HUAWEI","SANNI WILLIAMS",8166130748," ","MITS.L200 PICK/UP"]
[null,"2018-08-04","LND 565 XM","MBT PETROL",160812,"PETROL",34,145,"NOT CAPTURED",0,5000,"OWERRI","HUAWEI","SUUNDAY OGUNNIAKE",8035263691,"Support Ticket Opened [#918]","MITS.L200 PICK/UP"]
[null,"2018-08-04","AAA 258 XQ","PICO",162880,"PETROL",14,145,10,4,2000,"OWERRI","HUAWEI","CHRISTIAN IROEGBULAM ",7064593147," ","MITS.L200 PICK/UP"]
[null,"2018-08-04","AAA 258 XQ","COCEAN",162896,"PETROL",14,145,9,5,2000,"OWERRI","HUAWEI","CHRISTIAN IROEGBULAM ",7064593148," ","MITS.L200 PICK/UP"]
[null,"2018-08-04","KRD 539 XF","FORTE OIL",276931,"PETROL",34,145,28.5,5.5,5000,"UMUAHIA","HUAWEI","SANNI WILLIAMS",8166130748," ","MITS.L200 PICK/UP"," "]
[]
[]
[null,null,null,null,null,null,null,null,null,"TOTAL",28000]

{"sheet":" 16-04-2018","index":118,"n_rows":12,"n_cols":18,"rows_kept":12,"cut":false,"hidden":false,"merged":[]}
[]
[]
[]
[]
[]
[null,null,null,null,null,null,null,"HUAWEI FUEL RETIREMENT FOR 16-04-2018 BY IKECHUKWU ROBERT E."]
[]
[null,"Date","Vehicle Number","Filling Station","Mileage","Type","Quantity","Amount per Litre","TRACKING REPORT LITRE","Variance","RATE","PURCHASE POINT","CONTRACT","NAME","PHONE NO","COMMENT","VEHICLE MAKE"]
[null,"16/4/2018","KRD 539 XF","FORTE OIL",277891,"PETROL",7,145,9,2,1000,"UMUAHIA","HUAWEI","SANNI WILLIAMS",8166130748," ","MITS.L200 PICK/UP"," "]
[null,"16/4/2018","KRD 539 XF","NGOZI PET",277921,"PETROL",28,145,27,1,4000,"UMUAHIA","HUAWEI","SANNI WILLIAMS",8166130748," ","MITS.L200 PICK/UP"]
[]
[null,null,null,null,null,null,null,null,null,"TOTAL",5000]

{"sheet":"23-04-2018","index":119,"n_rows":11,"n_cols":18,"rows_kept":11,"cut":false,"hidden":false,"merged":[]}
[]
[]
[]
[]
[null,null,null,null,null,null,null,null,"HUAWEI FUEL RETIREMENT FOR 25-04-2018 BY IKECHUKWU ROBERT E."]
[]
[null,null,"Date","Vehicle Number","Filling Station","Mileage","Type","Quantity","Amount per Litre","TRACKING REPORT LITRE","Variance","RATE","PURCHASE POINT","CONTRACT","NAME","PHONE NO","COMMENT","VEHICLE MAKE"]
[null,null,"23/4/2018","AAA 258 XQ","PICO",164306,"PETROL",21,145,20,1,3000,"OWERRI","HUAWEI","CHRISTIAN IROEGBULAM ",7064593147,null,"MITS.L200 PICK/UP"]
[null,null,"24/4/2018","AAA 258 XQ","ANSLEM PET",164404,"PETROL",21,145,19,2,3000,"OWERRI","HUAWEI","CHRISTIAN IROEGBULAM ",7064593148,null,"MITS.L200 PICK/UP"]
[null,null,"25/4/2019","AAA 258 XQ","PICO",164668,"PETROL",34,145,27,7,5000,"OWERRI","HUAWEI","CHRISTIAN IROEGBULAM ",7064593149,null,"MITS.L200 PICK/UP"]
[null,null,null,null,null,null,null,null,null,null,null,11000]

{"sheet":" 25-04-2018","index":120,"n_rows":8,"n_cols":18,"rows_kept":8,"cut":false,"hidden":false,"merged":[]}
[]
[]
[]
[null,null,null,null,null,null,null,null,"HUAWEI FUEL RETIREMENT FOR 25-04-2018 BY IKECHUKWU ROBERT E."]
[]
[null,null,"Date","Vehicle Number","Filling Station","Mileage","Type","Quantity","Amount per Litre","TRACKING REPORT LITRE","Variance","RATE","PURCHASE POINT","CONTRACT","NAME","PHONE NO","COMMENT","VEHICLE MAKE"]
[null,null,"25/4/2019","AAA 258 XQ","PICO",164668,"PETROL",34,145,27,7,5000,"OWERRI","HUAWEI","CHRISTIAN IROEGBULAM ",7064593149,null,"MITS.L200 PICK/UP"]
[null,null,null,null,null,null,null,null,null,null,null,5000]

{"sheet":"26-04-2018","index":121,"n_rows":8,"n_cols":17,"rows_kept":8,"cut":false,"hidden":false,"merged":[]}
[]
[]
[]
[null,null,null,null,null,null,null,"HUAWEI FUEL RETIREMENT FOR 26-04-2018 BY IKECHUKWU ROBERT E."]
[]
[null,"Date","Vehicle Number","Filling Station","Mileage","Type","Quantity","Amount per Litre","TRACKING REPORT LITRE","Variance","RATE","PURCHASE POINT","CONTRACT","NAME","PHONE NO","COMMENT","VEHICLE MAKE"]
[null,"26/4/2019","AAA 258 XQ","EBERE PET",164899,"PETROL",34,145,21,13,5000,"OWERRI","HUAWEI","CHRISTIAN IROEGBULAM ",7064593149,"Kindly deduct N1,885.00","MITS.L200 PICK/UP"]
[null,null,null,null,null,null,null,null,null,null,5000]

{"sheet":"30-04-2018","index":122,"n_rows":10,"n_cols":17,"rows_kept":10,"cut":false,"hidden":false,"merged":[]}
[]
[]
[]
[null,null,null,null,null,null,null,"HUAWEI FUEL RETIREMENT FOR 30-04-2018 BY IKECHUKWU ROBERT E."]
[]
[null,"Date","Vehicle Number","Filling Station","Mileage","Type","Quantity","Amount per Litre","TRACKING REPORT LITRE","Variance","RATE","PURCHASE POINT","CONTRACT","NAME","PHONE NO","COMMENT","VEHICLE MAKE"]
[null,"28/4/2019","AAA 258 XQ","EBERE PET",165134,"PETROL",28,145,27,1,4000,"OWERRI","HUAWEI","CHRISTIAN IROEGBULAM ",7064593149,null,"MITS.L200 PICK/UP"]
[null,"29/4/2020","AAA 258 XQ","CHI-PET",165246,"PETROL",7,145,8.5,1.5,1000,"OWERRI","HUAWEI","CHRISTIAN IROEGBULAM ",7064593150,null,"MITS.L200 PICK/UP"]
[null,"30/4/2021","AAA 258 XQ","ANSELEM PET",165410,"PETROL",34,145,20.5,13,5000,"OWERRI","HUAWEI","CHRISTIAN IROEGBULAM ",7064593151,"Kindly deduct N1,885.00 from the driver.","MITS.L200 PICK/UP"]
[null,null,null,null,null,null,null,null,null,null,10000]

{"sheet":"07-05-2018","index":123,"n_rows":10,"n_cols":18,"rows_kept":10,"cut":false,"hidden":false,"merged":[]}
[]
[]
[]
[]
[null,null,null,null,null,null,null,null,"HUAWEI FUEL RETIREMENT FOR 30-04-2018 BY IKECHUKWU ROBERT E."]
[]
[null,null,"Date","Vehicle Number","Filling Station","Mileage","Type","Quantity","Amount per Litre","TRACKING REPORT LITRE","Variance","RATE","PURCHASE POINT","CONTRACT","NAME","PHONE NO","COMMENT","VEHICLE MAKE"]
[null,null,"2018-03-05","KRD 539 XF","NGOZI PET",280001,"PETROL",34,145,20,13,5000,"UMUAHIA","HUAWEI","SANNI WILLIAMS",8166130748," ","MITS.L200 PICK/UP"]
[null,null,"2018-04-05","AAA 188 XL","ONWA PET",235138,"PETROL",28,145,9,19,4000,"OWERRI","HUAWEI","CHRISTIAN IROEGBULAM ",7064593150,"Kindly deduct N2,755. from driver","MITS.L200 PICK/UP"]
[null,null,null,null,null,null,null,null,null,null,null,9000]

{"sheet":" 08-05-2018","index":124,"n_rows":15,"n_cols":18,"rows_kept":15,"cut":false,"hidden":false,"merged":[]}
[]
[]
[]
[]
[]
[null,null,null,null,null,null,null,null,"HUAWEI FUEL RETIREMENT FOR 08-05-2018 BY IKECHUKWU ROBERT E."]
[]
[null,null,"Date","Vehicle Number","Filling Station","Mileage","Type","Quantity","Amount per Litre","TRACKING REPORT LITRE","Variance","RATE","PURCHASE POINT","CONTRACT","NAME","PHONE NO","COMMENT","VEHICLE MAKE"]
[null,null,"2018-08-05","AAA 188 XL","ONWA PET",235459,"PETROL",34,145,17,17,5000,"OWERRI","HUAWEI","CHRISTIAN IROEGBULAM ",7064593150,"Kindly deduct N2,465. from driver","MITS.L200 PICK/UP"]
[null,null,null,null,null,null,null,null,null,null,null,5000]
[]
[]
[]
[]
[null,null,null,null,null,null,null,null,null,null,null,null,null,null," "]

{"sheet":"09-05-2018","index":125,"n_rows":10,"n_cols":17,"rows_kept":10,"cut":false,"hidden":false,"merged":[]}
[]
[]
[]
[]
[]
[null,null,null,null,null,null,null,"HUAWEI FUEL RETIREMENT FOR 09-05-2018 BY IKECHUKWU ROBERT E."]
[]
[null,"Date","Vehicle Number","Filling Station","Mileage","Type","Quantity","Amount per Litre","TRACKING REPORT LITRE","Variance","RATE","PURCHASE POINT","CONTRACT","NAME","PHONE NO","COMMENT","VEHICLE MAKE"]
[null,"2018-08-05","AAA 258 XQ","PICO",166183,"PETROL",28,145,21,7,4000,"OWERRI","HUAWEI","CHRISTIAN IROEGBULAM ",7064593150," ","MITS.L200 PICK/UP"]
[null,null,null,null,null,null,null,null,null,null,4000]

{"sheet":"10-05-2018","index":126,"n_rows":9,"n_cols":18,"rows_kept":9,"cut":false,"hidden":false,"merged":[]}
[]
[]
[]
[]
[null,null,null,null,null,null,null,null,"HUAWEI FUEL RETIREMENT FOR 10-05-2018 BY IKECHUKWU ROBERT E."]
[]
[null,null,"Date","Vehicle Number","Filling Station","Mileage","Type","Quantity","Amount per Litre","TRACKING REPORT LITRE","Variance","RATE","PURCHASE POINT","CONTRACT","NAME","PHONE NO","COMMENT","VEHICLE MAKE"]
[null,null,"2018-10-05","AAA 188 XL","PREDEN PET",235731,"PETROL",28,145,11,17,4000,"OWERRI","HUAWEI","AHUNONU CHIGOZIE  LEONARD",8033255989,"TRACKER DEVICE WEAK","MITS.L200 PICK/UP"]
[null,null,null,null,null,null,null,null,null,null,null,4000]

{"sheet":"13-05-2018","index":127,"n_rows":9,"n_cols":17,"rows_kept":9,"cut":false,"hidden":false,"merged":[]}
[]
[]
[]
[]
[null,null,null,null,null,null,null,"HUAWEI FUEL RETIREMENT FOR 13-05-2018 BY IKECHUKWU ROBERT E."]
[]
[null,"Date","Vehicle Number","Filling Station","Mileage","Type","Quantity","Amount per Litre","TRACKING REPORT LITRE","Variance","RATE","PURCHASE POINT","CONTRACT","NAME","PHONE NO","COMMENT","VEHICLE MAKE"]
[null,"13/5/2018","AAA 188 XL","TOCEAN OIL",235946,"PETROL",28,145,"NOT CAPTURED",0,4000,"OWERRI","HUAWEI","AHUNONU CHIGOZIE  LEONARD",8033255989,"TRACKER DEVICE WEAK (OLD)","MITS.L200 PICK/UP"]
[null,null,null,null,null,null,null,null,null,null,4000]

{"sheet":"15-05-2018","index":128,"n_rows":17,"n_cols":18,"rows_kept":17,"cut":false,"hidden":false,"merged":[]}
[]
[]
[]
[]
[null,null,null,null,null,null,null,"HUAWEI FUEL RETIREMENT FOR 15-05-2018 BY IKECHUKWU ROBERT E."]
[]
[null,"Date","Vehicle Number","Filling Station","Mileage","Type","Quantity","Amount per Litre","TRACKING REPORT LITRE","Variance","RATE","PURCHASE POINT","CONTRACT","NAME","PHONE NO","COMMENT","VEHICLE MAKE"]
[null,"14/5/2018","AAA 188 XL","TOCEAN OIL",236110,"PETROL",28,145,9,19,4000,"ORLU","HUAWEI","AHUNONU CHIGOZIE  LEONARD",8033255989,"TRACKER DEVICE WEAK (OLD)","MITS.L200 PICK/UP","DRIVERS ATM CARD NOT READY, MONEY PAID INTO FME'S ACCOUNT (ISAAC IKYOKOR)"]
[null,"14/5/2018","KRD 539 XF","NGOZI PET",281869,"PETROL",34,145,12,8,5000,"UMUAHIA","HUAWEI","SANNI WILLIAMS",8166130748,"Deduct N1,160.00 From driver.","MITS.L200 PICK/UP"]
[null,"14/5/2018","LND 565 XM","PICO",165601,"PETROL",14,145,9,6,3000,"OWERRI","HUAWEI","SUUNDAY OGUNNIAKE",8035263691," ","MITS.L200 PICK/UP"]
[null,"15/5/2018","AAA 188 XL","KORAMA",236224,"PETROL",28,145,"NOT CAPTURED",0,4000,"ORLU","HUAWEI","AHUNONU CHIGOZIE  LEONARD",8033255989,"TRACKER DEVICE WEAK (OLD)","MITS.L200 PICK/UP","DRIVERS ATM CARD NOT READY, MONEY PAID INTO FME'S ACCOUNT "]
[null,"15/5/2018","KRD 539 XF","NGOZI PET",282090,"PETROL",41,145,41,0,6000,"UMUAHIA","HUAWEI","SANNI WILLIAMS",8166130748," ","MITS.L200 PICK/UP"]
[null,"15/5/2018","LND 565 XM","ANSELEM PET",165723,"PETROL",14,145,9,6,2000,"OWERRI","HUAWEI","SUUNDAY OGUNNIAKE",8035263692,null,"MITS.L200 PICK/UP"]
[null," "," "," "," "," "," "," "," "," "," "," "," "," "," "," "," "]
[]
[]
[null,null,null,null,null,null,null,null,null,null,24000]

{"sheet":"16-05-2018","index":129,"n_rows":10,"n_cols":17,"rows_kept":10,"cut":false,"hidden":false,"merged":[]}
[]
[]
[]
[]
[]
[null,null,null,null,null,null,null,"HUAWEI FUEL RETIREMENT FOR 16-05-2018 BY IKECHUKWU ROBERT E."]
[]
[null,"Date","Vehicle Number","Filling Station","Mileage","Type","Quantity","Amount per Litre","TRACKING REPORT LITRE","Variance","RATE","PURCHASE POINT","CONTRACT","NAME","PHONE NO","COMMENT","VEHICLE MAKE"]
[null,"15/5/2018","AAA 258 XQ","PICO",166835,"PETROL",28,145,"NOT CAPTURED",0,4000,"OWERRI","HUAWEI","CHRISTIAN IROEGBULAM ",7064593150," ","MITS.L200 PICK/UP"]
[null,null,null,null,null,null,null,null,null,null,4000]

{"sheet":"17-05-2018","index":130,"n_rows":0,"n_cols":0,"rows_kept":0,"cut":false,"hidden":false,"merged":[]}

{"sheet":"18-05-2018","index":131,"n_rows":13,"n_cols":18,"rows_kept":13,"cut":false,"hidden":false,"merged":[]}
[]
[]
[]
[]
[]
[null,null,null,null,null,null,null,"HUAWEI FUEL RETIREMENT FOR 18-05-2018 BY IKECHUKWU ROBERT E."]
[]
[null,"Date","Vehicle Number","Filling Station","Mileage","Type","Quantity","Amount per Litre","TRACKING REPORT LITRE","Variance","RATE","PURCHASE POINT","CONTRACT","NAME","PHONE NO","COMMENT","VEHICLE MAKE"]
[null,"16/5/2018","AAA 188 XL","TOCEAN OIL",236429,"PETROL",20,145,10,10,3000,"OWERRI","HUAWEI","AHUNONU CHIGOZIE  LEONARD",8033255989,"TRACKER DEVICE WEAK (OLD)","MITS.L200 PICK/UP","DRIVERS ATM CARD NOT READY, MONEY PAID INTO FME'S ACCOUNT (ISAAC IKYOKOR)"]
[null,"17/5/2019","AAA 188 XL","TOCEAN OIL",236492,"PETROL",14,145,"NOT CAPTURED",0,2000,"OWERRI","HUAWEI","AHUNONU CHIGOZIE  LEONARD",8033255990,"TRACKER DEVICE WEAK (OLD)","MITS.L200 PICK/UP"]
[null,"18/5/2020","AAA 188 XL","TOCEAN OIL",236612,"PETROL",20,145,11,9,3000,"OWERRI","HUAWEI","AHUNONU CHIGOZIE  LEONARD",8033255991,"TRACKER DEVICE WEAK (OLD)","MITS.L200 PICK/UP","DRIVERS ATM CARD NOT READY, MONEY PAID INTO FME'S ACCOUNT (ISAAC IKYOKOR)"]
[null,"18/5/2021","AAA 188 XL","TOCEAN OIL",236696,"PETROL",14,145,11,3,2000,"OWERRI","HUAWEI","AHUNONU CHIGOZIE  LEONARD",8033255992,"TRACKER DEVICE WEAK (OLD)","MITS.L200 PICK/UP"]
[null,null,null,null,null," ",null,null,null,null,10000]

{"sheet":" 21-05-2018","index":132,"n_rows":11,"n_cols":17,"rows_kept":11,"cut":false,"hidden":false,"merged":[]}
[]
[]
[]
[]
[null,null,null,null,null,null,null,"HUAWEI FUEL RETIREMENT FOR 21-05-2018 BY IKECHUKWU ROBERT E."]
[]
[null,"Date","Vehicle Number","Filling Station","Mileage","Type","Quantity","Amount per Litre","TRACKING REPORT LITRE","Variance","RATE","PURCHASE POINT","CONTRACT","NAME","PHONE NO","COMMENT","VEHICLE MAKE"]
[null,"20/5/2019","AAA 188 XL","FORTE OIL",236903,"PETROL",14,145,14.5,0.5,2000,"PHC","HUAWEI","AHUNONU CHIGOZIE  LEONARD",8033255990," ","MITS.L200 PICK/UP"]
[null,"20/5/2020","AAA 188 XL","EARTHWELL",237080,"PETROL",14,145,20,6,2000,"OYIGBO","HUAWEI","AHUNONU CHIGOZIE  LEONARD",8033255991," ","MITS.L200 PICK/UP"]
[null,"20/5/2021","AAA 188 XL","FORTE OIL",237088,"PETROL",14,145,19,5,2000,"OYIGBO","HUAWEI","AHUNONU CHIGOZIE  LEONARD",8033255992," ","MITS.L200 PICK/UP"]
[null,null,null,null,null," ",null,null,null,null,6000]

{"sheet":"22-05-2018","index":133,"n_rows":12,"n_cols":17,"rows_kept":12,"cut":false,"hidden":false,"merged":[]}
[]
[]
[]
[]
[]
[null,null,null,null,null,null,null,"HUAWEI FUEL RETIREMENT FOR 22-05-2018 BY IKECHUKWU ROBERT E."]
[]
[null,"Date","Vehicle Number","Filling Station","Mileage","Type","Quantity","Amount per Litre","TRACKING REPORT LITRE","Variance","RATE","PURCHASE POINT","CONTRACT","NAME","PHONE NO","COMMENT","VEHICLE MAKE"]
[null,"21/5/2019","AAA 188 XL","FORTE OIL",237259,"PETROL",28,145," NOT CAPTURED",28,4000,"ORLU","HUAWEI","AHUNONU CHIGOZIE  LEONARD",8033255990,"NEW DEVICE UPDATING","MITS.L200 PICK/UP"]
[null,"22/5/2020","LND 565 XM","ANSELEM PET",166890,"PETROL",28,145,10,18,4000,"OWERRI","HUAWEI","SUUNDAY OGUNNIAKE",8035263692," ","MITS.L200 PICK/UP"]
[null,"22/5/2018 ","AAA 188 XL","TOCEAN OIL",237559,"PETROL",28,145,25,3,4000,"ORLU","HUAWEI","AHUNONU CHIGOZIE  LEONARD",8033255990," ","MITS.L200 PICK/UP"]
[null,null,null,null,null," ",null,null,null,null,12000]

{"sheet":"24-05-2018","index":134,"n_rows":11,"n_cols":17,"rows_kept":11,"cut":false,"hidden":false,"merged":[]}
[]
[]
[]
[]
[null,null,null,null,null,null,null,"HUAWEI FUEL RETIREMENT FOR 24-05-2018 BY IKECHUKWU ROBERT E."]
[]
[null,"Date","Vehicle Number","Filling Station","Mileage","Type","Quantity","Amount per Litre","TRACKING REPORT LITRE","Variance","RATE","PURCHASE POINT","CONTRACT","NAME","PHONE NO","COMMENT","VEHICLE MAKE"]
[null,"23/5/2019","AAA 188 XL","FORTE OIL",237654,"PETROL",28,145,21,7,4000,"ORLU","HUAWEI","AHUNONU CHIGOZIE  LEONARD",8033255990," ","MITS.L200 PICK/UP"]
[null,"24/5/2020","AAA 188 XL","FORTE OIL",237869,"PETROL",28,145,30,2,4000,"ORLU","HUAWEI","AHUNONU CHIGOZIE  LEONARD",8033255991," ","MITS.L200 PICK/UP"]
[null," "," "," "," "," "," "," "," "," "," "," "," "," "," "," "," "]
[null,null,null,null,null," ",null,null,null,null,8000]

{"sheet":" 27-05-2018","index":135,"n_rows":10,"n_cols":17,"rows_kept":10,"cut":false,"hidden":false,"merged":[]}
[]
[]
[]
[]
[null,null,null,null,null,null,null,"HUAWEI FUEL RETIREMENT FOR 27-05-2018 BY IKECHUKWU ROBERT E."]
[]
[null,"Date","Vehicle Number","Filling Station","Mileage","Type","Quantity","Amount per Litre","TRACKING REPORT LITRE","Variance","RATE","PURCHASE POINT","CONTRACT","NAME","PHONE NO","COMMENT","VEHICLE MAKE"]
[null,"26/5/2019","AAA 188 XL","PEVAEN  ",237923,"PETROL",28,145,17,11,4000,"ORLU","HUAWEI","AHUNONU CHIGOZIE  LEONARD",8033255990,"Deduct N1,595.00 From driver.","MITS.L200 PICK/UP"]
[null," "," "," "," "," "," "," "," "," "," "," "," "," "," "," "," "]
[null,null,null,null,null," ",null,null,null,null,4000]

{"sheet":" 30-05-2018","index":136,"n_rows":12,"n_cols":17,"rows_kept":12,"cut":false,"hidden":false,"merged":[]}
[]
[]
[]
[]
[null,null,null,null,null,null,null,"HUAWEI FUEL RETIREMENT FOR 30-05-2018 BY IKECHUKWU ROBERT E."]
[]
[null,"Date","Vehicle Number","Filling Station","Mileage","Type","Quantity","Amount per Litre","TRACKING REPORT LITRE","Variance","RATE","PURCHASE POINT","CONTRACT","NAME","PHONE NO","COMMENT","VEHICLE MAKE"]
[null,"28/5/2019","AAA 188 XL","PEVAEN  ",237978,"PETROL",28,145,24.5,3.5,4000,"ORLU","HUAWEI","AHUNONU CHIGOZIE  LEONARD",8033255990," ","MITS.L200 PICK/UP"]
[null,"29/5/2019","LND 565 XM","FORTE OIL",168011,"PETROL",28,145,"NOT CAPTURED",28,4000,"PHC","HUAWEI","SUUNDAY OGUNNIAKE",8035263691," ","MITS.L200 PICK/UP"]
[null,"30/5/2019","AAA 188 XL","PEVAEN  ",238111,"PETROL",28,145,16,12,4000,"ORLU","HUAWEI","AHUNONU CHIGOZIE  LEONARD",8033255990,"Deduct N1,740.00 From driver.","MITS.L200 PICK/UP"]
[null,"30/5/2019","LND 565 XM","FORTE OIL",168289,"PETROL",28,145,"NOT CAPTURED",28,4000,"PHC","HUAWEI","SUUNDAY OGUNNIAKE",8035263691," ","MITS.L200 PICK/UP"]
[null,null,null,null,null," ",null,null,null,null,16000]

{"sheet":"01-06-2018","index":137,"n_rows":13,"n_cols":19,"rows_kept":13,"cut":false,"hidden":false,"merged":[]}
[]
[]
[]
[]
[]
[null,null,null,null,null,null,null,null,"HUAWEI FUEL RETIREMENT FOR 01-06-2018 BY IKECHUKWU ROBERT E."]
[]
[null,null,"    Date","Vehicle Number","Filling Station","  Mileage","     Type","Quantity","Amount per Litre","TRACKING REPORT LITRE","Variance","            RATE","PURCHASE POINT","CONTRACT","   NAME","PHONE NO","COMMENT","VEHICLE MAKE"]
[null,null,"31/5/2018","AAA 188 XL","PEVAEN  ",238298,"PETROL",28,145,24,4,4000,"ORLU","HUAWEI","AHUNONU CHIGOZIE  LEONARD",8033255990," ","MITS.L200 PICK/UP"]
[null,null,"31/5/2018","LND 565 XM","FORTE OIL",168409,"PETROL",28,145,"NOT CAPTURED",0,4000,"PHC","HUAWEI","SUUNDAY OGUNNIAKE",8035263691," ","MITS.L200 PICK/UP"]
[null,null,"31/5/2018","AAA 258 XQ","PICO",186956,"PETROL",28,145,"NOT CAPTURED",0,4000,"OWERRI","HUAWEI","CHRISTIAN IROEGBULAM ",7064593150," ","MITS.L200 PICK/UP"]
[null,null,"2018-01-06","AAA 188 XL","PEVAEN  ",238459,"PETROL",28,145,24,4,4000,"ORLU","HUAWEI","AHUNONU CHIGOZIE  LEONARD",8033255990," ","MITS.L200 PICK/UP"," "]
[null,null,null,null,null,null," ",null,null,null,null,16000]

{"sheet":"04-06-2018","index":138,"n_rows":11,"n_cols":18,"rows_kept":11,"cut":false,"hidden":false,"merged":[]}
[]
[]
[]
[]
[null,null,null,null,null,null,null,"HUAWEI FUEL RETIREMENT FOR 04-06-2018 BY IKECHUKWU ROBERT E."]
[]
[null,"    Date","Vehicle Number","Filling Station","  Mileage","     Type","Quantity","Amount per Litre","TRACKING REPORT LITRE","Variance","            RATE","PURCHASE POINT","CONTRACT","   NAME","PHONE NO","COMMENT","VEHICLE MAKE"]
[null,"2018-02-06","AAA 188 XL","C.C. CHUKWU",238599,"PETROL",28,145,22.5,5.5,4000,"ORLU","HUAWEI","AHUNONU CHIGOZIE  LEONARD",8033255990," ","MITS.L200 PICK/UP"]
[null,"2018-04-06","AAA 188 XL","PEVAEN  ",238744,"PETROL",28,145,24,4,4000,"ORLU","HUAWEI","AHUNONU CHIGOZIE  LEONARD",8033255990," ","MITS.L200 PICK/UP"," "]
[null,"2018-04-06","LND 565 XM","FORTE OIL",169121,"PETROL",28,145,12,16,4000,"PHC","HUAWEI","SUUNDAY OGUNNIAKE",8035263691," ","MITS.L200 PICK/UP"]
[null,null,null,null,null," ",null,null,null,null,12000]

{"sheet":"05-06-2018","index":139,"n_rows":9,"n_cols":18,"rows_kept":9,"cut":false,"hidden":false,"merged":[]}
[]
[]
[null,null,null,null,null,null,null,"HUAWEI FUEL RETIREMENT FOR 05-06-2018 BY IKECHUKWU ROBERT E."]
[]
[null,"    Date","Vehicle Number","Filling Station","  Mileage","     Type","Quantity","Amount per Litre","TRACKING REPORT LITRE","Variance","            RATE","PURCHASE POINT","CONTRACT","   NAME","PHONE NO","COMMENT","VEHICLE MAKE"]
[null,"2018-05-06","KMC 44 XA","NGOZI PET",217908,"PETROL",14,145,13.5,0.5,2000,"UMUAHIA","HUAWEI","SANNI WILLIAMS",8166130748," ","MITS.L200 PICK/UP"]
[null,"2018-05-06","KMC 44 XA","FORTE OIL",218106,"PETROL",20,145,14,6,3000,"UMUAHIA","HUAWEI","SANNI WILLIAMS",8166130748," ","MITS.L200 PICK/UP"," "]
[null,"2018-05-06","AAA 258 XQ","ANSELEM PET",169512,"PETROL",28,145,12,16,4000,"OWERRI","HUAWEI","CHRISTIAN IROEGBULAM ",7064593150," ","MITS.L200 PICK/UP"]
[null,null,null,null,null," ",null,null,null,null,9000]

{"sheet":"06-06-2018","index":140,"n_rows":8,"n_cols":17,"rows_kept":8,"cut":false,"hidden":false,"merged":[]}
[]
[]
[]
[null,null,null,null,null,null,null,"HUAWEI FUEL RETIREMENT FOR 06-06-2018 BY IKECHUKWU ROBERT E."]
[]
[null,"    Date","Vehicle Number","Filling Station","  Mileage","     Type","Quantity","Amount per Litre","TRACKING REPORT LITRE","Variance","            RATE","PURCHASE POINT","CONTRACT","   NAME","PHONE NO","COMMENT","VEHICLE MAKE"]
[null,"2018-06-06","AAA 188 XL","DIKE CHRISTO PET",238856,"PETROL",28,145,16,12,4000,"ORLU","HUAWEI","AHUNONU CHIGOZIE  LEONARD",8033255990,"Deduct N1,740.00 From driver.","MITS.L200 PICK/UP"]
[null,null,null,null,null," ",null,null,null,null,4000]

{"sheet":"08-06-2018","index":141,"n_rows":10,"n_cols":17,"rows_kept":10,"cut":false,"hidden":false,"merged":[]}
[]
[]
[]
[]
[null,null,null,null,null,null,null,"HUAWEI FUEL RETIREMENT FOR 08-06-2018 BY IKECHUKWU ROBERT E."]
[]
[null,"    Date","Vehicle Number","Filling Station","  Mileage","     Type","Quantity","Amount per Litre","TRACKING REPORT LITRE","Variance","            RATE","PURCHASE POINT","CONTRACT","   NAME","PHONE NO","COMMENT","VEHICLE MAKE"]
[null,"2018-06-06","KMC 44 XA","FORTE OIL",218136,"PETROL",34,145,27,7,5000,"UMUAHIA","HUAWEI","SANNI WILLIAMS",8166130748," ","TOYOTA HILUX"]
[null,"2018-08-06","AAA 188 XL","DIKE CHRISTO PET",239015,"PETROL",34,145,18,16,5000,"ORLU","HUAWEI","AHUNONU CHIGOZIE  LEONARD",8033255990,"Deduct N2,320.00 From driver.","MITS.L200 PICK/UP"]
[null,null,null,null,null," ",null,null,null,null,10000]

{"sheet":"11-06-2018","index":142,"n_rows":12,"n_cols":17,"rows_kept":12,"cut":false,"hidden":false,"merged":[]}
[]
[]
[]
[]
[null,null,null,null,null,null,null,"HUAWEI FUEL RETIREMENT FOR 11-06-2018 BY IKECHUKWU ROBERT E."]
[]
[null,"    Date","Vehicle Number","Filling Station","  Mileage","     Type","Quantity","Amount per Litre","TRACKING REPORT LITRE","Variance","            RATE","PURCHASE POINT","CONTRACT","   NAME","PHONE NO","COMMENT","VEHICLE MAKE"]
[null,"2018-10-06","AAA 258 XQ","ANSELEM PET",170362,"PETROL",14,145,8,6,2000,"OWERRI","HUAWEI","CHRISTIAN IROEGBULAM ",7064593150," ","MITS.L200 PICK/UP"]
[null,"2018-10-06","AAA 258 XQ","ANSELEM PET",170488,"PETROL",14,145,14,0,2000,"OWERRI","HUAWEI","CHRISTIAN IROEGBULAM ",7064593151," ","MITS.L200 PICK/UP"]
[null,"2018-10-06","LND 565 XM","FORTE OIL",169854,"PETROL",28,145,19.5,8.5,4000,"PHC","HUAWEI","SUUNDAY OGUNNIAKE",8035263691," ","MITS.L200 PICK/UP"]
[null,"2018-11-06","AAA 188 XL","DIKE CHRISTO PET",239217,"PETROL",28,145,23,5,4000,"ORLU","HUAWEI","AHUNONU CHIGOZIE  LEONARD",8033255990," ","MITS.L200 PICK/UP"]
[null,null,null,null,null," ",null,null,null,null,12000]

{"sheet":"12-06-2018","index":143,"n_rows":12,"n_cols":18,"rows_kept":12,"cut":false,"hidden":false,"merged":[]}
[]
[]
[]
[null,null,null,null,null,null,null,null,"HUAWEI FUEL RETIREMENT FOR 12-06-2018 BY IKECHUKWU ROBERT E."]
[]
[null,null,"    Date","Vehicle Number","Filling Station","  Mileage","     Type","Quantity","Amount per Litre","TRACKING REPORT LITRE","Variance","            RATE","PURCHASE POINT","CONTRACT","   NAME","PHONE NO","COMMENT","VEHICLE MAKE"]
[null,null,"2018-11-06","KMC 44 XA","FORTE OIL",219176,"PETROL",34,145,23,11,5000,"UMUAHIA","HUAWEI","SANNI WILLIAMS",8166130748,"Deduct N1,595.00 From driver.","TOYOTA HILUX"]
[null,null,"2018-12-06","AAA 258 XQ","EBERERICH",170639,"PETROL",28,145,12,14,4000,"OWERRI","HUAWEI","CHRISTIAN IROEGBULAM ",7064593151,"Deduct N2,030.00 From driver.","MITS.L200 PICK/UP"]
[null,null,"2018-12-06","AAA 188 XL","PREDEV",239303,"PETROL",14,145,19,5,2000,"ORLU","HUAWEI","AHUNONU CHIGOZIE  LEONARD",8033255990," ","MITS.L200 PICK/UP"]
[null,null,"2018-12-06","AAA 188 XL","PREDEV",239316,"PETROL",14,145,13,1,2000,"ORLU","HUAWEI","AHUNONU CHIGOZIE  LEONARD",8033255990," ","MITS.L200 PICK/UP"]
[null,null,"2018-12-06","KMC 44 XA","FORTE OIL",219391,"PETROL",28,145,26,2,4000,"UMUAHIA","HUAWEI","SANNI WILLIAMS",8166130748," ","TOYOTA HILUX"]
[null,null,null,null,null,null," ",null,null,null,null,17000]

{"sheet":"15-06-2018","index":144,"n_rows":11,"n_cols":17,"rows_kept":11,"cut":false,"hidden":false,"merged":[]}
[]
[]
[]
[]
[null,null,null,null,null,null,null,"HUAWEI FUEL RETIREMENT FOR 15-06-2018 BY IKECHUKWU ROBERT E."]
[]
[null,"    Date","Vehicle Number","Filling Station","  Mileage","     Type","Quantity","Amount per Litre","TRACKING REPORT LITRE","Variance","            RATE","PURCHASE POINT","CONTRACT","   NAME","PHONE NO","COMMENT","VEHICLE MAKE"]
[null,"2018-12-06","LND 565 XM","FORTE OIL",170078,"PETROL",28,145,8,20,4000,"PHC","HUAWEI","SUUNDAY OGUNNIAKE",8035263691,"FAULTY TRACKER DEVICE WILL BE RECTIFIED BY CHARLES ON 17-6-2018","MITS.L200 PICK/UP"]
[null,"13/6/2018","AAA 188 XL","PREDEV",239377,"PETROL",28,145,17,11,4000,"ORLU","HUAWEI","AHUNONU CHIGOZIE  LEONARD",8033255990," ","MITS.L200 PICK/UP"]
[null,"14/6/2018","AAA 188 XL","PREDEV",239520,"PETROL",28,145,15,13,4000,"ORLU","HUAWEI","AHUNONU CHIGOZIE  LEONARD",8033255991," ","MITS.L200 PICK/UP"]
[null,null,null,null,null," ",null,null,null,null,12000]

{"sheet":"19-06-2018","index":145,"n_rows":13,"n_cols":18,"rows_kept":13,"cut":false,"hidden":false,"merged":[]}
[]
[]
[]
[]
[null,null,null,null,null,null,null,null,"HUAWEI FUEL RETIREMENT FOR 19-06-2018 BY IKECHUKWU ROBERT E."]
[]
[null,null,"    Date","Vehicle Number","Filling Station","  Mileage","     Type","Quantity","Amount per Litre","TRACKING REPORT LITRE","Variance","            RATE","PURCHASE POINT","CONTRACT","   NAME","PHONE NO","COMMENT","VEHICLE MAKE"]
[null,null,"16/6/2018","AAA 188 XL","PREDEV",239631,"PETROL",20,145,20,0,3000,"ORLU","HUAWEI","AHUNONU CHIGOZIE  LEONARD",8033255990," ","MITS.L200 PICK/UP"]
[null,null,"17/6/2018","AAA 188 XL","PREDEV",239667,"PETROL",7,145,10,3,1000,"ORLU","HUAWEI","AHUNONU CHIGOZIE  LEONARD",8033255991," ","MITS.L200 PICK/UP"]
[null,null,"19/6/2018","LND 565 XM","FORTE OIL",170932,"PETROL",28,145," "," ",4000,"PHC","HUAWEI","SUUNDAY OGUNNIAKE",8035263691,"FAULTY TRACKER DEVICE WILL BE RECTIFIED BY CHARLES ON 17-6-2018","MITS.L200 PICK/UP"]
[null,null,"2018-11-06","KMC 44 XA","FORTE OIL",220841,"PETROL",34,145,40,6,5000,"UMUAHIA","HUAWEI","SANNI WILLIAMS",8166130748,null,"TOYOTA HILUX"]
[null,null,"2018-12-06","AAA 258 XQ","SUNNY PET",171685,"PETROL",28,145," "," ",4000,"OWERRI","HUAWEI","CHRISTIAN IROEGBULAM ",7064593151,"Deduct N2,030.00 From driver.","MITS.L200 PICK/UP"]
[null,null,null,null,null,null," ",null,null,null,null,17000]

{"sheet":"20-06-2018","index":146,"n_rows":16,"n_cols":17,"rows_kept":16,"cut":false,"hidden":false,"merged":[]}
[]
[]
[]
[]
[]
[]
[null,null,null,null,null,null,null,"HUAWEI FUEL RETIREMENT FOR 20-06-2018 BY IKECHUKWU ROBERT E."]
[]
[null,"    Date","Vehicle Number","Filling Station","  Mileage","     Type","Quantity","Amount per Litre","TRACKING REPORT LITRE","Variance","            RATE","PURCHASE POINT","CONTRACT","   NAME","PHONE NO","COMMENT","VEHICLE MAKE"]
[null,"19/6/2018","AAA 188 XL","PREDEV",239671,"PETROL",14,145,15,1,2000,"ORLU","HUAWEI","AHUNONU CHIGOZIE  LEONARD",8033255990,null,"MITS.L200 PICK/UP"]
[null,"20/6/2019","AAA 188 XL","PREDEV",239672,"PETROL",14,145,8,6,2000,"ORLU","HUAWEI","AHUNONU CHIGOZIE  LEONARD",8033255991,null,"MITS.L200 PICK/UP"]
[null,"20/6/2018","LND 565 XM","FORTE OIL",171090,"PETROL",28,145,"NOT CAPTURED",0,4000,"PHC","HUAWEI","SUUNDAY OGUNNIAKE",8035263691,"FAULTY TRACKER DEVICE WILL BE RECTIFIED BY CHARLES ON 17-6-2018","MITS.L200 PICK/UP"]
[null,"20/6/2018","KMC 44 XA","NGOZI PET",221051,"PETROL",34,145,29.5,4.5,5000,"UMUAHIA","HUAWEI","SANNI WILLIAMS",8166130748,null,"TOYOTA HILUX"]
[null,"20/6/2018","AAA 258 XQ","SUNNY PET",171785,"PETROL",14,145,8,6,2000,"OWERRI","HUAWEI","CHRISTIAN IROEGBULAM ",7064593151,null,"MITS.L200 PICK/UP"]
[null,"20/6/2018","AAA 258 XQ","SUNNY PET",171796,"PETROL",14,145,14,0,2000,"OWERRI","HUAWEI","CHRISTIAN IROEGBULAM ",7064593152,null,"MITS.L200 PICK/UP"]
[null,null,null,null,null," ",null,null,null,null,17000]

{"sheet":"21-06-2018","index":147,"n_rows":11,"n_cols":17,"rows_kept":11,"cut":false,"hidden":false,"merged":[]}
[]
[]
[]
[]
[]
[null,null,null,null,null,null,null,"HUAWEI FUEL RETIREMENT FOR 21-06-2018 BY IKECHUKWU ROBERT E."]
[]
[null,"    Date","Vehicle Number","Filling Station","  Mileage","     Type","Quantity","Amount per Litre","TRACKING REPORT LITRE","Variance","            RATE","PURCHASE POINT","CONTRACT","   NAME","PHONE NO","COMMENT","VEHICLE MAKE"]
[null,"21/6/2018","AAA 188 XL","PREDEV",239753,"PETROL",14,145,3,11,2000,"ORLU","HUAWEI","AHUNONU CHIGOZIE  LEONARD",8033255990,"Deduct N1,595.00.00 From driver.","MITS.L200 PICK/UP"]
[null,"21/6/2018","AAA 188 XL","PREDEV",239802,"PETROL",14,145,11,3,2000,"ORLU","HUAWEI","AHUNONU CHIGOZIE  LEONARD",8033255991,null,"MITS.L200 PICK/UP"]
[null,null,null,null,null," ",null,null,null,null,4000]

{"sheet":"22-06-2018","index":148,"n_rows":11,"n_cols":17,"rows_kept":11,"cut":false,"hidden":false,"merged":[]}
[]
[]
[]
[]
[null,null,null,null,null,null,null,"HUAWEI FUEL RETIREMENT FOR 22-06-2018 BY IKECHUKWU ROBERT E."]
[]
[null,"    Date","Vehicle Number","Filling Station","  Mileage","     Type","Quantity","Amount per Litre","TRACKING REPORT LITRE","Variance","            RATE","PURCHASE POINT","CONTRACT","   NAME","PHONE NO","COMMENT","VEHICLE MAKE"]
[null,"21/6/2018","AAA 258 XQ","SUNNY PET",171864,"PETROL",14,145,11,3,2000,"OWERRI","HUAWEI","CHRISTIAN IROEGBULAM ",7064593151,null,"MITS.L200 PICK/UP"]
[null,"22/6/2018","AAA 188 XL","PREDEV",239809,"PETROL",28,145,21.5,3,4000,"ORLU","HUAWEI","AHUNONU CHIGOZIE  LEONARD",8033255991,null,"MITS.L200 PICK/UP"]
[]
[null,null,null,null,null," ",null,null,null,null,6000]

{"sheet":"26-06-2018","index":149,"n_rows":11,"n_cols":17,"rows_kept":11,"cut":false,"hidden":false,"merged":[]}
[]
[]
[]
[]
[]
[null,null,null,null,null,null,null,"HUAWEI FUEL RETIREMENT FOR 26-06-2018 BY IKECHUKWU ROBERT E."]
[]
[null,"    Date","Vehicle Number","Filling Station","  Mileage","     Type","Quantity","Amount per Litre","TRACKING REPORT LITRE","Variance","            RATE","PURCHASE POINT","CONTRACT","   NAME","PHONE NO","COMMENT","VEHICLE MAKE"]
[null,"25/6/2018","AAA 188 XL","PREDEV",239982,"PETROL",14,145,13,1,2000,"ORLU","HUAWEI","AHUNONU CHIGOZIE  LEONARD",8033255991,null,"MITS.L200 PICK/UP"]
[null,"26/6/2018","AAA 188 XL","PREDEV",240063,"PETROL",14,145,9,5,2000,"ORLU","HUAWEI","AHUNONU CHIGOZIE  LEONARD",8033255992,null,"MITS.L200 PICK/UP"]
[null,null,null,null,null," ",null,null,null,null,4000]

{"sheet":" 27-06-2018","index":150,"n_rows":10,"n_cols":18,"rows_kept":10,"cut":false,"hidden":false,"merged":[]}
[]
[]
[]
[]
[null,null,null,null,null,null,null,null,"HUAWEI FUEL RETIREMENT FOR 27-06-2018 BY IKECHUKWU ROBERT E."]
[]
[null,null,"    Date","Vehicle Number","Filling Station","  Mileage","     Type","Quantity","Amount per Litre","TRACKING REPORT LITRE","Variance","            RATE","PURCHASE POINT","CONTRACT","   NAME","PHONE NO","COMMENT","VEHICLE MAKE"]
[null,null,"26/6/2018","AAA 188 XL","PREDEV",240108,"PETROL",14,145,11,3,2000,"ORLU","HUAWEI","AHUNONU CHIGOZIE  LEONARD",8033255991,null,"MITS.L200 PICK/UP"]
[null,null,"27/6/2018","AAA 188 XL","PREDEV",240147,"PETROL",14,145,16,2,2000,"ORLU","HUAWEI","AHUNONU CHIGOZIE  LEONARD",8033255992,null,"MITS.L200 PICK/UP"]
[null,null,null,null,null,null," ",null,null,null,null,4000]

{"sheet":"29-06-2018","index":151,"n_rows":10,"n_cols":17,"rows_kept":10,"cut":false,"hidden":false,"merged":[]}
[]
[]
[]
[]
[null,null,null,null,null,null,null,"HUAWEI FUEL RETIREMENT FOR 29-06-2018 BY IKECHUKWU ROBERT E."]
[]
[null,"    Date","Vehicle Number","Filling Station","  Mileage","     Type","Quantity","Amount per Litre","TRACKING REPORT LITRE","Variance","            RATE","PURCHASE POINT","CONTRACT","   NAME","PHONE NO","COMMENT","VEHICLE MAKE"]
[null,"28/6/2018","AAA 188 XL","G-TORIA",240296,"PETROL",28,145,16,12,4000,"ORLU","HUAWEI","AHUNONU CHIGOZIE  LEONARD",8033255991,null,"MITS.L200 PICK/UP"]
[null,"29/6/2018","AAA 188 XL","PREDEV",240403,"PETROL",34,145,10,24,5000,"ORLU","HUAWEI","AHUNONU CHIGOZIE  LEONARD",8033255992,"Deduct N3,480.00.00 From driver.","MITS.L200 PICK/UP"]
[null,null,null,null,null," ",null,null,null,null,9000]

{"sheet":"02-07-2018","index":152,"n_rows":10,"n_cols":17,"rows_kept":10,"cut":false,"hidden":false,"merged":[]}
[]
[]
[]
[]
[null,null,null,null,null,null,null,"HUAWEI FUEL RETIREMENT FOR 02-07-2018 BY IKECHUKWU ROBERT E."]
[]
[null,"    Date","Vehicle Number","Filling Station","  Mileage","     Type","Quantity","Amount per Litre","TRACKING REPORT LITRE","Variance","            RATE","PURCHASE POINT","CONTRACT","   NAME","PHONE NO","COMMENT","VEHICLE MAKE"]
[null,"2018-02-07","AAA 188 XL","RADIJOE",240516,"PETROL",28,145,16,11,4000,"ORLU","HUAWEI","AHUNONU CHIGOZIE  LEONARD",8033255991,null,"MITS.L200 PICK/UP"]
[]
[null,null,null,null,null," ",null,null,null,null,4000]

{"sheet":"03-07-2018","index":153,"n_rows":13,"n_cols":17,"rows_kept":13,"cut":false,"hidden":false,"merged":[]}
[]
[]
[]
[]
[]
[null,null,null,null,null,null,null,"HUAWEI FUEL RETIREMENT FOR 03-07-2018 BY IKECHUKWU ROBERT E."]
[]
[null,"    Date","Vehicle Number","Filling Station","  Mileage","     Type","Quantity","Amount per Litre","TRACKING REPORT LITRE","Variance","            RATE","PURCHASE POINT","CONTRACT","   NAME","PHONE NO","COMMENT","VEHICLE MAKE"]
[null,"2018-02-07","LND 565 XM","FORTE OIL",172536,"PETROL",20,145,0,20,3000,"PHC","HUAWEI","SUUNDAY OGUNNIAKE",8035263691,"NOT CAPTURED ","MITS.L200 PICK/UP"]
[null,"2018-03-07","LND 565 XM","FORTE OIL",172746,"PETROL",28,145,0,28,4000,"PHC","HUAWEI","SUUNDAY OGUNNIAKE",8035263691,"NOT CAPTURED ","MITS.L200 PICK/UP"]
[null,"2018-03-07","AAA 188 XL","RADIJOE",240630,"PETROL",34,145,16,11,5000,"ORLU","HUAWEI","AHUNONU CHIGOZIE  LEONARD",8033255991,null,"MITS.L200 PICK/UP"]
[]
[null,null,null,null,null," ",null,null,null,null,12000]

{"sheet":"05-07-2018","index":154,"n_rows":11,"n_cols":17,"rows_kept":11,"cut":false,"hidden":false,"merged":[]}
[]
[]
[]
[]
[null,null,null,null,null,null,null,"HUAWEI FUEL RETIREMENT FOR 05-07-2018 BY IKECHUKWU ROBERT E."]
[]
[null,"    Date","Vehicle Number","Filling Station","  Mileage","     Type","Quantity","Amount per Litre","TRACKING REPORT LITRE","Variance","            RATE","PURCHASE POINT","CONTRACT","   NAME","PHONE NO","COMMENT","VEHICLE MAKE"]
[null,"2018-04-07","KMC 44 XA","NGOZI PET",222682,"PETROL",34,145,28,6,5000,"PHC","HUAWEI","SUUNDAY OGUNNIAKE",8035263691," ","MITS.L200 PICK/UP"]
[null,"2018-05-07","AAA 188 XL","CHIEMEZIE OIL & GAS",240718,"PETROL",20,145,18,2,3000,"ORLU","HUAWEI","AHUNONU CHIGOZIE  LEONARD",8033255991,null,"MITS.L200 PICK/UP"]
[null," "," "," "," "," "," "," "," "," "," "," "," "," "," "," "," "]
[null,null,null,null,null," ",null,null,null,null,8000]

{"sheet":"06-07-2018","index":155,"n_rows":9,"n_cols":17,"rows_kept":9,"cut":false,"hidden":false,"merged":[]}
[]
[]
[]
[null,null,null,null,null,null,null,"HUAWEI FUEL RETIREMENT FOR 06-07-2018 BY IKECHUKWU ROBERT E."]
[]
[null,"    Date","Vehicle Number","Filling Station","  Mileage","     Type","Quantity","Amount per Litre","TRACKING REPORT LITRE","Variance","            RATE","PURCHASE POINT","CONTRACT","   NAME","PHONE NO","COMMENT","VEHICLE MAKE"]
[null,"2018-06-07","AAA 188 XL","CHIEMEZIE OIL & GAS",240857,"PETROL",34,145,18,16,5000,"ORLU","HUAWEI","AHUNONU CHIGOZIE  LEONARD",8033255991,"Kindly deduct N2,320.00 From the driver.","MITS.L200 PICK/UP"]
[null," "," "," "," "," "," "," "," "," "," "," "," "," "," "," "," "]
[null,null,null,null,null," ",null,null,null,null,5000]

{"sheet":"09-07-2018","index":156,"n_rows":12,"n_cols":17,"rows_kept":12,"cut":false,"hidden":false,"merged":[]}
[]
[]
[]
[]
[null,null,null,null,null,null,null,"HUAWEI FUEL RETIREMENT FOR 09-07-2018 BY IKECHUKWU ROBERT E."]
[]
[null,"    Date","Vehicle Number","Filling Station","  Mileage","     Type","Quantity","Amount per Litre","TRACKING REPORT LITRE","Variance","            RATE","PURCHASE POINT","CONTRACT","   NAME","PHONE NO","COMMENT","VEHICLE MAKE"]
[null,"2018-08-07","AAA 188 XL","CHIEMEZIE OIL & GAS",240963,"PETROL",10,145,9,1,1500,"ORLU","HUAWEI","AHUNONU CHIGOZIE  LEONARD",8033255991," ","MITS.L200 PICK/UP"]
[null,"2018-08-07","AAA 188 XL","RADIJOE",241083,"PETROL",14,145,17,3,2000,"ORLU","HUAWEI","AHUNONU CHIGOZIE  LEONARD",8033255992," ","MITS.L200 PICK/UP"]
[null,"2018-09-07","AAA 188 XL","RADIJOE","2 41236","PETROL",28,145,11,16,4000,"ORLU","HUAWEI","AHUNONU CHIGOZIE  LEONARD",8033255993," ","MITS.L200 PICK/UP"]
[]
[null,null,null,null,null," ",null,null,null,null,7500]

{"sheet":"11-07-2018","index":157,"n_rows":15,"n_cols":17,"rows_kept":15,"cut":false,"hidden":false,"merged":[]}
[]
[]
[]
[]
[null,null,null,null,null,null,null,"HUAWEI FUEL RETIREMENT FOR  11-07-2018 BY IKECHUKWU ROBERT E."]
[]
[null,"    Date","Vehicle Number","Filling Station","  Mileage","     Type","Quantity","Amount per Litre","TRACKING REPORT LITRE","Variance","            RATE","PURCHASE POINT","CONTRACT","   NAME","PHONE NO","COMMENT","VEHICLE MAKE"]
[null,"2018-09-07","KMC 44 XA","NGOZI PET",223946,"PETROL",34,145,25,9,5000,"UMUAHIA","HUAWEI","SANNI WILLIAMS",8166130748," ","TOYOTA HILUX"]
[null,"2018-10-07","KMC 44 XA","NGOZI PET",224201,"PETROL",34,145,30,4,5000,"UMUAHIA","HUAWEI","SANNI WILLIAMS",8166130748," ","TOYOTA HILUX"]
[null,"2018-10-07","AAA 258 XQ","FORTE OIL",173994,"PETROL",24,145,22,2,3500,"OWERRI","HUAWEI","IDOWU ADENAYA ",8038730049,null,"MITS.L200 PICK/UP"]
[null,"2018-11-07","AAA 188 XL","RADIJOE","2 41334","PETROL",20,145,17,3,3000,"ORLU","HUAWEI","AHUNONU CHIGOZIE  LEONARD",8033255993," ","MITS.L200 PICK/UP"]
[null,null,null,null,null," ",null,null,null,null,16500]
[]
[]
[null,null,null,null," "]

{"sheet":"12-07-2018","index":158,"n_rows":10,"n_cols":17,"rows_kept":10,"cut":false,"hidden":false,"merged":[]}
[]
[]
[]
[]
[null,null,null,null,null,null,null,"HUAWEI FUEL RETIREMENT FOR  12-07-2018 BY IKECHUKWU ROBERT E."]
[]
[null,"    Date","Vehicle Number","Filling Station","  Mileage","     Type","Quantity","Amount per Litre","TRACKING REPORT LITRE","Variance","            RATE","PURCHASE POINT","CONTRACT","   NAME","PHONE NO","COMMENT","VEHICLE MAKE"]
[null,"2018-11-07","KMC 44 XA","NGOZI PET",224422,"PETROL",34,145,32,2,5000,"UMUAHIA","HUAWEI","SANNI WILLIAMS",8166130748," ","TOYOTA HILUX"]
[null,"2018-12-07","AAA 188 XL","RADIJOE","2 41508","PETROL",55,145,53,2,8000,"PHC","HUAWEI","OGAGA TAIRE 09037793331",8033255993," ","MITS.L200 PICK/UP"]
[null,null,null,null,null," ",null,null,null,null,13000]

{"sheet":"18-07-2018","index":159,"n_rows":19,"n_cols":17,"rows_kept":19,"cut":false,"hidden":false,"merged":[]}
[]
[]
[]
[]
[null,null,null,null,null,null,null,"HUAWEI FUEL RETIREMENT FOR  18-07-2018 BY IKECHUKWU ROBERT E."]
[]
[null,"    Date","Vehicle Number","Filling Station","  Mileage","     Type","Quantity","Amount per Litre","TRACKING REPORT LITRE","Variance","            RATE","PURCHASE POINT","CONTRACT","   NAME","PHONE NO","COMMENT","VEHICLE MAKE"]
[null,"17/7/2018","KMC 44 XA","FORTE OIL",225890,"PETROL",34,145,27,7,5000,"UMUAHIA","HUAWEI","SANNI WILLIAMS",8166130748,"Kindly surcharge N1,015.00 from drivers account.","TOYOTA HILUX"]
[null,"17/7/2018","KMC 44 XA","FORTE OIL",226106,"PETROL",34,145,33,2,5000,"UMUAHIA","HUAWEI","SANNI WILLIAMS",8166130748," ","TOYOTA HILUX"]
[null,"18/7/2018","AAA 258 XQ","PREDEV",174626,"PETROL",14,145,9,5,2000,"OWERRI","HUAWEI","IDOWU ADENAYA ",8038730049,null,"MITS.L200 PICK/UP"]
[null,"18/7/2018","AAA 258  XQ","PREDEV",174685,"PETROL",14,145,13,1,2000,"OWERRI","HUAWEI","IDOWU ADENAYA ",8038730050,null,"MITS.L200 PICK/UP"]
[]
[null,null,null,null,null," ",null,null,null,null,14000]
[]
[]
[]
[]
[]
[null,null,null,null,null,null,null,null,null," "]

{"sheet":"30-07-2018","index":160,"n_rows":12,"n_cols":18,"rows_kept":12,"cut":false,"hidden":false,"merged":[]}
[]
[]
[]
[]
[null,null,null,null,null,null,null,null,"HUAWEI FUEL RETIREMENT FOR  30-07-2018 BY IKECHUKWU ROBERT E."]
[]
[null,null,"    Date","Vehicle Number","Filling Station","  Mileage","     Type","Quantity","Amount per Litre","TRACKING REPORT LITRE","Variance","            RATE","PURCHASE POINT","CONTRACT","   NAME","PHONE NO","COMMENT","VEHICLE MAKE"]
[null,null,"29/7/2018","KMC 44 XA","FORTE OIL",227630,"PETROL",14,145,12,2,2000,"UMUAHIA","HUAWEI","SANNI WILLIAMS",8166130748,null,"TOYOTA HILUX"]
[null,null,"29/7/2018","KMC 44 XA","NGOZI PET",227732,"PETROL",20,145,14.5,5.5,3000,"UMUAHIA","HUAWEI","SANNI WILLIAMS",8166130748," ","TOYOTA HILUX"]
[null,null,"30/7/2018","KMC 44 XA","NGOZI PET",227895,"PETROL",34,145,25,9,5000,"UMUAHIA","HUAWEI","SANNI WILLIAMS",8166130748," ","TOYOTA HILUX"]
[]
[null,null,null,null,null,null," ",null,null,null,null,10000]

{"sheet":"01-08-2018","index":161,"n_rows":9,"n_cols":17,"rows_kept":9,"cut":false,"hidden":false,"merged":[]}
[]
[]
[]
[null,null,null,null,null,null,null,"HUAWEI FUEL RETIREMENT FOR  01-08-2018 BY IKECHUKWU ROBERT E."]
[]
[null,"    Date","Vehicle Number","Filling Station","  Mileage","     Type","Quantity","Amount per Litre","TRACKING REPORT LITRE","Variance","            RATE","PURCHASE POINT","CONTRACT","   NAME","PHONE NO","COMMENT","VEHICLE MAKE"]
[null,"2018-01-08","KMC 44 XA","NGOZI PET",228153,"PETROL",34,145,27,7,5000,"UMUAHIA","HUAWEI","SANNI WILLIAMS",8166130748," ","TOYOTA HILUX"]
[]
[null,null,null,null,null," ",null,null,null,null,5000]

{"sheet":"08-08-2018","index":162,"n_rows":9,"n_cols":17,"rows_kept":9,"cut":false,"hidden":false,"merged":[]}
[]
[]
[]
[null,null,null,null,null,null,null,"HUAWEI FUEL RETIREMENT FOR  08-08-2018 BY IKECHUKWU ROBERT E."]
[]
[null,"    Date","Vehicle Number","Filling Station","  Mileage","     Type","Quantity","Amount per Litre","TRACKING REPORT LITRE","Variance","            RATE","PURCHASE POINT","CONTRACT","   NAME","PHONE NO","COMMENT","VEHICLE MAKE"]
[null,"2018-08-08","KMC 44 XA","NGOZI PET",229418,"PETROL",34,145,28,6,5000,"UMUAHIA","HUAWEI","SANNI WILLIAMS",8166130748," ","TOYOTA HILUX"]
[]
[null,null,null,null,null," ",null,null,null,null,5000]

{"sheet":"11-08-2018","index":163,"n_rows":10,"n_cols":17,"rows_kept":10,"cut":false,"hidden":false,"merged":[]}
[]
[]
[]
[null,null,null,null,null,null,null,"HUAWEI FUEL RETIREMENT FOR  11-08-2018 BY IKECHUKWU ROBERT E."]
[]
[null,"    Date","Vehicle Number","Filling Station","  Mileage","     Type","Quantity","Amount per Litre","TRACKING REPORT LITRE","Variance","            RATE","PURCHASE POINT","CONTRACT","   NAME","PHONE NO","COMMENT","VEHICLE MAKE"]
[null,"2018-10-08","KMC 44 XA","NGOZI PET",230007,"PETROL",20,145,20,0,3000,"UMUAHIA","HUAWEI","SANNI WILLIAMS",8166130748," ","TOYOTA HILUX"]
[null,"2018-10-08","KMC 44 XA","NGOZI PET",230026,"PETROL",14,145,11,3,2000,"UMUAHIA","HUAWEI","SANNI WILLIAMS",8166130749," ","TOYOTA HILUX"]
[null,"2018-11-08","KMC 44 XA","NGOZI PET",230299,"PETROL",28,145,30,2,4000,"UMUAHIA","HUAWEI","SANNI WILLIAMS",8166130750," ","TOYOTA HILUX"]
[null,null,null,null,null," ",null,null,null,null,9000]

{"sheet":"20-09-2018","index":164,"n_rows":12,"n_cols":17,"rows_kept":12,"cut":false,"hidden":false,"merged":[]}
[]
[]
[]
[]
[]
[null,null,null,null,null,null,null,"HUAWEI FUEL RETIREMENT FOR  21-09-2018 BY IKECHUKWU ROBERT E."]
[]
[null,"    Date","Vehicle Number","Filling Station","  Mileage","     Type","Quantity","Amount per Litre","TRACKING REPORT LITRE","Variance","            RATE","PURCHASE POINT","CONTRACT","   NAME","PHONE NO","COMMENT","VEHICLE MAKE"]
[null,"19/9/2018","AAA 258 XQ","NUA FILLING STATION",177856,"PETROL",7,145,0,7,1000,"ABA ","HUAWEI","DENNIS OKEREKE ONEN","09062959262 & 07030256828","NOT CAPTURED ","MITS.L200"]
[null,"20/9/2018","AAA 258 XQ","FORTE OIL",177937,"PETROL",28,145,27,1,4000,"ABA ","HUAWEI","DENNIS OKEREKE ONEN","09062959262 & 07030256828"," ","MITS.L200"]
[null," "," "," "," "," "," "," "," "," "," "," "," "," "," "," "," "]
[null,null,null,null,null," ",null,null,null,null,5000]

{"sheet":"26-09-2018","index":165,"n_rows":9,"n_cols":17,"rows_kept":9,"cut":false,"hidden":false,"merged":[]}
[]
[]
[]
[]
[null,null,null,null,null,null,null,"HUAWEI FUEL RETIREMENT FOR  27-09-2018 BY IKECHUKWU ROBERT E."]
[]
[null,"    Date","Vehicle Number","Filling Station","  Mileage","     Type","Quantity","Amount per Litre","TRACKING REPORT LITRE","Variance","            RATE","PURCHASE POINT","CONTRACT","   NAME","PHONE NO","COMMENT","VEHICLE MAKE"]
[null,"26/9/2018","KMC 44 XA","NGOZI PET",234004,"PETROL",34,145,30.5," ",5000,"UMUAHIA","HUAWEI","SANNI WILLIAMS",8166130749," ","TOYOTA HILUX"]
[null,null,null,null,null," ",null,null,null,null,5000]

{"sheet":"6-10-2018","index":166,"n_rows":9,"n_cols":17,"rows_kept":9,"cut":false,"hidden":false,"merged":[]}
[]
[]
[]
[null,null,null,null,null,null,null,"HUAWEI FUEL RETIREMENT FOR  06-10-2018 BY IKECHUKWU ROBERT E."]
[]
[null,"    Date","Vehicle Number","Filling Station","  Mileage","     Type","Quantity","Amount per Litre","TRACKING REPORT LITRE","Variance","            RATE","PURCHASE POINT","CONTRACT","   NAME","PHONE NO","COMMENT","VEHICLE MAKE"]
[null,"2018-07-10","KMC 44 XA","NGOZI PET",235912,"PETROL",34,145,26,8,5000,"UMUAHIA","HUAWEI","SANNI WILLIAMS",8166130749," ","TOYOTA HILUX"]
[null,"2018-09-10","AAA 257 XQ","NUA FILLING STATION",199554,"PETROL",34,145,27.5,6.5,5000,"ABA","HUAWEI","OKEREKE DENNIS",9062959262," ","MITS.L200"]
[null,null,null,null,null," ",null,null,null,null,10000]

{"sheet":"11-10-2018","index":167,"n_rows":8,"n_cols":17,"rows_kept":8,"cut":false,"hidden":false,"merged":[]}
[]
[]
[]
[null,null,null,null,null,null,null,"HUAWEI FUEL RETIREMENT FOR  11-10-2018 BY IKECHUKWU ROBERT E."]
[]
[null,"    Date","Vehicle Number","Filling Station","  Mileage","     Type","Quantity","Amount per Litre","TRACKING REPORT LITRE","Variance","            RATE","PURCHASE POINT","CONTRACT","   NAME","PHONE NO","COMMENT","VEHICLE MAKE"]
[null,"2018-11-10","AAA 257 XQ","NUA FILLING STATION",199554,"PETROL",34,145,"NOT CAPTURED",0,5000,"ABA","HUAWEI","OKEREKE DENNIS",9062959262," ","MITS.L200"]
[null,null,null,null,null," ",null,null,null,null,5000]

{"sheet":"22-10-2018","index":168,"n_rows":10,"n_cols":17,"rows_kept":10,"cut":false,"hidden":false,"merged":[]}
[]
[]
[]
[]
[null,null,null,null,null,null,null,"HUAWEI FUEL RETIREMENT FOR  22-10-2018 BY IKECHUKWU ROBERT E."]
[]
[null,"    Date","Vehicle Number","Filling Station","  Mileage","     Type","Quantity","Amount per Litre","TRACKING REPORT LITRE","Variance","            RATE","PURCHASE POINT","CONTRACT","   NAME","PHONE NO","COMMENT","VEHICLE MAKE"]
[null,"21/10/2019","KRD 539 XF ","NGOZI PET",289432,"PETROL",34,145,17,17,5000,"UMUAHIA","HUAWEI","SANNI WILLIAMS",8166130750,"Kindly deduct 2,465.00 ","MITS.L200"]
[null,"22/10/2018","KRD 539 XF ","NGOZI PET",289607,"PETROL",34,145,37,3,5000,"UMUAHIA","HUAWEI","SANNI WILLIAMS",8166130749," ","MITS.L200"]
[null,null,null,null,null," ",null,null,null,null,10000]

{"sheet":"24-10-2018","index":169,"n_rows":10,"n_cols":17,"rows_kept":10,"cut":false,"hidden":false,"merged":[]}
[]
[]
[]
[]
[null,null,null,null,null,null,null,"HUAWEI FUEL RETIREMENT FOR  24-10-2018 BY IKECHUKWU ROBERT E."]
[]
[null,"    Date","Vehicle Number","Filling Station","  Mileage","     Type","Quantity","Amount per Litre","TRACKING REPORT LITRE","Variance","            RATE","PURCHASE POINT","CONTRACT","   NAME","PHONE NO","COMMENT","VEHICLE MAKE"]
[null,"23/10/2018","KRD 539 XF ","NGOZI PET",289817,"PETROL",34,145,31,3,5000,"UMUAHIA","HUAWEI","SANNI WILLIAMS",8166130749," ","MITS.L200"]
[null,"24/10/2018","KRD 539 XF ","NGOZI PET",289987,"PETROL",34,145,29,5,5000,"UMUAHIA","HUAWEI","SANNI WILLIAMS",8166130750," ","MITS.L201"]
[null,null,null,null,null," ",null,null,null,null,10000]

{"sheet":"2-11-2018","index":170,"n_rows":10,"n_cols":17,"rows_kept":10,"cut":false,"hidden":false,"merged":[]}
[]
[]
[]
[]
[]
[null,null,null,null,null,null,null,"HUAWEI FUEL RETIREMENT FOR  2-11-2018 BY IKECHUKWU ROBERT E."]
[]
[null,"    Date","Vehicle Number","Filling Station","  Mileage","     Type","Quantity","Amount per Litre","TRACKING REPORT LITRE","Variance","            RATE","PURCHASE POINT","CONTRACT","   NAME","PHONE NO","COMMENT","VEHICLE MAKE"]
[null,"2018-02-11","KRD 539 XF ","NGOZI PET",291078,"PETROL",34,145,31,3,5000,"UMUAHIA","HUAWEI","SANNI WILLIAMS",8166130750," ","MITS.L201"]
[null,null,null,null,null," ",null,null,null,null,5000]

{"sheet":"3-11-2018","index":171,"n_rows":10,"n_cols":17,"rows_kept":10,"cut":false,"hidden":false,"merged":[]}
[]
[]
[]
[]
[]
[null,null,null,null,null,null,null,"HUAWEI FUEL RETIREMENT FOR  3-11-2018 BY IKECHUKWU ROBERT E."]
[]
[null,"    Date","Vehicle Number","Filling Station","  Mileage","     Type","Quantity","Amount per Litre","TRACKING REPORT LITRE","Variance","            RATE","PURCHASE POINT","CONTRACT","   NAME","PHONE NO","COMMENT","VEHICLE MAKE"]
[null,"2018-03-11","KRD 539 XF ","NGOZI PET",291289,"PETROL",34,145,29,5,5000,"UMUAHIA","HUAWEI","SANNI WILLIAMS",8166130750," ","MITS.L201"]
[null,null,null,null,null," ",null,null,null,null,5000]

{"sheet":"06-11-2018","index":172,"n_rows":11,"n_cols":17,"rows_kept":11,"cut":false,"hidden":false,"merged":[]}
[]
[]
[]
[]
[null,null,null,null,null,null,null,"HUAWEI FUEL RETIREMENT FOR  06-11-2018 BY IKECHUKWU ROBERT E."]
[]
[null,"    Date","Vehicle Number","Filling Station","  Mileage","     Type","Quantity","Amount per Litre","TRACKING REPORT LITRE","Variance","            RATE","PURCHASE POINT","CONTRACT","   NAME","PHONE NO","COMMENT","VEHICLE MAKE"]
[null,"2018-06-11","XC 288 YRE","NUA FILLING STATION",226271,"PETROL",34,145,0,34,5000,"ABA ","HUAWEI","JULIAN ADADU",9062224682,"NOT CAPTURED ","MITS.L200"]
[null,"2018-06-11","AAA 258 XQ","FORTE OIL",183978,"PETROL",34,145,27.5,6.5,5000,"ABA ","HUAWEI","DENNIS OKEREKE ONEN","09062959262 & 07030256828"," ","MITS.L200"]
[null," "," "," "," "," "," "," "," "," "," "," "," "," "," "," "," "]
[null,null,null,null,null," ",null,null,null,null,10000]

{"sheet":"09-11-2018","index":173,"n_rows":13,"n_cols":17,"rows_kept":13,"cut":false,"hidden":false,"merged":[]}
[]
[]
[]
[]
[]
[null,null,null,null,null,null,null,"HUAWEI FUEL RETIREMENT FOR  09-11-2018 BY IKECHUKWU ROBERT E."]
[]
[null,"    Date","Vehicle Number","Filling Station","  Mileage","     Type","Quantity","Amount per Litre","TRACKING REPORT LITRE","Variance","            RATE","PURCHASE POINT","CONTRACT","   NAME","PHONE NO","COMMENT","VEHICLE MAKE"]
[null,"2018-08-11","AAA 258 XQ","GN PETROL",184121,"PETROL",7,145,8,1,1000,"ABA ","HUAWEI","DENNIS OKEREKE ONEN","09062959262 & 07030256828"," ","MITS.L200"]
[null,"2018-09-11","AAA 258 XQ","FORTE OIL",184130,"PETROL",24,145,26,2,4000,"ABA ","HUAWEI","DENNIS OKEREKE ONEN","09062959262 & 07030256828"," ","MITS.L200"]
[null,"2018-09-11","LSR 993 XL"," BEST ONE ",131343,"PETROL",24,145,22,2,4000,"ENUGU","HUAWEI","ADOYE DENNIS ",7068565836,"PAID INTO FME'S ACCOUNT (DRIVER FORGOT HIS ATM CARD)","TOYOTA HILUX "]
[null,"2018-09-11","LSR 993 XL"," BEST ONE ",131561,"PETROL",7,145,8,1,1000,"OYGBO","HUAWEI","ADOYE DENNIS ",7068565837," ","TOYOTA HILUX "]
[null,null,null,null,null," ",null,null,null,null,10000]

{"sheet":"10-11-2018","index":174,"n_rows":11,"n_cols":17,"rows_kept":11,"cut":false,"hidden":false,"merged":[]}
[]
[]
[]
[]
[]
[]
[null,null,null,null,null,null,null,"HUAWEI FUEL RETIREMENT FOR  10-11-2018 BY IKECHUKWU ROBERT E."]
[]
[null,"    Date","Vehicle Number","Filling Station","  Mileage","     Type","Quantity","Amount per Litre","TRACKING REPORT LITRE","Variance","            RATE","PURCHASE POINT","CONTRACT","   NAME","PHONE NO","COMMENT","VEHICLE MAKE"]
[null,"2018-10-11","LSR 993 XL"," BEST ONE ",131734,"PETROL",34,145,22,12,5000,"OMOKU AHOADA","HUAWEI","ADOYE DENNIS ",7068565837,"PAID INTO FME'S ACCOUNT (DRIVER FORGOT HIS ATM CARD)","TOYOTA HILUX "]
[null,null,null,null,null," ",null,null,null,null,5000]

{"sheet":"12-11-2018","index":175,"n_rows":10,"n_cols":17,"rows_kept":10,"cut":false,"hidden":false,"merged":[]}
[]
[]
[]
[]
[]
[null,null,null,null,null,null,null,"HUAWEI FUEL RETIREMENT FOR  12-11-2018 BY IKECHUKWU ROBERT E."]
[]
[null,"    Date","Vehicle Number","Filling Station","  Mileage","     Type","Quantity","Amount per Litre","TRACKING REPORT LITRE","Variance","            RATE","PURCHASE POINT","CONTRACT","   NAME","PHONE NO","COMMENT","VEHICLE MAKE"]
[null,"2018-12-11","LSR 993 XL"," ELO  P NIG LTD",131892,"PETROL",21,145,21.5,0.5,3000,"OMOKU AHOADA","HUAWEI","ADOYE DENNIS ",7068565837,"PAID INTO FME'S ACCOUNT (DRIVER FORGOT HIS ATM CARD)","TOYOTA HILUX "]
[null,null,null,null,null," ",null,null,null,null,3000]

{"sheet":"21-11-2018","index":176,"n_rows":10,"n_cols":17,"rows_kept":10,"cut":false,"hidden":false,"merged":[]}
[]
[]
[]
[]
[null,null,null,null,null,null,null,"HUAWEI FUEL RETIREMENT FOR  21-11-2018 BY IKECHUKWU ROBERT E."]
[]
[null,"    Date","Vehicle Number","Filling Station","  Mileage","     Type","Quantity","Amount per Litre","TRACKING REPORT LITRE","Variance","            RATE","PURCHASE POINT","CONTRACT","   NAME","PHONE NO","COMMENT","VEHICLE MAKE"]
[null,"20/11/2018","LSR 993 XL","FORTE OIL",133629,"PETROL",34,145,27,7,5000,"PHC","HUAWEI","ADOYE DENNIS ",7068565837,"PAID INTO FME'S ACCOUNT (DRIVER FORGOT HIS ATM CARD)","TOYOTA HILUX "]
[null,"21/11/2018","LSR 993 XL","  OANDO",133891,"PETROL",41,145,44,3,6000,"PHC","HUAWEI","ADOYE DENNIS ",7068565837,"PAID INTO FME'S ACCOUNT (DRIVER FORGOT HIS ATM CARD)","TOYOTA HILUX "]
[null,null,null,null,null," ",null,null,null,null,11000]

{"sheet":"22-11-2018","index":177,"n_rows":11,"n_cols":17,"rows_kept":11,"cut":false,"hidden":false,"merged":[]}
[]
[]
[]
[]
[]
[null,null,null,null,null,null,null,"HUAWEI FUEL RETIREMENT FOR  22-11-2018 BY IKECHUKWU ROBERT E."]
[]
[null,"    Date","Vehicle Number","Filling Station","  Mileage","     Type","Quantity","Amount per Litre","TRACKING REPORT LITRE","Variance","            RATE","PURCHASE POINT","CONTRACT","   NAME","PHONE NO","COMMENT","VEHICLE MAKE"]
[null,"22/11/2018","LSR 993 XL","FORTE OIL",134125,"PETROL",34,145,35,1,5000,"PHC","HUAWEI","ADOYE DENNIS ",7068565837,"PAID INTO FME'S ACCOUNT (DRIVER FORGOT HIS ATM CARD)","TOYOTA HILUX "]
[]
[null,null,null,null,null," ",null,null,null,null,5000]

{"sheet":"23-11-2018","index":178,"n_rows":9,"n_cols":17,"rows_kept":9,"cut":false,"hidden":false,"merged":[]}
[]
[]
[]
[null,null,null,null,null,null,null,"HUAWEI FUEL RETIREMENT FOR  23-11-2018 BY IKECHUKWU ROBERT E."]
[]
[null,"    Date","Vehicle Number","Filling Station","  Mileage","     Type","Quantity","Amount per Litre","TRACKING REPORT LITRE","Variance","            RATE","PURCHASE POINT","CONTRACT","   NAME","PHONE NO","COMMENT","VEHICLE MAKE"]
[null,"23/11/2018","LSR 993 XL","FORTE OIL",134125,"PETROL",55,145,63.5,8,8000,"PHC","HUAWEI","ADOYE DENNIS ",7068565837,"PAID INTO FME'S ACCOUNT (DRIVER FORGOT HIS ATM CARD)","TOYOTA HILUX "]
[]
[null,null,null,null,null," ",null,null,null,null,8000]

{"sheet":"26-11-2018","index":179,"n_rows":10,"n_cols":17,"rows_kept":10,"cut":false,"hidden":false,"merged":[]}
[]
[]
[]
[]
[null,null,null,null,null,null,null,"HUAWEI FUEL RETIREMENT FOR  26-11-2018 BY IKECHUKWU ROBERT E."]
[]
[null,"    Date","Vehicle Number","Filling Station","  Mileage","     Type","Quantity","Amount per Litre","TRACKING REPORT LITRE","Variance","            RATE","PURCHASE POINT","CONTRACT","   NAME","PHONE NO","COMMENT","VEHICLE MAKE"]
[null,"25/11/2018","LSR 993 XL","PALFLOX",134671,"PETROL",41,145,42,1,6000,"PHC","HUAWEI","ADOYE DENNIS ",7068565837,"PAID INTO FME'S ACCOUNT (DRIVER FORGOT HIS ATM CARD)","TOYOTA HILUX "]
[null,"26/11/2018","LSR 993 XL"," MOBIL",134910,"PETROL",48,145,52,4,7000,"PHC","HUAWEI","ADOYE DENNIS ",7068565837,"PAID INTO FME'S ACCOUNT (DRIVER FORGOT HIS ATM CARD)","TOYOTA HILUX "]
[null,null,null,null,null," ",null,null,null,null,13000]

{"sheet":" 27-11-2018","index":180,"n_rows":9,"n_cols":17,"rows_kept":9,"cut":false,"hidden":false,"merged":[]}
[]
[]
[]
[]
[null,null,null,null,null,null,null,"HUAWEI FUEL RETIREMENT FOR  27-11-2018 BY IKECHUKWU ROBERT E."]
[]
[null,"    Date","Vehicle Number","Filling Station","  Mileage","     Type","Quantity","Amount per Litre","TRACKING REPORT LITRE","Variance","            RATE","PURCHASE POINT","CONTRACT","   NAME","PHONE NO","COMMENT","VEHICLE MAKE"]
[null,"27/11/2018","LSR 993 XL"," MOBIL",135149,"PETROL",41,145,30,11,6000,"PHC","HUAWEI","ADOYE DENNIS ",7068565837,"PAID INTO FME'S ACCOUNT (DRIVER FORGOT HIS ATM CARD)","TOYOTA HILUX "]
[null,null,null,null,null," ",null,null,null,null,6000]

{"sheet":"28-11-2018","index":181,"n_rows":10,"n_cols":17,"rows_kept":10,"cut":false,"hidden":false,"merged":[]}
[]
[]
[]
[]
[]
[null,null,null,null,null,null,null,"HUAWEI FUEL RETIREMENT FOR  28-11-2018 BY IKECHUKWU ROBERT E."]
[]
[null,"    Date","Vehicle Number","Filling Station","  Mileage","     Type","Quantity","Amount per Litre","TRACKING REPORT LITRE","Variance","            RATE","PURCHASE POINT","CONTRACT","   NAME","PHONE NO","COMMENT","VEHICLE MAKE"]
[null,"28/11/2018","LSR 993 XL"," MOBIL",135424,"PETROL",34,145,38,4,5000,"PHC","HUAWEI","ADOYE DENNIS ",7068565837,"PAID INTO FME'S ACCOUNT (DRIVER FORGOT HIS ATM CARD)","TOYOTA HILUX "]
[null,null,null,null,null," ",null,null,null,null,5000]

{"sheet":"30-11-2018","index":182,"n_rows":10,"n_cols":17,"rows_kept":10,"cut":false,"hidden":false,"merged":[]}
[]
[]
[]
[]
[]
[null,null,null,null,null,null,null,"HUAWEI FUEL RETIREMENT FOR  30-11-2018 BY IKECHUKWU ROBERT E."]
[]
[null,"    Date","Vehicle Number","Filling Station","  Mileage","     Type","Quantity","Amount per Litre","TRACKING REPORT LITRE","Variance","            RATE","PURCHASE POINT","CONTRACT","   NAME","PHONE NO","COMMENT","VEHICLE MAKE"]
[null,"30/11/2018","LSR 993 XL"," MOBIL",135565,"PETROL",55,145,57,2,8000,"PHC","HUAWEI","ADOYE DENNIS ",7068565837,"PAID INTO FME'S ACCOUNT (DRIVER FORGOT HIS ATM CARD)","TOYOTA HILUX "]
[null,null,null,null,null," ",null,null,null,null,8000]

{"sheet":"03-12-2018","index":183,"n_rows":11,"n_cols":17,"rows_kept":11,"cut":false,"hidden":false,"merged":[]}
[]
[]
[]
[]
[]
[null,null,null,null,null,null,null,"HUAWEI FUEL RETIREMENT FOR  03-12-2018 BY IKECHUKWU ROBERT E."]
[]
[null,"    Date","Vehicle Number","Filling Station","  Mileage","     Type","Quantity","Amount per Litre","TRACKING REPORT LITRE","Variance","            RATE","PURCHASE POINT","CONTRACT","   NAME","PHONE NO","COMMENT","VEHICLE MAKE"]
[null,"2018-01-12","LSR 993 XL","PALFLOX",135827,"PETROL",41,145,42,1,6000,"PHC","HUAWEI","ADOYE DENNIS ",7068565837,"PAID INTO FME'S ACCOUNT (DRIVER FORGOT HIS ATM CARD)","TOYOTA HILUX "]
[]
[null,null,null,null,null,null,null,null,null,null,6000]

{"sheet":"04-12-2018","index":184,"n_rows":9,"n_cols":17,"rows_kept":9,"cut":false,"hidden":false,"merged":[]}
[]
[]
[]
[null,null,null,null,null,null,null,"HUAWEI FUEL RETIREMENT FOR  04-12-2018 BY IKECHUKWU ROBERT E."]
[]
[null,"    Date","Vehicle Number","Filling Station","  Mileage","     Type","Quantity","Amount per Litre","TRACKING REPORT LITRE","Variance","            RATE","PURCHASE POINT","CONTRACT","   NAME","PHONE NO","COMMENT","VEHICLE MAKE"]
[null,"2018-02-12","LSR 993 XL","FORTE OIL",136135,"PETROL",34,145,35,1,5000,"EMUOHA","HUAWEI","ADOYE DENNIS ",7068565837,"PAID INTO FME'S ACCOUNT (DRIVER FORGOT HIS ATM CARD)","TOYOTA HILUX "]
[null,"2018-03-12","LSR 993 XL","MOBIL",136294,"PETROL",41,145,46,3,6000,"AHOADA","HUAWEI","ADOYE DENNIS ",7068565838,"PAID INTO FME'S ACCOUNT (DRIVER FORGOT HIS ATM CARD)","TOYOTA HILUX "]
[null,null,null,null,null,null,null,null,null,null,11000]

{"sheet":"06-12-2018","index":185,"n_rows":10,"n_cols":17,"rows_kept":10,"cut":false,"hidden":false,"merged":[]}
[]
[]
[]
[]
[null,null,null,null,null,null,null,"HUAWEI FUEL RETIREMENT FOR  06-12-2018 BY IKECHUKWU ROBERT E."]
[]
[null,"    Date","Vehicle Number","Filling Station","  Mileage","     Type","Quantity","Amount per Litre","TRACKING REPORT LITRE","Variance","            RATE","PURCHASE POINT","CONTRACT","   NAME","PHONE NO","COMMENT","VEHICLE MAKE"]
[null,"2018-05-12","LSR 993 XL","FORTE OIL",136643,"PETROL",34,145,35,1,5000,"PHC ","HUAWEI","ADOYE DENNIS ",7068565837,"PAID INTO FME'S ACCOUNT (DRIVER FORGOT HIS ATM CARD)","TOYOTA HILUX "]
[null,"2018-06-12","LND 565 XM","NUA FILLING STATION",177552,"PETROL",34,145,18,16,5000,"ABA ","HUAWEI","JULIAN ADADU",9062224682,"Kindly deduct N2,320.00 FROM DRIVER ","MITS.L200"]
[null,null,null,null,null,null,null,null,null,null,10000]

{"sheet":"07-12-2018","index":186,"n_rows":11,"n_cols":17,"rows_kept":11,"cut":false,"hidden":false,"merged":[]}
[]
[]
[]
[]
[null,null,null,null,null,null,null,"HUAWEI FUEL RETIREMENT FOR  07-12-2018 BY IKECHUKWU ROBERT E."]
[]
[null,"    Date","Vehicle Number","Filling Station","  Mileage","     Type","Quantity","Amount per Litre","TRACKING REPORT LITRE","Variance","            RATE","PURCHASE POINT","CONTRACT","   NAME","PHONE NO","COMMENT","VEHICLE MAKE"]
[null,"2018-06-12","LSR 993 XL","FORTE OIL",136713,"PETROL",34,145,34,0,5000,"PHC ","HUAWEI","ADOYE DENNIS ",7068565837,"PAID INTO FME'S ACCOUNT (DRIVER FORGOT HIS ATM CARD)","TOYOTA HILUX "]
[null,"2018-07-12","LND 565 XM","TONIMAS FILLING STATION",177784,"PETROL",34,145,21,13,5000,"ABA ","HUAWEI","JULIAN ADADU",9062224682,"Kindly deduct N1,885.00 FROM DRIVER ","MITS.L200"]
[null,"2018-07-12","LSR 993 XL","EMARITZ",136803,"PETROL",34,145,34,0,5000,"PHC ","HUAWEI","ADOYE DENNIS ",7068565837,"PAID INTO FME'S ACCOUNT (DRIVER FORGOT HIS ATM CARD)","TOYOTA HILUX "]
[null,null,null,null,null,null,null,null,null,null,15000]

{"sheet":"10-12-2018","index":187,"n_rows":10,"n_cols":17,"rows_kept":10,"cut":false,"hidden":false,"merged":[]}
[]
[]
[]
[]
[null,null,null,null,null,null,null,"HUAWEI FUEL RETIREMENT FOR  10-12-2018 BY IKECHUKWU ROBERT E."]
[]
[null,"    Date","Vehicle Number","Filling Station","  Mileage","     Type","Quantity","Amount per Litre","TRACKING REPORT LITRE","Variance","            RATE","PURCHASE POINT","CONTRACT","   NAME","PHONE NO","COMMENT","VEHICLE MAKE"]
[null,"2018-09-12","LND 565 XM","TONIMAS FILLING STATION",177949,"PETROL",34,145,17,17,5000,"ABA ","HUAWEI","JULIAN ADADU",9062224682,"Kindly deduct N2,465.00 FROM DRIVER ","MITS.L200"]
[null,"2018-10-12","LSR 993 XL"," OANDO",137098,"PETROL",41,145,35,6,6000,"PHC ","HUAWEI","ADOYE DENNIS ",7068565837,"PAID INTO FME'S ACCOUNT (DRIVER FORGOT HIS ATM CARD)","TOYOTA HILUX "]
[null,null,null,null,null,null,null,null,null,null,11000]

{"sheet":"11-12-2018","index":188,"n_rows":10,"n_cols":17,"rows_kept":10,"cut":false,"hidden":false,"merged":[]}
[]
[]
[]
[]
[null,null,null,null,null,null,null,"HUAWEI FUEL RETIREMENT FOR  11-12-2018 BY IKECHUKWU ROBERT E."]
[]
[null,"    Date","Vehicle Number","Filling Station","  Mileage","     Type","Quantity","Amount per Litre","TRACKING REPORT LITRE","Variance","            RATE","PURCHASE POINT","CONTRACT","   NAME","PHONE NO","COMMENT","VEHICLE MAKE"]
[null,"2018-10-12","LND 565 XM","TONIMAS FILLING STATION",178097,"PETROL",34,145,23,11,5000,"ABA ","HUAWEI","JULIAN ADADU",9062224682," ","MITS.L200"]
[null,"2018-11-12","LSR 993 XL","MOBIL",137160,"PETROL",34,145,36,2,5000,"PHC ","HUAWEI","ADOYE DENNIS ",7068565837,"PAID INTO FME'S ACCOUNT (DRIVER FORGOT HIS ATM CARD)","TOYOTA HILUX "]
[null,null,null,null,null,null,null,null,null,null,10000]

{"sheet":"12-12-2018","index":189,"n_rows":10,"n_cols":17,"rows_kept":10,"cut":false,"hidden":false,"merged":[]}
[]
[]
[]
[]
[]
[null,null,null,null,null,null,null,"HUAWEI FUEL RETIREMENT FOR  12-12-2018 BY IKECHUKWU ROBERT E."]
[]
[null,"    Date","Vehicle Number","Filling Station","  Mileage","     Type","Quantity","Amount per Litre","TRACKING REPORT LITRE","Variance","            RATE","PURCHASE POINT","CONTRACT","   NAME","PHONE NO","COMMENT","VEHICLE MAKE"]
[null,"2018-12-12","LSR 993 XL","MOBIL",137369,"PETROL",41,145,50,9,6000,"PHC ","HUAWEI","ADOYE DENNIS ",7068565837,"PAID INTO FME'S ACCOUNT (DRIVER FORGOT HIS ATM CARD)","TOYOTA HILUX "]
[null,null,null,null,null,null,null,null,null,null,6000]

{"sheet":"13-12-2018","index":190,"n_rows":10,"n_cols":17,"rows_kept":10,"cut":false,"hidden":false,"merged":[]}
[]
[]
[]
[]
[]
[null,null,null,null,null,null,null,"HUAWEI FUEL RETIREMENT FOR  13-12-2018 BY IKECHUKWU ROBERT E."]
[]
[null,"    Date","Vehicle Number","Filling Station","  Mileage","     Type","Quantity","Amount per Litre","TRACKING REPORT LITRE","Variance","            RATE","PURCHASE POINT","CONTRACT","   NAME","PHONE NO","COMMENT","VEHICLE MAKE"]
[null,"13/12/2018","LSR 993 XL","MOBIL",137615,"PETROL",34,145,37,3,5000,"PHC ","HUAWEI","ADOYE DENNIS ",7068565837,"PAID INTO FME'S ACCOUNT (DRIVER FORGOT HIS ATM CARD)","TOYOTA HILUX "]
[null,null,null,null,null,null,null,null,null,null,5000]

{"sheet":"21-12-2018","index":191,"n_rows":10,"n_cols":17,"rows_kept":10,"cut":false,"hidden":false,"merged":[]}
[]
[]
[]
[]
[]
[null,null,null,null,null,null,null,"HUAWEI FUEL RETIREMENT FOR  21-12-2018 BY IKECHUKWU ROBERT E."]
[]
[null,"    Date","Vehicle Number","Filling Station","  Mileage","     Type","Quantity","Amount per Litre","TRACKING REPORT LITRE","Variance","            RATE","PURCHASE POINT","CONTRACT","   NAME","PHONE NO","COMMENT","VEHICLE MAKE"]
[null,"21/12/2018","LSR 993 XL","MOBIL",139130,"PETROL",48,145,39.5,8.5,7000,"PHC ","HUAWEI","ADOYE DENNIS ",7068565837,"PAID INTO FME'S ACCOUNT (DRIVER FORGOT HIS ATM CARD)","TOYOTA HILUX "]
[null,null,null,null,null,null,null,null,null,null,7000]

{"sheet":"23-12-2018","index":192,"n_rows":8,"n_cols":17,"rows_kept":8,"cut":false,"hidden":false,"merged":[]}
[]
[]
[]
[null,null,null,null,null,null,null,"HUAWEI FUEL RETIREMENT FOR  22-12-2018 BY IKECHUKWU ROBERT E."]
[]
[null,"    Date","Vehicle Number","Filling Station","  Mileage","     Type","Quantity","Amount per Litre","TRACKING REPORT LITRE","Variance","            RATE","PURCHASE POINT","CONTRACT","   NAME","PHONE NO","COMMENT","VEHICLE MAKE"]
[null,"22/12/2018","LSR 993 XL","SOBAZ ",139362,"PETROL",55,145,60,5,8000,"PHC ","HUAWEI","ADOYE DENNIS ",7068565837,"PAID INTO FME'S ACCOUNT (DRIVER FORGOT HIS ATM CARD)","TOYOTA HILUX "]
[null,null,null,null,null,null,null,null,null,null,8000]

{"sheet":"27-12-2018","index":193,"n_rows":12,"n_cols":17,"rows_kept":12,"cut":false,"hidden":false,"merged":[]}
[]
[]
[]
[]
[null,null,null,null,null,null,null,"HUAWEI FUEL RETIREMENT FOR  27-12-2018 BY IKECHUKWU ROBERT E."]
[]
[null,"    Date","Vehicle Number","Filling Station","  Mileage","     Type","Quantity","Amount per Litre","TRACKING REPORT LITRE","Variance","            RATE","PURCHASE POINT","CONTRACT","   NAME","PHONE NO","COMMENT","VEHICLE MAKE"]
[null,"25/12/2018","LND 565 XM","TONIMAS FILLING STATION",180113,"PETROL",28,145,21,12,4000,"ABA ","HUAWEI","JULIAN ADADU",9062224682," ","MITS.L200"]
[null,"26/12/2018","LSR 993 XL","SOSO",139621,"PETROL",48,145,37,11,7000,"PHC ","HUAWEI","ADOYE DENNIS ",7068565837,"PAID INTO FME'S ACCOUNT (DRIVER FORGOT HIS ATM CARD)","TOYOTA HILUX "]
[null,"26/12/2019","AAA 258 XQ","SOBAZ ",190891,"PETROL",34,145,30,5,5000," ABA ","HUAWEI","DENNIS ONEN",9062959262," ","MITS.L200"]
[null,"27/12/2018","LND 565 XM"," NUA FILLING STATION",180214,"PETROL",34,145,24,10,5000,"ABA ","HUAWEI","JULIAN ADADU",9062224682," ","MITS.L200"]
[null,null,null,null,null,null,null,null,null,null,21000]

{"sheet":"28-12-2018","index":194,"n_rows":12,"n_cols":17,"rows_kept":12,"cut":false,"hidden":false,"merged":[]}
[]
[]
[]
[]
[]
[null,null,null,null,null,null,null,"HUAWEI FUEL RETIREMENT FOR  28-12-2018 BY IKECHUKWU ROBERT E."]
[]
[null,"    Date","Vehicle Number","Filling Station","  Mileage","     Type","Quantity","Amount per Litre","TRACKING REPORT LITRE","Variance","            RATE","PURCHASE POINT","CONTRACT","   NAME","PHONE NO","COMMENT","VEHICLE MAKE"]
[null,"28/12/2018","LSR 993 XL  "," MOBIL",139740,"PETROL",34,145,37,3,5000,"PHC ","HUAWEI","ADOYE DENNIS ",7068565837,"PAID INTO FME'S ACCOUNT (DRIVER FORGOT HIS ATM CARD)","TOYOTA HILUX "]
[null,"28/12/2018","KRD 539 XF","NGOZI PET",297159,"PETROL",34,145,33,1,5000,"UMUAHIA ","HUAWEI","SANNI WILLIAMS",8166130748," ","MITS.L200"]
[null,"28/12/2019","AAA 258 XQ","NUA FILLING STATION",191059,"PETROL",28,145,21,7,4000," ABA ","HUAWEI","DENNIS ONEN",9062959262," ","MITS.L200"]
[null,null,null,null,null,null,null,null,null,null,14000]

{"sheet":"09-01-2019","index":195,"n_rows":10,"n_cols":17,"rows_kept":10,"cut":false,"hidden":false,"merged":[]}
[]
[]
[]
[]
[]
[null,null,null,null,null,null,null,"HUAWEI FUEL RETIREMENT FOR  09-01-2019 BY IKECHUKWU ROBERT E."]
[]
[null,"    Date","Vehicle Number","Filling Station","  Mileage","     Type","Quantity","Amount per Litre","TRACKING REPORT LITRE","Variance","            RATE","PURCHASE POINT","CONTRACT","   NAME","PHONE NO","COMMENT","VEHICLE MAKE"]
[null,"2019-09-01","AAA 258 XQ","NUA FILLING STATION",193075,"PETROL",28,145,"NOT CAPTURED",0,4000," ABA ","HUAWEI","DENNIS ONEN",9062959262," ","MITS.L200"]
[null,null,null,null,null,null,null,null,null,null,4000]

{"sheet":"12-01-2019","index":196,"n_rows":13,"n_cols":17,"rows_kept":13,"cut":false,"hidden":false,"merged":[]}
[]
[]
[]
[]
[]
[null,null,null,null,null,null,null,"HUAWEI FUEL RETIREMENT FOR  12-01-2019 BY IKECHUKWU ROBERT E."]
[]
[null,"    Date","Vehicle Number","Filling Station","  Mileage","     Type","Quantity","Amount per Litre","TRACKING REPORT LITRE","Variance","            RATE","PURCHASE POINT","CONTRACT","   NAME","PHONE NO","COMMENT","VEHICLE MAKE"]
[null,"2019-10-01","AAA 258 XQ","NUA FILLING STATION",193075,"PETROL",28,145,19.5,8.5,4000," ABA ","HUAWEI","DENNIS ONEN",9062959262," ","MITS.L200"]
[null,"2019-11-01"," LSD 460 XM"," ETERNAL",107601,"PETROL",17,145," NOT CAPTURED",0,2500,"PHC","HUAWEI","SUNDAY OGUNAIKE",8035263691," ","TOYOTA HILUX"]
[null,"2019-12-01","KRD 89 XM","ETERNAL",193289,"PETROL",31,145,29.5,1.5,4500,"PHC","HUAWEI","SUNDAY OGUNAIKE",8035263691," ","TOYOTA HILUX"]
[null,"2019-12-01","AAA 258 XQ","NUA FILLING STATION",193628,"PETROL",21,145,19,3,3000," ABA ","HUAWEI","DENNIS ONEN",9062959265," ","MITS.L200"]
[null,null,null,null,null,null,null,null,null,null,14000]

{"sheet":"16-01-2019","index":197,"n_rows":18,"n_cols":17,"rows_kept":18,"cut":false,"hidden":false,"merged":[]}
[]
[]
[]
[]
[]
[null,null,null,null,null,null,null,"HUAWEI FUEL RETIREMENT FOR  16-01-2019 BY IKECHUKWU ROBERT E."]
[]
[null,"    Date","Vehicle Number","Filling Station","  Mileage","     Type","Quantity","Amount per Litre","TRACKING REPORT LITRE","Variance","            RATE","PURCHASE POINT","CONTRACT","   NAME","PHONE NO","COMMENT","VEHICLE MAKE"]
[null,"2019-08-01","KRD 539 XF","NGOZI PET",298983,"PETROL",34,145,25,9,5000,"UMUAHIA ","HUAWEI","SANNI WILLIAMS",8166130748," ","MITS.L200"]
[null,"14/1/2019","AAA 258 XQ ","NUA FILLING STATION",193788,"PETROL",28,145,30,0,4000,"ABA","HUAWEI","DENNIS ONEN",9062959265," ","MITS.L200"]
[null,"14/1/2019","KRD 89 XM","ETERNAL",84952,"PETROL",31,145,29,2,4000,"PHC","HUAWEI","SUNDAY OGUNAIKE",8035263691," ","TOYOTA HILUX"]
[null,"14/1/2019","AAA 634 XM","SOSO",128639,"PETROL",13,145,13,0,2000,"PHC","HUAWEI","CHIGOZIE AHANONU",8033255989,null,"TOYOTA HILUX"]
[null,"15/1/2019","AAA 258 XQ","NUA FILLING STATION",193933,"PETROL",13,145,18,5,2000," ABA ","HUAWEI","DENNIS ONEN",9062959265," ","MITS.L200"]
[null,"15/1/2019","KRD 89 XM","ETERNAL",85134,"PETROL",31,145,21,10,4500,"PHC","HUAWEI","SUNDAY OGUNAIKE",8035263691," ","TOYOTA HILUX"]
[null,"15/1/2019","AAA 634 XM","SOSO",128706,"PETROL",20,145,15,5,3000,"PHC","HUAWEI","CHIGOZIE AHANONU",8033255989,null,"TOYOTA HILUX"]
[null,"15/1/2019","LSR 993 XL","NNPC",141542,"PETROL",62,145,51,11,9000,"BENIN","HUAWEI","ADOYE DENIS",7034261584,null,"TOYOTA HILUX"]
[null,"16/1/2019","LSR 993 XL","CONOIL",141920,"PETROL",62,145,56,6,9000,"BENIN","HUAWEI","ADOYE DENIS",7034261584,null,"TOYOTA HILUX"]
[null,null,null,null,null,null,null,null,null,null,42500]

{"sheet":"17-01-2019","index":198,"n_rows":13,"n_cols":17,"rows_kept":13,"cut":false,"hidden":false,"merged":[]}
[]
[]
[]
[]
[]
[null,null,null,null,null,null,null,"HUAWEI FUEL RETIREMENT FOR  17-01-2019 BY IKECHUKWU ROBERT E."]
[]
[null,"    Date","Vehicle Number","Filling Station","  Mileage","     Type","Quantity","Amount per Litre","TRACKING REPORT LITRE","Variance","            RATE","PURCHASE POINT","CONTRACT","   NAME","PHONE NO","COMMENT","VEHICLE MAKE"]
[null,"16/1/2019","KRD 89 XM","ETERNAL",85256,"PETROL",34,145,34,0,5000,"OWERRI","HUAWEI","SUNDAY OGUNAIKE",8035263691," ","TOYOTA HILUX"]
[null,"16/1/2019","AAA 634 XM","SOSO",128816,"PETROL",10,145,8,2,1500,"PHC","HUAWEI","CHIGOZIE AHANONU",8033255989,null,"TOYOTA HILUX"]
[null,"16/1/2019","AAA 634 XM","MOBIL",128821,"PETROL",24,145,25,1,3500,"PHC","HUAWEI","CHIGOZIE AHANONU",8033255990,null,"TOYOTA HILUX"]
[null,"17/1/2019","AAA 258 XQ","NUA FILLING STATION",194032,"PETROL",34,145,31,3,5000," ABA ","HUAWEI","DENNIS ONEN",9062959265," ","MITS.L200"]
[null,null,null,null,null,null,null,null,null,null,15000]

{"sheet":"18-01-2019","index":199,"n_rows":10,"n_cols":17,"rows_kept":10,"cut":false,"hidden":false,"merged":[]}
[]
[]
[]
[null,null,null,null,null,null,null,null," "]
[]
[null,null,null,null,null,null,null,"HUAWEI FUEL RETIREMENT FOR  18-01-2019 BY IKECHUKWU ROBERT E."]
[]
[null,"    Date","Vehicle Number","Filling Station","  Mileage","     Type","Quantity","Amount per Litre","TRACKING REPORT LITRE","Variance","            RATE","PURCHASE POINT","CONTRACT","   NAME","PHONE NO","COMMENT","VEHICLE MAKE"]
[null,"18/1/2019","AAA 634 XM","MOBIL",128987,"PETROL",34,145,28,6,5000,"PHC","HUAWEI","CHIGOZIE AHANONU",8033255990,null,"TOYOTA HILUX"]
[null,null,null,null,null,null,null,null,null,null,5000]

{"sheet":"21-01-2019","index":200,"n_rows":13,"n_cols":17,"rows_kept":13,"cut":false,"hidden":false,"merged":[]}
[]
[]
[]
[]
[]
[]
[null,null,null,null,null,null,null,"HUAWEI FUEL RETIREMENT FOR  21-01-2019 BY IKECHUKWU ROBERT E."]
[]
[null,"    Date","Vehicle Number","Filling Station","  Mileage","     Type","Quantity","Amount per Litre","TRACKING REPORT LITRE","Variance","            RATE","PURCHASE POINT","CONTRACT","   NAME","PHONE NO","COMMENT","VEHICLE MAKE"]
[null,"19/1/2019","KRD 89 XM","AA RANO PET",85477,"AA RANO PET",34,145,17,17,5000,"OWERRI","HUAWEI","SUNDAY OGUNAIKE",8035263691,"Kindly deduct N2,465.00 From the driver.","TOYOTA HILUX"]
[null,"21/1/2019","AAA 634 XM","SOSO",129105,"PETROL",34,145,23,11,5000,"PHC","HUAWEI","CHIGOZIE AHANONU",8033255989,"Kindly deduct N1,595.00 From the driver.","TOYOTA HILUX"]
[]
[null,null,null,null,null,null,null,null,null,null,10000]

{"sheet":"23-01-2019","index":201,"n_rows":11,"n_cols":17,"rows_kept":11,"cut":false,"hidden":false,"merged":[]}
[]
[]
[]
[]
[]
[null,null,null,null,null,null,null,"HUAWEI FUEL RETIREMENT FOR  23-01-2019 BY IKECHUKWU ROBERT E."]
[]
[null,"    Date","Vehicle Number","Filling Station","  Mileage","     Type","Quantity","Amount per Litre","TRACKING REPORT LITRE","Variance","            RATE","PURCHASE POINT","CONTRACT","   NAME","PHONE NO","COMMENT","VEHICLE MAKE"]
[null,"23/1/2019","AAA 634 XM","SOBAZ",129261,"PETROL",28,145,16,12,4000,"PHC","HUAWEI","CHIGOZIE AHANONU",8033255989,"Kindly deduct N1,740.00 From the driver.","TOYOTA HILUX"]
[]
[null,null,null,null,null,null,null,null,null,null,4000]

{"sheet":"25-01-2019","index":202,"n_rows":10,"n_cols":17,"rows_kept":10,"cut":false,"hidden":false,"merged":[]}
[]
[]
[]
[]
[null,null,null,null,null,null,null,"HUAWEI FUEL RETIREMENT FOR  25-01-2019 BY IKECHUKWU ROBERT E."]
[]
[null,"    Date","Vehicle Number","Filling Station","  Mileage","     Type","Quantity","Amount per Litre","TRACKING REPORT LITRE","Variance","            RATE","PURCHASE POINT","CONTRACT","   NAME","PHONE NO","COMMENT","VEHICLE MAKE"]
[null,"24/1/2019","AAA 634 XM","SOBAZ",129302,"PETROL",34,145,24,10,5000,"PHC","HUAWEI","CHIGOZIE AHANONU",8033255989," ","TOYOTA HILUX"]
[null,"25/1/2019","AAA 634 XM","SOSO",129477,"PETROL",34,145,21,13,5000,"PHC","HUAWEI","CHIGOZIE AHANONU",8033255990,"Kindly deduct N1,885.00 From the driver.","TOYOTA HILUX"]
[null,null,null,null,null,null,null,null,null,null,10000]

{"sheet":"28-01-2019","index":203,"n_rows":10,"n_cols":17,"rows_kept":10,"cut":false,"hidden":false,"merged":[]}
[]
[]
[]
[]
[]
[null,null,null,null,null,null,null,"HUAWEI FUEL RETIREMENT FOR  28-01-2019 BY IKECHUKWU ROBERT E."]
[]
[null,"    Date","Vehicle Number","Filling Station","  Mileage","     Type","Quantity","Amount per Litre","TRACKING REPORT LITRE","Variance","            RATE","PURCHASE POINT","CONTRACT","   NAME","PHONE NO","COMMENT","VEHICLE MAKE"]
[null,"28/1/2019","AAA 634 XM","PROPEL",129637,"PETROL",28,145,24,4,4000,"PHC","HUAWEI","CHIGOZIE AHANONU",8033255990," ","TOYOTA HILUX"]
[null,null,null,null,null,null,null,null,null,null,4000]

{"sheet":"29-01-2019","index":204,"n_rows":11,"n_cols":17,"rows_kept":11,"cut":false,"hidden":false,"merged":[]}
[]
[]
[]
[]
[]
[null,null,null,null,null,null,null,"HUAWEI FUEL RETIREMENT FOR  29-01-2019 BY IKECHUKWU ROBERT E."]
[]
[null,"    Date","Vehicle Number","Filling Station","  Mileage","     Type","Quantity","Amount per Litre","TRACKING REPORT LITRE","Variance","            RATE","PURCHASE POINT","CONTRACT","   NAME","PHONE NO","COMMENT","VEHICLE MAKE"]
[null,"29/1/2019","AAA 634 XM","PROPEL",129763,"PETROL",34,145,23,11,5000,"PHC","HUAWEI","CHIGOZIE AHANONU",8033255990," ","TOYOTA HILUX"]
[null,"29/1/2019","AAA 257 XQ"," NUA FILLING STATION",200198,"PETROL",28,145,"NOT CAPTURED",0,4000,"ABA ","HUAWEI","JULIAN ADADU",9062224682," ","MITS.L200"]
[null,null,null,null,null,null,null,null,null,null,9000]

{"sheet":"1-02-2019","index":205,"n_rows":10,"n_cols":17,"rows_kept":10,"cut":false,"hidden":false,"merged":[]}
[]
[]
[]
[]
[null,null,null,null,null,null,null,"HUAWEI FUEL RETIREMENT FOR  1-02-2019 BY IKECHUKWU ROBERT E."]
[]
[null,"    Date","Vehicle Number","Filling Station","  Mileage","     Type","Quantity","Amount per Litre","TRACKING REPORT LITRE","Variance","            RATE","PURCHASE POINT","CONTRACT","   NAME","PHONE NO","COMMENT","VEHICLE MAKE"]
[null,"31/1/2019","AAA 634 XM","SOSO",129910,"PETROL",28,145,21,7,4000,"PHC","HUAWEI","CHIGOZIE AHANONU",8033255990," ","TOYOTA HILUX"]
[null,"2020-01-02","AAA 634 XM","TEMPO",130065,"PETROL",34,145,18,16,5000,"PHC","HUAWEI","CHIGOZIE AHANONU",8033255991,"Kindly deduct N2,320.00 From the driver.","TOYOTA HILUX"]
[null,null,null,null,null,null,null,null,null,null,9000]

{"sheet":"05-02-2019","index":206,"n_rows":12,"n_cols":17,"rows_kept":12,"cut":false,"hidden":false,"merged":[]}
[]
[]
[]
[]
[]
[null,null,null,null,null,null,null,"HUAWEI FUEL RETIREMENT FOR  5-02-2019 BY IKECHUKWU ROBERT E."]
[]
[null,"    Date","Vehicle Number","Filling Station","  Mileage","     Type","Quantity","Amount per Litre","TRACKING REPORT LITRE","Variance","            RATE","PURCHASE POINT","CONTRACT","   NAME","PHONE NO","COMMENT","VEHICLE MAKE"]
[null,"2019-03-02","LSR 993 XL","NIPPCO",143837,"PETROL",28,145,30,2,4000,"BENIN","HUAWEI","ADOYE DENIS",7034261584,null,"TOYOTA HILUX"]
[null,"2019-04-02","AAA 634 XM","SOSO",130219,"PETROL",28,145,20.5,7.5,4000,"PHC","HUAWEI","CHIGOZIE AHANONU",8033255990,"Kindly deduct N1,087 from driver ","TOYOTA HILUX"]
[null,"2019-05-02","AAA 634 XM","PROPEL",130365,"PETROL",28,145,20.5,7.5,4000,"PHC","HUAWEI","CHIGOZIE AHANONU",8033255991,"Kindly deduct N1,087 from driver ","TOYOTA HILUX"]
[null,null,null,null,null,null,null,null,null,null,12000]

{"sheet":"06-02-2019","index":207,"n_rows":13,"n_cols":17,"rows_kept":13,"cut":false,"hidden":false,"merged":[]}
[]
[]
[]
[]
[]
[]
[null,null,null,null,null,null,null,"HUAWEI FUEL RETIREMENT FOR  6-02-2019 BY IKECHUKWU ROBERT E."]
[]
[null,"    Date","Vehicle Number","Filling Station","  Mileage","     Type","Quantity","Amount per Litre","TRACKING REPORT LITRE","Variance","            RATE","PURCHASE POINT","CONTRACT","   NAME","PHONE NO","COMMENT","VEHICLE MAKE"]
[null,"2019-05-02","AAA 258 XQ","NUA FILLING STATION",196397,"PETROL",28,145,14.5,13,4000,"ABA","HUAWEI","DENNIS ONEN",9062959262,"Kindly deduct N1,885. from driver ","MITS.L200"]
[null,"2019-06-02","AAA 634 XM","SOSO",130520,"PETROL",28,145,20,8,4000,"PHC","HUAWEI","CHIGOZIE AHANONU",8033255990," ","TOYOTA HILUX"]
[null,"2019-06-02","AAA 257 XQ","TONIMAS",200947,"PETROL",28,145,18.5,9.5,4000,"ABA","HUAWEI","JULIAN ADADU",9062224682,"Kindly deduct N1,305. from driver ","TOYOTA HILUX"]
[null,null,null,null,null,null,null,null,null,null,12000]

{"sheet":"07-02-2019","index":208,"n_rows":13,"n_cols":17,"rows_kept":13,"cut":false,"hidden":false,"merged":[]}
[]
[]
[]
[]
[]
[null,null,null,null,null,null,null,"HUAWEI FUEL RETIREMENT FOR  8-02-2019 BY IKECHUKWU ROBERT E."]
[]
[null,"    Date","Vehicle Number","Filling Station","  Mileage","     Type","Quantity","Amount per Litre","TRACKING REPORT LITRE","Variance","            RATE","PURCHASE POINT","CONTRACT","   NAME","PHONE NO","COMMENT","VEHICLE MAKE"]
[null,"2019-06-02","LSR 993 XL","NIPPCO",144055,"PETROL",21,145,19,2,3000,"BENIN","HUAWEI","ADOYE DENIS",7034261584,null,"TOYOTA HILUX"]
[null,"2019-07-02","AAA 634 XM","MOBIL",130665,"PETROL",14,145,10,4,2000,"PHC","HUAWEI","CHIGOZIE AHANONU",8033255990,null,"TOYOTA HILUX"]
[null,"2019-07-02","AAA 634 XM","PROPEL",130365,"PETROL",14,145,12,2,2000,"PHC","HUAWEI","CHIGOZIE AHANONU",8033255991,null,"TOYOTA HILUX"]
[null,"2019-08-02","XC 288 YRE","TONIMAS",228035,"PETROL",28,145,19,9,4000,"ABA ","HUAWEI","JULIAN ADADU",9062224682,"Kindly deduct N1,305. from the driver ","MITS.L200"]
[null,null,null,null,null,null,null,null,null,null,11000]

{"sheet":"11-02-2019","index":209,"n_rows":14,"n_cols":17,"rows_kept":14,"cut":false,"hidden":false,"merged":[]}
[]
[]
[]
[]
[]
[]
[null,null,null,null,null,null,null,"HUAWEI FUEL RETIREMENT FOR  11-02-2019 BY IKECHUKWU ROBERT E."]
[]
[null,"    Date","Vehicle Number","Filling Station","  Mileage","     Type","Quantity","Amount per Litre","TRACKING REPORT LITRE","Variance","            RATE","PURCHASE POINT","CONTRACT","   NAME","PHONE NO","COMMENT","VEHICLE MAKE"]
[null,"2019-09-02","AAA 634 XM","PROPEL",130820,"PETROL",7,145,8.5,0.5,1000,"PHC","HUAWEI","CHIGOZIE AHANONU",8033255991,null,"TOYOTA HILUX"]
[null,"2019-09-02","AAA 634 XM","PROPEL",130977,"PETROL",14,145,10,1,2000,"PHC","HUAWEI","CHIGOZIE AHANONU",8033255992,null,"TOYOTA HILUX"]
[null,"2019-11-02","KMC 44 XA ","NGOZI PET",244914,"PETROL",28,145,26,2,4000,"ABA ","HUAWEI","SANNI WILLIAMS",8025997693,"  ","TOYOTA HILUX"]
[null,"2019-11-02","AAA 634 XM","PROPEL",131028,"PETROL",21,145," NOT CAPTURED",0,4000,"PHC","HUAWEI","CHIGOZIE AHANONU",8033255992,"Kindly deduct N3,000.FROM DRIVER","TOYOTA HILUX"]
[null,null,null,null,null,null,null,null,null,null,11000]

{"sheet":" 13-02-2019","index":210,"n_rows":11,"n_cols":17,"rows_kept":11,"cut":false,"hidden":false,"merged":[]}
[]
[]
[]
[]
[]
[null,null,null,null,null,null,null,"HUAWEI FUEL RETIREMENT FOR  13-02-2019 BY IKECHUKWU ROBERT E."]
[]
[null,"    Date","Vehicle Number","Filling Station","  Mileage","     Type","Quantity","Amount per Litre","TRACKING REPORT LITRE","Variance","            RATE","PURCHASE POINT","CONTRACT","   NAME","PHONE NO","COMMENT","VEHICLE MAKE"]
[null,"13/2/2019","KMC 44 XA ","NGOZI PET",245138,"PETROL",41,145,26,15,6000,"ABA ","HUAWEI","SANNI WILLIAMS",8025997693,"Kindly deduct N2,175.FROM DRIVER","TOYOTA HILUX"]
[null,"13/2/2019","AAA 634 XM","PROPEL",131170,"PETROL",28,145,15,13,4000,"PHC","HUAWEI","CHIGOZIE AHANONU",8033255992,"Kindly deduct N1,885.FROM DRIVER","TOYOTA HILUX"]
[null,null,null,null,null,null,null,null,null,null,10000]

{"sheet":"14-02-2019","index":211,"n_rows":10,"n_cols":17,"rows_kept":10,"cut":false,"hidden":false,"merged":[]}
[]
[]
[]
[]
[null,null,null,null,null,null,null,"HUAWEI FUEL RETIREMENT FOR  14-02-2019 BY IKECHUKWU ROBERT E."]
[]
[null,"    Date","Vehicle Number","Filling Station","  Mileage","     Type","Quantity","Amount per Litre","TRACKING REPORT LITRE","Variance","            RATE","PURCHASE POINT","CONTRACT","   NAME","PHONE NO","COMMENT","VEHICLE MAKE"]
[null,"13/2/2019","KMC 44 XA ","NGOZI PET",245138,"PETROL",38,145,26,12,5000,"UMUAHIA","HUAWEI","SANNI WILLIAMS",8025997693,"Kindly deduct N1,740..FROM DRIVER","TOYOTA HILUX"]
[null,"14/2/2019","KRD 89 XM","NDI CHUCKS",88101,"PETROL",21,145,20,1,3000,"PHC","HUAWEI","SUNDAY OGUNAIKE",8035263691," ","TOYOTA HILUX"]
[null,null,null,null,null,null,null,null,null,null,8000]

{"sheet":"15-02-2019","index":212,"n_rows":11,"n_cols":17,"rows_kept":11,"cut":false,"hidden":false,"merged":[]}
[]
[]
[]
[]
[]
[null,null,null,null,null,null,null,"HUAWEI FUEL RETIREMENT FOR  15-02-2019 BY IKECHUKWU ROBERT E."]
[]
[null,"    Date","Vehicle Number","Filling Station","  Mileage","     Type","Quantity","Amount per Litre","TRACKING REPORT LITRE","Variance","            RATE","PURCHASE POINT","CONTRACT","   NAME","PHONE NO","COMMENT","VEHICLE MAKE"]
[null,"15/2/2019","LND 565 XM","TONIMAS",183507,"PETROL",41,145,27.5,14,6000,"ABA ","HUAWEI","JULIAN ADADU",9062224682,"Kindly deduct N2,012.50. from the driver ","MITS.L200"]
[null,"15/2/2019","AAA 258 XQ","NUA FILLING STATION",196500,"PETROL",48,145,44,4,7000,"ABA ","HUAWEI","DENNIS ONEN",9062959262," ","MITS.L200"]
[null,null,null,null,null,null,null,null,null,null,13000]

{"sheet":"01-03-2019","index":213,"n_rows":12,"n_cols":18,"rows_kept":12,"cut":false,"hidden":false,"merged":[]}
[]
[]
[]
[]
[]
[null,null,null,null,null,null,null,null,"HUAWEI FUEL RETIREMENT FOR  01-03-2019 BY IKECHUKWU ROBERT E."]
[]
[null,null,"    Date","Vehicle Number","Filling Station","  Mileage","     Type","Quantity","Amount per Litre","TRACKING REPORT LITRE","Variance","            RATE","PURCHASE POINT","CONTRACT","   NAME","PHONE NO","COMMENT","VEHICLE MAKE"]
[null,null,"22/2/2019","AAA 257 XQ","TONIMAS",202097,"PETROL",21,145,13,8,3000,"ABA","HUAWEI","DENNIS OKEREKE ONEN",9062959262," ","MITS.L200"]
[null,null,"2019-01-03","AAA 257 XQ","MOBIL",202195,"PETROL",40,145,37,4,6000,"PHC","HUAWEI","ROLAND DONUBARI OPT",9062224683," ","MITS.L200"]
[]
[null,null,null,null,null,null,null,null,null,null," ",9000]

{"sheet":"06-03-2019","index":214,"n_rows":12,"n_cols":18,"rows_kept":12,"cut":false,"hidden":false,"merged":[]}
[]
[]
[]
[]
[]
[null,null,null,null,null,null,null,null,"HUAWEI FUEL RETIREMENT FOR  06-03-2019 BY IKECHUKWU ROBERT E."]
[]
[null,null,"    Date","Vehicle Number","Filling Station","  Mileage","     Type","Quantity","Amount per Litre","TRACKING REPORT LITRE","Variance","            RATE","PURCHASE POINT","CONTRACT","   NAME","PHONE NO","COMMENT","VEHICLE MAKE"]
[null,null,"2019-05-03","APP 67 XM","SOSO",115479,"PETROL",49,145,38,11,7000,"PHC","HUAWEI","ROLAND DONUBARI OPT",9062224683," ","TOYOTA HILUX"]
[null,null,"2019-06-03","KMC 44 XA","MOBIL",202195,"PETROL",35,145,30,5,5000,"UMUAHIA","HUAWEI","SANNI WILLIAMS",8166130748," ","TOYOTA HILUX"]
[]
[null,null,null,null,null,null,null,null,null,null," ",12000]

{"sheet":"07-03-2019","index":215,"n_rows":13,"n_cols":17,"rows_kept":13,"cut":false,"hidden":false,"merged":[]}
[]
[]
[]
[]
[]
[]
[null,null,null,null,null,null,null,"HUAWEI FUEL RETIREMENT FOR  08-03-2019 BY IKECHUKWU ROBERT E."]
[]
[null,"    Date","Vehicle Number","Filling Station","  Mileage","     Type","Quantity","Amount per Litre","TRACKING REPORT LITRE","Variance","            RATE","PURCHASE POINT","CONTRACT","   NAME","PHONE NO","COMMENT","VEHICLE MAKE"]
[null,"2019-07-03","APP 67 XM","SOSO",115853,"PETROL",35,145,27,8,5000,"PHC","HUAWEI","ROLAND DONUBARI OPT",9062224683," ","TOYOTA HILUX"]
[null,"2019-07-03","KMC 44 XA","MOBIL",247914,"PETROL",35,145,30,5,5000,"UMUAHIA","HUAWEI","SANNI WILLIAMS",8166130748," ","TOYOTA HILUX"]
[]
[null,null,null,null,null,null,null,null,null," ",10000]

{"sheet":"19-03-2019","index":216,"n_rows":14,"n_cols":17,"rows_kept":14,"cut":false,"hidden":false,"merged":[]}
[]
[]
[]
[]
[]
[null,null,null,null,null,null,null,"HUAWEI FUEL RETIREMENT FOR  19-03-2019 BY IKECHUKWU ROBERT E."]
[]
[null,"    Date","Vehicle Number","Filling Station","  Mileage","     Type","Quantity","Amount per Litre","TRACKING REPORT LITRE","Variance","            RATE","PURCHASE POINT","CONTRACT","   NAME","PHONE NO","COMMENT","VEHICLE MAKE"]
[null,"16/3/2019","LSR 993 XL","NIPPCO",149181,"PETROL",41,145,37,4,6000,"BENIN","HUAWEI","ADOYE DENIS",7034261584,null,"TOYOTA HILUX"]
[null,"18/3/2019","LSR 993 XL","NIPPCO",149503,"PETROL",41,145,44,3,6000,"BENIN","HUAWEI","ADOYE DENIS",7034261585,null,"TOYOTA HILUX"]
[null,"18/3/2019","AAA 637 XM","OANDO ",86402,"PETROL",34,145,17,17,5000,"ENUGU","HUAWEI","JOHN OKONKWO ",7067947392,"KINDLY DEDUCT N2,465.00 ","TOYOTA HILUX"]
[null,"19/3/2019","KMC 44 XA ","NGOZI PET",249222,"PETROL",34,145,25,9,5000,"UMUAHIA","HUAWEI","SANNI WILLIAMS",8025997693,"  ","TOYOTA HILUX"]
[null,"19/3/2019","KRD 89 XM","NDI CHUCKS",91255,"PETROL",28,145,28,0,4000,"PHC","HUAWEI","SUNDAY OGUNAIKE",8035263691," ","TOYOTA HILUX"]
[null,null,null,null,null,null,null,null,null,"TOTAL",26000]

{"sheet":"20-03-2019","index":217,"n_rows":12,"n_cols":18,"rows_kept":12,"cut":false,"hidden":false,"merged":[]}
[]
[]
[]
[]
[]
[null,null,null,null,null,null,null,null,"HUAWEI FUEL RETIREMENT FOR  20-03-2019 BY IKECHUKWU ROBERT E."]
[]
[null,null,"    Date","Vehicle Number","Filling Station","  Mileage","     Type","Quantity","Amount per Litre","TRACKING REPORT LITRE","Variance","            RATE","PURCHASE POINT","CONTRACT","   NAME","PHONE NO","COMMENT","VEHICLE MAKE"]
[null,null,"18/3/2019","LND 565 XM","PROPEL",185197,"PETROL",28,145,"NOT CAPTURED ",0,4000,"PHC","HUAWEI","CHIGOZIE AHANONU",8033255992,"NOT CAPTURED ON ZONMAX","MITS.L200"]
[null,null,"19/3/2019","LND 565 XM ","SOSO",185343,"PETROL",28,145,"NOT CAPTURED ",0,4000,"PHC","HUAWEI","CHIGOZIE AHANONU",8033255992,"NOT CAPTURED ON ZONMAX","MITS.L200"]
[null,null,"18/3/2019","AAA 637 XM","OANDO ",86402,"PETROL",41,145,22,19,6000,"ENUGU","HUAWEI","JOHN OKONKWOR ",7067947392,null,"TOYOTA HILUX"]
[null,null,null,null,null,null,null,null,null,null,"TOTAL",14000]

{"sheet":"21-03-2019","index":218,"n_rows":9,"n_cols":18,"rows_kept":9,"cut":false,"hidden":false,"merged":[]}
[" "]
[]
[]
[null,null,null,null,null,null,null,null,"HUAWEI FUEL RETIREMENT FOR  21-03-2019 BY IKECHUKWU ROBERT E."]
[]
[null,null,"    Date","Vehicle Number","Filling Station","  Mileage","     Type","Quantity","Amount per Litre","TRACKING REPORT LITRE","Variance","            RATE","PURCHASE POINT","CONTRACT","   NAME","PHONE NO","COMMENT","VEHICLE MAKE"]
[null,null,"20/3/2019","LSR 993 XL","NIPPCO",149824,"PETROL",28,145,26,2,4000,"BENIN","HUAWEI","ADOYE DENIS",7034261584,null,"TOYOTA HILUX"]
[]
[null,null,null,null,null,null,null,null,null,null,null,4000]

{"sheet":"27-03-2019","index":219,"n_rows":14,"n_cols":17,"rows_kept":14,"cut":false,"hidden":false,"merged":[]}
[]
[]
[]
[]
[]
[null,null,null,null,null,null,null,"HUAWEI FUEL RETIREMENT FOR  27-03-2019 BY IKECHUKWU ROBERT E."]
[]
[null,"    Date","Vehicle Number","Filling Station","  Mileage","     Type","Quantity","Amount per Litre","TRACKING REPORT LITRE","Variance","            RATE","PURCHASE POINT","CONTRACT","   NAME","PHONE NO","COMMENT","VEHICLE MAKE"]
[null,"26/3/2019","AAA 634 XM","PROPEL",133231,"PETROL",34,145,"NOT CAPTURED ",0,5000,"PHC","HUAWEI","CHIGOZIE AHANONU",8033255992,"NOT CAPTURED ON ZONMAX","MITS.L200"]
[null,"26/3/2019","AAA 637 XM","OANDO ",88468,"PETROL",41,145,11,30,6000,"ENUGU","HUAWEI","JOHN OKONKWOR ",7067947392,"KINDLY DEDUCT N4,350.00 ","TOYOTA HILUX"]
[null,"27/3/2020","AAA 637 XM","OANDO ",88601,"PETROL",41,145,39,2,6000,"ENUGU","HUAWEI","JOHN OKONKWOR ",7067947393,null,"TOYOTA HILUX"]
[null,"27/3/2019","KMC 44 XA","NGOZI PET",250481,"PETROL",34,145,26,8,5000,"UMUAHIA","HUAWEI","SANNI WILLIAMS",8166130748," ","TOYOTA HILUX"]
[null,"27/3/2019","LSR 993 XL","NIPPCO",151376,"PETROL",34,145,35,1,5000,"BENIN","HUAWEI","ADOYE DENIS",7034261584,null,"TOYOTA HILUX"]
[null,null,null,null,null,null,null,null,null,"TOTAL",27000]

{"sheet":"31-03-2019","index":220,"n_rows":12,"n_cols":18,"rows_kept":12,"cut":false,"hidden":false,"merged":[]}
[]
[]
[]
[]
[]
[null,null,null,null,null,null,null,"HUAWEI FUEL RETIREMENT FOR  31-03-2019 BY IKECHUKWU ROBERT E."]
[]
[null,"    Date","Vehicle Number","Filling Station","  Mileage","     Type","Quantity","Amount per Litre","TRACKING REPORT LITRE","Variance","            RATE","PURCHASE POINT","CONTRACT","   NAME","PHONE NO","COMMENT","VEHICLE MAKE"]
[null,"29/3/2019","MUS 844 XK","PROPEL",87818,"PETROL",34,145,"NOT CAPTURED ",0,5000,"PHC","HUAWEI","ONYEDIKACHI JOHN T.",7031747861,"KINDLY DEDUCT N5,000.00 ","TOYOTA HILUX","HUAWEI RELIEVE VEHICLE"]
[null,"31/3/2019","MUS 844 XK","SOSO",87932,"PETROL",34,145,33,1,5000,"PHC","HUAWEI","ONYEDIKACHI JOHN T.",7031747861," ","TOYOTA HILUX","HUAWEI RELIEVE VEHICLE"]
[]
[null,null,null,null,null,null,null,null,null,"TOTAL",10000]

{"sheet":"03-04-2019","index":221,"n_rows":12,"n_cols":18,"rows_kept":12,"cut":false,"hidden":false,"merged":[]}
[]
[]
[]
[]
[]
[null,null,null,null,null,null,null,"HUAWEI FUEL RETIREMENT FOR  3-04-2019 BY IKECHUKWU ROBERT E."]
[]
[null,"    Date","Vehicle Number","Filling Station","  Mileage","     Type","Quantity","Amount per Litre","TRACKING REPORT LITRE","Variance","            RATE","PURCHASE POINT","CONTRACT","   NAME","PHONE NO","COMMENT","VEHICLE MAKE"]
[null,"2019-02-04","MUS 844 XK","PROPEL",88086,"PETROL",34,145,34,0,5000,"PHC","HUAWEI","ONYEDIKACHI JOHN T.",7031747861,null,"TOYOTA HILUX","HUAWEI RELIEVE VEHICLE"]
[null,"2019-03-04","AAA 637 XM","OANDO ",89884,"PETROL",28,145,10,18,4000,"ENUGU","HUAWEI","JOHN OKONKWOR ",7067947392,"KINDLY DEDUCT N2,610.00 from the driver","TOYOTA HILUX"," "]
[]
[null,null,null,null,null,null,null,null,null,"TOTAL",9000]

{"sheet":"04-04-2019","index":222,"n_rows":9,"n_cols":18,"rows_kept":9,"cut":false,"hidden":false,"merged":[]}
[]
[]
[]
[]
[null,null,null,null,null,null,null,null,"HUAWEI FUEL RETIREMENT FOR  04-04-2019 BY IKECHUKWU ROBERT E."]
[]
[null,null,"    Date","Vehicle Number","Filling Station","  Mileage","     Type","Quantity","Amount per Litre","TRACKING REPORT LITRE","Variance","            RATE","PURCHASE POINT","CONTRACT","   NAME","PHONE NO","COMMENT","VEHICLE MAKE"]
[null,null,"2019-03-04","KRD 89 XM","NDI CHUCKS",92998,"PETROL",34,145,36.5,2.5,5000,"PHC","HUAWEI","SUNDAY OGUNAIKE",8035263691," ","TOYOTA HILUX"]
[null,null,null,null,null,null,null,null,null,null,"TOTAL",5000]

{"sheet":"08-04-2019","index":223,"n_rows":16,"n_cols":18,"rows_kept":16,"cut":false,"hidden":false,"merged":[]}
[]
[]
[]
[]
[]
[null,null,null,null,null,null,null,null,"HUAWEI FUEL RETIREMENT FOR  08-04-2019 BY IKECHUKWU ROBERT E."]
[]
[null,null,"    Date","Vehicle Number","Filling Station","  Mileage","     Type","Quantity","Amount per Litre","TRACKING REPORT LITRE","Variance","            RATE","PURCHASE POINT","CONTRACT","   NAME","PHONE NO","COMMENT","VEHICLE MAKE"]
[null,null,"2019-06-04","AAA 634 XM","SOSO",134257,"PETROL",28,145,15,13,4000,"PHC","HUAWEI","CHIGOZIE AHANONU",8033255992,"KINDLY DEDUCT N1,885.00 from the driver","TOYOTA HILUX"]
[null,null,"2019-06-04","AAA 637 XM","NNPC ",91101,"PETROL",62,145,54,8,9000,"ABUJA","HUAWEI","JOHN OKONKWOR ",7067947392," ","TOYOTA HILUX"]
[null,null,"2019-07-04","AAA 637 XM","NDY PET ",91413,"PETROL",21,145,7,14,3000,"ENUGU","HUAWEI","JOHN OKONKWOR ",7067947392,"KINDLY DEDUCT N2,030.00 from the driver","TOYOTA HILUX"]
[null,null,"2019-07-04","AAA 634 XM","NNPC ",134372,"PETROL",42,145,30,12,6000,"AHOADA","HUAWEI","CHIGOZIE AHANONU",8033255992,"KINDLY DEDUCT N1,740.00 from the driver","TOYOTA HILUX"]
[null,null,"2019-08-04","AAA 637 XM","NNPC ",91648,"PETROL",49,145,45,4,7000,"ENUGU","HUAWEI","JOHN OKONKWOR ",7067947392," ","TOYOTA HILUX"]
[null,null,"2019-08-04","KMC 44 XA","NGOZI PET",251769,"PETROL",35,145,26,9,5000,"UMUAHIA","HUAWEI","SANNI WILLIAMS",8166130748," ","TOYOTA HILUX"]
[null,null,"2019-08-04","AAA 634 XM","NNPC ",134600,"PETROL",28,145,20,8,4000,"AHOADA","HUAWEI","CHIGOZIE AHANONU",8033255992," ","TOYOTA HILUX"]
[null,null,null,null,null,null,null,null,null,null,"TOTAL",38000]

{"sheet":"09-04-2019","index":224,"n_rows":11,"n_cols":18,"rows_kept":11,"cut":false,"hidden":false,"merged":[]}
[]
[]
[]
[]
[]
[null,null,null,null,null,null,null,null,"HUAWEI FUEL RETIREMENT FOR  09-04-2019 BY IKECHUKWU ROBERT E."]
[]
[null,null,"    Date","Vehicle Number","Filling Station","  Mileage","     Type","Quantity","Amount per Litre","TRACKING REPORT LITRE","Variance","            RATE","PURCHASE POINT","CONTRACT","   NAME","PHONE NO","COMMENT","VEHICLE MAKE"]
[null,null,"2019-09-04","AAA 634 XM","SOSO",134733,"PETROL",41,145,30.5,10.5,6000,"PHC","HUAWEI","CHIGOZIE AHANONU",8033255992,"KINDLY DEDUCT N1,500.00 from the driver","TOYOTA HILUX"]
[null,null,"2019-09-04","KMC 44 XA","NGOZI PET",251968,"PETROL",34,145,25,9,5000,"UMUAHIA","HUAWEI","SANNI WILLIAMS",8166130748," ","TOYOTA HILUX"]
[null,null,null,null,null,null,null,null,null,null,"TOTAL",11000]

{"sheet":"10-04-2019","index":225,"n_rows":11,"n_cols":19,"rows_kept":11,"cut":false,"hidden":false,"merged":[]}
[]
[]
[]
[]
[]
[]
[null,null,null,null,null,null,null,null,null,"HUAWEI FUEL RETIREMENT FOR  10-04-2019 BY IKECHUKWU ROBERT E."]
[]
[null,null,null,"    Date","Vehicle Number","Filling Station","  Mileage","     Type","Quantity","Amount per Litre","TRACKING REPORT LITRE","Variance","            RATE","PURCHASE POINT","CONTRACT","   NAME","PHONE NO","COMMENT","VEHICLE MAKE"]
[null,null,null,"2019-10-04","KMC 44 XA","HUMMER PET",252176,"PETROL",34,145,27.5,6.5,5000,"UMUAHIA","HUAWEI","SANNI WILLIAMS",8166130748," ","TOYOTA HILUX"]
[null,null,null,null,null,null,null,null,null,null,null,"TOTAL",5000]

{"sheet":"16-04-2019","index":226,"n_rows":11,"n_cols":19,"rows_kept":11,"cut":false,"hidden":false,"merged":[]}
[]
[]
[]
[]
[]
[]
[null,null,null,null,null,null,null,null,null,"HUAWEI FUEL RETIREMENT FOR  16-04-2019 BY IKECHUKWU ROBERT E."]
[]
[null,null,null,"    Date","Vehicle Number","Filling Station","  Mileage","     Type","Quantity","Amount per Litre","TRACKING REPORT LITRE","Variance","            RATE","PURCHASE POINT","CONTRACT","   NAME","PHONE NO","COMMENT","VEHICLE MAKE"]
[null,null,null,"16/4/2019","KMC 44 XA","NGOZI PET",253421,"PETROL",34,145,24,10,5000,"UMUAHIA","HUAWEI","SANNI WILLIAMS",8166130748," ","TOYOTA HILUX"]
[null,null,null,null,null,null,null,null,null,null,null,"TOTAL",5000]

{"sheet":"17-04-2019","index":227,"n_rows":12,"n_cols":19,"rows_kept":12,"cut":false,"hidden":false,"merged":[]}
[]
[]
[]
[]
[]
[]
[]
[null,null,null,null,null,null,null,null,null,"HUAWEI FUEL RETIREMENT FOR  17-04-2019 BY IKECHUKWU ROBERT E."]
[]
[null,null,null,"    Date","Vehicle Number","Filling Station","  Mileage","     Type","Quantity","Amount per Litre","TRACKING REPORT LITRE","Variance","            RATE","PURCHASE POINT","CONTRACT","   NAME","PHONE NO","COMMENT","VEHICLE MAKE"]
[null,null,null,"17/4/2019","KMC 44 XA","NGOZI PET",253622,"PETROL",34,145,26,8,5000,"UMUAHIA","HUAWEI","SANNI WILLIAMS",8166130748," ","TOYOTA HILUX"]
[null,null,null,null,null,null,null,null,null,null,null,"TOTAL",5000]

{"sheet":" 23-04-2019","index":228,"n_rows":10,"n_cols":18,"rows_kept":10,"cut":false,"hidden":false,"merged":[]}
[]
[]
[]
[]
[null,null,null,null,null,null,null,null,"HUAWEI FUEL RETIREMENT FOR 23-04-2019 BY IKECHUKWU ROBERT E."]
[]
[null,null,"    Date","Vehicle Number","Filling Station","  Mileage","     Type","Quantity","Amount per Litre","TRACKING REPORT LITRE","Variance","            RATE","PURCHASE POINT","CONTRACT","   NAME","PHONE NO","COMMENT","VEHICLE MAKE"]
[null,null,"23/4/2019","KMC 44 XA","NGOZI PET",254390,"PETROL",41,145,19,22,6000,"UMUAHIA","HUAWEI","SANNI WILLIAMS",8166130748,"Kindly deduct N3,190.00 from the driver. ","TOYOTA HILUX"]
[null,null,"23/4/2019","LSR 993 XLL","NDI CHUCKS",154730,"PETROL",34,145,23,11,5000," OWERRI","HUAWEI","SUNDAY OGUNAIKE",8035263691," ","TOYOTA HILUX"]
[null,null,null,null,null,null,null,null,null,null,"TOTAL",11000]

{"sheet":"24-04-2019","index":229,"n_rows":10,"n_cols":17,"rows_kept":10,"cut":false,"hidden":false,"merged":[]}
[]
[]
[]
[]
[null,null,null,null,null,null,null,"HUAWEI FUEL RETIREMENT FOR 24-04-2019 BY IKECHUKWU ROBERT E."]
[]
[null,"    Date","Vehicle Number","Filling Station","  Mileage","     Type","Quantity","Amount per Litre","TRACKING REPORT LITRE","Variance","            RATE","PURCHASE POINT","CONTRACT","   NAME","PHONE NO","COMMENT","VEHICLE MAKE"]
[null,"24/4/2019","LSR 993 XLL","A. A. RANO",154909,"PETROL",34,145,23,11,5000," OWERRI","HUAWEI","SUNDAY OGUNAIKE",8035263691,"Kindly deduct N3,190.00 from the driver. ","TOYOTA HILUX"]
[null,"24/4/2019","AAA 645 XM","ETERNA",149378,"PETROL",28,145,29,1,4000,"PHC","HUAWEI","ONYEDIKACHI THADDAEUS",7031747861," ","TOYOTA HILUX"]
[null,null,null,null,null,null,null,null,null,"TOTAL",9000]

{"sheet":" 26-04-2019","index":230,"n_rows":7,"n_cols":17,"rows_kept":7,"cut":false,"hidden":false,"merged":[]}
[]
[]
[null,null,null,null,null,null,null,"HUAWEI FUEL RETIREMENT FOR 26-04-2019 BY IKECHUKWU ROBERT E."]
[]
[null,"    Date","Vehicle Number","Filling Station","  Mileage","     Type","Quantity","Amount per Litre","TRACKING REPORT LITRE","Variance","            RATE","PURCHASE POINT","CONTRACT","   NAME","PHONE NO","COMMENT","VEHICLE MAKE"]
[null,"26/4/2019","LSR 993 XLL","CHITEX B.",155023,"PETROL",41,145,24.5,16.5,6000," OWERRI","HUAWEI","SUNDAY OGUNAIKE",8035263691,"Kindly deduct N2,392.00 from the driver. ","TOYOTA HILUX"]
[null,null,null,null,null,null,null,null,null,"TOTAL",6000]

{"sheet":"29-04-2019","index":231,"n_rows":11,"n_cols":18,"rows_kept":11,"cut":false,"hidden":false,"merged":[]}
[]
[]
[]
[]
[]
[null,null,null,null,null,null,null,null,"HUAWEI FUEL RETIREMENT FOR  29-04-2019 BY IKECHUKWU ROBERT E."]
[]
[null,null,"    Date","Vehicle Number","Filling Station","  Mileage","     Type","Quantity","Amount per Litre","TRACKING REPORT LITRE","Variance","            RATE","PURCHASE POINT","CONTRACT","   NAME","PHONE NO","COMMENT","VEHICLE MAKE"]
[null,null,"28/4/2019","XC 288 YRE","NGOZI PET",230828,"PETROL",34,145,17,17,5000,"UMUAHIA","HUAWEI","SANNI WILLIAMS",8166130748,"Kindly deduct N2,465.00 from the driver. ","MITS.L200 "]
[null,null,"29/4/2020","XC 288 YRE ","HUMMER PET",231031,"PETROL",34,145,13,21,5000,"UMUAHIA","HUAWEI","SANNI WILLIAMS",8166130749,"Kindly deduct N3,045.00 from the driver. ","MITS.L200"]
[null,null,null,null,null,null,null,null,null,null,"TOTAL",10000]

{"sheet":" 03-05-2019","index":232,"n_rows":16,"n_cols":18,"rows_kept":16,"cut":false,"hidden":false,"merged":[]}
[]
[]
[]
[]
[null,null,null,null,null,null,null,null,"HUAWEI FUEL RETIREMENT FOR  03-05-2019 BY IKECHUKWU ROBERT E."]
[]
[null,null,"    Date","Vehicle Number","Filling Station","  Mileage","     Type","Quantity","Amount per Litre","TRACKING REPORT LITRE","Variance","            RATE","PURCHASE POINT","CONTRACT","   NAME","PHONE NO","COMMENT","VEHICLE MAKE"]
[null,null,"2019-02-05","KRD 337 XB","ETERNA ",63256,"PETROL",28,145,"NOT CAPTURED ",0,4000,"PHC ","HUAWEI"," EMMANUEL DIDI",8134352565,"CURRENTLY OFF-LINE","TOYOTAHILUX "]
[null,null,"2019-02-05"," AAB 142 YJ","ETERNA ",34339,"PETROL",28,145,"NOT CAPTURED ",0,4000,"PHC","HUAWEI","GODSTIME CHIMA W.",8104276284,"CURRENTLY OFF-LINE","TOYOTA HILUX "]
[null,null,"2019-02-05","SMK 834 FR ","ETERNA ",23558,"PETROL",34,145,40,6,5000,"PHC ","HUAWEI","OKEREKE CHUKWUEMEKA C.",8058390628," ","TOYOTA HILUX "]
[null,null,"2019-03-05","KSF 739 XY ","SOSO",79415,"PETROL",41,145,33,8,6000,"PHC ","HUAWEI","JAMES ALECHENU",null," ","MITS.L200"]
[null,null,null,null,null,null,null,null,null,null,"TOTAL",19000]
[]
[]
[]
[null,null,null,null,null,null,null,null,null,null,null,null,null,null,null,null," "]

{"sheet":"04-05-2019","index":233,"n_rows":10,"n_cols":18,"rows_kept":10,"cut":false,"hidden":false,"merged":[]}
[]
[]
[]
[]
[null,null,null,null,null,null,null,null,"HUAWEI FUEL RETIREMENT FOR  04-05-2019 BY IKECHUKWU ROBERT E."]
[]
[null,null,"    Date","Vehicle Number","Filling Station","  Mileage","     Type","Quantity","Amount per Litre","TRACKING REPORT LITRE","Variance","            RATE","PURCHASE POINT","CONTRACT","   NAME","PHONE NO","COMMENT","VEHICLE MAKE"]
[null,null,"2019-03-05","KRD 337 XB","ETERNA ",86347,"PETROL",34,145,"NOT CAPTURED ",0,5000,"PHC ","HUAWEI"," EMMANUEL DIDI",8134352565,"CITRACKS PHC ARE STILL TRYING TO RECTIFY THE ISSUE","TOYOTAHILUX "]
[null,null,"2019-03-05","KSF 739 XY ","SOSO",79689,"PETROL",34,145,28,6,5000,"PHC ","HUAWEI","JAMES ALECHENU",null," ","MITS.L200"]
[null,null,null,null,null,null,null,null,null,null,"TOTAL",10000]

{"sheet":"07-05-2019","index":234,"n_rows":16,"n_cols":17,"rows_kept":16,"cut":false,"hidden":false,"merged":[]}
[]
[]
[]
[]
[null,null,null,null,null,null,null,"HUAWEI FUEL RETIREMENT FOR  07-05-2019 BY IKECHUKWU ROBERT E."]
[]
[null,"    Date","Vehicle Number","Filling Station","  Mileage","     Type","Quantity","Amount per Litre","TRACKING REPORT LITRE","Variance","            RATE","PURCHASE POINT","CONTRACT","   NAME","PHONE NO","COMMENT","VEHICLE MAKE"]
[null,"2019-03-05","EPE 474 XB","ETERNA ",63289,"PETROL",41,145,"NOT CAPTURED ",0,6000,"PHC ","HUAWEI"," EMMANUEL DIDI",8134352565,"CITRACKS PHC ARE STILL TRYING TO RECTIFY THE ISSUE","TOYOTAHILUX "]
[null,"2019-04-05","KSF 739 XY ","SOSO",79879,"PETROL",14,145,11,3,2000,"PHC ","HUAWEI","JAMES ALECHENU",null," ","MITS.L200"]
[null,"2019-06-05","KRD 337 XB","ETERNA ",86347,"PETROL",34,145,"NOT CAPTURED ",0,5000,"PHC ","HUAWEI"," EMMANUEL DIDI",8134352565,"YET TO BE TRANSFERRED TO MY ZON PLATFORM","TOYOTAHILUX "]
[null,"2019-06-05","KSF 739 XY ","ETERNA ",78006,"PETROL",14,145,13,1,2000,"PHC ","HUAWEI","JAMES ALECHENU",null," ","MITS.L200"]
[null,"2019-06-05","SMK 834 FR ","TONY OIL",23611,"PETROL",34,145,35,1,5000,"OWERRI","HUAWEI","OKEREKE CHUKWUEMEKA C.",8058390628," ","TOYOTA HILUX "]
[null,"2019-07-05","KSF 739 XY ","ETERNA",80249,"PETROL",28,145,21,7,4000,"PHC ","HUAWEI","JAMES ALECHENU",null," ","MITS.L200"]
[null,"2019-06-05","LSR 998 XLL","NDI CHUCKS",180620,"PETROL",7,145,6,1,1000," OWERRI","HUAWEI","SUNDAY OGUNAIKE",8035263691," ","TOYOTA HILUX"]
[null,"2019-07-05","LSR 998 XLL","NDI CHUCKS",180633,"PETROL",21,145,23,20,3000," OWERRI","HUAWEI","SUNDAY OGUNAIKE",8035263692," ","TOYOTA HILUX"]
[null,null,null,null,null,null,null,null,null,"TOTAL",28000]

{"sheet":"10-05-2019","index":235,"n_rows":18,"n_cols":17,"rows_kept":18,"cut":false,"hidden":false,"merged":[]}
[]
[]
[]
[]
[]
[null,null,null,null,null,null,null,"HUAWEI FUEL RETIREMENT FOR  10-05-2019 BY IKECHUKWU ROBERT E."]
[]
[null,"    Date","Vehicle Number","Filling Station","  Mileage","     Type","Quantity","Amount per Litre","TRACKING REPORT LITRE","Variance","            RATE","PURCHASE POINT","CONTRACT","   NAME","PHONE NO","COMMENT","VEHICLE MAKE"]
[null,"2019-08-05","KRD 337 XB","ETERNA ",86581,"PETROL",28,145,"NOT CAPTURED ",0,4000,"PHC ","HUAWEI","DIDI SOLOMON",8134352565,"YET TO BE TRANSFERRED TO MY ZON PLATFORM","TOYOTAHILUX "]
[null,"2019-08-05","KSF 739 XY ","SOSO",80311,"PETROL",14,145,12,2,2000,"PHC ","HUAWEI","JAMES ALECHENU",8077006442," ","MITS.L200"]
[null,"2019-08-05","KSF 739 XY ","ETERNA",80467,"PETROL",14,145,15,1,2000,"PHC ","HUAWEI","JAMES ALECHENU",8077006442," ","MITS.L200"]
[null,"2019-07-05","LSR 998 XLL","NDI CHUCKS",182741,"PETROL",14,145,7,7,2000," OWERRI","HUAWEI","SUNDAY OGUNAIKE",8035263692," ","TOYOTA HILUX"]
[null,"2019-08-05","LSR 998 XLL","NDI CHUCKS",182903,"PETROL",21,145,20,20,3000," OWERRI","HUAWEI","SUNDAY OGUNAIKE",8035263692," ","TOYOTA HILUX"]
[null,"2019-08-05","XC 288 YRE","HUMMER",231841,"PETROL",34,145,26,12,5000,"UMUAHIA","HUAWEI","SANNI WILLIAMS",8166130749,"Kindly deduct N1.740.00 from the driver. ","MITS.L200"]
[null,"2019-09-05","KRD 337 XB","FO",86763,"PETROL",34,145,"NOT CAPTURED ",0,5000,"PHC ","HUAWEI","DIDI SOLOMON",8134352565,"YET TO BE TRANSFERRED TO MY ZON PLATFORM","TOYOTAHILUX "]
[null,"2019-09-05","KSF 739 XY ","SOSO",80572,"PETROL",48,145,36,12,7000,"PHC ","HUAWEI","JAMES ALECHENU",8077006442,"Kindly deduct N1.740.00 from the driver. ","MITS.L200"]
[null,"2019-10-05","KRD 337 XB","MOBIL",86844,"PETROL",34,145,"NOT CAPTURED ",0,5000,"PHC ","HUAWEI","DIDI SOLOMON",8134352565,"YET TO BE TRANSFERRED TO MY ZON PLATFORM","TOYOTAHILUX "]
[null,null,null,null,null,null,null,null,null,"TOTAL",35000]

{"sheet":"13-05-2019","index":236,"n_rows":16,"n_cols":17,"rows_kept":16,"cut":false,"hidden":false,"merged":[]}
[]
[]
[]
[]
[]
[]
[null,null,null,null,null,null,null,"HUAWEI FUEL RETIREMENT FOR  13-05-2019 BY IKECHUKWU ROBERT E."]
[]
[null,"    Date","Vehicle Number","Filling Station","  Mileage","     Type","Quantity","Amount per Litre","TRACKING REPORT LITRE","Variance","            RATE","PURCHASE POINT","CONTRACT","   NAME","PHONE NO","COMMENT","VEHICLE MAKE"]
[null,"2019-09-05","LSR 998 XLL","NDI CHUCKS",183110,"PETROL",34,145,14,24,5000," OWERRI","HUAWEI","SUNDAY OGUNAIKE",8035263692,"Kindly deduct N2,900.00 from the driver. ","TOYOTA HILUX"]
[null,"2019-11-05","KSF 739 XY ","SOSO",80747,"PETROL",34,145,25,9,5000,"OWERRI ","HUAWEI","JAMES ALECHENU",8077006442,"Kindly deduct N1,305.00 from the driver. ","MITS.L200"]
[null,"2019-11-05","KRD 337 XB"," FO",86918,"PETROL",34,145,"NOT CAPTURED ",0,5000,"PHC ","HUAWEI","DIDI SOLOMON",8134352565,"YET TO BE TRANSFERRED TO MY ZON PLATFORM","TOYOTAHILUX "]
[null,"13/5/2019","KSF 739 XY ","M R S",81071,"PETROL",28,145,19,9,4000,"PHC ","HUAWEI","JAMES ALECHENU",8077006442,"Kindly deduct N1,305.00 from the driver. ","MITS.L200"]
[null,"13/5/2019","KRD 337 XB","ETERNA",87064,"PETROL",34,145,"NOT CAPTURED ",0,4000,"PHC ","HUAWEI","DIDI SOLOMON",8134352565,"YET TO BE TRANSFERRED TO MY ZON PLATFORM","TOYOTAHILUX "]
[]
[null,null,null," ",null,null,null,null,null,"TOTAL",23000]

{"sheet":"14-05-2019","index":237,"n_rows":12,"n_cols":18,"rows_kept":12,"cut":false,"hidden":false,"merged":[]}
[]
[]
[]
[]
[]
[null,null,null,null,null,null,null,null,"HUAWEI FUEL RETIREMENT FOR  14-05-2019 BY IKECHUKWU ROBERT E."]
[]
[null,null,"    Date","Vehicle Number","Filling Station","  Mileage","     Type","Quantity","Amount per Litre","TRACKING REPORT LITRE","Variance","            RATE","PURCHASE POINT","CONTRACT","   NAME","PHONE NO","COMMENT","VEHICLE MAKE"]
[null,null,"14/5/2019","KSF 739 XY ","MOBIL",81337,"PETROL",34,145,28,6,5000,"PHC ","HUAWEI","JAMES ALECHENU",8077006442,null,"MITS.L200"]
[null,null,"14/5/2019","KRD 337 XB","ETERNA",87130,"PETROL",28,145,"NOT CAPTURED ",0,4000,"PHC ","HUAWEI","DIDI SOLOMON",8134352565,"YET TO BE TRANSFERRED TO MY ZON PLATFORM","TOYOTAHILUX "]
[]
[null,null,null,null," ",null,null,null,null,null,"TOTAL",9000]

{"sheet":"15-05-2019","index":238,"n_rows":12,"n_cols":17,"rows_kept":12,"cut":false,"hidden":false,"merged":[]}
[]
[]
[]
[]
[null,null,null,null,null,null,null,"HUAWEI FUEL RETIREMENT FOR  15-05-2019 BY IKECHUKWU ROBERT E."]
[]
[null,"    Date","Vehicle Number","Filling Station","  Mileage","     Type","Quantity","Amount per Litre","TRACKING REPORT LITRE","Variance","            RATE","PURCHASE POINT","CONTRACT","   NAME","PHONE NO","COMMENT","VEHICLE MAKE"]
[null,"15/5/2019","KSF 739 XY ","MOBIL",81515,"PETROL",14,145,13,1,2000,"PHC ","HUAWEI","JAMES ALECHENU",8077006442,null,"MITS.L200"]
[null,"15/5/2020","KSF 739 XY ","MOBIL",81646,"PETROL",28,145,19,9,4000,"PHC ","HUAWEI","JAMES ALECHENU",8077006443,null,"MITS.L201"]
[null,"15/5/2019","KRD 337 XB","ETERNA",87279,"PETROL",28,145,"NOT CAPTURED ",0,4000,"PHC ","HUAWEI","DIDI SOLOMON",8134352565,"YET TO BE TRANSFERRED TO MY ZON PLATFORM","TOYOTAHILUX "]
[]
[null,null,null," ",null,null,null,null,null,"TOTAL",10000]

{"sheet":"16-05-2019","index":239,"n_rows":13,"n_cols":17,"rows_kept":13,"cut":false,"hidden":false,"merged":[]}
[]
[]
[]
[]
[]
[null,null,null,null,null,null,null,"HUAWEI FUEL RETIREMENT FOR  16-05-2019 BY IKECHUKWU ROBERT E."]
[]
[null,"    Date","Vehicle Number","Filling Station","  Mileage","     Type","Quantity","Amount per Litre","TRACKING REPORT LITRE","Variance","            RATE","PURCHASE POINT","CONTRACT","   NAME","PHONE NO","COMMENT","VEHICLE MAKE"]
[null,"15/5/2019","LSR 998 XL "," ND PET",183792,"PETROL",14,145," NOT CAPTURED",0,3000,"OWERRI","HUAWEI","SUNDAY OGUNAIKE",8035263692,null,"MITS.L201"]
[null,"16/5/2019","KSF 739 XY ","MOBIL",81515,"PETROL",41,145,30,11,6000,"PHC ","HUAWEI","JAMES ALECHENU",8077006442,"Kindly deduct N1.595.00 from the driver. ","MITS.L200"]
[null,"16/5/2019","KRD 337 XB","ETERNA",87279,"PETROL",34,145,"NOT CAPTURED ",0,5000,"PHC ","HUAWEI","DIDI SOLOMON",8134352565,"YET TO BE TRANSFERRED TO MY ZON PLATFORM","TOYOTAHILUX "]
[]
[null,null,null," ",null,null,null,null,null,"TOTAL",14000]

{"sheet":"17-05-2019","index":240,"n_rows":29,"n_cols":18,"rows_kept":29,"cut":false,"hidden":false,"merged":[]}
[]
[]
[]
[]
[]
[null,null,null,null,null,null,null,null,"HUAWEI FUEL RETIREMENT FOR  17-05-2019 BY IKECHUKWU ROBERT E."]
[]
[null,null,"    Date","Vehicle Number","Filling Station","  Mileage","     Type","Quantity","Amount per Litre","TRACKING REPORT LITRE","Variance","            RATE","PURCHASE POINT","CONTRACT","   NAME","PHONE NO","COMMENT","VEHICLE MAKE"]
[null,null,"15/5/2019","EPE 474 XB","ONYI ENT",62911,"PETROL",21,145,"NOT CAPTURED ",0,3000,"OWERRI","HUAWEI","OKOAFOR CHINONSO",8035263692,"NOT CAPTURED (CITRACKS STILL WORKING ON IT)","TOYOTA HILUX"]
[null,null,"17/5/2019","KSF 739 XY ","MOBIL",82080,"PETROL",41,145,29,12,6000,"PHC ","HUAWEI","JAMES ALECHENU",8077006442,"Kindly deduct N1.740.00 from the driver. ","MITS.L200"]
[null,null,"17/5/2019","KRD 337 XB","ETERNA",87304,"PETROL",28,145,"NOT CAPTURED ",0,4000,"PHC ","HUAWEI","DIDI SOLOMON",8134352565,"CITRACKS STILL WORKING ON DEVICE","TOYOTAHILUX "]
[null,null,"17/5/2019","AAB 142 YJ","ONYI ENT",62911,"PETROL",41,145,"NOT CAPTURED ",0,5000,"PHC ","HUAWEI","OKOAFOR CHINONSO",8035263692,"STILL BEING RECTIFIED BY CITRACKS PHC TEAM","TOYOTA HILUX"]
[null,null,"17/5/2019","EPE 474 XB","ETERNA",63130,"PETROL",34,145,"NOT CAPTURED ",0,5000,"OWERRI","HUAWEI","SUNDAY OGUNAIKE",8035263692,"NOT CAPTURED (CITRACKS STILL WORKING ON IT)","TOYOTA HILUX"]
[null,null,null,null," ",null,null,null,null,null,"TOTAL",23000]
[]
[]
[null,null,null,null,null,null,null,null,null,null,null,null,null," "]
[]
[]
[]
[]
[]
[]
[]
[]
[]
[]
[]
[null,null," "]

{"sheet":"18-05-2019","index":241,"n_rows":11,"n_cols":18,"rows_kept":11,"cut":false,"hidden":false,"merged":[]}
[]
[]
[]
[]
[null,null,null,null,null,null,null,null,"HUAWEI FUEL RETIREMENT FOR  18-05-2019 BY IKECHUKWU ROBERT E."]
[]
[null,null,"    Date","Vehicle Number","Filling Station","  Mileage","     Type","Quantity","Amount per Litre","TRACKING REPORT LITRE","Variance","            RATE","PURCHASE POINT","CONTRACT","   NAME","PHONE NO","COMMENT","VEHICLE MAKE"]
[null,null,"18/5/2019","KSF 739 XY ","MOBIL",82347,"PETROL",28,145,19,9,4000,"PHC ","HUAWEI","JAMES ALECHENU",8077006442," ","MITS.L200"]
[null,null,"18/5/2019","KRD 337 XB","ETERNA",87398,"PETROL",28,145,"NOT CAPTURED ",0,4000,"PHC ","HUAWEI","DIDI SOLOMON",8134352565,"CITRACKS STILL WORKING ON DEVICE","TOYOTAHILUX "]
[null,null,"18/5/2019","EPE 474 XB","ETERNA",63298,"PETROL",28,145,"NOT CAPTURED ",0,4000,"OWERRI","HUAWEI","SUNDAY OGUNAIKE",8035263692,"NOT CAPTURED (CITRACKS STILL WORKING ON IT)","TOYOTA HILUX"]
[null,null,null,null," ",null,null,null,null,null,"TOTAL",12000]

{"sheet":"20-05-2019","index":242,"n_rows":15,"n_cols":17,"rows_kept":15,"cut":false,"hidden":false,"merged":[]}
[]
[]
[]
[]
[]
[null,null,null,null,null,null,null,"HUAWEI FUEL RETIREMENT FOR  20-05-2019 BY IKECHUKWU ROBERT E."]
[]
[null,"    Date","Vehicle Number","Filling Station","  Mileage","     Type","Quantity","Amount per Litre","TRACKING REPORT LITRE","Variance","            RATE","PURCHASE POINT","CONTRACT","   NAME","PHONE NO","COMMENT","VEHICLE MAKE"]
[null,"19/5/2019","KSF 739 XY ","MOBIL",82488,"PETROL",21,145,19,2,3000,"AHOADA","HUAWEI","JAMES ALECHENU",8077006442," ","MITS.L200"]
[null,"19/5/2019","KSF 739 XY ","MOBIL",82579,"PETROL",14,145,9,5,2000,"UGHELLI ","HUAWEI","JAMES ALECHENU",8077006442," ","MITS.L200"]
[null,"20/5/2019","KSF 739 XY ","MOBIL",82859,"PETROL",34,145,31,3,5000,"PHC ","HUAWEI","JAMES ALECHENU",8077006442," ","MITS.L200"]
[null,"20/5/2019","KRD 337 XB","ETERNA",87409,"PETROL",28,145,"NOT CAPTURED ",0,4000,"PHC ","HUAWEI","DIDI SOLOMON",8134352565,"CITRACKS STILL WORKING ON DEVICE","TOYOTAHILUX "]
[null,"20/5/2019","EPE 474 XB","NDU CHUCKS",63472,"PETROL",28,145,"NOT CAPTURED ",0,4000,"OWERRI","HUAWEI","SUNDAY OGUNAIKE",8035263692,"NOT CAPTURED (CITRACKS STILL WORKING ON IT)","TOYOTA HILUX"]
[null,"20/5/2019","AAB 142 YJ","ONYI ENT",34846,"PETROL",28,145,"NOT CAPTURED ",0,4000,"OWERRI","HUAWEI","OKOAFOR CHINONSO",8035263692,"STILL BEING RECTIFIED BY CITRACKS PHC TEAM","TOYOTA HILUX"]
[null,null,null," ",null,null,null,null,null,"TOTAL",22000]

{"sheet":"21-05-2019","index":243,"n_rows":12,"n_cols":18,"rows_kept":12,"cut":false,"hidden":false,"merged":[]}
[]
[]
[]
[]
[]
[null,null,null,null,null,null,null,null,"HUAWEI FUEL RETIREMENT FOR  21-05-2019 BY IKECHUKWU ROBERT E."]
[]
[null,null,"    Date","Vehicle Number","Filling Station","  Mileage","     Type","Quantity","Amount per Litre","TRACKING REPORT LITRE","Variance","            RATE","PURCHASE POINT","CONTRACT","   NAME","PHONE NO","COMMENT","VEHICLE MAKE"]
[null,null,"21/5/2019","KRD 337 XB","FO ",87486,"PETROL",28,145,"NOT CAPTURED ",0,5000,"PHC ","HUAWEI","DIDI SOLOMON",8134352565,"CITRACKS STILL WORKING ON DEVICE","TOYOTAHILUX "]
[null,null,"21/5/2019","EPE 474 XB"," NDU PET",63652,"PETROL",28,145,"NOT CAPTURED ",0,5000,"OWERRI","HUAWEI","SUNDAY OGUNAIKE",8035263692,"NOT CAPTURED (CITRACKS STILL WORKING ON IT)","TOYOTA HILUX"]
[null,null,"21/5/2019","AAB 142 YJ","EMPEROR",34896,"PETROL",28,145,"NOT CAPTURED ",0,4000,"OWERRI","HUAWEI","OKOAFOR CHINONSO",8035263692,"STILL BEING RECTIFIED BY CITRACKS PHC TEAM","TOYOTA HILUX"]
[null,null,null,null," ",null,null,null,null,null,"TOTAL",14000]

{"sheet":"22-05-2019","index":244,"n_rows":12,"n_cols":17,"rows_kept":12,"cut":false,"hidden":false,"merged":[]}
[]
[]
[]
[]
[]
[null,null,null,null,null,null,null,"HUAWEI FUEL RETIREMENT FOR  22-05-2019 BY IKECHUKWU ROBERT E."]
[]
[null,"    Date","Vehicle Number","Filling Station","  Mileage","     Type","Quantity","Amount per Litre","TRACKING REPORT LITRE","Variance","            RATE","PURCHASE POINT","CONTRACT","   NAME","PHONE NO","COMMENT","VEHICLE MAKE"]
[null,"22/5/2019","EPE 474 XB"," NDU PET",63792,"PETROL",28,145,"NOT CAPTURED ",0,5000,"OWERRI","HUAWEI","SUNDAY OGUNAIKE",8035263692,"NOT CAPTURED (CITRACKS STILL WORKING ON IT)","TOYOTA HILUX"]
[null,"22/5/2019","AAB 142 YJ","EMPEROR",34922,"PETROL",28,145,"NOT CAPTURED ",0,4000,"ONITSHA","HUAWEI","OKOAFOR CHINONSO",8035263692,"STILL BEING RECTIFIED BY CITRACKS PHC TEAM","TOYOTA HILUX"]
[null,"22/5/2019","KRD 337 XB","OANDO",87529,"PETROL",28,145,"NOT CAPTURED ",0,4000,"PHC ","HUAWEI","DIDI SOLOMON",8134352565,"CITRACKS STILL WORKING ON DEVICE","TOYOTAHILUX "]
[null,null,null," ",null,null,null,null,null,"TOTAL",13000]

{"sheet":"24-05-2019","index":245,"n_rows":10,"n_cols":17,"rows_kept":10,"cut":false,"hidden":false,"merged":[]}
[]
[]
[]
[]
[]
[null,null,null,null,null,null,null,"HUAWEI FUEL RETIREMENT FOR  24-05-2019 BY IKECHUKWU ROBERT E."]
[]
[null,"    Date","Vehicle Number","Filling Station","  Mileage","     Type","Quantity","Amount per Litre","TRACKING REPORT LITRE","Variance","            RATE","PURCHASE POINT","CONTRACT","   NAME","PHONE NO","COMMENT","VEHICLE MAKE"]
[null,"23/5/2019","AGL 924 FH","FO",33316,"PETROL",34,145,40,6,5000,"PHC","HUAWEI","CHRISTIAN AYAEHIE",8132839806,null,"TOYOTA HILUX"]
[null,null,null," ",null,null,null,null,null,"TOTAL",5000]

{"sheet":"30-05-2019","index":246,"n_rows":11,"n_cols":17,"rows_kept":11,"cut":false,"hidden":false,"merged":[]}
[]
[]
[]
[]
[]
[null,null,null,null,null,null,null,"HUAWEI FUEL RETIREMENT FOR  30-05-2019 BY IKECHUKWU ROBERT E."]
[]
[null,"    Date","Vehicle Number","Filling Station","  Mileage","     Type","Quantity","Amount per Litre","TRACKING REPORT LITRE","Variance","            RATE","PURCHASE POINT","CONTRACT","   NAME","PHONE NO","COMMENT","VEHICLE MAKE"]
[null,"27/5/2019","AGL 924 FH","MRS",33656,"PETROL",28,145,"NOT CAPTURED",0,4000,"PHC","HUAWEI","CHRISTIAN AYAEHIE",8132839806,null,"TOYOTA HILUX"]
[null,"30/5/2020","AGL 924 FH","MOBIL",33317,"PETROL",28,145,"NOT CAPTURED",0,4000,"PHC","HUAWEI","CHRISTIAN AYAEHIE",8132839807,null,"TOYOTA HILUX"]
[null,null,null," ",null,null,null,null,null,"TOTAL",8000]

{"sheet":"02-06-2019","index":247,"n_rows":11,"n_cols":17,"rows_kept":11,"cut":false,"hidden":false,"merged":[]}
[]
[]
[]
[]
[null,null,null,null,null,null,null,"HUAWEI FUEL RETIREMENT FOR  02-06-2019 BY IKECHUKWU ROBERT E."]
[]
[null,"    Date","Vehicle Number","Filling Station","  Mileage","     Type","Quantity","Amount per Litre","TRACKING REPORT LITRE","Variance","            RATE","PURCHASE POINT","CONTRACT","   NAME","PHONE NO","COMMENT","VEHICLE MAKE"]
[null,"31/5/2019","AGL 924 FH","MRS",33830,"PETROL",34,145,13,21,5000,"PHC","HUAWEI","CHRISTIAN AYAEHIE",8132839806,"Kindly deduct N3,045.00 from the driver. ","TOYOTA HILUX"]
[null,"2019-01-06","AGL 924 FH","MOBIL",33885,"PETROL",41,145,36,5,6000,"PHC","HUAWEI","CHRISTIAN AYAEHIE",8132839807,null,"TOYOTA HILUX"]
[null,"2019-01-06","AGL 924 FH","MOBIL",34219,"PETROL",28,145,22,6,4000,"PHC","HUAWEI","CHRISTIAN AYAEHIE",8132839808,null,"TOYOTA HILUX"]
[null,null,null," ",null,null,null,null,null,"TOTAL",15000]

{"sheet":"4-06-2019","index":248,"n_rows":9,"n_cols":17,"rows_kept":9,"cut":false,"hidden":false,"merged":[]}
[]
[]
[]
[null,null,null,null,null,null,null,"HUAWEI FUEL RETIREMENT FOR  04-06-2019 BY IKECHUKWU ROBERT E."]
[]
[null,"    Date","Vehicle Number","Filling Station","  Mileage","     Type","Quantity","Amount per Litre","TRACKING REPORT LITRE","Variance","            RATE","PURCHASE POINT","CONTRACT","   NAME","PHONE NO","COMMENT","VEHICLE MAKE"]
[null,"2019-03-06","AGL 924 FH","MOBIL",34341,"PETROL",41,145,43.5,2.5,4000,"PHC","HUAWEI","GODSTIME CHIOMA W.",8104276284,null,"TOYOTA HILUX"]
[null,"2019-04-06","EPE 474 XB","NDU ENT",65223,"PETROL",28,145,"NOT CAPTURED ",0,4000,"OWERRI","HUAWEI","SUNDAY OGUNAIKE",8035263692,null,"TOYOTA HILUX"]
[null,null,null," ",null,null,null,null,null,"TOTAL",10000]

{"sheet":"06-06-2019","index":249,"n_rows":12,"n_cols":17,"rows_kept":12,"cut":false,"hidden":false,"merged":[]}
[]
[]
[]
[]
[]
[null,null,null,null,null,null,null,"HUAWEI FUEL RETIREMENT FOR  06-06-2019 BY IKECHUKWU ROBERT E."]
[]
[null,"    Date","Vehicle Number","Filling Station","  Mileage","     Type","Quantity","Amount per Litre","TRACKING REPORT LITRE","Variance","            RATE","PURCHASE POINT","CONTRACT","   NAME","PHONE NO","COMMENT","VEHICLE MAKE"]
[null,"2019-05-06","EPE 474 XB","NDU ENT",65340,"PETROL",41,145,"NOT CAPTURED ",0,6000,"OWERRI","HUAWEI","SUNDAY OGUNAIKE",8035263692,"NOT CAPTURED (CITRACKS STILL WORKING ON IT)","TOYOTA HILUX"]
[null,"2019-05-06","KRD 337 XB","MRS",88422,"PETROL",28,145,"NOT CAPTURED ",0,4000,"PHC","HUAWEI","DIDI SOLOMON",8134352565,"NOT CAPTURED (CITRACKS STILL WORKING ON IT)","TOYOTA HILUX"]
[null,"2019-06-06","EPE 474 XB","ERU PET",65528,"PETROL",28,145,"NOT CAPTURED ",0,4000,"OWERRI","HUAWEI","SUNDAY OGUNAIKE",8035263692,"NOT CAPTURED (CITRACKS STILL WORKING ON IT)","TOYOTA HILUX"]
[null,null,null," ",null,null,null,null,null,"TOTAL",14000]

{"sheet":"10-06-2019","index":250,"n_rows":12,"n_cols":18,"rows_kept":12,"cut":false,"hidden":false,"merged":[]}
[]
[]
[]
[]
[]
[]
[null,null,null,null,null,null,null,null,"HUAWEI FUEL RETIREMENT FOR  10-06-2019 BY IKECHUKWU ROBERT E."]
[]
[null,null,"    Date","Vehicle Number","Filling Station","  Mileage","     Type","Quantity","Amount per Litre","TRACKING REPORT LITRE","Variance","            RATE","PURCHASE POINT","CONTRACT","   NAME","PHONE NO","COMMENT","VEHICLE MAKE"]
[null,null,"2019-10-06","AGL 924 FH","MOBIL",34389,"PETROL",34,145,35,1,5000,"PHC","HUAWEI","CHRISTIAN AYAEHIE",8132839808,"MONEY PAID INTO FME'S ACCOUNT (DRIVER FORGOT HIS ATM CARD AT HOME)","TOYOTA HILUX"]
[null,null,"2019-10-06","AGL 924 FH","OANDO",34472,"PETROL",7,145,14,7,"1 000","EMUOHA","HUAWEI","CHRISTIAN AYAEHIE",8132839809,"MONEY PAID INTO FME'S ACCOUNT (DRIVER FORGOT HIS ATM CARD AT HOME)","TOYOTA HILUX"]
[null,null,null,null," ",null,null,null,null,null,"TOTAL",6000]

{"sheet":"13-06-2019","index":251,"n_rows":11,"n_cols":17,"rows_kept":11,"cut":false,"hidden":false,"merged":[]}
[]
[]
[]
[]
[null,null,null,null,null,null,null,"HUAWEI FUEL RETIREMENT FOR  13-06-2019 BY IKECHUKWU ROBERT E."]
[]
[null,"    Date","Vehicle Number","Filling Station","  Mileage","     Type","Quantity","Amount per Litre","TRACKING REPORT LITRE","Variance","            RATE","PURCHASE POINT","CONTRACT","   NAME","PHONE NO","COMMENT","VEHICLE MAKE"]
[null,"2019-11-06","KRD 539 XF"," ND PET",303948,"PETROL",14,145," NOT CAPTURED",0,2000,"ABA","HUAWEI","THADDEUS NWATA",8156880789,null,"MITS.L200"]
[null,"2019-12-06","AGL 924 FH","MOBIL",34721,"PETROL",34,145,46.5,12.5,5000,"PHC","HUAWEI","CHRISTIAN AYAEHIE",8132839808,"MONEY PAID INTO FME'S ACCOUNT (DRIVER FORGOT HIS ATM CARD AT HOME)","TOYOTA HILUX"]
[null,"2019-12-06","MUS 844 XK","ORIZONE PET",91316,"PETROL",28,145,21,7,4000,"OWERRI","HUAWEI","OKOAFOR CHINONSO",8064869708,null,"MITS.L201"]
[null,null,null," ",null,null,null,null,null,"TOTAL",11000]

{"sheet":"15-06-2019","index":252,"n_rows":16,"n_cols":20,"rows_kept":16,"cut":false,"hidden":false,"merged":[]}
[]
[]
[]
[]
[]
[null,null,null,null,null,null,null,"HUAWEI FUEL RETIREMENT FOR  15-06-2019 BY IKECHUKWU ROBERT E."]
[]
[null,"    Date","Vehicle Number","Filling Station","  Mileage","     Type","Quantity","Amount per Litre","TRACKING REPORT LITRE","Variance","            RATE","PURCHASE POINT","CONTRACT","   NAME","PHONE NO","COMMENT","VEHICLE MAKE"]
[null,"14/6/2019","AGL 924 FH","MOBIL",34856,"PETROL",41,145,35,6,6000,"PHC","HUAWEI","GODSTIME CHIOMA",8104276284,"MONEY PAID INTO FME'S ACCOUNT (DRIVER FORGOT HIS ATM CARD AT HOME)","TOYOTA HILUX"]
[null,"14/6/2019","AGL 924 FH","OANDO",35101,"PETROL",14,145,11.5,2.5,2000,"ASABA","HUAWEI","GODSTIME CHIOMA",8104276284,"MONEY PAID INTO FME'S ACCOUNT (DRIVER FORGOT HIS ATM CARD AT HOME)","TOYOTA HILUX"]
[null,"14/6/2019","AGL 924 FH","NNPC",35116,"PETROL",14,145,18,4,2000,"ONITSHA","HUAWEI","GODSTIME CHIOMA",8104276285,"MONEY PAID INTO FME'S ACCOUNT (DRIVER FORGOT HIS ATM CARD AT HOME)","TOYOTA HILUX"]
[null,"15/6/2020","AGL 924 FH","MOBIL",35254,"PETROL",41,145,42,1,6000,"PHC","HUAWEI","GODSTIME CHIOMA",8104276286,"MONEY PAID INTO FME'S ACCOUNT (DRIVER FORGOT HIS ATM CARD AT HOME)","TOYOTA HILUX"]
[null,"15/6/2019","AAA 634 XM","SOSO",139637,"PETROL",41,145,30,11,6000,"PHC ","HUAWEI","JAMES ALECHENU",8077006442,"Kindly deduct N1,595.00 from the driver. ","TOYOTA HILUX"]
[null,null,null," ",null,null,null,null,null,"TOTAL",22000]
[]
[null,null,null,null,null,null,null,null,null,null,null,null,null,null,null,null,null,null,null," "]

{"sheet":"18-06-2019","index":253,"n_rows":11,"n_cols":17,"rows_kept":11,"cut":false,"hidden":false,"merged":[]}
[]
[]
[]
[]
[]
[null,null,null,null,null,null,null,"HUAWEI FUEL RETIREMENT FOR  18-06-2019 BY IKECHUKWU ROBERT E."]
[]
[null,"    Date","Vehicle Number","Filling Station","  Mileage","     Type","Quantity","Amount per Litre","TRACKING REPORT LITRE","Variance","            RATE","PURCHASE POINT","CONTRACT","   NAME","PHONE NO","COMMENT","VEHICLE MAKE"]
[null,"18/6/2019","AGL 924 FH","MOBIL",35479,"PETROL",34,145,24,10,5000,"PHC","HUAWEI","GODSTIME CHIOMA",8104276284,"MONEY PAID INTO FME'S ACCOUNT (DRIVER ATM IS HAVING ISSUES)","TOYOTA HILUX"]
[null,"18/6/2019","KRD 337 XB","OANDO",89509,"PETROL",35,145,"NOT CAPTURED ",0,5000,"PHC ","HUAWEI","DIDI SOLOMON",8134352565,"CITRACKS STILL WORKING ON DEVICE","TOYOTAHILUX "]
[null,null,null," ",null,null,null,null,null,"TOTAL",10000]

{"sheet":"20-06-2019","index":254,"n_rows":10,"n_cols":17,"rows_kept":10,"cut":false,"hidden":false,"merged":[]}
[]
[]
[]
[]
[]
[null,null,null,null,null,null,null,"HUAWEI FUEL RETIREMENT FOR  20-06-2019 BY IKECHUKWU ROBERT E."]
[]
[null,"    Date","Vehicle Number","Filling Station","  Mileage","     Type","Quantity","Amount per Litre","TRACKING REPORT LITRE","Variance","            RATE","PURCHASE POINT","CONTRACT","   NAME","PHONE NO","COMMENT","VEHICLE MAKE"]
[null,"20/6/2019","AGL 924 FH","MOBIL",35644,"PETROL",48,145,44.5,3.5,7000,"PHC","HUAWEI","GODSTIME CHIOMA",8104276284,"MONEY PAID INTO FME'S ACCOUNT (DRIVER ATM IS HAVING ISSUES)","TOYOTA HILUX"]
[null,null,null," ",null,null,null,null,null,"TOTAL",7000]

{"sheet":"21-06-2019","index":255,"n_rows":11,"n_cols":17,"rows_kept":11,"cut":false,"hidden":false,"merged":[]}
[]
[]
[]
[]
[]
[null,null,null,null,null,null,null,"HUAWEI FUEL RETIREMENT FOR  21-06-2019 BY IKECHUKWU ROBERT E."]
[]
[null,"    Date","Vehicle Number","Filling Station","  Mileage","     Type","Quantity","Amount per Litre","TRACKING REPORT LITRE","Variance","            RATE","PURCHASE POINT","CONTRACT","   NAME","PHONE NO","COMMENT","VEHICLE MAKE"]
[null,"20/6/2019","AGL 924 FH","MOBIL",35865,"PETROL",14,145,13,1,2000,"PHC","HUAWEI","GODSTIME CHIOMA",8104276284,"MONEY PAID INTO FME'S ACCOUNT (DRIVER ATM IS HAVING ISSUES)","TOYOTA HILUX"]
[null,"21/6/2020","AGL 924 FH","MOBIL",36029,"PETROL",34,145,24,10,5000,"PHC","HUAWEI","GODSTIME CHIOMA",8104276285,"Kindly deduct N1450.00 From Driver's account","TOYOTA HILUX"]
[null,null,null," ",null,null,null,null,null,"TOTAL",7000]

{"sheet":"24-06-2019","index":256,"n_rows":11,"n_cols":17,"rows_kept":11,"cut":false,"hidden":false,"merged":[]}
[]
[]
[]
[]
[null,null,null,null,null,null,null,"HUAWEI FUEL RETIREMENT FOR  24-06-2019 BY IKECHUKWU ROBERT E."]
[]
[null,"    Date","Vehicle Number","Filling Station","  Mileage","     Type","Quantity","Amount per Litre","TRACKING REPORT LITRE","Variance","            RATE","PURCHASE POINT","CONTRACT","   NAME","PHONE NO","COMMENT","VEHICLE MAKE"]
[null,"23/6/2019","AGL 924 FH","MOBIL",36153,"PETROL",55,145,53,2,8000,"PHC","HUAWEI","GODSTIME CHIOMA",8104276284,"MONEY PAID INTO FME'S ACCOUNT (DRIVER ATM IS HAVING ISSUES)","TOYOTA HILUX"]
[null,"23/6/2019","EPE 474 XB","NDU ENT",67466,"PETROL",34,145,"NOT CAPTURED ",0,5000,"OWERRI","HUAWEI","SUNDAY OGUNAIKE",8035263692,"NOT CAPTURED (CITRACKS STILL WORKING ON IT)","TOYOTA HILUX"]
[null,"24/6/2020","AGL 924 FH","MOBIL",36510,"PETROL",34,145,37,3,5000,"PHC","HUAWEI","GODSTIME CHIOMA",8104276285,"Kindly deduct N1450.00 From Driver's account","TOYOTA HILUX"]
[null,null,null," ",null,null,null,null,null,"TOTAL",18000]

{"sheet":"26-06-2019","index":257,"n_rows":12,"n_cols":17,"rows_kept":12,"cut":false,"hidden":false,"merged":[]}
[]
[]
[]
[]
[null,null,null,null,null,null,null,"HUAWEI FUEL RETIREMENT FOR  26-06-2019 BY IKECHUKWU ROBERT E."]
[]
[null,"    Date","Vehicle Number","Filling Station","  Mileage","     Type","Quantity","Amount per Litre","TRACKING REPORT LITRE","Variance","            RATE","PURCHASE POINT","CONTRACT","   NAME","PHONE NO","COMMENT","VEHICLE MAKE"]
[null,"25/6/2019","KRD 337 XB","OANDO",89945,"PETROL",28,145,"NOT CAPTURED ",0,4000,"PHC ","HUAWEI","DIDI SOLOMON",8134352565,"CITRACKS STILL WORKING ON DEVICE","TOYOTAHILUX "]
[null,"26/6/2019","AGL 924 FH","MOBIL",36648,"PETROL",41,145,33,8,6000,"PHC","HUAWEI","GODSTIME CHIOMA",8104276284,"MONEY PAID INTO FME'S ACCOUNT (DRIVER ATM IS HAVING ISSUES)","TOYOTA HILUX"]
[null,"26/6/2019","MUS 844 XK","MOBIL",92167,"PETROL",41,145,21,20,6000,"OWERRI","HUAWEI","OKOAFOR CHINONSO",8064869708,"Kindly deduct N2,900.00 From Driver's account","TOYOTA HILUX"]
[null,"26/6/2019","KRD 337 XB","OANDO",90050,"PETROL",28,145,"NOT CAPTURED ",0,4000,"PHC ","HUAWEI","DIDI SOLOMON",8134352565,"CITRACKS STILL WORKING ON DEVICE","TOYOTAHILUX "]
[null,null,null," ",null,null,null,null,null,"TOTAL",20000]

{"sheet":"27-06-2019","index":258,"n_rows":11,"n_cols":18,"rows_kept":11,"cut":false,"hidden":false,"merged":[]}
[]
[]
[]
[]
[]
[null,null,null,null,null,null,null,null,"HUAWEI FUEL RETIREMENT FOR  27-06-2019 BY IKECHUKWU ROBERT E."]
[]
[null,null,"    Date","Vehicle Number","Filling Station","  Mileage","     Type","Quantity","Amount per Litre","TRACKING REPORT LITRE","Variance","            RATE","PURCHASE POINT","CONTRACT","   NAME","PHONE NO","COMMENT","VEHICLE MAKE"]
[null,null,"27/6/2019","KRD 337 XB","FORTE OIL",90285,"PETROL",28,145,"NOT CAPTURED ",0,4000,"PHC ","HUAWEI","DIDI SOLOMON",8134352565,"CITRACKS STILL WORKING ON DEVICE","TOYOTAHILUX "]
[null,null,"27/6/2019","EPE 474 XB","TD PET",68004,"PETROL",28,145,"NOT CAPTURED ",0,4000,"OWERRI","HUAWEI","SUNDAY OGUNAIKE",8035263692,"NOT CAPTURED (CITRACKS STILL WORKING ON IT)","TOYOTA HILUX"]
[null,null,null,null," ",null,null,null,null,null,"TOTAL",8000]

{"sheet":"29-06-2019","index":259,"n_rows":12,"n_cols":18,"rows_kept":12,"cut":false,"hidden":false,"merged":[]}
[]
[]
[]
[]
[]
[null,null,null,null,null,null,null,null,"HUAWEI FUEL RETIREMENT FOR  29-06-2019 BY IKECHUKWU ROBERT E."]
[]
[null,null,"    Date","Vehicle Number","Filling Station","  Mileage","     Type","Quantity","Amount per Litre","TRACKING REPORT LITRE","Variance","            RATE","PURCHASE POINT","CONTRACT","   NAME","PHONE NO","COMMENT","VEHICLE MAKE"]
[null,null,"28/6/2019","KSF 739 XY","FORTE OIL",84416,"PETROL",51,145,44,7,7500,"PHC ","HUAWEI","JAMES ALECHENU",8077006442," ","MITS.L200"]
[null,null,"28/6/2019","AGL 924 FH"," MOBIL",36814,"PETROL",35,145,32.5,2.5,5000,"PHC","HUAWEI","GODSTIME CHIOMA",8104276284,"MONEY PAID INTO FME'S ACCOUNT (DRIVER ATM IS HAVING ISSUES)","TOYOTA HILUX"]
[null,null,"28/6/2019","AGL 924 FH"," MOBIL",36849,"PETROL",7,145,8,1,1000,"PHC","HUAWEI","GODSTIME CHIOMA",8104276285,"MONEY PAID INTO FME'S ACCOUNT (DRIVER ATM IS HAVING ISSUES)","TOYOTA HILUX"]
[null,null,null,null," ",null,null,null,null,null,"TOTAL",13500]

{"sheet":"01-07-2019","index":260,"n_rows":11,"n_cols":18,"rows_kept":11,"cut":false,"hidden":false,"merged":[]}
[]
[]
[]
[]
[]
[null,null,null,null,null,null,null,null,"HUAWEI FUEL RETIREMENT FOR  01-07-2019 BY IKECHUKWU ROBERT E."]
[]
[null,null,"    Date","Vehicle Number","Filling Station","  Mileage","     Type","Quantity","Amount per Litre","TRACKING REPORT LITRE","Variance","            RATE","PURCHASE POINT","CONTRACT","   NAME","PHONE NO","COMMENT","VEHICLE MAKE"]
[null,null,"30/6/2019","KRD 337 XB","FORTE OIL",84416,"PETROL",35,145,34,0,5000,"PHC ","HUAWEI","JAMES ALECHENU",8077006442," ","MITS.L200"]
[null,null,"2019-01-07","AGL 924 FH"," MOBIL",37085,"PETROL",41,145,40,1,6000,"PHC","HUAWEI","IMINABOR HORSFALL",8064114647," ","TOYOTA HILUX"]
[null,null,null,null," ",null,null,null,null,null,"TOTAL",11000]

{"sheet":"5-07-2019","index":261,"n_rows":10,"n_cols":18,"rows_kept":10,"cut":false,"hidden":false,"merged":[]}
[]
[]
[]
[]
[null,null,null,null,null,null,null,null,"HUAWEI FUEL RETIREMENT FOR  05-07-2019 BY IKECHUKWU ROBERT E."]
[]
[null,null,"    Date","Vehicle Number","Filling Station","  Mileage","     Type","Quantity","Amount per Litre","TRACKING REPORT LITRE","Variance","            RATE","PURCHASE POINT","CONTRACT","   NAME","PHONE NO","COMMENT","VEHICLE MAKE"]
[null,null,"2019-04-07","KRD 337 XB","FORTE OIL",91170,"PETROL",35,145," ","NOT CAPTURED ",5000,"PHC ","HUAWEI","DIDI SOLOMON",8134352565,"CITRACKS STILL WORKING ON DEVICE","TOYOTAHILUX "]
[null,null,"2019-05-07","AGL 924 FH","SO",37242,"PETROL",41,145,43,2,6000,"PHC","HUAWEI","IMINABOR HORSFALL",8064114647," ","TOYOTA HILUX"]
[null,null,null,null," ",null,null,null,null,null,"TOTAL",11000]

{"sheet":"08-07-2019","index":262,"n_rows":11,"n_cols":17,"rows_kept":11,"cut":false,"hidden":false,"merged":[]}
[]
[]
[]
[]
[null,null,null,null,null,null,null,"HUAWEI FUEL RETIREMENT FOR  08-07-2019 BY IKECHUKWU ROBERT E."]
[]
[null,"    Date","Vehicle Number","Filling Station","  Mileage","     Type","Quantity","Amount per Litre","TRACKING REPORT LITRE","Variance","            RATE","PURCHASE POINT","CONTRACT","   NAME","PHONE NO","COMMENT","VEHICLE MAKE"]
[null,"2019-05-07","AGL 924 FH","SO",37385,"PETROL",21,145,19,3,3000,"PHC","HUAWEI","IMINABOR HORSFALL",8064114647," ","TOYOTA HILUX"]
[null,"2019-06-07","AGL 924 FH","MOBIL",37454,"PETROL",14,145,16,2,2000,"PHC","HUAWEI","IMINABOR HORSFALL",8064114647," ","TOYOTA HILUX"]
[null,"2019-07-07","AGL 924 FH","MOBIL",37565,"PETROL",24,145,17,7,3500,"PHC","HUAWEI","IMINABOR HORSFALL",8064114648," ","TOYOTA HILUX"]
[null,null,null," ",null,null,null,null,null,"TOTAL",8500]

{"sheet":"11-07-2019","index":263,"n_rows":12,"n_cols":17,"rows_kept":12,"cut":false,"hidden":false,"merged":[]}
[]
[]
[]
[]
[]
[]
[null,null,null,null,null,null,null,"HUAWEI FUEL RETIREMENT FOR  11-07-2019 BY IKECHUKWU ROBERT E."]
[]
[null,"    Date","Vehicle Number","Filling Station","  Mileage","     Type","Quantity","Amount per Litre","TRACKING REPORT LITRE","Variance","            RATE","PURCHASE POINT","CONTRACT","   NAME","PHONE NO","COMMENT","VEHICLE MAKE"]
[null,"2019-08-07","AGL 924 FH","FORTE",37454,"PETROL",35,145,11,24,5000,"PHC","HUAWEI","IMINABOR HORSFALL",8064114647,"Kindly deduct N3,480.00 ","TOYOTA HILUX"]
[null,"2019-11-07","AGL 924 FH","TOTAL",37565,"PETROL",41,145,20,20,6000,"PHC","HUAWEI","IMINABOR HORSFALL",8064114648,"Kindly deduct N2,900.00 ","TOYOTA HILUX"]
[null,null,null," ",null,null,null,null,null,"TOTAL",11000]

{"sheet":" 14-07-2019","index":264,"n_rows":10,"n_cols":17,"rows_kept":10,"cut":false,"hidden":false,"merged":[]}
[]
[]
[]
[]
[null,null,null,null,null,null,null,"HUAWEI FUEL RETIREMENT FOR  14-07-2019 BY IKECHUKWU ROBERT E."]
[]
[null,"    Date","Vehicle Number","Filling Station","  Mileage","     Type","Quantity","Amount per Litre","TRACKING REPORT LITRE","Variance","            RATE","PURCHASE POINT","CONTRACT","   NAME","PHONE NO","COMMENT","VEHICLE MAKE"]
[null,"2019-12-07","AGL 924 FH","FORTE",38146,"PETROL",41,145,36,5,6000,"PHC","HUAWEI","IMINABOR HORSFALL",8064114647," ","TOYOTA HILUX"]
[null,"13/7/2019","KRD 337 XB","MOBIL",91825,"PETROL",28,145,0,"NOT CAPTURED ",4000,"PHC ","HUAWEI","DIDI SOLOMON",8134352565,"CITRACKS STILL WORKING ON DEVICE","TOYOTAHILUX "]
[null,null,null," ",null,null,null,null,null,"TOTAL",10000]

{"sheet":"17-07-2019","index":265,"n_rows":14,"n_cols":17,"rows_kept":14,"cut":false,"hidden":false,"merged":[]}
[]
[]
[]
[]
[null,null,null,null,null,null,null,"HUAWEI FUEL RETIREMENT FOR  17-07-2019 BY IKECHUKWU ROBERT E."]
[]
[null,"    Date","Vehicle Number","Filling Station","  Mileage","     Type","Quantity","Amount per Litre","TRACKING REPORT LITRE","Variance","            RATE","PURCHASE POINT","CONTRACT","   NAME","PHONE NO","COMMENT","VEHICLE MAKE"]
[null,"15/7/2019","KRD 337 XB","FORTE",91936,"PETROL",35,145,0,"NOT CAPTURED ",5000,"PHC ","HUAWEI","DIDI SOLOMON",8134352565,"CITRACKS STILL WORKING ON DEVICE","TOYOTAHILUX "]
[null,"15/7/2019","AAA 632 XM","PROPEL",136028,"PETROL",35,145,30,5,5000,"PHC ","HUAWEI","DENNIS ADOYE",9062959263," ","TOYOTAHILUX "]
[null,"16/7/2019","AGL 924 FH","PROPEL",38361,"PETROL",35,145,26,9,5000,"PHC","HUAWEI","IMINABOR HORSFALL",8064114648," ","TOYOTA HILUX"]
[null,"16/7/2019","KRD 337 XB","ETERNA",92086,"PETROL",35,145,0,"NOT CAPTURED ",5000,"PHC ","HUAWEI","DIDI SOLOMON",8134352565,"CITRACKS STILL WORKING ON DEVICE","TOYOTAHILUX "]
[null,"16/7/2019","AAA 632 XM","PROPEL",136257,"PETROL",35,145,33,2,5000,"PHC ","HUAWEI","DENNIS ADOYE",9062959263," ","TOYOTAHILUX "]
[null,"17/7/2019","KRD 337 XB","ETERNA",92121,"PETROL",35,145,0,"NOT CAPTURED ",5000,"PHC ","HUAWEI","DIDI SOLOMON",8134352565,"CITRACKS STILL WORKING ON DEVICE","TOYOTAHILUX "]
[null,null,null," ",null,null,null,null,null,"TOTAL",30000]

{"sheet":"23-07-2019","index":266,"n_rows":16,"n_cols":17,"rows_kept":16,"cut":false,"hidden":false,"merged":[]}
[]
[]
[]
[]
[null,null,null,null,null,null,null,"HUAWEI FUEL RETIREMENT FOR  24-07-2019 BY IKECHUKWU ROBERT E."]
[]
[null,"    Date","Vehicle Number","Filling Station","  Mileage","     Type","Quantity","Amount per Litre","TRACKING REPORT LITRE","Variance","            RATE","PURCHASE POINT","CONTRACT","   NAME","PHONE NO","COMMENT","VEHICLE MAKE"]
[null,"18/7/2019","AAA 632 XM","NNPC",136508,"PETROL",35,145,33.5,1.5,5000,"PHC ","HUAWEI","DENNIS ADOYE",9062959263," ","TOYOTAHILUX "]
[null,"20/7/2019","AAA 632 XM","ZACOSEM",136724,"PETROL",35,145,31,4,5000,"PHC ","HUAWEI","DENNIS ADOYE",9062959263," ","TOYOTAHILUX "]
[null,"21/7/2019","KRD 337 XB","PROPEL",92086,"PETROL",35,145,0,"NOT CAPTURED ",3000,"PHC ","HUAWEI","DIDI SOLOMON",8134352565,"CITRACKS STILL WORKING ON DEVICE","TOYOTAHILUX "]
[null,"22/7/2019","AAA 632 XM","PROPEL",136975,"PETROL",35,145,12,23,5000,"PHC ","HUAWEI","DENNIS ADOYE",9062959263,"KINDLY DEDUCT N3,335 FROM DRIVER ","TOYOTAHILUX "]
[null,"22/7/2019","KSF 739 XY","FORTE OIL",86495,"PETROL",35,145,40,5,5000,"PHC ","HUAWEI","JAMES ALECHENU",8077006442," ","MITS.L200"]
[null,"23/7/2019","LSR 998 XL","MRS",188049,"PETROL",41,145,37,4,6000,"PHC ","HUAWEI","JAMES ALECHENU",8077006442," ","MITS.L200"]
[null,"23/7/2020","LSR 998 XL","TOTAL",188131,"PETROL",7,145,0," NOT CAPTURED",1000,"AHOADA","HUAWEI","JAMES ALECHENU",8077006443," ","MITS.L200"]
[null,"23/7/2019","EPE 474 XB","NDU ENT",70732,"PETROL",28,145,"NOT CAPTURED ",0,5000,"OWERRI","HUAWEI","SUNDAY OGUNAIKE",8035263692,"NOT CAPTURED (CITRACKS STILL WORKING ON IT)","TOYOTA HILUX"]
[null,null,null," ",null,null,null,null,null,"TOTAL",35000]

{"sheet":"24-07-2019","index":267,"n_rows":12,"n_cols":18,"rows_kept":12,"cut":false,"hidden":false,"merged":[]}
[]
[]
[]
[null,null,null,null,null,null,null,null,"HUAWEI FUEL RETIREMENT FOR  24-07-2019 BY IKECHUKWU ROBERT E."]
[]
[null,null,"    Date","Vehicle Number","Filling Station","  Mileage","     Type","Quantity","Amount per Litre","TRACKING REPORT LITRE","Variance","            RATE","PURCHASE POINT","CONTRACT","   NAME","PHONE NO","COMMENT","VEHICLE MAKE"]
[null,null,"21/7/2019","EPE 474 XB","NDU ENT",70621,"PETROL",28,145,"NOT CAPTURED ",0,3000,"OWERRI","HUAWEI","SUNDAY OGUNAIKE",8035263692,"NOT CAPTURED (CITRACKS STILL WORKING ON IT)","TOYOTA HILUX"]
[null,null,"22/7/2019","EPE 474 XB","EMORDI PET",70732,"PETROL",28,145,"NOT CAPTURED ",0,4000,"OWERRI","HUAWEI","SUNDAY OGUNAIKE",8035263692,"NOT CAPTURED (CITRACKS STILL WORKING ON IT)","TOYOTA HILUX"]
[null,null,"23/7/2019","AAA 632 XM","PROPEL",137121,"PETROL",48,145,41,7,7000,"PHC ","HUAWEI","DENNIS ADOYE",9062959263," ","TOYOTAHILUX "]
[null,null,"24/7/2019","LSR 998 XL","TOTAL",188131,"PETROL",48,145,42,6,7000,"PHC ","HUAWEI","JAMES ALECHENU",8077006443," ","MITS.L200"]
[null,null,"24/7/2019","EPE 474 XB","NDU ENT",70996,"PETROL",35,145,"NOT CAPTURED ",0,5000,"OWERRI","HUAWEI","SUNDAY OGUNAIKE",8035263692,"NOT CAPTURED (CITRACKS STILL WORKING ON IT)","TOYOTA HILUX"]
[null,null,null,null," ",null,null,null,null,null,"TOTAL",26000]

{"sheet":"25-07-2019","index":268,"n_rows":12,"n_cols":18,"rows_kept":12,"cut":false,"hidden":false,"merged":[]}
[]
[]
[]
[]
[null,null,null,null,null,null,null,null,"HUAWEI FUEL RETIREMENT FOR  24-07-2019 BY IKECHUKWU ROBERT E."]
[]
[null,null,"    Date","Vehicle Number","Filling Station","  Mileage","     Type","Quantity","Amount per Litre","TRACKING REPORT LITRE","Variance","            RATE","PURCHASE POINT","CONTRACT","   NAME","PHONE NO","COMMENT","VEHICLE MAKE"]
[null,null,"24/7/2019","AAA 632 XM","HYDROPET",137547,"PETROL",48,145,39,9,7000,"PHC ","HUAWEI","DENNIS ADOYE",9062959263," ","TOYOTAHILUX "]
[null,null,"25/7/2019","EPE 474 XB","EMORDI PET",71165,"PETROL",28,145,"NOT CAPTURED ",0,4000,"OWERRI","HUAWEI","SUNDAY OGUNAIKE",8035263692,"NOT CAPTURED (CITRACKS STILL WORKING ON IT)","TOYOTA HILUX"]
[null,null,"25/7/2019","AAA 632 XM","PROPEL",137775,"PETROL",48,145,39,7,6000,"PHC ","HUAWEI","DENNIS ADOYE",9062959263," ","TOYOTAHILUX "]
[null,null,"25/7/2019","LSR 998 XL","TOTAL",188673,"PETROL",41,145,38,3,6000,"PHC ","HUAWEI","JAMES ALECHENU",8077006443," ","MITS.L200"]
[null,null,null,null," ",null,null,null,null,null,"TOTAL",23000]

{"sheet":"26-07-2019","index":269,"n_rows":14,"n_cols":18,"rows_kept":14,"cut":false,"hidden":false,"merged":[]}
[]
[]
[]
[]
[]
[null,null,null,null,null,null,null,null,"HUAWEI FUEL RETIREMENT FOR  26-07-2019 BY IKECHUKWU ROBERT E."]
[]
[null,null,"    Date","Vehicle Number","Filling Station","  Mileage","     Type","Quantity","Amount per Litre","TRACKING REPORT LITRE","Variance","            RATE","PURCHASE POINT","CONTRACT","   NAME","PHONE NO","COMMENT","VEHICLE MAKE"]
[null,null,"26/7/2019","AAA 632 XM","HYDROPET",138151,"PETROL",62,145,40,9,9000,"PHC ","HUAWEI","DENNIS ADOYE",9062959263,"KINDLY DEDUCT N1,740.00 From driver","TOYOTAHILUX "]
[null,null,"26/7/2019","LSR 998 XL","PROPEL",188831,"PETROL",41,145,33,3,6000,"PHC ","HUAWEI","JAMES ALECHENU",8077006443," ","MITS.L200"]
[]
[]
[]
[null,null,null,null," ",null,null,null,null,null,"TOTAL",15000]

{"sheet":"29-07-2019","index":270,"n_rows":12,"n_cols":17,"rows_kept":12,"cut":false,"hidden":false,"merged":[]}
[]
[]
[]
[]
[null,null,null,null,null,null,null,"HUAWEI FUEL RETIREMENT FOR  29-07-2019 BY IKECHUKWU ROBERT E."]
[]
[null,"    Date","Vehicle Number","Filling Station","  Mileage","     Type","Quantity","Amount per Litre","TRACKING REPORT LITRE","Variance","            RATE","PURCHASE POINT","CONTRACT","   NAME","PHONE NO","COMMENT","VEHICLE MAKE"]
[null,"26/7/2019","AAA 632 XM","HYDROPET",138433,"PETROL",28,145,25.5,2.5,4000,"PHC ","HUAWEI","DENNIS ADOYE",9062959263,"ADDITIONAL FUELING","TOYOTAHILUX "]
[null,"27/7/2019","AAA 632 XM","PROPEL",137775,"PETROL",48,145,39,7,6000,"PHC ","HUAWEI","DENNIS ADOYE",9062959263," ","TOYOTAHILUX "]
[null,"27/7/2019","LSR 998 XL","TOTAL",139106,"PETROL",41,145,32.5,7.5,6000,"PHC ","HUAWEI","JAMES ALECHENU",8077006443," ","TOYOTA HILUX"]
[null,"29/7/2019","KRD 337 XB","MOBIL",91825,"PETROL",35,145,0,"NOT CAPTURED ",5000,"PHC ","HUAWEI","DIDI SOLOMON",8134352565,"CITRACKS STILL WORKING ON DEVICE","TOYOTAHILUX "]
[null,null,null," ",null,null,null,null,null,"TOTAL",21000]

{"sheet":"30-7-2019","index":271,"n_rows":16,"n_cols":17,"rows_kept":16,"cut":false,"hidden":false,"merged":[]}
[]
[]
[]
[]
[]
[null,null,null,null,null,null,null,"HUAWEI FUEL RETIREMENT FOR  30-07-2019 BY IKECHUKWU ROBERT E."]
[]
[null,"    Date","Vehicle Number","Filling Station","  Mileage","     Type","Quantity","Amount per Litre","TRACKING REPORT LITRE","Variance","            RATE","PURCHASE POINT","CONTRACT","   NAME","PHONE NO","COMMENT","VEHICLE MAKE"]
[null,"29/7/2019","LSR 998 XL","ETERNA",198379,"PETROL",35,145,24,11,5000,"PHC ","HUAWEI","JAMES ALECHENU",8077006443,"KINDLY DEDUCT N1,595.00 From driver","TOYOTA HILUX"]
[null,"29/7/2019","LSD 460 XM","UDO PET",112689,"PETROL",14,145,15,1,2000,"NSUKA","HUAWEI","OKECHUKWU OKEREKE",8131526455," ","TOYOTA HILUX"]
[null,"29/7/2020","LSD 460 XM","UDO PET",112770,"PETROL",35,145,28,7,5000,"NSUKA","HUAWEI","OKECHUKWU OKEREKE",8131526456," ","TOYOTA HILUX"]
[null,"30/7/2019","KRD 337 XB","MOBIL",92999,"PETROL",35,145,0,"NOT CAPTURED ",5000,"PHC ","HUAWEI","DIDI SOLOMON",8134352565,"CITRACKS STILL WORKING ON DEVICE","TOYOTAHILUX "]
[null,"30/7/2019","AAA 632 XM","ETERNA",138904,"PETROL",35,145,32,3,5000,"PHC ","HUAWEI","DENNIS ADOYE",9062959263," ","TOYOTAHILUX "]
[null,"30/7/2019","LSR 998 XL","ETERNA",189662,"PETROL",41,145,36,5,6000,"PHC ","HUAWEI","JAMES ALECHENU",8077006443," ","TOYOTA HILUX"]
[null,"30/7/2019","LSD 460 XM","UDO PET",113065,"PETROL",60,145,49,11,8000,"OTUKPO","HUAWEI","OKECHUKWU OKEREKE",8131526455," ","TOYOTA HILUX"]
[null,null,null," ",null,null,null,null,null,"TOTAL",36000]

{"sheet":" 03-08-2019","index":272,"n_rows":15,"n_cols":17,"rows_kept":15,"cut":false,"hidden":false,"merged":[]}
[]
[]
[]
[]
[null,null,null,null,null,null,null,"HUAWEI FUEL RETIREMENT FOR  02-08-2019 BY IKECHUKWU ROBERT E."]
[]
[null,"    Date","Vehicle Number","Filling Station","  Mileage","     Type","Quantity","Amount per Litre","TRACKING REPORT LITRE","Variance","            RATE","PURCHASE POINT","CONTRACT","   NAME","PHONE NO","COMMENT","VEHICLE MAKE"]
[null,"31/7/2019","KRD 337 XB","FORTE OIL",93187,"PETROL",35,145,0,"NOT CAPTURED ",5000,"PHC ","HUAWEI","DIDI SOLOMON",8134352565,"CITRACKS STILL WORKING ON DEVICE","TOYOTAHILUX "]
[null,"31/7/2019","AAA 632 XM","NNPC",139218,"PETROL",35,145,32,3,5000,"PHC ","HUAWEI","DENNIS ADOYE",9062959263," ","TOYOTAHILUX "]
[null,"31/7/2019","LSR 998 XL","TOTAL",189933,"PETROL",35,145,30,5,5000,"PHC ","HUAWEI","JAMES ALECHENU",8077006443," ","TOYOTA HILUX"]
[null,"2019-01-08","AAA 632 XM","NNPC",139388,"PETROL",35,145,29,6,5000,"PHC ","HUAWEI","DENNIS ADOYE",9062959263," ","TOYOTAHILUX "]
[null,"2019-01-08","LSR 998 XL","TOTAL",190003,"PETROL",28,145,20,8,4000,"PHC ","HUAWEI","JAMES ALECHENU",8077006443," ","TOYOTA HILUX"]
[null,"2019-02-08","AAA 632 XM","NNPC",139647,"PETROL",41,145,41,0,6000,"PHC ","HUAWEI","DENNIS ADOYE",9062959263," ","TOYOTAHILUX "]
[null,null,null,null,null,null,null,null,null,"TOTAL",{"$f":"SUM(K8:K13)","v":30000}]
[null,null,null,null,null,null,null,null,null,null," "]

{"sheet":"04-08-2019","index":273,"n_rows":12,"n_cols":17,"rows_kept":12,"cut":false,"hidden":false,"merged":[]}
[]
[]
[]
[]
[]
[null,null,null,null,null,null,null,"HUAWEI FUEL RETIREMENT FOR  04-08-2019 BY IKECHUKWU ROBERT E."]
[]
[null,"    Date","Vehicle Number","Filling Station","  Mileage","     Type","Quantity","Amount per Litre","TRACKING REPORT LITRE","Variance","            RATE","PURCHASE POINT","CONTRACT","   NAME","PHONE NO","COMMENT","VEHICLE MAKE"]
[null,"2019-04-08","LSR 998 XL","TOTAL",190290,"PETROL",35,145,31,4,5000,"PHC ","HUAWEI","JAMES ALECHENU",8077006443," ","TOYOTA HILUX"]
[null,"2019-04-08","AAA 632 XM","NNPC",139978,"PETROL",35,145,29,6,5000,"PHC ","HUAWEI","DENNIS ADOYE",9062959263," ","TOYOTAHILUX "]
[null,null,null,null,null,null,null,null,null,"TOTAL",{"$f":"SUM(K9:K10)","v":10000}]
[null,null,null,null,null,null,null,null,null,null," "]

{"sheet":"07-08-2019","index":274,"n_rows":15,"n_cols":17,"rows_kept":15,"cut":false,"hidden":false,"merged":[]}
[]
[]
[]
[]
[null,null,null,null,null,null,null,"HUAWEI FUEL RETIREMENT FOR  07-08-2019 BY IKECHUKWU ROBERT E."]
[]
[null,"    Date","Vehicle Number","Filling Station","  Mileage","     Type","Quantity","Amount per Litre","TRACKING REPORT LITRE","Variance","            RATE","PURCHASE POINT","CONTRACT","   NAME","PHONE NO","COMMENT","VEHICLE MAKE"]
[null,"2019-06-08","KRD 337 XB","FORTE OIL",93481,"PETROL",35,145,0,"NOT CAPTURED ",5000,"PHC ","HUAWEI","DIDI SOLOMON",8134352565,"CITRACKS STILL WORKING ON DEVICE","TOYOTAHILUX "]
[null,"2019-06-08","AAA 632 XM","ETERNA",140157,"PETROL",35,145,32,3,6000,"PHC ","HUAWEI","DENNIS ADOYE",9062959263," ","TOYOTAHILUX "]
[null,"2019-06-08","LSD 460 XM","OANDO",114566,"PETROL",41,145,46,5,6000,"PHC ","HUAWEI","JAMES ALECHENU",8077006443," ","TOYOTA HILUX"]
[null,"2019-06-08","LSD 460 XM","MOBIL",114605,"PETROL",14,145,13,1,2000,"PHC ","HUAWEI","JAMES ALECHENU",8077006444," ","TOYOTA HILUX"]
[null,"2019-06-08","EPE 474 XB","TOBI PET",72598,"PETROL",35,145,0," NOT CAPTURED ",5000,"PHC ","HUAWEI","DENNIS ADOYE",9062959263,"CITRACKS STILL WORKING ON DEVICE","TOYOTAHILUX "]
[null,"2019-07-08","LSR 998 XL","TOTAL",190551,"PETROL",35,145,30,5,5000,"PHC ","HUAWEI","JAMES ALECHENU",8077006443," ","TOYOTA HILUX"]
[null,null,null,null,null,null,null,null,null,"TOTAL",{"$f":"SUM(K8:K13)","v":29000}]
[null,null,null,null,null,null,null,null,null,null," "]

{"sheet":"08-08-2019","index":275,"n_rows":14,"n_cols":18,"rows_kept":14,"cut":false,"hidden":false,"merged":[]}
[]
[]
[]
[]
[null,null,null,null,null,null,null,null,"HUAWEI FUEL RETIREMENT FOR  08-08-2019 BY IKECHUKWU ROBERT E."]
[]
[null,null,"    Date","Vehicle Number","Filling Station","  Mileage","     Type","Quantity","Amount per Litre","TRACKING REPORT LITRE","Variance","            RATE","PURCHASE POINT","CONTRACT","   NAME","PHONE NO","COMMENT","VEHICLE MAKE"]
[null,null,"2019-07-08","LSD 460 XM","OANDO",114834,"PETROL",41,145,45,4,6000," KANSHIO","HUAWEI","KINGSLEY OKEREKE",8063799963," ","TOYOTA HILUX"]
[null,null,"2019-07-08","KRD 337 XB","FORTE OIL",93589,"PETROL",35,145,0,"NOT CAPTURED ",5000,"PHC ","HUAWEI","DIDI SOLOMON",8134352565,"CITRACKS STILL WORKING ON DEVICE","TOYOTAHILUX "]
[null,null,"2019-07-08","EPE 474 XB","OANDO PET",72848,"PETROL",35,145,0," NOT CAPTURED ",4000,"OWERRI","HUAWEI","SUNDAY OGUNAIKE",8035263692,"CITRACKS STILL WORKING ON DEVICE","TOYOTAHILUX "]
[null,null,"2019-08-08","AAA 632 XM","ETERNA",143867,"PETROL",35,145,32,3,6000,"PHC ","HUAWEI","DENNIS ADOYE",9062959263," ","TOYOTAHILUX "]
[null,null,"2019-08-08","LSR 998 XL","TOTAL",190777,"PETROL",38,145,34,4,5500,"PHC ","HUAWEI","JAMES ALECHENU",8077006443," ","TOYOTA HILUX"]
[null,null,null,null,null,null,null,null,null,null,"TOTAL",{"$f":"SUM(L8:L12)","v":26500}]
[null,null,null,null,null,null,null,null,null,null,null," "]

{"sheet":"15-08-2019","index":276,"n_rows":16,"n_cols":17,"rows_kept":16,"cut":false,"hidden":false,"merged":[]}
[]
[]
[]
[]
[null,null,null,null,null,null,null,"HUAWEI FUEL RETIREMENT FOR  15-08-2019 BY IKECHUKWU ROBERT E."]
[]
[null,"    Date","Vehicle Number","Filling Station","  Mileage","     Type","Quantity","Amount per Litre","TRACKING REPORT LITRE","Variance","            RATE","PURCHASE POINT","CONTRACT","   NAME","PHONE NO","COMMENT","VEHICLE MAKE"]
[null,"2019-09-08","LSR 998 XL","TOTAL",191085,"PETROL",35,145,30,5,5000,"PHC ","HUAWEI","JAMES ALECHENU",8077006443," ","TOYOTA HILUX"]
[null,"2019-12-08","AAA 632 XM","ETERNA",140641,"PETROL",41,145,44.5,3.5,6000,"PHC ","HUAWEI","DENNIS ADOYE",9062959263," ","TOYOTAHILUX "]
[null,"14/8/2019","AAA 632 XM","NNPC",140790,"PETROL",28,145,30,2,4000,"PHC ","HUAWEI","DENNIS ADOYE",9062959263," ","TOYOTAHILUX "]
[null,"14/8/2019","LSR 998 XL","TOTAL",191304,"PETROL",35,145,33,2,5000,"PHC ","HUAWEI","JAMES ALECHENU",8077006443," ","TOYOTA HILUX"]
[null,"14/8/2019","KRD 337 XB"," PROPEL",94199,"PETROL",35,145,0,"NOT CAPTURED ",5000,"PHC ","HUAWEI","DIDI SOLOMON",8134352565,"CITRACKS STILL WORKING ON DEVICE","TOYOTAHILUX "]
[null,"14/8/2019","KSF 739 XY ","MOBIL",81515,"PETROL",11,145,0,"NOT CAPTURED ",1500,"PHC ","HUAWEI","DAVIES OKEMEME",8162112315," ","MITS.L200"]
[null,"15/8/2019","LSR 998 XL","TOTAL",191575,"PETROL",35,145,31,4,5000,"PHC ","HUAWEI","JAMES ALECHENU",8077006443," ","TOYOTA HILUX"]
[null,null,null,null,null,null,null,null,null,"TOTAL",{"$f":"SUM(K8:K14)","v":31500}]
[null,null,null,null,null,null,null,null,null,null," "]

{"sheet":"16-08-2019","index":277,"n_rows":11,"n_cols":18,"rows_kept":11,"cut":false,"hidden":false,"merged":[]}
[]
[]
[]
[]
[]
[null,null,null,null,null,null,null,null,"HUAWEI FUEL RETIREMENT FOR  16-08-2019 BY IKECHUKWU ROBERT E."]
[]
[null,null,"    Date","Vehicle Number","Filling Station","  Mileage","     Type","Quantity","Amount per Litre","TRACKING REPORT LITRE","Variance","            RATE","PURCHASE POINT","CONTRACT","   NAME","PHONE NO","COMMENT","VEHICLE MAKE"]
[null,null,"16/8/2019","LSR 998 XL","FORTE OIL",191085,"PETROL",41,145,32,9,6000,"PHC ","HUAWEI","JAMES ALECHENU",8077006443," ","TOYOTA HILUX"]
[null,null,"16/8/2019","AAA 632 XM","ETERNA",140641,"PETROL",41,145,38,3,6000,"PHC ","HUAWEI","DENNIS ADOYE",9062959263," ","TOYOTAHILUX "]
[null,null,null,null,null,null,null,null,null,null,"TOTAL",{"$f":"SUM(L9:L10)","v":12000}]

{"sheet":"19-08-2019","index":278,"n_rows":15,"n_cols":17,"rows_kept":15,"cut":false,"hidden":false,"merged":[]}
[]
[]
[]
[]
[null,null,null,null,null,null,null,"HUAWEI FUEL RETIREMENT FOR  19-08-2019 BY IKECHUKWU ROBERT E."]
[]
[null,"    Date","Vehicle Number","Filling Station","  Mileage","     Type","Quantity","Amount per Litre","TRACKING REPORT LITRE","Variance","            RATE","PURCHASE POINT","CONTRACT","   NAME","PHONE NO","COMMENT","VEHICLE MAKE"]
[null,"16/8/2019","KRD 337 XB","PROPEL",94265,"PETROL",14,145,"NOT CAPTURED",0,2000,"PHC ","HUAWEI","DIDI SOLOMON",8134352565,"CITRACKS STILL WORKING ON DEVICE","TOYOTAHILUX "]
[null,"17/8/2019","LSR 998 XL","FORTE OIL",191610,"PETROL",35,145,31,4,5000,"PHC ","HUAWEI","JAMES ALECHENU",8077006443," ","TOYOTA HILUX"]
[null,"17/8/2019","AAA 632 XM","ETERNA",141186,"PETROL",35,145,37,2,5000,"PHC ","HUAWEI","DENNIS ADOYE",9062959263," ","TOYOTAHILUX "]
[null,"17/8/2019","EPE 474 XB","ND CHUCKS",73801,"PETROL",35,145,"NOT CAPTURED",0,5000,"OWERRI","HUAWEI","SUNDAY OGUNAIKE",8035263692,"CITRACKS STILL WORKING ON DEVICE","TOYOTAHILUX "]
[null,null,null,null,null,null,null,null,null,"TOTAL",17000]
[null,null,null,null,null,null,null,null,null,null," "]
[null,null,null,null,null,null,null,null,null,null," "]
[null,null,null,null,null,null,null,null,null,null," "]

{"sheet":"21-08-2019","index":279,"n_rows":17,"n_cols":18,"rows_kept":17,"cut":false,"hidden":false,"merged":[]}
[]
[]
[]
[]
[null,null,null,null,null,null,null,null,"HUAWEI FUEL RETIREMENT FOR  21-08-2019 BY IKECHUKWU ROBERT E."]
[]
[null,null,"    Date","Vehicle Number","Filling Station","  Mileage","     Type","Quantity","Amount per Litre","TRACKING REPORT LITRE","Variance","            RATE","PURCHASE POINT","CONTRACT","   NAME","PHONE NO","COMMENT","VEHICLE MAKE"]
[null,null,"20/8/2019","KRD 337 XB","PROPEL",94579,"PETROL",28,145,"NOT CAPTURED",0,4000,"PHC","HUAWEI","DIDI SOLOMON",8134352565,"CITRACKS STILL WORKING ON DEVICE","TOYOTAHILUX "]
[null,null,"20/8/2019","LSD 460 XM","OANDO",117163,"PETROL",55,145,46,9,8000,"ONITSHA","HUAWEI","KINGSLEY OKEREKE",8063799963," ","TOYOTA HILUX"]
[null,null,"20/8/2020","LSD 460 XM","OANDO",117164,"PETROL",14,145,16,2,2000,"UYO","HUAWEI","KINGSLEY OKEREKE",8063799964," ","TOYOTA HILUX"]
[null,null,"21/8/2019","LSD 460 XM","OANDO",117546,"PETROL",21,145,19,3,3000,"PHC","HUAWEI","KINGSLEY OKEREKE",8063799963," ","TOYOTA HILUX"]
[null,null,"21/8/2019","AAA 632 XM","NNPC",141812,"PETROL",41,145,35,0,6000,"AHOADA","HUAWEI","DENNIS ADOYE",9062959263," ","TOYOTAHILUX "]
[null,null,"21/8/2019","KRD 337 XB","PROPEL",94665,"PETROL",35,145,"NOT CAPTURED",0,5000,"PHC","HUAWEI","DIDI SOLOMON",8134352565,"CITRACKS STILL WORKING ON DEVICE","TOYOTAHILUX "]
[null,null,null,null,null,null,null,null,null,null,"TOTAL",{"$f":"SUM(L8:L13)","v":28000}]
[null,null,null,null,null,null,null,null,null,null,null," "]
[null,null,null,null,null,null,null,null,null,null,null," "]
[null,null,null,null,null,null,null,null,null,null,null," "]

{"sheet":"22-08-2019","index":280,"n_rows":16,"n_cols":18,"rows_kept":16,"cut":false,"hidden":false,"merged":[]}
[]
[]
[]
[]
[]
[null,null,null,null,null,null,null,null,"HUAWEI FUEL RETIREMENT FOR  22-08-2019 BY IKECHUKWU ROBERT E."]
[]
[null,null,"    Date","Vehicle Number","Filling Station","  Mileage","     Type","Quantity","Amount per Litre","TRACKING REPORT LITRE","Variance","            RATE","PURCHASE POINT","CONTRACT","   NAME","PHONE NO","COMMENT","VEHICLE MAKE"]
[null,null,"21/8/2019","EPE 474 XB","ND CHUCKS",74291,"PETROL",14,145,"NOT CAPTURED",0,2000,"OWERRI","HUAWEI","SUNDAY OGUNAIKE",8035263692,"CITRACKS STILL WORKING ON DEVICE","TOYOTAHILUX "]
[null,null,"21/8/2019","LSR 998 XL","FORTE OIL",192380,"PETROL",28,145,26,2,4000,"PHC ","HUAWEI","JAMES ALECHENU",8077006443," ","TOYOTA HILUX"]
[null,null,"22/8/2020","LSD 460 XM","OANDO",117834,"PETROL",55,145,55,0,8000,"PHC","HUAWEI","KINGSLEY OKEREKE",8063799964," ","TOYOTA HILUX"]
[null,null,"22/8/2019","KRD 337 XB","PROPEL",94665,"PETROL",35,145,"NOT CAPTURED",0,4000,"PHC","HUAWEI","DIDI SOLOMON",8134352565,"CITRACKS STILL WORKING ON DEVICE","TOYOTAHILUX "]
[null,null,"22/8/2019","EPE 474 XB","ND CHUCKS",74361,"PETROL",35,145,"NOT CAPTURED",0,5000,"OWERRI","HUAWEI","SUNDAY OGUNAIKE",8035263692,"CITRACKS STILL WORKING ON DEVICE","TOYOTAHILUX "]
[null,null,null,null,null,null,null,null,null,null,"TOTAL",{"$f":"SUM(L9:L13)","v":23000}]
[null,null,null,null,null,null,null,null,null,null,null," "]
[null,null,null,null,null,null,null,null,null,null,null," "]

{"sheet":"23-08-2019","index":281,"n_rows":15,"n_cols":18,"rows_kept":15,"cut":false,"hidden":false,"merged":[]}
[]
[]
[]
[]
[]
[null,null,null,null,null,null,null,null,"HUAWEI FUEL RETIREMENT FOR  23-08-2019 BY IKECHUKWU ROBERT E."]
[]
[null,null,"    Date","Vehicle Number","Filling Station","  Mileage","     Type","Quantity","Amount per Litre","TRACKING REPORT LITRE","Variance","            RATE","PURCHASE POINT","CONTRACT","   NAME","PHONE NO","COMMENT","VEHICLE MAKE"]
[null,null,"22/8/2019","LSR 998 XL","FORTE OIL",192411,"PETROL",7,145,7,0,1000,"PHC ","HUAWEI","JAMES ALECHENU",8077006443," ","TOYOTA HILUX"]
[null,null,"22/8/2019","LSR 998 XL","FORTE OIL",192631,"PETROL",28,145,28.5,0.5,4000,"PHC ","HUAWEI","JAMES ALECHENU",8077006443," ","TOYOTA HILUX"]
[null,null,"23/8/2019","AAA 632 XM","PROPEL",142191,"PETROL",41,145,39,0,6000,"PHC","HUAWEI","DENNIS ADOYE",9062959263," ","TOYOTAHILUX "]
[null,null,"23/8/2019","LSR 998 XL","FORTE OIL",192881,"PETROL",35,145,30,5,5000,"PHC ","HUAWEI","JAMES ALECHENU",8077006443," ","TOYOTA HILUX"]
[null,null,null,null,null,null,null,null,null,null,"TOTAL",{"$f":"SUM(L9:L12)","v":16000}]
[null,null,null,null,null,null,null,null,null,null,null," "]
[null,null,null,null,null,null,null,null,null,null,null," "]

{"sheet":"27-08-2019","index":282,"n_rows":16,"n_cols":18,"rows_kept":16,"cut":false,"hidden":false,"merged":[]}
[]
[]
[]
[]
[]
[null,null,null,null,null,null,null,null,"HUAWEI FUEL RETIREMENT FOR  27-08-2019 BY IKECHUKWU ROBERT E."]
[]
[null,null,"    Date","Vehicle Number","Filling Station","  Mileage","     Type","Quantity","Amount per Litre","TRACKING REPORT LITRE","Variance","            RATE","PURCHASE POINT","CONTRACT","   NAME","PHONE NO","COMMENT","VEHICLE MAKE"]
[null,null,"24/8/2019","AAA 632 XM","NNPC",142418,"PETROL",35,145,33,2,5000,"PHC","HUAWEI","DENNIS ADOYE",9062959263," ","TOYOTAHILUX "]
[null,null,"24/8/2019","LSR 998 XL","FORTE OIL",191036,"PETROL",35,145,32,3,5000,"PHC ","HUAWEI","JAMES ALECHENU",8077006443," ","TOYOTA HILUX"]
[null,null,"27/8/2019","AAA 632 XM","PADOS",142758,"PETROL",35,145,35,0,5000,"YENEGOA","HUAWEI","DENNIS ADOYE",9062959263," ","TOYOTAHILUX "]
[null,null,"27/8/2019","KRD 337 XB","PROPEL",96270,"PETROL",35,145,"NOT CAPTURED",0,5000,"PHC","HUAWEI","DIDI SOLOMON",8134352565,"CITRACKS STILL WORKING ON DEVICE","TOYOTAHILUX "]
[null,null,"27/8/2019","LSR 998 XL","FORTE OIL",193133,"PETROL",35,145,32,3,5000,"PHC ","HUAWEI","JAMES ALECHENU",8077006443," ","TOYOTA HILUX"]
[null,null,null,null,null,null,null,null,null,null,"TOTAL",{"$f":"SUM(L9:L13)","v":25000}]
[null,null,null,null,null,null,null,null,null,null,null," "]
[null,null,null,null,null,null,null,null,null,null,null," "]

{"sheet":"30-8-2019","index":283,"n_rows":12,"n_cols":17,"rows_kept":12,"cut":false,"hidden":false,"merged":[]}
[]
[]
[]
[]
[null,null,null,null,null,null,null,"HUAWEI FUEL RETIREMENT FOR  30-08-2019 BY IKECHUKWU ROBERT E."]
[]
[null,"    Date","Vehicle Number","Filling Station","  Mileage","     Type","Quantity","Amount per Litre","TRACKING REPORT LITRE","Variance","            RATE","PURCHASE POINT","CONTRACT","   NAME","PHONE NO","COMMENT","VEHICLE MAKE"]
[null,"28/8/2019","AAA 632 XM","NNPC",142987,"PETROL",35,145,33,2,5000,"PHC","HUAWEI","DENNIS ADOYE",9062959263," ","TOYOTAHILUX "]
[null,"29/8/2019","AAA 632 XM","ETERNA",143625,"PETROL",35,145,36,1,5000,"PHC","HUAWEI","DENNIS ADOYE",9062959263," ","TOYOTAHILUX "]
[null,null,null,null,null,null,null,null,null,"TOTAL",{"$f":"SUM(K8:K9)","v":10000}]
[null,null,null,null,null,null,null,null,null,null," "]
[null,null,null,null,null,null,null,null,null,null," "]

{"sheet":"03-09-2019","index":284,"n_rows":1048576,"n_cols":17,"rows_kept":4500,"cut":true,"hidden":false,"merged":[],"bounds":{"rows_first":2000,"rows_last":500,"rows_between":2000,"halvings":0}}
[]
[]
[]
[]
[]
[null,null,null,null,null,null,null,"HUAWEI FUEL RETIREMENT FOR  3-09-2019 BY IKECHUKWU ROBERT E."]
[]
[null,"    Date","Vehicle Number","Filling Station","  Mileage","     Type","Quantity","Amount per Litre","TRACKING REPORT LITRE","Variance","            RATE","PURCHASE POINT","CONTRACT","   NAME","PHONE NO","COMMENT","VEHICLE MAKE"]
[null,"31/8/2019","LSR 997 XL","FORTE OIL",72403,"PETROL",41,145," NOT CAPTURED",0,6000,"PHC ","HUAWEI","JAMES ALECHENU",8077006443,"NOT CAPTURED ","TOYOTA HILUX"]
[null,"2019-01-09","LSD 460 XM","OANDO",119884,"PETROL",14,145,27,13,2000," PHC","HUAWEI","KINGSLEY OKEREKE",8063799963," ","TOYOTA HILUX"]
[null,"2019-01-09","LSD 460 XM","OANDO",120240,"PETROL",35,145,39,4,5000," ASABA","HUAWEI","KINGSLEY OKEREKE",8063799964," ","TOYOTA HILUX"]
[null,"2019-01-09","LSD 460 XM","OANDO",120601,"PETROL",28,145,22,6,4000," BENIN","HUAWEI","KINGSLEY OKEREKE",8063799963," ","TOYOTA HILUX"]
[null,"2020-01-09","LSD 460 XM","OANDO",120713,"PETROL",21,145,19,3,3000,"OWERRI","HUAWEI","KINGSLEY OKEREKE",8063799963," ","TOYOTA HILUX"]
[null,"2019-02-09","AAA 632 XM","NNPC",143536,"PETROL",41,145,34.5,5.5,6000,"PHC","HUAWEI","DENNIS ADOYE",9062959263," ","TOYOTAHILUX "]
[null,"2019-03-09","LSR 997 XL","FORTE OIL",72744,"PETROL",35,145,"NOT CAPTURED",0,5000,"PHC ","HUAWEI","JAMES ALECHENU",8077006443,"NOT CAPTURED ","TOYOTA HILUX"]
[null,null,null,null,null,null,null,null,null,"TOTAL",{"$f":"SUM(K9:K15)","v":31000}]
[null,null,null,null,null,null,null,null,null,null," "]
[null,null,null,null,null,null,null,null,null,null," "]
[]
[]
[]
[]
[]
[]
[]
[]
[]
[]
[]
[]
[]
[]
[]
[]
[]
[]
[]
[]
[]
[]
[]
[]
[]
[]
[]
[]
[]
[]
[]
[]
[]
[]
[]
[]
[]
[]
[]
[]
[]
[]
[]
[]
[]
[]
[]
[]
[]
[]
[]
[]
[]
[]
[]
[]
[]
[]
[]
[]
[]
[]
[]
[]
[]
[]
[]
[]
[]
[]
[]
[]
[]
[]
[]
[]
[]
[]
[]
[]
[]
[]
[]
[]
[]
[]
[]
[]
[]
[]
[]
[]
[]
[]
[]
[]
[]
[]
[]
[]
[]
[]
[]
[]
[]
[]
[]
[]
[]
[]
[]
[]
[]
[]
[]
[]
[]
[]
[]
[]
[]
[]
[]
[]
[]
[]
[]
[]
[]
[]
[]
[]
[]
[]
[]
[]
[]
[]
[]
[]
[]
[]
[]
[]
[]
[]
[]
[]
[]
[]
[]
[]
[]
[]
[]
[]
[]
[]
[]
[]
[]
[]
[]
[]
[]
[]
[]
[]
[]
[]
[]
[]
[]
[]
[]
[]
[]
[]
[]
[]
[]
[]
[]
[]
[]
[]
[]
[]
[]
[]
[]
[]
[]
[]
[]
[]
[]
[]
[]
[]
[]
[]
[]
[]
[]
[]
[]
[]
[]
[]
[]
[]
[]
[]
[]
[]
[]
[]
[]
[]
[]
[]
[]
[]
[]
[]
[]
[]
[]
[]
[]
[]
[]
[]
[]
[]
[]
[]
[]
[]
[]
[]
[]
[]
[]
[]
[]
[]
[]
[]
[]
[]
[]
[]
[]
[]
[]
[]
[]
[]
[]
[]
[]
[]
[]
[]
[]
[]
[]
[]
[]
[]
[]
[]
[]
[]
[]
[]
[]
[]
[]
[]
[]
[]
[]
[]
[]
[]
[]
[]
[]
[]
[]
[]
[]
[]
[]
[]
[]
[]
[]
[]
[]
[]
[]
[]
[]
[]
[]
[]
[]
[]
[]
[]
[]
[]
[]
[]
[]
[]
[]
[]
[]
[]
[]
[]
[]
[]
[]
[]
[]
[]
[]
[]
[]
[]
[]
[]
[]
[]
[]
[]
[]
[]
[]
[]
[]
[]
[]
[]
[]
[]
[]
[]
[]
[]
[]
[]
[]
[]
[]
[]
[]
[]
[]
[]
[]
[]
[]
[]
[]
[]
[]
[]
[]
[]
[]
[]
[]
[]
[]
[]
[]
[]
[]
[]
[]
[]
[]
[]
[]
[]
[]
[]
[]
[]
[]
[]
[]
[]
[]
[]
[]
[]
[]
[]
[]
[]
[]
[]
[]
[]
[]
[]
[]
[]
[]
[]
[]
[]
[]
[]
[]
[]
[]
[]
[]
[]
[]
[]
[]
[]
[]
[]
[]
[]
[]
[]
[]
[]
[]
[]
[]
[]
[]
[]
[]
[]
[]
[]
[]
[]
[]
[]
[]
[]
[]
[]
[]
[]
[]
[]
[]
[]
[]
[]
[]
[]
[]
[]
[]
[]
[]
[]
[]
[]
[]
[]
[]
[]
[]
[]
[]
[]
[]
[]
[]
[]
[]
[]
[]
[]
[]
[]
[]
[]
[]
[]
[]
[]
[]
[]
[]
[]
[]
[]
[]
[]
[]
[]
[]
[]
[]
[]
[]
[]
[]
[]
[]
[]
[]
[]
[]
[]
[]
[]
[]
[]
[]
[]
[]
[]
[]
[]
[]
[]
[]
[]
[]
[]
[]
[]
[]
[]
[]
[]
[]
[]
[]
[]
[]
[]
[]
[]
[]
[]
[]
[]
[]
[]
[]
[]
[]
[]
[]
[]
[]
[]
[]
[]
[]
[]
[]
[]
[]
[]
[]
[]
[]
[]
[]
[]
[]
[]
[]
[]
[]
[]
[]
[]
[]
[]
[]
[]
[]
[]
[]
[]
[]
[]
[]
[]
[]
[]
[]
[]
[]
[]
[]
[]
[]
[]
[]
[]
[]
[]
[]
[]
[]
[]
[]
[]
[]
[]
[]
[]
[]
[]
[]
[]
[]
[]
[]
[]
[]
[]
[]
[]
[]
[]
[]
[]
[]
[]
[]
[]
[]
[]
[]
[]
[]
[]
[]
[]
[]
[]
[]
[]
[]
[]
[]
[]
[]
[]
[]
[]
[]
[]
[]
[]
[]
[]
[]
[]
[]
[]
[]
[]
[]
[]
[]
[]
[]
[]
[]
[]
[]
[]
[]
[]
[]
[]
[]
[]
[]
[]
[]
[]
[]
[]
[]
[]
[]
[]
[]
[]
[]
[]
[]
[]
[]
[]
[]
[]
[]
[]
[]
[]
[]
[]
[]
[]
[]
[]
[]
[]
[]
[]
[]
[]
[]
[]
[]
[]
[]
[]
[]
[]
[]
[]
[]
[]
[]
[]
[]
[]
[]
[]
[]
[]
[]
[]
[]
[]
[]
[]
[]
[]
[]
[]
[]
[]
[]
[]
[]
[]
[]
[]
[]
[]
[]
[]
[]
[]
[]
[]
[]
[]
[]
[]
[]
[]
[]
[]
[]
[]
[]
[]
[]
[]
[]
[]
[]
[]
[]
[]
[]
[]
[]
[]
[]
[]
[]
[]
[]
[]
[]
[]
[]
[]
[]
[]
[]
[]
[]
[]
[]
[]
[]
[]
[]
[]
[]
[]
[]
[]
[]
[]
[]
[]
[]
[]
[]
[]
[]
[]
[]
[]
[]
[]
[]
[]
[]
[]
[]
[]
[]
[]
[]
[]
[]
[]
[]
[]
[]
[]
[]
[]
[]
[]
[]
[]
[]
[]
[]
[]
[]
[]
[]
[]
[]
[]
[]
[]
[]
[]
[]
[]
[]
[]
[]
[]
[]
[]
[]
[]
[]
[]
[]
[]
[]
[]
[]
[]
[]
[]
[]
[]
[]
[]
[]
[]
[]
[]
[]
[]
[]
[]
[]
[]
[]
[]
[]
[]
[]
[]
[]
[]
[]
[]
[]
[]
[]
[]
[]
[]
[]
[]
[]
[]
[]
[]
[]
[]
[]
[]
[]
[]
[]
[]
[]
[]
[]
[]
[]
[]
[]
[]
[]
[]
[]
[]
[]
[]
[]
[]
[]
[]
[]
[]
[]
[]
[]
[]
[]
[]
[]
[]
[]
[]
[]
[]
[]
[]
[]
[]
[]
[]
[]
[]
[]
[]
[]
[]
[]
[]
[]
[]
[]
[]
[]
[]
[]
[]
[]
[]
[]
[]
[]
[]
[]
[]
[]
[]
[]
[]
[]
[]
[]
[]
[]
[]
[]
[]
[]
[]
[]
[]
[]
[]
[]
[]
[]
[]
[]
[]
[]
[]
[]
[]
[]
[]
[]
[]
[]
[]
[]
[]
[]
[]
[]
[]
[]
[]
[]
[]
[]
[]
[]
[]
[]
[]
[]
[]
[]
[]
[]
[]
[]
[]
[]
[]
[]
[]
[]
[]
[]
[]
[]
[]
[]
[]
[]
[]
[]
[]
[]
[]
[]
[]
[]
[]
[]
[]
[]
[]
[]
[]
[]
[]
[]
[]
[]
[]
[]
[]
[]
[]
[]
[]
[]
[]
[]
[]
[]
[]
[]
[]
[]
[]
[]
[]
[]
[]
[]
[]
[]
[]
[]
[]
[]
[]
[]
[]
[]
[]
[]
[]
[]
[]
[]
[]
[]
[]
[]
[]
[]
[]
[]
[]
[]
[]
[]
[]
[]
[]
[]
[]
[]
[]
[]
[]
[]
[]
[]
[]
[]
[]
[]
[]
[]
[]
[]
[]
[]
[]
[]
[]
[]
[]
[]
[]
[]
[]
[]
[]
[]
[]
[]
[]
[]
[]
[]
[]
[]
[]
[]
[]
[]
[]
[]
[]
[]
[]
[]
[]
[]
[]
[]
[]
[]
[]
[]
[]
[]
[]
[]
[]
[]
[]
[]
[]
[]
[]
[]
[]
[]
[]
[]
[]
[]
[]
[]
[]
[]
[]
[]
[]
[]
[]
[]
[]
[]
[]
[]
[]
[]
[]
[]
[]
[]
[]
[]
[]
[]
[]
[]
[]
[]
[]
[]
[]
[]
[]
[]
[]
[]
[]
[]
[]
[]
[]
[]
[]
[]
[]
[]
[]
[]
[]
[]
[]
[]
[]
[]
[]
[]
[]
[]
[]
[]
[]
[]
[]
[]
[]
[]
[]
[]
[]
[]
[]
[]
[]
[]
[]
[]
[]
[]
[]
[]
[]
[]
[]
[]
[]
[]
[]
[]
[]
[]
[]
[]
[]
[]
[]
[]
[]
[]
[]
[]
[]
[]
[]
[]
[]
[]
[]
[]
[]
[]
[]
[]
[]
[]
[]
[]
[]
[]
[]
[]
[]
[]
[]
[]
[]
[]
[]
[]
[]
[]
[]
[]
[]
[]
[]
[]
[]
[]
[]
[]
[]
[]
[]
[]
[]
[]
[]
[]
[]
[]
[]
[]
[]
[]
[]
[]
[]
[]
[]
[]
[]
[]
[]
[]
[]
[]
[]
[]
[]
[]
[]
[]
[]
[]
[]
[]
[]
[]
[]
[]
[]
[]
[]
[]
[]
[]
[]
[]
[]
[]
[]
[]
[]
[]
[]
[]
[]
[]
[]
[]
[]
[]
[]
[]
[]
[]
[]
[]
[]
[]
[]
[]
[]
[]
[]
[]
[]
[]
[]
[]
[]
[]
[]
[]
[]
[]
[]
[]
[]
[]
[]
[]
[]
[]
[]
[]
[]
[]
[]
[]
[]
[]
[]
[]
[]
[]
[]
[]
[]
[]
[]
[]
[]
[]
[]
[]
[]
[]
[]
[]
[]
[]
[]
[]
[]
[]
[]
[]
[]
[]
[]
[]
[]
[]
[]
[]
[]
[]
[]
[]
[]
[]
[]
[]
[]
[]
[]
[]
[]
[]
[]
[]
[]
[]
[]
[]
[]
[]
[]
[]
[]
[]
[]
[]
[]
[]
[]
[]
[]
[]
[]
[]
[]
[]
[]
[]
[]
[]
[]
[]
[]
[]
[]
[]
[]
[]
[]
[]
[]
[]
[]
[]
[]
[]
[]
[]
[]
[]
[]
[]
[]
[]
[]
[]
[]
[]
[]
[]
[]
[]
[]
[]
[]
[]
[]
[]
[]
[]
[]
[]
[]
[]
[]
[]
[]
[]
[]
[]
[]
[]
[]
[]
[]
[]
[]
[]
[]
[]
[]
[]
[]
[]
[]
[]
[]
[]
[]
[]
[]
[]
[]
[]
[]
[]
[]
[]
[]
[]
[]
[]
[]
[]
[]
[]
[]
[]
[]
[]
[]
[]
[]
[]
[]
[]
[]
[]
[]
[]
[]
[]
[]
[]
[]
[]
[]
[]
[]
[]
[]
[]
[]
[]
[]
[]
[]
[]
[]
[]
[]
[]
[]
[]
[]
[]
[]
[]
[]
[]
[]
[]
[]
[]
[]
[]
[]
[]
[]
[]
[]
[]
[]
[]
[]
[]
[]
[]
[]
[]
[]
[]
[]
[]
[]
[]
[]
[]
[]
[]
[]
[]
[]
[]
[]
[]
[]
[]
[]
[]
[]
[]
[]
[]
[]
[]
[]
[]
[]
[]
[]
[]
[]
[]
[]
[]
[]
[]
[]
[]
[]
[]
[]
[]
[]
[]
[]
[]
[]
[]
[]
[]
[]
[]
[]
[]
[]
[]
[]
[]
[]
[]
[]
[]
[]
[]
[]
[]
[]
[]
[]
[]
[]
[]
[]
[]
[]
[]
[]
[]
[]
[]
[]
[]
[]
[]
[]
[]
[]
[]
[]
[]
[]
[]
[]
[]
[]
[]
[]
[]
[]
[]
[]
[]
[]
[]
[]
[]
[]
[]
[]
[]
[]
[]
[]
[]
[]
[]
[]
[]
[]
[]
[]
[]
[]
[]
[]
[]
[]
[]
[]
[]
[]
[]
[]
[]
[]
[]
[]
[]
[]
[]
[]
[]
[]
[]
[]
[]
[]
[]
[]
[]
[]
[]
[]
[]
[]
[]
[]
[]
[]
[]
[]
[]
[]
[]
[]
[]
[]
[]
[]
[]
[]
[]
[]
[]
[]
[]
[]
[]
[]
[]
[]
[]
[]
[]
[]
[]
[]
[]
[]
[]
[]
[]
[]
[]
[]
[]
[]
[]
[]
[]
[]
[]
[]
[]
[]
[]
[]
[]
[]
[]
[]
[]
[]
[]
[]
[]
[]
[]
[]
[]
[]
[]
[]
[]
[]
[]
[]
[]
[]
[]
[]
[]
[]
[]
[]
[]
[]
[]
[]
[]
[]
[]
[]
[]
[]
[]
[]
[]
[]
[]
[]
[]
[]
[]
[]
[]
[]
[]
[]
[]
[]
[]
[]
[]
[]
[]
[]
[]
[]
[]
[]
[]
[]
[]
[]
[]
[]
[]
[]
[]
[]
[]
[]
[]
[]
[]
[]
[]
[]
[]
[]
[]
[]
[]
[]
[]
[]
[]
[]
[]
[]
[]
[]
[]
[]
[]
[]
[]
[]
[]
[]
[]
[]
[]
[]
[]
[]
[]
[]
[]
[]
[]
[]
[]
[]
[]
[]
[]
[]
[]
[]
[]
[]
[]
[]
[]
[]
[]
[]
[]
[]
[]
[]
[]
[]
[]
[]
[]
[]
[]
[]
[]
[]
[]
[]
[]
[]
[]
[]
[]
[]
[]
[]
[]
[]
[]
[]
[]
[]
[]
[]
[]
[]
[]
[]
[]
[]
[]
[]
[]
[]
[]
[]
[]
[]
[]
[]
[]
[]
[]
[]
[]
[]
[]
[]
[]
[]
[]
[]
[]
[]
[]
[]
[]
[]
[]
[]
[]
[]
[]
[]
[]
[]
[]
[]
[]
[]
[]
[]
[]
[]
[]
[]
[]
[]
[]
[]
[]
[]
[]
[]
[]
[]
[]
[]
[]
[]
[]
[]
[]
[]
[]
[]
[]
[]
[]
[]
[]
[]
[]
[]
[]
[]
[]
[]
[]
[]
[]
[]
[]
[]
[]
[]
[]
[]
[]
[]
[]
[]
[]
[]
[]
[]
[]
[]
[]
[]
[]
[]
[]
[]
[]
[]
[]
[]
[]
[]
[]
[]
[]
[]
[]
[]
[]
[]
[]
[]
[]
[]
[]
[]
[]
[]
[]
[]
[]
[]
[]
[]
[]
[]
[]
[]
[]
[]
[]
[]
[]
[]
[]
[]
[]
[]
[]
[]
[]
[]
[]
[]
[]
[]
[]
[]
[]
[]
[]
[]
[]
[]
[]
[]
[]
[]
[]
[]
[]
[]
[]
[]
[]
[]
[]
[]
[]
[]
[]
[]
[]
[]
[]
[]
[]
[]
[]
[]
[]
[]
[]
[]
[]
[]
[]
[]
[]
[]
[]
[]
[]
[]
[]
[]
[]
[]
[]
[]
[]
[]
[]
[]
[]
[]
[]
[]
[]
[]
[]
[]
[]
[]
[]
[]
[]
[]
[]
[]
[]
[]
[]
[]
[]
[]
[]
[]
[]
[]
[]
[]
[]
[]
[]
[]
[]
[]
[]
[]
[]
[]
[]
[]
[]
[]
[]
[]
[]
[]
[]
[]
[]
[]
[]
[]
[]
[]
[]
[]
[]
[]
[]
[]
[]
[]
[]
[]
[]
[]
[]
[]
[]
[]
[]
[]
[]
[]
[]
[]
[]
[]
[]
[]
[]
[]
[]
[]
[]
[]
[]
[]
[]
[]
[]
[]
[]
[]
[]
[]
[]
[]
[]
[]
[]
[]
[]
[]
[]
[]
[]
[]
[]
[]
[]
[]
[]
[]
[]
[]
[]
[]
[]
[]
[]
[]
[]
[]
[]
[]
[]
[]
[]
[]
[]
[]
[]
[]
[]
[]
[]
[]
[]
[]
[]
[]
[]
[]
[]
[]
[]
[]
[]
[]
[]
[]
[]
[]
[]
[]
[]
[]
[]
[]
[]
[]
[]
[]
[]
[]
[]
[]
[]
[]
[]
[]
[]
[]
[]
[]
[]
[]
[]
[]
[]
[]
[]
[]
[]
[]
[]
[]
[]
[]
[]
[]
[]
[]
[]
[]
[]
[]
[]
[]
[]
[]
[]
[]
[]
[]
[]
[]
[]
[]
[]
[]
[]
[]
[]
[]
[]
[]
[]
[]
[]
[]
[]
[]
[]
[]
[]
[]
[]
[]
[]
[]
[]
[]
[]
[]
[]
[]
[]
[]
[]
[]
[]
[]
[]
[]
[]
[]
[]
[]
[]
[]
[]
[]
[]
[]
[]
[]
[]
[]
[]
[]
[]
[]
[]
[]
[]
[]
[]
[]
[]
[]
[]
[]
[]
[]
[]
[]
[]
[]
[]
[]
[]
[]
[]
[]
[]
[]
[]
[]
[]
[]
[]
[]
[]
[]
[]
[]
[]
[]
[]
[]
[]
[]
[]
[]
[]
[]
[]
[]
[]
[]
[]
[]
[]
[]
[]
[]
[]
[]
[]
[]
[]
[]
[]
[]
[]
[]
[]
[]
[]
[]
[]
[]
[]
[]
[]
[]
[]
[]
[]
[]
[]
[]
[]
[]
[]
[]
[]
[]
[]
[]
[]
[]
[]
[]
[]
[]
[]
[]
[]
[]
[]
[]
[]
[]
[]
[]
[]
[]
[]
[]
[]
[]
[]
[]
[]
[]
[]
[]
[]
[]
[]
[]
[]
[]
[]
[]
[]
[]
[]
[]
[]
[]
[]
[]
[]
[]
[]
[]
[]
[]
[]
[]
[]
[]
[]
[]
[]
[]
[]
[]
[]
[]
[]
[]
[]
[]
[]
[]
[]
[]
[]
[]
[]
[]
[]
[]
[]
[]
[]
[]
[]
[]
[]
[]
[]
[]
[]
[]
[]
[]
[]
[]
[]
[]
[]
[]
[]
[]
[]
[]
[]
[]
[]
[]
[]
[]
[]
[]
[]
[]
[]
[]
[]
[]
[]
[]
[]
[]
[]
[]
[]
[]
[]
[]
[]
[]
[]
[]
[]
[]
[]
[]
[]
[]
[]
[]
[]
[]
[]
[]
[]
[]
[]
[]
[]
[]
[]
[]
[]
[]
[]
[]
[]
[]
[]
[]
[]
[]
[]
[]
[]
[]
[]
[]
[]
[]
[]
[]
[]
[]
[]
[]
[]
[]
[]
[]
[]
[]
[]
[]
[]
[]
[]
[]
[]
[]
[]
[]
[]
[]
[]
[]
[]
[]
[]
[]
[]
[]
[]
[]
[]
[]
[]
[]
[]
[]
[]
[]
[]
[]
[]
[]
[]
[]
[]
[]
[]
[]
[]
[]
[]
[]
[]
[]
[]
[]
[]
[]
[]
[]
[]
[]
[]
[]
[]
[]
[]
[]
[]
[]
[]
[]
[]
[]
[]
[]
[]
[]
[]
[]
[]
[]
[]
[]
[]
[]
[]
[]
[]
[]
[]
[]
[]
[]
[]
[]
[]
[]
[]
[]
[]
[]
[]
[]
[]
[]
[]
[]
[]
[]
[]
[]
[]
[]
[]
[]
[]
[]
[]
[]
[]
[]
[]
[]
[]
[]
[]
[]
[]
[]
[]
[]
[]
[]
[]
[]
[]
[]
[]
[]
[]
[]
[]
[]
[]
[]
[]
[]
[]
[]
[]
[]
[]
[]
[]
[]
[]
[]
[]
[]
[]
[]
[]
[]
[]
[]
[]
[]
[]
[]
[]
[]
[]
[]
[]
[]
[]
[]
[]
[]
[]
[]
[]
[]
[]
[]
[]
[]
[]
[]
[]
[]
[]
[]
[]
[]
[]
[]
[]
[]
[]
[]
[]
[]
[]
[]
[]
[]
[]
[]
[]
[]
[]
[]
[]
[]
[]
[]
[]
[]
[]
[]
[]
[]
[]
[]
[]
[]
[]
[]
[]
[]
[]
[]
[]
[]
[]
[]
[]
[]
[]
[]
[]
[]
[]
[]
[]
[]
[]
[]
[]
[]
[]
[]
[]
[]
[]
[]
[]
[]
[]
[]
[]
[]
[]
[]
[]
[]
[]
[]
[]
[]
[]
[]
[]
[]
[]
[]
[]
[]
[]
[]
[]
[]
[]
[]
[]
[]
[]
[]
[]
[]
[]
[]
[]
[]
[]
[]
[]
[]
[]
[]
[]
[]
[]
[]
[]
[]
[]
[]
[]
[]
[]
[]
[]
[]
[]
[]
[]
[]
[]
[]
[]
[]
[]
[]
[]
[]
[]
[]
[]
[]
[]
[]
[]
[]
[]
[]
[]
[]
[]
[]
[]
[]
[]
[]
[]
[]
[]
[]
[]
[]
[]
[]
[]
[]
[]
[]
[]
[]
[]
[]
[]
[]
[]
[]
[]
[]
[]
[]
[]
[]
[]
[]
[]
[]
[]
[]
[]
[]
[]
[]
[]
[]
[]
[]
[]
[]
[]
[]
[]
[]
[]
[]
[]
[]
[]
[]
[]
[]
[]
[]
[]
[]
[]
[]
[]
[]
[]
[]
[]
[]
[]
[]
[]
[]
[]
[]
[]
[]
[]
[]
[]
[]
[]
[]
[]
[]
[]
[]
[]
[]
[]
[]
[]
[]
[]
[]
[]
[]
[]
[]
[]
[]
[]
[]
[]
[]
[]
[]
[]
[]
[]
[]
[]
[]
[]
[]
[]
[]
[]
[]
[]
[]
[]
[]
[]
[]
[]
[]
[]
[]
[]
[]
[]
[]
[]
[]
[]
[]
[]
[]
[]
[]
[]
[]
[]
[]
[]
[]
[]
[]
[]
[]
[]
[]
[]
[]
[]
[]
[]
[]
[]
[]
[]
[]
[]
[]
[]
[]
[]
[]
[]
[]
[]
[]
[]
[]
[]
[]
[]
[]
[]
[]
[]
[]
[]
[]
[]
[]
[]
[]
[]
[]
[]
[]
[]
[]
[]
[]
[]
[]
[]
[]
[]
[]
[]
[]
[]
[]
[]
[]
[]
[]
[]
[]
[]
[]
[]
[]
[]
[]
[]
[]
[]
[]
[]
[]
[]
[]
[]
[]
[]
[]
[]
[]
[]
[]
[]
[]
[]
[]
[]
[]
[]
[]
[]
[]
[]
[]
[]
[]
[]
[]
[]
[]
[]
[]
[]
[]
[]
[]
[]
[]
[]
[]
[]
[]
[]
[]
[]
[]
[]
[]
[]
[]
[]
[]
[]
[]
[]
[]
[]
[]
[]
[]
[]
[]
[]
[]
[]
[]
[]
[]
[]
[]
[]
[]
[]
[]
[]
[]
[]
[]
[]
[]
[]
[]
[]
[]
[]
[]
[]
[]
[]
[]
[]
[]
[]
[]
[]
[]
[]
[]
[]
[]
[]
[]
[]
[]
[]
[]
[]
[]
[]
[]
[]
[]
[]
[]
[]
[]
[]
[]
[]
[]
[]
[]
[]
[]
[]
[]
[]
[]
[]
[]
[]
[]
[]
[]
[]
[]
[]
[]
[]
[]
[]
[]
[]
[]
[]
[]
[]
[]
[]
[]
[]
[]
[]
[]
[]
[]
[]
[]
[]
[]
[]
[]
[]
[]
[]
[]
[]
[]
[]
[]
[]
[]
[]
[]
[]
[]
[]
[]
[]
[]
[]
[]
[]
[]
[]
[]
[]
[]
[]
[]
[]
[]
[]
[]
[]
[]
[]
[]
[]
[]
[]
[]
[]
[]
[]
[]
[]
[]
[]
[]
[]
[]
[]
[]
[]
[]
[]
[]
[]
[]
[]
[]
[]
[]
[]
[]
[]
[]
[]
[]
[]
[]
[]
[]
[]
[]
[]
[]
[]
[]
[]
[]
[]
[]
[]
[]
[]
[]
[]
[]
[]
[]
[]
[]
[]
[]
[]
[]
[]
[]
[]
[]
[]
[]
[]
[]
[]
[]
[]
[]
[]
[]
[]
[]
[]
[]
[]
[]
[]
[]
[]
[]
[]
[]
[]
[]
[]
[]
[]
[]
[]
[]
[]
[]
[]
[]
[]
[]
[]
[]
[]
[]
[]
[]
[]
[]
[]
[]
[]
[]
[]
[]
[]
[]
[]
[]
[]
[]
[]
[]
[]
[]
[]
[]
[]
[]
[]
[]
[]
[]
[]
[]
[]
[]
[]
[]
[]
[]
[]
[]
[]
[]
[]
[]
[]
[]
[]
[]
[]
[]
[]
[]
[]
[]
[]
[]
[]
[]
[]
[]
[]
[]
[]
[]
[]
[]
[]
[]
[]
[]
[]
[]
[]
[]
[]
[]
[]
[]
[]
[]
[]
[]
[]
[]
[]
[]
[]
[]
[]
[]
[]
[]
[]
[]
[]
[]
[]
[]
[]
[]
[]
[]
[]
[]
[]
[]
[]
[]
[]
[]
[]
[]
[]
[]
[]
[]
[]
[]
[]
[]
[]
[]
[]
[]
[]
[]
[]
[]
[]
[]
[]
[]
[]
[]
[]
[]
[]
[]
[]
[]
[]
[]
[]
[]
[]
[]
[]
[]
[]
[]
[]
[]
[]
[]
[]
[]
[]
[]
[]
[]
[]
[]
[]
[]
[]
[]
[]
[]
[]
[]
[]
[]
[]
[]
[]
[]
[]
[]
[]
[]
[]
[]
[]
[]
[]
[]
[]
[]
[]
[]
[]
[]
[]
[]
[]
[]
[]
[]
[]
[]
[]
[]
[]
[]
[]
[]
[]
[]
[]
[]
[]
[]
[]
[]
[]
[]
[]
[]
[]
[]
[]
[]
[]
[]
[]
[]
[]
[]
[]
[]
[]
[]
[]
[]
[]
[]
[]
[]
[]
[]
[]
[]
[]
[]
[]
[]
[]
[]
[]
[]
[]
[]
[]
[]
[]
[]
[]
[]
[]
[]
[]
[]
[]
[]
[]
[]
[]
[]
[]
[]
[]
[]
[]
[]
[]
[]
[]
[]
[]
[]
[]
[]
[]
[]
[]
[]
[]
[]
[]
[]
[]
[]
[]
[]
[]
[]
[]
[]
[]
[]
[]
[]
[]
[]
[]
[]
[]
[]
[]
[]
[]
[]
[]
[]
[]
[]
[]
[]
[]
[]
[]
[]
[]
[]
[]
[]
[]
[]
[]
[]
[]
[]
[]
[]
[]
[]
[]
[]
[]
[]
[]
[]
[]
[]
[]
[]
[]
[]
[]
[]
[]
[]
[]
[]
[]
[]
[]
[]
[]
[]
[]
[]
[]
[]
[]
[]
[]
[]
[]
[]
[]
[]
[]
[]
[]
[]
[]
[]
[]
[]
[]
[]
[]
[]
[]
[]
[]
[]
[]
[]
[]
[]
[]
[]
[]
[]
[]
[]
[]
[]
[]
[]
[]
[]
[]
[]
[]
[]
[]
[]
[]
[]
[]
[]
[]
[]
[]
[]
[]
[]
[]
[]
[]
[]
[]
[]
[]
[]
[]
[]
[]
[]
[]
[]
[]
[]
[]
[]
[]
[]
[]
[]
[]
[]
[]
[]
[]
[]
[]
[]
[]
[]
[]
[]
[]
[]
[]
[]
[]
[]
[]
[]
[]
[]
[]
[]
[]
[]
[]
[]
[]
[]
[]
[]
[]
[]
[]
[]
[]
[]
[]
[]
[]
[]
[]
[]
[]
[]
[]
[]
[]
[]
[]
[]
[]
[]
[]
[]
[]
[]
[]
[]
[]
[]
[]
[]
[]
[]
[]
[]
[]
[]
[]
[]
[]
[]
[]
[]
[]
[]
[]
[]
[]
[]
[]
[]
[]
[]
[]
[]
[]
[]
[]
[]
[]
[]
[]
[]
[]
[]
[]
[]
[]
[]
[]
[]
[]
[]
[]
[]
[]
[]
[]
[]
[]
[]
[]
[]
[]
[]
[]
[]
[]
[]
[]
[]
[]
[]
[]
[]
[]
[]
[]
[]
[]
[]
[]
[]
[]
[]
[]
[]
[]
[]
[]
[]
[]
[]
[]
[]
[]
[]
[]
[]
[]
[]
[]
[]
[]
[]
[]
[]
[]
[]
[]
[]
[]
[]
[]
[]
[]
[]
[]
[]
[]
[]
[]
[]
[]
[]
[]
[]
[]
[]
[]
[]
[]
[]
[]
[]
[]
[]
[]
[]
[]
[]
[]
[]
[]
[]
[]
[]
[]
[]
[]
[]
[]
[]
[]
[]
[]
[]
[]
[]
[]
[]
[]
[]
[]
[]
[]
[]
[]
[]
[]
[]
[]
[]
[]
[]
[]
[]
[]
[]
[]
[]
[]
[]
[]
[]
[]
[]
[]
[]
[]
[]
[]
[]
[]
[]
[]
[]
[]
[]
[]
[]
[]
[]
[]
[]
[]
[]
[]
[]
[]
[]
[]
[]
[]
[]
[]
[]
[]
[]
[]
[]
[]
[]
[]
[]
[]
[]
[]
[]
[]
[]
[]
[]
[]
[]
[]
[]
[]
[]
[]
[]
[]
[]
[]
[]
[]
[]
[]
[]
[]
[]
[]
[]
[]
[]
[]
[]
[]
[]
[]
[]
[]
[]
[]
[]
[]
[]
[]
[]
[]
[]
[]
[]
[]
[]
[]
[]
[]
[]
[]
[]
[]
[]
[]
[]
[]
[]
[]
[]
[]
[]
[]
[]
[]
[]
[]
[]
[]
[]
[]
[]
[]
[]
[]
[]
[]
[]
[]
[]
[]
[]
[]
[]
[]
[]
[]
[]
[]
[null,null,null,null,null,null,null,null,null,null,{"$f":"SUM(K10:K1048575)","v":56000}]

{"sheet":"05-09-2019","index":285,"n_rows":18,"n_cols":17,"rows_kept":18,"cut":false,"hidden":false,"merged":[]}
[]
[]
[]
[]
[null,null,null,null,null,null,null,"HUAWEI FUEL RETIREMENT FOR  05-09-2019 BY IKECHUKWU ROBERT E."]
[]
[null,"    Date","Vehicle Number","Filling Station","  Mileage","     Type","Quantity","Amount per Litre","TRACKING REPORT LITRE","Variance","            RATE","PURCHASE POINT","CONTRACT","   NAME","PHONE NO","COMMENT","VEHICLE MAKE"]
[null,"2020-02-09","LSD 460 XM","ZUBY PET",120993,"PETROL",41,145,50,9,6000,"PHC","HUAWEI","KINGSLEY OKEREKE",8063799963," ","TOYOTA HILUX"]
[null,"2019-03-09","EPE 474 XB","PROPEL",75868,"PETROL",35,145,"NOT CAPTURED",0,5000,"OWERRI","HUAWEI","SUNDAY OGUNAIKE",8035263692,"CITRACKS STILL WORKING ON DEVICE","TOYOTAHILUX "]
[null,"2019-03-09","KRD 337 XB","ETERNA",95727,"PETROL",35,145,"NOT CAPTURED",0,4000,"PHC","HUAWEI","DIDI SOLOMON",8134352565,"CITRACKS STILL WORKING ON DEVICE","TOYOTAHILUX "]
[null,"2019-03-09","LSD 460 XM","MOBIL",121136,"PETROL",28,145,22,6,4000,"PHC","HUAWEI","KINGSLEY OKEREKE",8063799963," ","TOYOTA HILUX"]
[null,"2019-04-09","KRD 337 XB"," SOBAZ",95843,"PETROL",35,145,"NOT CAPTURED",0,4000,"PHC","HUAWEI","DIDI SOLOMON",8134352565,"CITRACKS STILL WORKING ON DEVICE","TOYOTAHILUX "]
[null,"2019-04-09","LSR 997 XL","FORTE OIL",73227,"PETROL",35,145,"NOT CAPTURED",0,6000,"PHC ","HUAWEI","JAMES ALECHENU",8077006443,"NOT CAPTURED ","TOYOTA HILUX"]
[null,"2019-04-09","AAA 632 XM","NNPC",143768,"PETROL",41,145,34.5,5.5,6000,"PHC","HUAWEI","DENNIS ADOYE",9062959263," ","TOYOTAHILUX "]
[null,"2019-05-09","LSR 997 XL","NNPC",73505,"PETROL",35,145,"NOT CAPTURED",0,5000,"UYO","HUAWEI","JAMES ALECHENU",8077006444,"NOT CAPTURED ","TOYOTA HILUX"]
[null,null,null,null,null,null,null,null,null,"TOTAL",{"$f":"SUM(K8:K15)","v":40000}]
[null,null,null,null,null,null,null,null,null,null," "]
[null,null,null,null,null,null,null,null,null,null," "]

{"sheet":"Sheet7","index":286,"n_rows":20,"n_cols":17,"rows_kept":20,"cut":false,"hidden":false,"merged":[]}
[]
[]
[]
[]
[]
[]
[]
[]
[]
[]
[]
[]
[]
[]
[]
[]
[]
[]
[]
[null,"2019-03-09","EPE 474 XB","PROPEL",75868,"PETROL",35,145,"NOT CAPTURED",0,5000,"OWERRI","HUAWEI","SUNDAY OGUNAIKE",8035263692,"CITRACKS STILL WORKING ON DEVICE","TOYOTAHILUX "]

{"sheet":"07-09-2019","index":287,"n_rows":12,"n_cols":18,"rows_kept":12,"cut":false,"hidden":false,"merged":[]}
[]
[]
[]
[null,null,null,null,null,null,null,null,"HUAWEI FUEL RETIREMENT FOR  07-09-2019 BY IKECHUKWU ROBERT E."]
[]
[null,null,"    Date","Vehicle Number","Filling Station","  Mileage","     Type","Quantity","Amount per Litre","TRACKING REPORT LITRE","Variance","            RATE","PURCHASE POINT","CONTRACT","   NAME","PHONE NO","COMMENT","VEHICLE MAKE"]
[null,null,"2019-05-09","GGE 499 FA"," FORTE OIL",34236,"PETROL",28,145,"NOT CAPTURED",0,4000,"PHC","NOVALTIS","Enadeba Aisagbon samuel ",9062959263,"NOT CAPTURED","HYUNDAI ELANTRA"]
[null,null,"2019-06-09","LSR 997 XL","FORTE OIL",73721,"PETROL",41,145,"NOT CAPTURED",0,6000,"PHC ","HUAWEI","JAMES ALECHENU",8077006443,"NOT CAPTURED ","TOYOTA HILUX"]
[null,null,"2019-07-09","AAA 632 XM","NNPC",144128,"PETROL",41,145,36,5,6000,"PHC","HUAWEI","DENNIS ADOYE",9062959263," ","TOYOTAHILUX "]
[null,null,null,null,null,null,null,null,null,null,"TOTAL",{"$f":"SUM(L7:L9)","v":16000}]
[null,null,null,null,null,null,null,null,null,null,null," "]
[null,null,null,null,null,null,null,null,null,null,null," "]

{"sheet":"10-09-2019","index":288,"n_rows":13,"n_cols":17,"rows_kept":13,"cut":false,"hidden":false,"merged":[]}
[]
[]
[]
[]
[null,null,null,null,null,null,null,"HUAWEI FUEL RETIREMENT FOR  10-09-2019 BY IKECHUKWU ROBERT E."]
[]
[null,"    Date","Vehicle Number","Filling Station","  Mileage","     Type","Quantity","Amount per Litre","TRACKING REPORT LITRE","Variance","            RATE","PURCHASE POINT","CONTRACT","   NAME","PHONE NO","COMMENT","VEHICLE MAKE"]
[null,"2019-07-09","LSR 997 XL","FORTE OIL",74045,"PETROL",35,145,"NOT CAPTURED",0,5000,"PHC ","HUAWEI","JAMES ALECHENU",8077006443,"NOT CAPTURED ","TOYOTA HILUX"]
[null,"2019-09-09","AAA 632 XM","NNPC",144445,"PETROL",35,145,34,1,5000,"PHC","HUAWEI","DENNIS ADOYE",9062959263," ","TOYOTAHILUX "]
[null,"2019-10-09","AAA 632 XM","PROPEL",144631,"PETROL",35,145,30,5,5000,"PHC","HUAWEI","DENNIS ADOYE",9062959263," ","TOYOTAHILUX "]
[null,null,null,null,null,null,null,null,null,"TOTAL",{"$f":"SUM(K8:K10)","v":15000}]
[null,null,null,null,null,null,null,null,null,null," "]
[null,null,null,null,null,null,null,null,null,null," "]

{"sheet":"12-09-2019","index":289,"n_rows":12,"n_cols":17,"rows_kept":12,"cut":false,"hidden":false,"merged":[]}
[]
[]
[]
[null,null,null,null,null,null,null,"HUAWEI FUEL RETIREMENT FOR  12-09-2019 BY IKECHUKWU ROBERT E."]
[]
[null,"    Date","Vehicle Number","Filling Station","  Mileage","     Type","Quantity","Amount per Litre","TRACKING REPORT LITRE","Variance","            RATE","PURCHASE POINT","CONTRACT","   NAME","PHONE NO","COMMENT","VEHICLE MAKE"]
[null,"2019-11-09","KRD 337 XB"," SOBAZ",96455,"PETROL",35,145,"NOT CAPTURED",0,5000,"PHC","HUAWEI","DIDI SOLOMON",8134352565,"CITRACKS STILL WORKING ON DEVICE","TOYOTAHILUX "]
[null,"2019-11-09","AAA 632 XM"," HYDROPET",144872,"PETROL",35,145,35,0,5000,"PHC","HUAWEI","DENNIS ADOYE",9062959263," ","TOYOTAHILUX "]
[null,"2019-12-09","AAA 645 XM","FORTE OIL",162588,"PETROL",35,145,"NOT CAPTURED",0,5000,"PHC ","HUAWEI","JAMES ALECHENU",8077006443,"NOT CAPTURED ","TOYOTA HILUX"]
[null,"2019-12-09","AAA 632 XM","PROPEL",145126,"PETROL",35,145,34,1,5000,"PHC","HUAWEI","DENNIS ADOYE",9062959263," ","TOYOTAHILUX "]
[null,null,null,null,null,null,null,null,null,"TOTAL",{"$f":"SUM(K7:K10)","v":20000}]
[null,null,null,null,null,null,null,null,null,null," "]

{"sheet":"13-09-2019","index":290,"n_rows":10,"n_cols":17,"rows_kept":10,"cut":false,"hidden":false,"merged":[]}
[]
[]
[]
[]
[null,null,null,null,null,null,null,"HUAWEI FUEL RETIREMENT FOR  13-09-2019 BY IKECHUKWU ROBERT E."]
[]
[null,"    Date","Vehicle Number","Filling Station","  Mileage","     Type","Quantity","Amount per Litre","TRACKING REPORT LITRE","Variance","            RATE","PURCHASE POINT","CONTRACT","   NAME","PHONE NO","COMMENT","VEHICLE MAKE"]
[null,"13/9/2019","AAA 632 XM","PROPEL",145321,"PETROL",35,145,34.5,0.5,5000,"PHC","HUAWEI","DENNIS ADOYE",9062959263," ","TOYOTAHILUX "]
[null,null,null,null,null,null,null,null,null,"TOTAL",{"$f":"SUM(K8:K8)","v":5000}]
[null,null,null,null,null,null,null,null,null,null," "]

{"sheet":" 16-09-2019","index":291,"n_rows":10,"n_cols":17,"rows_kept":10,"cut":false,"hidden":false,"merged":[]}
[]
[]
[null,null,null,null,null,null,null,"HUAWEI FUEL RETIREMENT FOR  16-09-2019 BY IKECHUKWU ROBERT E."]
[]
[null,"    Date","Vehicle Number","Filling Station","  Mileage","     Type","Quantity","Amount per Litre","TRACKING REPORT LITRE","Variance","            RATE","PURCHASE POINT","CONTRACT","   NAME","PHONE NO","COMMENT","VEHICLE MAKE"]
[null,"14/9/2020","LSD 460 XM","PROPEL",122524,"PETROL",28,145,"NOT CAPTURED ",0,4000,"PHC","HUAWEI","KINGSLEY OKEREKE",8063799963," ","TOYOTA HILUX"]
[null,"15/9/2020","LSD 460 XM","EXCELSIS PET",122734,"PETROL",28,145,"NOT CAPTURED ",0,4000,"PHC","HUAWEI","KINGSLEY OKEREKE",8063799963," ","TOYOTA HILUX"]
[null,"16/9/2019","KRD 337 XB","MOBIL",96804,"PETROL",21,145,"NOT CAPTURED",0,3000,"PHC","HUAWEI","DIDI SOLOMON",8134352565,"CITRACKS STILL WORKING ON DEVICE","TOYOTAHILUX "]
[null,null,null,null,null,null,null,null,null,"TOTAL",{"$f":"SUM(K6:K8)","v":11000}]
[null,null,null,null,null,null,null,null,null,null," "]

{"sheet":"17-09-2019","index":292,"n_rows":0,"n_cols":0,"rows_kept":0,"cut":false,"hidden":false,"merged":[]}

{"sheet":"18-09-2019","index":293,"n_rows":12,"n_cols":17,"rows_kept":12,"cut":false,"hidden":false,"merged":[]}
[]
[]
[]
[null,null,null,null,null,null,null,"HUAWEI FUEL RETIREMENT FOR  18-09-2019 BY IKECHUKWU ROBERT E."]
[]
[null,"    Date","Vehicle Number","Filling Station","  Mileage","     Type","Quantity","Amount per Litre","TRACKING REPORT LITRE","Variance","            RATE","PURCHASE POINT","CONTRACT","   NAME","PHONE NO","COMMENT","VEHICLE MAKE"]
[null,"18/9/2019","AAA 632 XM","FORTE",145803,"PETROL",41,145,"NOT CAPTURED",2,6000,"PHC","HUAWEI","DENNIS ADOYE",9062959263," ","TOYOTAHILUX "]
[null,"18/9/2019","LSD 460 XM","ETERNA",123101,"PETROL",41,145,40,5,6000,"PHC","HUAWEI","KINGSLEY OKEREKE",8063799963," ","TOYOTA HILUX"]
[null,"18/9/2019","KRD 337 XB","PROPEL",97011,"PETROL",28,145,"NOT CAPTURED",0,4000,"PHC","HUAWEI","DIDI SOLOMON",8134352565,"CITRACKS STILL WORKING ON DEVICE","TOYOTAHILUX "]
[null,"18/9/2019","EPE 474 XB","ND PET",77510,"PETROL",35,145,"NOT CAPTURED ",0,5000,"OWERRI","HUAWEI","SUNDAY OGUNAIKE",8035263692," ","TOYOTAHILUX "]
[null,null,null,null,null,null,null,null,null,"TOTAL",{"$f":"SUM(K7:K10)","v":21000}]
[null,null,null,null,null,null,null,null,null,null," "]

{"sheet":"19-09-2019","index":294,"n_rows":10,"n_cols":17,"rows_kept":10,"cut":false,"hidden":false,"merged":[]}
[]
[]
[]
[null,null,null,null,null,null,null,"HUAWEI FUEL RETIREMENT FOR  19-09-2019 BY IKECHUKWU ROBERT E."]
[]
[null,"    Date","Vehicle Number","Filling Station","  Mileage","     Type","Quantity","Amount per Litre","TRACKING REPORT LITRE","Variance","            RATE","PURCHASE POINT","CONTRACT","   NAME","PHONE NO","COMMENT","VEHICLE MAKE"]
[null,"19/9/2019","LSD 460 XM","ETERNA",123350,"PETROL",41,145,37,4,6000,"ASABA","HUAWEI","KINGSLEY OKEREKE",8063799963," ","TOYOTA HILUX"]
[null,"19/9/2019","KRD 337 XB","PROPEL",97213,"PETROL",28,145,"NOT CAPTURED",0,5000,"PHC","HUAWEI","DIDI SOLOMON",8134352565,"CITRACKS STILL WORKING ON DEVICE","TOYOTAHILUX "]
[null,null,null,null,null,null,null,null,null,"TOTAL",{"$f":"SUM(K7:K8)","v":11000}]
[null,null,null,null,null,null,null,null,null,null," "]

{"sheet":"21-09-2019","index":295,"n_rows":11,"n_cols":17,"rows_kept":11,"cut":false,"hidden":false,"merged":[]}
[]
[]
[]
[]
[null,null,null,null,null,null,null,"HUAWEI FUEL RETIREMENT FOR  21-09-2019 BY IKECHUKWU ROBERT E."]
[]
[null,"    Date","Vehicle Number","Filling Station","  Mileage","     Type","Quantity","Amount per Litre","TRACKING REPORT LITRE","Variance","            RATE","PURCHASE POINT","CONTRACT","   NAME","PHONE NO","COMMENT","VEHICLE MAKE"]
[null,"21/9/2019","AAA 632 XM","ETERNA",146124,"PETROL",41,145,39,2,6000,"PHC","HUAWEI","DENNIS ADOYE",9062959263," ","TOYOTA HILUX"]
[null,"21/9/2019","AAB 142 YJ"," SOSO",38179,"PETROL",41,145,"NOT CAPTURED",0,6000,"PHC","HUAWEI","JAMES ALECHENU",8077006443,"NOT CAPTURED","TOYOTAHILUX "]
[null,null,null,null,null,null,null,null,null,"TOTAL",{"$f":"SUM(K8:K9)","v":12000}]
[null,null,null,null,null,null,null,null,null,null," "]

{"sheet":" 24-09-2019","index":296,"n_rows":13,"n_cols":17,"rows_kept":13,"cut":false,"hidden":false,"merged":[]}
[]
[]
[]
[]
[]
[null,null,null,null,null,null,null,"HUAWEI FUEL RETIREMENT FOR  24-09-2019 BY IKECHUKWU ROBERT E."]
[]
[null,"    Date","Vehicle Number","Filling Station","  Mileage","     Type","Quantity","Amount per Litre","TRACKING REPORT LITRE","Variance","            RATE","PURCHASE POINT","CONTRACT","   NAME","PHONE NO","COMMENT","VEHICLE MAKE"]
[null,"23/9/2019","AAA 632 XM","ETERNA",146281,"PETROL",41,145,34,7,6000,"PHC","HUAWEI","DENNIS ADOYE",9062959263," ","TOYOTA HILUX"]
[null,"23/9/2019","LSR 998 XL","ETERNA",194123,"PETROL",28,145,28,0,4000,"PHC","HUAWEI","DENNIS ADOYE",9062959263," ","TOYOTA HILUX"]
[null,"24/9/2019","LSD 460 XM","ETERNA",123350,"PETROL",41,145,36,5,6000,"PHC","HUAWEI","KINGSLEY OKEREKE",8063799963," ","TOYOTA HILUX"]
[null,null,null,null,null,null,null,null,null,"TOTAL",{"$f":"SUM(K9:K11)","v":16000}]
[null,null,null,null,null,null,null,null,null,null," "]

{"sheet":"25-09-2019","index":297,"n_rows":11,"n_cols":17,"rows_kept":11,"cut":false,"hidden":false,"merged":[]}
[]
[]
[]
[]
[]
[null,null,null,null,null,null,null,"HUAWEI FUEL RETIREMENT FOR  25-09-2019 BY IKECHUKWU ROBERT E."]
[]
[null,"    Date","Vehicle Number","Filling Station","  Mileage","     Type","Quantity","Amount per Litre","TRACKING REPORT LITRE","Variance","            RATE","PURCHASE POINT","CONTRACT","   NAME","PHONE NO","COMMENT","VEHICLE MAKE"]
[null,"25/9/2019","AAA 632 XM","ETERNA",146432,"PETROL",35,145,24,11,5000,"PHC","HUAWEI","DENNIS ADOYE",9062959263," ","TOYOTA HILUX"]
[null,null,null,null,null,null,null,null,null,"TOTAL",{"$f":"SUM(K9:K9)","v":5000}]
[null,null,null,null,null,null,null,null,null,null," "]

{"sheet":" 27-09-2019","index":298,"n_rows":12,"n_cols":17,"rows_kept":12,"cut":false,"hidden":false,"merged":[]}
[]
[]
[]
[]
[]
[null,null,null,null,null,null,null,"HUAWEI FUEL RETIREMENT FOR  27-09-2019 BY IKECHUKWU ROBERT E."]
[]
[null,"    Date","Vehicle Number","Filling Station","  Mileage","     Type","Quantity","Amount per Litre","TRACKING REPORT LITRE","Variance","            RATE","PURCHASE POINT","CONTRACT","   NAME","PHONE NO","COMMENT","VEHICLE MAKE"]
[null,"26/9/2019","AAA 632 XM","ETERNA",146623,"PETROL",28,145,29.5,1.5,4000,"PHC","HUAWEI","DENNIS ADOYE",9062959263," ","TOYOTA HILUX"]
[null,"27/9/2019","AAA 632 XM","ETERNA",146814,"PETROL",14,145,15.5,1.5,2000,"UYO","HUAWEI","DENNIS ADOYE",9062959263," ","TOYOTA HILUX"]
[null,null,null,null,null,null,null,null,null,"TOTAL",{"$f":"SUM(K9:K10)","v":6000}]
[null,null,null,null,null,null,null,null,null,null," "]

{"sheet":"03-10-2019","index":299,"n_rows":13,"n_cols":17,"rows_kept":13,"cut":false,"hidden":false,"merged":[]}
[]
[]
[]
[]
[]
[]
[null,null,null,null,null,null,null,"HUAWEI FUEL RETIREMENT FOR  03-10-2019 BY IKECHUKWU ROBERT E."]
[]
[null,"    Date","Vehicle Number","Filling Station","  Mileage","     Type","Quantity","Amount per Litre","TRACKING REPORT LITRE","Variance","            RATE","PURCHASE POINT","CONTRACT","   NAME","PHONE NO","COMMENT","VEHICLE MAKE"]
[null,"28/9/2019","AAA 632 XM","ETERNA",147288,"PETROL",41,145,39,2,6000,"PHC","HUAWEI","DENNIS ADOYE",9062959263," ","TOYOTA HILUX"]
[null,"2019-02-10","LSD 460 XM","ETERNA",126115,"PETROL",41,145,34,7,6000,"PHC","HUAWEI","KINGSLEY OKEREKE",8063799963," ","TOYOTA HILUX"]
[null,"2019-03-10","KRD 337 XB","PROPEL",98741,"PETROL",35,145,"NOT CAPTURED ",0,5000,"PHC","HUAWEI","DIDI SOLOMON",8134352565," ","TOYOTAHILUX "]
[null,null,null,null,null,null,null,null,null,"TOTAL",{"$f":"SUM(K10:K12)","v":17000}]

{"sheet":"04-10-2019","index":300,"n_rows":20,"n_cols":17,"rows_kept":20,"cut":false,"hidden":false,"merged":[]}
[]
[]
[]
[null,null,null,null,null,null,null,"HUAWEI FUEL RETIREMENT FOR  04-10-2019 BY IKECHUKWU ROBERT E."]
[]
[null,"    Date","Vehicle Number","Filling Station","  Mileage","     Type","Quantity","Amount per Litre","TRACKING REPORT LITRE","Variance","            RATE","PURCHASE POINT","CONTRACT","   NAME","PHONE NO","COMMENT","VEHICLE MAKE"]
[null,"2019-03-10","LSD 460 XM","ETERNA",126479,"PETROL",35,145,34,0,5000,"PHC","HUAWEI","KINGSLEY OKEREKE",8063799963," ","TOYOTA HILUX"]
[null,"2019-04-10","KRD 337 XB","PROPEL",98890,"PETROL",35,145,"NOT CAPTURED ",0,5000,"PHC","HUAWEI","DIDI SOLOMON",8134352565," ","TOYOTAHILUX "]
[null,"2019-04-10","AAA 632 XM","ETERNA",147550,"PETROL",41,145,40,1,6000,"PHC","HUAWEI","DENNIS ADOYE",9062959263," ","TOYOTA HILUX"]
[null,null,null,null,null,null,null,null,null,"TOTAL",16000]
[]
[]
[]
[]
[]
[]
[]
[]
[]
[null,null,null,null,null,null,null,null,null,null,null,null,null,null,null," "]

{"sheet":"07-10-2019","index":301,"n_rows":12,"n_cols":17,"rows_kept":12,"cut":false,"hidden":false,"merged":[]}
[]
[]
[]
[]
[]
[null,null,null,null,null,null,null,"HUAWEI FUEL RETIREMENT FOR  07-10-2019 BY IKECHUKWU ROBERT E."]
[]
[null,"    Date","Vehicle Number","Filling Station","  Mileage","     Type","Quantity","Amount per Litre","TRACKING REPORT LITRE","Variance","            RATE","PURCHASE POINT","CONTRACT","   NAME","PHONE NO","COMMENT","VEHICLE MAKE"]
[null,"2019-05-10","AAA 632 XM","FORTE OIL",147791,"PETROL",48,145,34,14,7000,"PHC","HUAWEI","DENNIS ADOYE",9062959263,"Kindly deduct N2,000.00 from the driver. ","TOYOTA HILUX"]
[null,"2019-05-10","LSR 998 XL","ETERNA",194490,"PETROL",14,145,20,6,2000,"PHC","HUAWEI","DENNIS ADOYE",9062959264," ","TOYOTA HILUX"]
[null,"2019-06-10","AAA 632 XM","ETERNA",148074,"PETROL",41,145,37,4,6000,"PHC","HUAWEI","DENNIS ADOYE",9062959263," ","TOYOTA HILUX"]
[null,null,null,null,null,null,null,null,null,"TOTAL",{"$f":"SUM(K9:K11)","v":15000}]

{"sheet":"08-10-2019","index":302,"n_rows":10,"n_cols":17,"rows_kept":10,"cut":false,"hidden":false,"merged":[]}
[]
[]
[]
[]
[null,null,null,null,null,null,null,"HUAWEI FUEL RETIREMENT FOR  08-10-2019 BY IKECHUKWU ROBERT E."]
[]
[null,"    Date","Vehicle Number","Filling Station","  Mileage","     Type","Quantity","Amount per Litre","TRACKING REPORT LITRE","Variance","            RATE","PURCHASE POINT","CONTRACT","   NAME","PHONE NO","COMMENT","VEHICLE MAKE"]
[null,"2019-08-10","AAA 632 XM","ETERNA",148273,"PETROL",41,145,32,8,6000,"PHC","HUAWEI","DENNIS ADOYE",9062959263," ","TOYOTA HILUX"]
[null,"2019-08-10","LSD 460 XM","NUA",127416,"PETROL",35,145,31,4,5000,"ABA","HUAWEI","KINGSLEY OKEREKE",8063799963," ","TOYOTA HILUX"]
[null,null,null,null,null,null,null,null,null,"TOTAL",{"$f":"SUM(K8:K9)","v":11000}]

{"sheet":"10-10-2019","index":303,"n_rows":14,"n_cols":17,"rows_kept":14,"cut":false,"hidden":false,"merged":[]}
[]
[]
[]
[]
[]
[null,null,null,null,null,null,null,"HUAWEI FUEL RETIREMENT FOR  10-10-2019 BY IKECHUKWU ROBERT E."]
[]
[null,"    Date","Vehicle Number","Filling Station","  Mileage","     Type","Quantity","Amount per Litre","TRACKING REPORT LITRE","Variance","            RATE","PURCHASE POINT","CONTRACT","   NAME","PHONE NO","COMMENT","VEHICLE MAKE"]
[null,"2019-09-10","AAA 632 XM","ETERNA",148273,"PETROL",31,145,31,0,4500,"UYO","HUAWEI","DENNIS ADOYE",9062959263," ","TOYOTA HILUX"]
[null,"2019-09-10","LSD 460 XM","CHELSEA",127720,"PETROL",28,145,24.5,3.5,4000,"PHC","HUAWEI","KINGSLEY OKEREKE",8063799963," ","TOYOTA HILUX"]
[null,"2019-10-10","AAA 632 XM","ETERNA",148273,"PETROL",35,145,33,2,5000,"PHC","HUAWEI","DENNIS ADOYE",9062959263," ","TOYOTA HILUX"]
[null,"2019-10-10","KRD 337 XB","MOBIL",99310,"PETROL",28,145,"NOT CAPTURED ",0,4000,"PHC","HUAWEI","DIDI SOLOMON",8134352565,"HAVE INSTRUCTED THE DRIVER TO COME TO THE OFFICE FOR CITRACKS RECTIFICATION ","TOYOTAHILUX "]
[null,"2019-10-10","LSD 460 XM","SOBAZ",127941,"PETROL",41,145,36,5,6000,"PHC","HUAWEI","KINGSLEY OKEREKE",8063799963," ","TOYOTA HILUX"]
[null,null,null,null,null,null,null,null,null,"TOTAL",{"$f":"SUM(K9:K13)","v":23500}]

{"sheet":"12-10-2019","index":304,"n_rows":10,"n_cols":17,"rows_kept":10,"cut":false,"hidden":false,"merged":[]}
[]
[]
[]
[]
[null,null,null,null,null,null,null,"HUAWEI FUEL RETIREMENT FOR  12-10-2019 BY IKECHUKWU ROBERT E."]
[]
[null,"    Date","Vehicle Number","Filling Station","  Mileage","     Type","Quantity","Amount per Litre","TRACKING REPORT LITRE","Variance","            RATE","PURCHASE POINT","CONTRACT","   NAME","PHONE NO","COMMENT","VEHICLE MAKE"]
[null,"2019-11-10","AAA 632 XM","PROPEL",148461,"PETROL",28,145,27,1,4000,"PHC","HUAWEI","DENNIS ADOYE",9062959263," ","TOYOTA HILUX"]
[null,"2019-11-10","LSR 998 XL","ETERNA",194611,"PETROL",14,145,16,2,2000,"PHC","HUAWEI","DENNIS ADOYE",9062959263," ","TOYOTA HILUX"]
[null,null,null,null,null,null,null,null,null,"TOTAL",{"$f":"SUM(K8:K9)","v":6000}]

{"sheet":"15-10-2019","index":305,"n_rows":10,"n_cols":17,"rows_kept":10,"cut":false,"hidden":false,"merged":[]}
[]
[]
[]
[]
[null,null,null,null,null,null,null,"HUAWEI FUEL RETIREMENT FOR  15-10-2019 BY IKECHUKWU ROBERT E."]
[]
[null,"    Date","Vehicle Number","Filling Station","  Mileage","     Type","Quantity","Amount per Litre","TRACKING REPORT LITRE","Variance","            RATE","PURCHASE POINT","CONTRACT","   NAME","PHONE NO","COMMENT","VEHICLE MAKE"]
[null,"13/10/2019","AAA 632 XM","PROPEL",148893,"PETROL",35,145,20,15,5000,"PHC","HUAWEI","DENNIS ADOYE",9062959263,"Kindly deduct N2,175.00 from the driver. ","TOYOTA HILUX"]
[null,"15/10/2020","AAA 632 XM","CHELSEA",149276,"PETROL",55,145,45,15,8000,"PHC","HUAWEI","DENNIS ADOYE",9062959264,"Kindly deduct N2,175.00 from the driver. ","TOYOTA HILUX"]
[null,null,null,null,null,null,null,null,null,"TOTAL",{"$f":"SUM(K8:K9)","v":13000}]

{"sheet":"16-10-2019","index":306,"n_rows":12,"n_cols":17,"rows_kept":12,"cut":false,"hidden":false,"merged":[]}
[]
[]
[]
[]
[]
[null,null,null,null,null,null,null,"HUAWEI FUEL RETIREMENT FOR  16-10-2019 BY IKECHUKWU ROBERT E."]
[]
[null,"    Date","Vehicle Number","Filling Station","  Mileage","     Type","Quantity","Amount per Litre","TRACKING REPORT LITRE","Variance","            RATE","PURCHASE POINT","CONTRACT","   NAME","PHONE NO","COMMENT","VEHICLE MAKE"]
[null,"15/10/2019","AAB 142 YJ","UDOH A. PET",40526,"PETROL",28,145,"NOT CAPTURED",0,4000,"UGEP","HUAWEI","JAMES OKWORI",9062533949,"TRACKER DEVICE FAULTY","TOYOTA HILUX"]
[null,"16/10/2019","AAA 632 XM"," CHELSEA",149550,"PETROL",28,145,18,10,4000,"PHC","HUAWEI","DENNIS ADOYE",9062959263,"Kindly deduct N1,450.00 from the driver. ","TOYOTA HILUX"]
[null,"16/10/2019","AAB 142 YJ","HD PET",40627,"PETROL",41,145,"NOT CAPTURED",0,6000,"IKOM","HUAWEI","JAMES OKWORI",9062533949,"TRACKER DEVICE FAULTY","TOYOTA HILUX"]
[null,null,null,null,null,null,null,null,null,"TOTAL",{"$f":"SUM(K9:K11)","v":14000}]

{"sheet":"17-10-2019","index":307,"n_rows":13,"n_cols":17,"rows_kept":13,"cut":false,"hidden":false,"merged":[]}
[]
[]
[]
[]
[]
[null,null,null,null,null,null,null,"HUAWEI FUEL RETIREMENT FOR  17-10-2019 BY IKECHUKWU ROBERT E."]
[]
[null,"    Date","Vehicle Number","Filling Station","  Mileage","     Type","Quantity","Amount per Litre","TRACKING REPORT LITRE","Variance","            RATE","PURCHASE POINT","CONTRACT","   NAME","PHONE NO","COMMENT","VEHICLE MAKE"]
[null,"16/10/2019","LSD 460 XM","SITEL PET",129143,"PETROL",41,145,"NOT CAPTURED",0,6000,"ENUGU","HUAWEI","KINGSLEY OKEREKE",8063799963,"Kindly deductn6,000.00 from driver","TOYOTA HILUX"]
[null,"17/10/2019","KRD 337 XB","MOBIL",100500,"PETROL",35,145,"NOT CAPTURED ",0,5000,"PHC","HUAWEI","DIDI SOLOMON",8134352565,"HAVE INSTRUCTED THE DRIVER TO COME TO THE OFFICE FOR CITRACKS RECTIFICATION ","TOYOTAHILUX "]
[null,"17/10/2019","AAB 142 YJ","HD PET",40912,"PETROL",41,145,"NOT CAPTURED",0,5000,"IKOM","HUAWEI","JAMES OKWORI",9062533949,"TRACKER DEVICE FAULTY HAVE ADVISED CITRACKS","TOYOTA HILUX"]
[null,"17/10/2019","LSD 460 XM","SITEL PET",129357,"PETROL",35,145,35,0,5000,"ENUGU","HUAWEI","KINGSLEY OKEREKE",8063799963," ","TOYOTA HILUX"]
[null,null,null,null,null,null,null,null,null,"TOTAL",21000]

{"sheet":"23-10-2019","index":308,"n_rows":13,"n_cols":17,"rows_kept":13,"cut":false,"hidden":false,"merged":[]}
[]
[]
[]
[]
[null,null,null,null,null,null,null,"HUAWEI FUEL RETIREMENT FOR   23-10-2019 BY IKECHUKWU ROBERT E."]
[]
[null,"    Date","Vehicle Number","Filling Station","  Mileage","     Type","Quantity","Amount per Litre","TRACKING REPORT LITRE","Variance","            RATE","PURCHASE POINT","CONTRACT","   NAME","PHONE NO","COMMENT","VEHICLE MAKE"]
[null,"22/10/2019","LSD 460 XM","UNIQUE PET",130353,"PETROL",35,145,31,4,5000,"ENUGU","HUAWEI","KINGSLEY OKEREKE",8063799963," ","TOYOTA HILUX"]
[null,"23/10/2019","KRD 337 XB","MOBIL",100669,"PETROL",35,145,"NOT CAPTURED ",0,5000,"PHC","HUAWEI","DIDI SOLOMON",8134352565,"CITRACKS HAVE RECTIFIED BUT THE GPS TIMING IS STILL UPDATING ","TOYOTAHILUX "]
[null,"23/10/2019","LSD 460 XM","NNPC",130579,"PETROL",35,145,25.5,9.5,5000,"ENUGU","HUAWEI","KINGSLEY OKEREKE",8063799963,"Kindly deduct  N1,377.5 from driver ","TOYOTA HILUX"]
[null,null,null,null,null,null,null,null,null,"TOTAL",15000]
[null,null,null,null,null,null,null,null,null,null," "]
[null,null,null,null,null,null,null,null,null,null," "]

{"sheet":"24-10-2019","index":309,"n_rows":14,"n_cols":17,"rows_kept":14,"cut":false,"hidden":false,"merged":[]}
[]
[]
[]
[]
[null,null,null,null,null,null,null,"HUAWEI FUEL RETIREMENT FOR   24-10-2019 BY IKECHUKWU ROBERT E."]
[]
[null,"    Date","Vehicle Number","Filling Station","  Mileage","     Type","Quantity","Amount per Litre","TRACKING REPORT LITRE","Variance","            RATE","PURCHASE POINT","CONTRACT","   NAME","PHONE NO","COMMENT","VEHICLE MAKE"]
[null,"23/10/2019","LSD 460 XM","NIPPCO",130728,"PETROL",21,145,14,6,3000,"OWERRI","HUAWEI","KINGSLEY OKEREKE",8063799963," ","TOYOTA HILUX"]
[null,"24/10/2019","LSD 460 XM","CHELSEA",130728,"PETROL",35,145,32,3,5000,"PHC","HUAWEI","KINGSLEY OKEREKE",8063799963," ","TOYOTA HILUX"]
[null,"24/10/2019","AAA 632 XM","NNPC",149881,"PETROL",35,145,33,2,5000,"PHC","HUAWEI","DENNIS ADOYE",9062959263," ","TOYOTA HILUX"]
[null,null,null,null,null,null,null,null,null,"TOTAL",{"$f":"SUM(K8:K10)","v":13000}]
[null,null,null,null,null,null,null,null,null,null," "]
[null,null,null,null,null,null,null,null,null,null," "]
[null,null,null,null,null,null,null,null,null,null," "]

{"sheet":"28-10-2019","index":310,"n_rows":14,"n_cols":17,"rows_kept":14,"cut":false,"hidden":false,"merged":[]}
[]
[]
[]
[]
[]
[null,null,null,null,null,null,null,"HUAWEI FUEL RETIREMENT FOR   28-10-2019 BY IKECHUKWU ROBERT E."]
[]
[null,"    Date","Vehicle Number","Filling Station","  Mileage","     Type","Quantity","Amount per Litre","TRACKING REPORT LITRE","Variance","            RATE","PURCHASE POINT","CONTRACT","   NAME","PHONE NO","COMMENT","VEHICLE MAKE"]
[null,"26/10/2019","AAA 632 XM","NNPC",150120,"PETROL",41,145,"STILL PROCESSING"," ",6000,"PHC","HUAWEI","DENNIS ADOYE",9062959263,"STILL PROCESSING","TOYOTA HILUX"]
[null,"28/10/2019","AAA 632 XM","NNPC",150332,"PETROL",35,145,32.5,2.5,5000,"PHC","HUAWEI","DENNIS ADOYE",9062959263," ","TOYOTA HILUX"]
[null,null,null,null,null,null,null,null,null,"TOTAL",{"$f":"SUM(K9:K10)","v":11000}]
[null,null,null,null,null,null,null,null,null,null," "]
[null,null,null,null,null,null,null,null,null,null," "]
[null,null,null,null,null,null,null,null,null,null," "]

{"sheet":"30-10-2019","index":311,"n_rows":13,"n_cols":17,"rows_kept":13,"cut":false,"hidden":false,"merged":[]}
[]
[]
[]
[]
[]
[null,null,null,null,null,null,null,"HUAWEI FUEL RETIREMENT FOR   30-10-2019 BY IKECHUKWU ROBERT E."]
[]
[null,"    Date","Vehicle Number","Filling Station","  Mileage","     Type","Quantity","Amount per Litre","TRACKING REPORT LITRE","Variance","            RATE","PURCHASE POINT","CONTRACT","   NAME","PHONE NO","COMMENT","VEHICLE MAKE"]
[null,"30/10/2019","AAA 632 XM","PROPEL",150625,"PETROL",35,145,32,3,5000,"PHC","HUAWEI","DENNIS ADOYE",9062959263," ","TOYOTA HILUX"]
[null,null,null,null,null,null,null,null,null,"TOTAL",{"$f":"SUM(K9:K9)","v":5000}]
[null,null,null,null,null,null,null,null,null,null," "]
[null,null,null,null,null,null,null,null,null,null," "]
[null,null,null,null,null,null,null,null,null,null," "]

{"sheet":"31-10-2019","index":312,"n_rows":12,"n_cols":17,"rows_kept":12,"cut":false,"hidden":false,"merged":[]}
[]
[]
[]
[]
[null,null,null,null,null,null,null,"HUAWEI FUEL RETIREMENT FOR   31-10-2019 BY IKECHUKWU ROBERT E."]
[]
[null,"    Date","Vehicle Number","Filling Station","  Mileage","     Type","Quantity","Amount per Litre","TRACKING REPORT LITRE","Variance","            RATE","PURCHASE POINT","CONTRACT","   NAME","PHONE NO","COMMENT","VEHICLE MAKE"]
[null,"30/10/2019","AAA 632 XM","NNPC",150966,"PETROL",28,145,29,1,4000,"BENIN","HUAWEI","DENNIS ADOYE",9062959263," ","TOYOTA HILUX"]
[null,"31/10/2019","AAA 632 XM","NNPC",151213,"PETROL",35,145,35,0,5000,"BENIN","HUAWEI","DENNIS ADOYE",9062959264," ","TOYOTA HILUX"]
[null,null,null,null,null,null,null,null,null,"TOTAL",{"$f":"SUM(K8:K9)","v":9000}]
[null,null,null,null,null,null,null,null,null,null," "]
[null,null,null,null,null,null,null,null,null,null," "]

{"sheet":"2-11-2019","index":313,"n_rows":11,"n_cols":17,"rows_kept":11,"cut":false,"hidden":false,"merged":[]}
[]
[]
[]
[]
[null,null,null,null,null,null,null,"HUAWEI FUEL RETIREMENT FOR   2-11-2019 BY IKECHUKWU ROBERT E."]
[]
[null,"    Date","Vehicle Number","Filling Station","  Mileage","     Type","Quantity","Amount per Litre","TRACKING REPORT LITRE","Variance","            RATE","PURCHASE POINT","CONTRACT","   NAME","PHONE NO","COMMENT","VEHICLE MAKE"]
[null,"31/10/2019","AAA 632 XM","NNPC",151439,"PETROL",35,145,29,6,5000,"BENIN","HUAWEI","DENNIS ADOYE",9062959264," ","TOYOTA HILUX"]
[null,null,null,null,null,null,null,null,null,"TOTAL",{"$f":"SUM(K8:K8)","v":5000}]
[null,null,null,null,null,null,null,null,null,null," "]
[null,null,null,null,null,null,null,null,null,null," "]

{"sheet":"05-11-2019","index":314,"n_rows":11,"n_cols":17,"rows_kept":11,"cut":false,"hidden":false,"merged":[]}
[]
[]
[]
[]
[null,null,null,null,null,null,null,"HUAWEI FUEL RETIREMENT FOR   05-11-2019 BY IKECHUKWU ROBERT E."]
[]
[null,"    Date","Vehicle Number","Filling Station","  Mileage","     Type","Quantity","Amount per Litre","TRACKING REPORT LITRE","Variance","            RATE","PURCHASE POINT","CONTRACT","   NAME","PHONE NO","COMMENT","VEHICLE MAKE"]
[null,"2019-05-11","KRD 337 XB","PROPEL",103599,"PETROL",28,145,"NOT CAPTURED ",0,4000,"PHC","HUAWEI","DIDI SOLOMON",8134352565," ","TOYOTAHILUX "]
[null,null,null,null,null,null,null,null,null,"TOTAL",{"$f":"SUM(K8:K8)","v":4000}]
[null,null,null,null,null,null,null,null,null,null," "]
[null,null,null,null,null,null,null,null,null,null," "]

{"sheet":"07-11-2019","index":315,"n_rows":16,"n_cols":17,"rows_kept":16,"cut":false,"hidden":false,"merged":[]}
[]
[]
[]
[]
[null,null,null,null,null,null,null,"HUAWEI FUEL RETIREMENT FOR   07-11-2019 BY IKECHUKWU ROBERT E."]
[]
[null,"    Date","Vehicle Number","Filling Station","  Mileage","     Type","Quantity","Amount per Litre","TRACKING REPORT LITRE","Variance","            RATE","PURCHASE POINT","CONTRACT","   NAME","PHONE NO","COMMENT","VEHICLE MAKE"]
[null,"2019-06-11","LSR 997 XL","JT PET",77101,"PETROL",28,145,21,7,4000,"PHC","HUAWEI","DENNIS ADOYE",9062959264," ","TOYOTAHILUX "]
[null,"2019-06-11","AAA 632 XM","PROPEL",151690,"PETROL",41,145,36,5,5000,"PHC","HUAWEI","KINGSLEY OKEREKE",8063799963," ","TOYOTA HILUX"]
[null,"2019-07-11","AAA 632 XM"," OANDO",151999,"PETROL",21,145,17,4,3000," PHC","HUAWEI","KINGSLEY OKEREKE",8063799964," ","TOYOTA HILUX"]
[null,"2019-07-11","AAA 632 XM"," HUMMER",152192,"PETROL",55,145,59,4,8000,"UMUAHIA ","HUAWEI","KINGSLEY OKEREKE",8063799965," ","TOYOTA HILUX"]
[null,null,null,null,null,null,null,null,null,"TOTAL",{"$f":"SUM(K8:K11)","v":20000}]
[]
[]
[null,null,null,null,null,null,null,null,null,null," "]
[null,null,null,null,null,null,null,null,null,null," "]

{"sheet":"08-11-2019","index":316,"n_rows":13,"n_cols":17,"rows_kept":13,"cut":false,"hidden":false,"merged":[]}
[]
[]
[]
[]
[]
[null,null,null,null,null,null,null,"HUAWEI FUEL RETIREMENT FOR   08-11-2019 BY IKECHUKWU ROBERT E."]
[]
[null,"    Date","Vehicle Number","Filling Station","  Mileage","     Type","Quantity","Amount per Litre","TRACKING REPORT LITRE","Variance","            RATE","PURCHASE POINT","CONTRACT","   NAME","PHONE NO","COMMENT","VEHICLE MAKE"]
[null,"2019-08-11","AAA 632 XM","PROPEL",152623,"PETROL",41,145,36,5,6000,"PHC","HUAWEI","DENNIS ADOYE",9062959264," ","TOYOTA HILUX"]
[null,null,null,null,null,null,null,null,null,"TOTAL",{"$f":"SUM(K9:K9)","v":6000}]
[]
[]
[null,null,null,null,null,null,null,null,null,null," "]

{"sheet":"11-11-2019","index":317,"n_rows":9,"n_cols":17,"rows_kept":9,"cut":false,"hidden":false,"merged":[]}
[]
[]
[]
[]
[null,null,null,null,null,null,null,"HUAWEI FUEL RETIREMENT FOR   11-11-2019 BY IKECHUKWU ROBERT E."]
[]
[null,"    Date","Vehicle Number","Filling Station","  Mileage","     Type","Quantity","Amount per Litre","TRACKING REPORT LITRE","Variance","            RATE","PURCHASE POINT","CONTRACT","   NAME","PHONE NO","COMMENT","VEHICLE MAKE"]
[null,"2019-11-11","AAA 632 XM","PROPEL",152883,"PETROL",28,145,29,0,4000,"PHC","HUAWEI","DENNIS ADOYE",9062959264," ","TOYOTA HILUX"]
[null,null,null,null,null,null,null,null,null,"TOTAL",{"$f":"SUM(K8:K8)","v":4000}]

{"sheet":"13-11-2019","index":318,"n_rows":13,"n_cols":17,"rows_kept":13,"cut":false,"hidden":false,"merged":[]}
[]
[]
[]
[]
[]
[]
[null,null,null,null,null,null,null,"HUAWEI FUEL RETIREMENT FOR   13-11-2019 BY IKECHUKWU ROBERT E."]
[]
[null,"    Date","Vehicle Number","Filling Station","  Mileage","     Type","Quantity","Amount per Litre","TRACKING REPORT LITRE","Variance","            RATE","PURCHASE POINT","CONTRACT","   NAME","PHONE NO","COMMENT","VEHICLE MAKE"]
[null,"13/11/2019","AAA 632 XM","PROPEL",152938,"PETROL",35,145,35,0,5000,"PHC","HUAWEI","DENNIS ADOYE",9062959264," ","TOYOTA HILUX"]
[null,"13/11/2019","AAA 632 XM","PROPEL",153320,"PETROL",21,145,22,1,3000,"BENIN","HUAWEI","DENNIS ADOYE",9062959265," ","TOYOTA HILUX"]
[null,"13/11/2019","KRD 337 XB","MOBIL",104691,"PETROL",28,145,18.5,9.5,4000,"PHC","HUAWEI","DIDI SOLOMON",8134352565,"KINDLY DEDUCT N1,377.50 FROM DRIVER ","TOYOTAHILUX "]
[null,null,null,null,null,null,null,null,null,"TOTAL",{"$f":"SUM(K10:K12)","v":12000}]

{"sheet":"15-11-2019","index":319,"n_rows":11,"n_cols":17,"rows_kept":11,"cut":false,"hidden":false,"merged":[]}
[]
[]
[]
[]
[]
[null,null,null,null,null,null,null,"HUAWEI FUEL RETIREMENT FOR   15-11-2019 BY IKECHUKWU ROBERT E."]
[]
[null,"    Date","Vehicle Number","Filling Station","  Mileage","     Type","Quantity","Amount per Litre","TRACKING REPORT LITRE","Variance","            RATE","PURCHASE POINT","CONTRACT","   NAME","PHONE NO","COMMENT","VEHICLE MAKE"]
[null,"14/11/2019","AAA 632 XM","NNPC",153410,"PETROL",12,145,"NOT CAPTURED",0,1800,"BENIN","HUAWEI","DENNIS ADOYE",9062959264," ","TOYOTA HILUX"]
[null,"15/11/2019","AAA 632 XM","NNPC",153490,"PETROL",55,145,50,5,8000,"BENIN","HUAWEI","DENNIS ADOYE",9062959265," ","TOYOTA HILUX"]
[null,null,null,null,null,null,null,null,null,"TOTAL",{"$f":"SUM(K9:K10)","v":9800}]

{"sheet":"18-11-2019","index":320,"n_rows":11,"n_cols":17,"rows_kept":11,"cut":false,"hidden":false,"merged":[]}
[]
[]
[]
[]
[]
[null,null,null,null,null,null,null,"HUAWEI FUEL RETIREMENT FOR   18-11-2019 BY IKECHUKWU ROBERT E."]
[]
[null,"    Date","Vehicle Number","Filling Station","  Mileage","     Type","Quantity","Amount per Litre","TRACKING REPORT LITRE","Variance","            RATE","PURCHASE POINT","CONTRACT","   NAME","PHONE NO","COMMENT","VEHICLE MAKE"]
[null,"17/11/2019"," AAA 632 XM","PROPEL",153920,"PETROL",55,145,50,5,8000,"PHC","HUAWEI","DENNIS ADOYE",9062959264," ","TOYOTA HILUX"]
[null,"18/11/2019","LSD 460 XM","N.D.T PET",133860,"PETROL",48,145,48,0,7000,"ENUGU","HUAWEI","KINGSLEY OKEREKE",8063799963," ","TOYOTA HILUX"]
[null,null,null,null,null,null,null,null,null,"TOTAL",{"$f":"SUM(K9:K10)","v":15000}]

{"sheet":"19-11-2019","index":321,"n_rows":10,"n_cols":17,"rows_kept":10,"cut":false,"hidden":false,"merged":[]}
[]
[]
[]
[]
[null,null,null,null,null,null,null,"HUAWEI FUEL RETIREMENT FOR   19-11-2019 BY IKECHUKWU ROBERT E."]
[]
[null,"    Date","Vehicle Number","Filling Station","  Mileage","     Type","Quantity","Amount per Litre","TRACKING REPORT LITRE","Variance","            RATE","PURCHASE POINT","CONTRACT","   NAME","PHONE NO","COMMENT","VEHICLE MAKE"]
[null,"19/11/2019"," AAA 632 XM","PROPEL",154269,"PETROL",41,145,39,3,6000,"BENIN","HUAWEI","DENNIS ADOYE",9062959264," ","TOYOTA HILUX"]
[null,"19/11/2019","LSD 460 XM","N.D.T PET",134305,"PETROL",41,145,35,6,6000,"MAKURDI","HUAWEI","KINGSLEY OKEREKE",8063799963," ","TOYOTA HILUX"]
[null,null,null,null,null,null,null,null,null,"TOTAL",{"$f":"SUM(K8:K9)","v":12000}]

{"sheet":"20-11-2019","index":322,"n_rows":9,"n_cols":17,"rows_kept":9,"cut":false,"hidden":false,"merged":[]}
[]
[]
[]
[]
[null,null,null,null,null,null,null,"HUAWEI FUEL RETIREMENT FOR   20-11-2019 BY IKECHUKWU ROBERT E."]
[]
[null,"    Date","Vehicle Number","Filling Station","  Mileage","     Type","Quantity","Amount per Litre","TRACKING REPORT LITRE","Variance","            RATE","PURCHASE POINT","CONTRACT","   NAME","PHONE NO","COMMENT","VEHICLE MAKE"]
[null,"20/11/2019"," AAA 632 XM","ETERNA",154579,"PETROL",35,145,33,2,5000,"PHC","HUAWEI","DENNIS ADOYE",9062959264," ","TOYOTA HILUX"]
[null,null,null,null,null,null,null,null,null,"TOTAL",{"$f":"SUM(K8:K8)","v":5000}]

{"sheet":"22-11-2019","index":323,"n_rows":10,"n_cols":17,"rows_kept":10,"cut":false,"hidden":false,"merged":[]}
[]
[]
[]
[]
[null,null,null,null,null,null,null,"HUAWEI FUEL RETIREMENT FOR   22-11-2019 BY IKECHUKWU ROBERT E."]
[]
[null,"    Date","Vehicle Number","Filling Station","  Mileage","     Type","Quantity","Amount per Litre","TRACKING REPORT LITRE","Variance","            RATE","PURCHASE POINT","CONTRACT","   NAME","PHONE NO","COMMENT","VEHICLE MAKE"]
[null,"21/11/2019"," AAA 632 XM","ETERNA",154836,"PETROL",35,145,35,0,5000,"PHC","HUAWEI","DENNIS ADOYE",9062959264," ","TOYOTA HILUX"]
[null,"22/11/2019"," AAA 632 XM"," PROPEL",154932,"PETROL",41,145," NOT CAPTURED",0,6000,"PHC","HUAWEI","DENNIS ADOYE",9062959265," ","TOYOTA HILUX"]
[null,null,null,null,null,null,null,null,null,"TOTAL",{"$f":"SUM(K8:K9)","v":11000}]

{"sheet":"25-11-2019","index":324,"n_rows":12,"n_cols":17,"rows_kept":12,"cut":false,"hidden":false,"merged":[]}
[]
[]
[]
[]
[]
[null,null,null,null,null,null,null,"HUAWEI FUEL RETIREMENT FOR   25-11-2019 BY IKECHUKWU ROBERT E."]
[]
[null,"    Date","Vehicle Number","Filling Station","  Mileage","     Type","Quantity","Amount per Litre","TRACKING REPORT LITRE","Variance","            RATE","PURCHASE POINT","CONTRACT","   NAME","PHONE NO","COMMENT","VEHICLE MAKE"]
[null,"23/11/2019","EPE 474 XB","ND PET",82881,"PETROL",41,145,"NOT CAPTURED",0,6000,"OWERRI","HUAWEI","SUNDAY OGUNNAIKE",8162109298,null,"TOYOTA HILUX"]
[null,"23/11/2019","AAA 637 XM","SOBAZ",119898,"PETROL",48,145,41,7,7000,"PHC","HUAWEI","JAMES ALECHENU",9062533949,null,"TOYOTA HILUX"]
[null,"25/11/2019"," AAA 632 XM"," PROPEL",155370,"PETROL",35,145,34,1,5000,"PHC","HUAWEI","DENNIS ADOYE",9062959265," ","TOYOTA HILUX"]
[null,null,null,null,null,null,null,null,null,"TOTAL",{"$f":"SUM(K9:K11)","v":18000}]

{"sheet":" 26-11-2019","index":325,"n_rows":12,"n_cols":17,"rows_kept":12,"cut":false,"hidden":false,"merged":[]}
[]
[]
[]
[]
[]
[null,null,null,null,null,null,null,"HUAWEI FUEL RETIREMENT FOR   26-11-2019 BY IKECHUKWU ROBERT E."]
[]
[null,"    Date","Vehicle Number","Filling Station","  Mileage","     Type","Quantity","Amount per Litre","TRACKING REPORT LITRE","Variance","            RATE","PURCHASE POINT","CONTRACT","   NAME","PHONE NO","COMMENT","VEHICLE MAKE"]
[null,"22/11/2019","LSD 460 XM","N.D.T PET",134424,"PETROL",35,145,34,1,5000,"MAKURDI","HUAWEI","KINGSLEY OKEREKE",8063799963," ","TOYOTA HILUX"]
[null,"22/11/2019","LSD 460 XM","N.D.T PET",134736,"PETROL",35,145,35,0,5000,"KATSINA ALA","HUAWEI","KINGSLEY OKEREKE",8063799963," ","TOYOTA HILUX"]
[null,"26/11/2019","LSD 460 XM","N.D.T PET",135114,"PETROL",35,145,"NOT CAPTURED ",0,5000,"PHC","HUAWEI","KINGSLEY OKEREKE",8063799963," ","TOYOTA HILUX"]
[null,null,null,null,null,null,null,null,null,"TOTAL",{"$f":"SUM(K9:K11)","v":15000}]

{"sheet":"27-11-2019","index":326,"n_rows":15,"n_cols":18,"rows_kept":15,"cut":false,"hidden":false,"merged":[]}
[]
[]
[]
[]
[]
[null,null,null,null,null,null,null,null,"HUAWEI FUEL RETIREMENT FOR   27-11-2019 BY IKECHUKWU ROBERT E."]
[]
[null,null,"    Date","Vehicle Number","Filling Station","  Mileage","     Type","Quantity","Amount per Litre","TRACKING REPORT LITRE","Variance","            RATE","PURCHASE POINT","CONTRACT","   NAME","PHONE NO","COMMENT","VEHICLE MAKE"]
[null,null,"26/11/2019","LSD 460 XM","N.D.T PET",135343,"PETROL",28,145,24,4,4000,"ONITSHA","HUAWEI","KINGSLEY OKEREKE",8063799963," ","TOYOTA HILUX"]
[null,null,"27/11/2019","LSD 460 XM","N.D.T PET",135480,"PETROL",35,145,23,12,5000,"ASABA","HUAWEI","KINGSLEY OKEREKE",8063799963,"Kindly deduct N1,740. From driver ","TOYOTA HILUX"]
[null,null,"27/11/2019"," AAA 632 XM"," PROPEL",155627,"PETROL",35,145,31,1,5000,"PHC","HUAWEI","DENNIS ADOYE",9062959265," ","TOYOTA HILUX"]
[null,null,"27/11/2019","EPE 474 XB","ND PET",82881,"PETROL",28,145,22,6,4000,"OWERRI","HUAWEI","SUNDAY OGUNNAIKE",8162109298,null,"TOYOTA HILUX"]
[null,null,"27/11/2019","KRD 337 XB","NNPC",106788,"PETROL",28,145,13,15,4000,"PHC","HUAWEI","DIDI SOLOMON",8134352565,"Kindly deduct N2,175. From driver ","TOYOTAHILUX "]
[null,null,"27/11/2019","AGL 924 FH","ATBN PET",39939,"PETROL",41,145,"NOT CAPTURED ",0,6000,"PHC","HUAWEI","IMINABOR HORSEFALL"," "," ","TOYOTAHILUX "]
[null,null,null,null,null,null,null,null,null,null,"TOTAL",{"$f":"SUM(L9:L14)","v":28000}]

{"sheet":"29-11-2019","index":327,"n_rows":9,"n_cols":17,"rows_kept":9,"cut":false,"hidden":false,"merged":[]}
[]
[]
[]
[]
[null,null,null,null,null,null,null,"HUAWEI FUEL RETIREMENT FOR   29-11-2019 BY IKECHUKWU ROBERT E."]
[]
[null,"    Date","Vehicle Number","Filling Station","  Mileage","     Type","Quantity","Amount per Litre","TRACKING REPORT LITRE","Variance","            RATE","PURCHASE POINT","CONTRACT","   NAME","PHONE NO","COMMENT","VEHICLE MAKE"]
[null,"29/11/2019","AAB 142 YJ","OANDO",43657,"PETROL",35,145,"NOT CAPTURED ",0,5000,"PHC","HUAWEI","JAMES OKWORI",8077006442," ","TOYOTA HILUX"]
[null,null,null,null,null,null,null,null,null,"TOTAL",{"$f":"SUM(K8:K8)","v":5000}]

{"sheet":"03-12-2019","index":328,"n_rows":9,"n_cols":18,"rows_kept":9,"cut":false,"hidden":false,"merged":[]}
[]
[]
[]
[]
[null,null,null,null,null,null,null,null,"HUAWEI FUEL RETIREMENT FOR   03-12-2019 BY IKECHUKWU ROBERT E."]
[]
[null,null,"    Date","Vehicle Number","Filling Station","  Mileage","     Type","Quantity","Amount per Litre","TRACKING REPORT LITRE","Variance","            RATE","PURCHASE POINT","CONTRACT","   NAME","PHONE NO","COMMENT","VEHICLE MAKE"]
[null,null,"2019-03-12","AGL 924 FH","ATBN PET",4011,"PETROL",35,145,"NOT CAPTURED ",0,5000,"PHC","HUAWEI","IMINABOR HORSEFALL"," "," ","TOYOTAHILUX "]
[null,null,null,null,null,null,null,null,null,null,"TOTAL",{"$f":"SUM(L8:L8)","v":5000}]

{"sheet":" 04-12-2019","index":329,"n_rows":11,"n_cols":18,"rows_kept":11,"cut":false,"hidden":false,"merged":[]}
[]
[]
[]
[]
[]
[null,null,null,null,null,null,null,null,"HUAWEI FUEL RETIREMENT FOR   04-12-2019 BY IKECHUKWU ROBERT E."]
[]
[null,null,"    Date","Vehicle Number","Filling Station","  Mileage","     Type","Quantity","Amount per Litre","TRACKING REPORT LITRE","Variance","            RATE","PURCHASE POINT","CONTRACT","   NAME","PHONE NO","COMMENT","VEHICLE MAKE"]
[null,null,"2019-04-12","LSD 460 XM","N.D.T PET",136971,"PETROL",35,145,17,18,5000,"ONITSHA","HUAWEI","KINGSLEY OKEREKE",8063799963,"Kindly deduct N2,610.00 from driver","TOYOTA HILUX"]
[null,null,"2019-04-12"," AAA 632 XM"," PROPEL",155888,"PETROL",35,145,37,2,5000,"PHC","HUAWEI","DENNIS ADOYE",9062959265," ","TOYOTA HILUX"]
[null,null,null,null,null,null,null,null,null,null,"TOTAL",{"$f":"SUM(L9:L10)","v":10000}]

{"sheet":"05-12-2019","index":330,"n_rows":11,"n_cols":18,"rows_kept":11,"cut":false,"hidden":false,"merged":[]}
[]
[]
[]
[]
[]
[null,null,null,null,null,null,null,null,"HUAWEI FUEL RETIREMENT FOR   05-12-2019 BY IKECHUKWU ROBERT E."]
[]
[null,null,"    Date","Vehicle Number","Filling Station","  Mileage","     Type","Quantity","Amount per Litre","TRACKING REPORT LITRE","Variance","            RATE","PURCHASE POINT","CONTRACT","   NAME","PHONE NO","COMMENT","VEHICLE MAKE"]
[null,null,"2019-04-12","AGL 924 FH","PROPEL",41231,"PETROL",14,145,"NOT CAPTURED",0,2000,"PHC","HUAWEI","IMINABOR HORSEFALL09062533928"," "," ","TOYOTA HILUX"]
[null,null,"2019-05-12","LSD 460 XM","SURE PET",137149,"PETROL",35,145,31,4,5000,"ASABA","HUAWEI","KINGSLEY OKEREKE",8063799963," ","TOYOTA HILUX"]
[null,null,null,null,null,null,null,null,null,null,"TOTAL",{"$f":"SUM(L9:L10)","v":7000}]

{"sheet":"07-12-2019","index":331,"n_rows":10,"n_cols":17,"rows_kept":10,"cut":false,"hidden":false,"merged":[]}
[]
[]
[]
[]
[null,null,null,null,null,null,null,"HUAWEI FUEL RETIREMENT FOR   07-12-2019 BY IKECHUKWU ROBERT E."]
[]
[null,"    Date","Vehicle Number","Filling Station","  Mileage","     Type","Quantity","Amount per Litre","TRACKING REPORT LITRE","Variance","            RATE","PURCHASE POINT","CONTRACT","   NAME","PHONE NO","COMMENT","VEHICLE MAKE"]
[null,"2019-06-12","LSD 460 XM","SURE PET",137321,"PETROL",35,145,31,4,5000,"ONITSHA","HUAWEI","KINGSLEY OKEREKE",8063799963," ","TOYOTA HILUX"]
[null,"2019-06-12","LSD 460 XM","PROPEL",137510,"PETROL",37,145,29,8,5500,"PHC","HUAWEI","KINGSLEY OKEREKE",8063799963," ","TOYOTA HILUX"]
[null,null,null,null,null,null,null,null,null,"TOTAL",{"$f":"SUM(K8:K9)","v":10500}]

{"sheet":"11-12-2019","index":332,"n_rows":10,"n_cols":17,"rows_kept":10,"cut":false,"hidden":false,"merged":[]}
[]
[]
[]
[]
[]
[null,null,null,null,null,null,null,"HUAWEI FUEL RETIREMENT FOR   11-12-2019 BY IKECHUKWU ROBERT E."]
[]
[null,"    Date","Vehicle Number","Filling Station","  Mileage","     Type","Quantity","Amount per Litre","TRACKING REPORT LITRE","Variance","            RATE","PURCHASE POINT","CONTRACT","   NAME","PHONE NO","COMMENT","VEHICLE MAKE"]
[null,"2019-11-12"," AAA 632 XM"," PROPEL",157294,"PETROL",41,145,40,1,6000,"PHC","HUAWEI","DENNIS ADOYE",9062959265," ","TOYOTA HILUX"]
[null,null,null,null,null,null,null,null,null,"TOTAL",{"$f":"SUM(K9:K9)","v":6000}]

{"sheet":"23-12-2019","index":333,"n_rows":14,"n_cols":17,"rows_kept":14,"cut":false,"hidden":false,"merged":[]}
[]
[]
[]
[]
[]
[null,null,null,null,null,null,null,"HUAWEI FUEL RETIREMENT FOR   23-12-2019 BY IKECHUKWU ROBERT E."]
[]
[null,"    Date","Vehicle Number","Filling Station","  Mileage","     Type","Quantity","Amount per Litre","TRACKING REPORT LITRE","Variance","            RATE","PURCHASE POINT","CONTRACT","   NAME","PHONE NO","COMMENT","VEHICLE MAKE"]
[null,"21/12/2019"," AAA 632 XM","SOBAZ",159021,"PETROL",7,145,7,0,1000,"PHC","HUAWEI","DENNIS ADOYE",9062959265," ","TOYOTA HILUX"]
[null,"22/12/2019"," AAA 632 XM"," PROPEL",159132,"PETROL",28,145,27,1,4000,"PHC","HUAWEI","DENNIS ADOYE",9062959266," ","TOYOTA HILUX"]
[null,"23/12/2019"," AAA 632 XM"," PROPEL",159396,"PETROL",28,145,26,2,4000,"PHC","HUAWEI","DENNIS ADOYE",9062959267," ","TOYOTA HILUX"]
[null,null,null,null,null,null,null,null,null,"TOTAL",{"$f":"SUM(K9:K11)","v":9000}]
[]
[null,null,null,null,null,null,null," "]

{"sheet":"29-12-2019","index":334,"n_rows":13,"n_cols":17,"rows_kept":13,"cut":false,"hidden":false,"merged":[]}
[]
[]
[]
[]
[]
[null,null,null,null,null,null,null,"HUAWEI FUEL RETIREMENT FOR   29-12-2019 BY IKECHUKWU ROBERT E."]
[]
[null,"    Date","Vehicle Number","Filling Station","  Mileage","     Type","Quantity","Amount per Litre","TRACKING REPORT LITRE","Variance","            RATE","PURCHASE POINT","CONTRACT","   NAME","PHONE NO","COMMENT","VEHICLE MAKE"]
[null,"24/12/2019"," AAA 632 XM","SOBAZ",159544,"PETROL",28,145,26,2,4000,"PHC","HUAWEI","DENNIS ADOYE",9062959265," ","TOYOTA HILUX"]
[null,"28/12/2019"," AAA 632 XM"," PROPEL",159132,"PETROL",41,145,39,2,6000,"PHC","HUAWEI","DENNIS ADOYE",9062959266," ","TOYOTA HILUX"]
[null,"28/12/2019","AGL 924 FH","ETERNA",41192,"PETROL",48,145,"NT CAPTURED",0,7000,"PHC","HUAWEI","JAMES OKWORI",9062533949," ","TOYOTA HILUX"]
[null,"29/12/2019","AGL 924 FH","OANDO",41412,"PETROL",35,145,"NT CAPTURED",0,5000,"PHC","HUAWEI","JAMES OKWORI",9062533949," ","TOYOTA HILUX"]
[null,null,null,null,null,null,null,null,null,"TOTAL",{"$f":"SUM(K9:K12)","v":22000}]

{"sheet":"31-12-2019","index":335,"n_rows":11,"n_cols":17,"rows_kept":11,"cut":false,"hidden":false,"merged":[]}
[]
[]
[]
[]
[null,null,null,null,null,null,null,"HUAWEI FUEL RETIREMENT FOR   31-12-2019 BY IKECHUKWU ROBERT E."]
[]
[null,"    Date","Vehicle Number","Filling Station","  Mileage","     Type","Quantity","Amount per Litre","TRACKING REPORT LITRE","Variance","            RATE","PURCHASE POINT","CONTRACT","   NAME","PHONE NO","COMMENT","VEHICLE MAKE"]
[null,"30/12/2019","KRD 337 XB"," PROPEL",110961,"PETROL",28,145,13,15,4000,"PHC","HUAWEI","DIDI SOLOMON",8134352565,"KINDLY DEDUCT  N2,175.00 FROM DRIVER","TOYOTA HILUX"]
[null,"30/12/2019","AGL 924 FH","ETERNA",41677,"PETROL",35,145,"NT CAPTURED",0,5000,"PHC","HUAWEI","JAMES OKWORI",9062533949," ","TOYOTA HILUX"]
[null,"31/12/2019","AGL 924 FH","OANDO",41798,"PETROL",35,145,"NT CAPTURED",0,5000,"PHC","HUAWEI","JAMES OKWORI",9062533949," ","TOYOTA HILUX"]
[null,null,null,null,null,null,null,null,null,"TOTAL",{"$f":"SUM(K8:K10)","v":14000}]

{"sheet":"02-01-2020","index":336,"n_rows":12,"n_cols":20,"rows_kept":12,"cut":false,"hidden":false,"merged":[]}
[]
[]
[]
[]
[]
[null,null,null,null,null,null,null,null,"HUAWEI FUEL RETIREMENT FOR   02-01-2020 BY IKECHUKWU ROBERT E."]
[]
[null,null,"    Date","Vehicle Number","Filling Station","  Mileage","     Type","Quantity","Amount per Litre","TRACKING REPORT LITRE","Variance","            RATE","PURCHASE POINT","CONTRACT","   NAME","PHONE NO","COMMENT","VEHICLE MAKE"]
[null,null,"31/12/2019","KRD 337 XB"," PROPEL",111198,"PETROL",28,145,25,3,4000,"PHC","HUAWEI","DIDI SOLOMON",8134352565,null,"TOYOTA HILUX"]
[null,null,"2020-01-01","KRD 337 XB"," PROPEL",111268,"PETROL",7,145,9,2,1000,"PHC","HUAWEI","DIDI SOLOMON",8134352566,null,"TOYOTA HILUX",null,"NIL"]
[null,null,"2020-02-01","AGL 924 FH","OANDO",41849,"PETROL",41,145,"NT CAPTURED",0,6000,"PHC","HUAWEI","JAMES OKWORI",9062533949," ","TOYOTA HILUX"]
[null,null,null,null,null,null,null,null,null,null,"TOTAL",{"$f":"SUM(L9:L11)","v":11000}]

{"sheet":"06-01-2020","index":337,"n_rows":11,"n_cols":18,"rows_kept":11,"cut":false,"hidden":false,"merged":[]}
[]
[]
[]
[]
[null,null,null,null,null,null,null,null,"HUAWEI FUEL RETIREMENT FOR   06-01-2020 BY IKECHUKWU ROBERT E."]
[]
[null,null,"    Date","Vehicle Number","Filling Station","  Mileage","     Type","Quantity","Amount per Litre","TRACKING REPORT LITRE","Variance","            RATE","PURCHASE POINT","CONTRACT","   NAME","PHONE NO","COMMENT","VEHICLE MAKE"]
[null,null,"2020-04-01","AGL 924 FH","OANDO",42388,"PETROL",21,145,21,0,3000,"PHC","HUAWEI","JAMES OKWORI",9062533949," ","TOYOTA HILUX"]
[null,null,"2020-04-01","AGL 924 FH","OANDO",42396,"PETROL",14,145,18,0,2000,"PHC","HUAWEI","JAMES OKWORI",9062533950," ","TOYOTA HILUX"]
[null,null,"2020-04-01","AGL 924 FH","OANDO",42470,"PETROL",7,145,10,0,1000,"PHC","HUAWEI","JAMES OKWORI",9062533951," ","TOYOTA HILUX"]
[null,null,null,null,null,null,null,null,null,null,"TOTAL",{"$f":"SUM(L8:L10)","v":6000}]

{"sheet":"17-01-2020","index":338,"n_rows":11,"n_cols":17,"rows_kept":11,"cut":false,"hidden":false,"merged":[]}
[]
[]
[]
[]
[null,null,null,null,null,null,null,"HUAWEI FUEL RETIREMENT FOR   17-01-2020 BY IKECHUKWU ROBERT E."]
[]
[null,"    Date","Vehicle Number","Filling Station","  Mileage","     Type","Quantity","Amount per Litre","TRACKING REPORT LITRE","Variance","            RATE","PURCHASE POINT","CONTRACT","   NAME","PHONE NO","COMMENT","VEHICLE MAKE"]
[null,"16/1/2020","AAA 637 XM","MOBIL",125941,"PETROL",28,145,26,2,4000,"ENUGU","HUAWEI","IMINABOR HORSFALL ",9062533928," ","TOYOTA HILUX"]
[null,"16/1/2020","KSF 654 XX","ENDU PET",205870,"PETROL",35,145,30,5,5000,"OWERRI","HUAWEI","EMMANUEL EDEH",9062394963," ","TOYOTA HILUX"]
[null,"17/1/2020","KSF 654 XX","ENDU PET",206020,"PETROL",41,145,34.5,6.5,6000,"OWERRI","HUAWEI","EMMANUEL EDEH",9062394963," ","TOYOTA HILUX"]
[null,null,null,null,null,null,null,null,null,"TOTAL",{"$f":"SUM(K8:K10)","v":15000}]

{"sheet":"18-01-2020","index":339,"n_rows":9,"n_cols":18,"rows_kept":9,"cut":false,"hidden":false,"merged":[]}
[]
[]
[]
[]
[null,null,null,null,null,null,null,null,"HUAWEI FUEL RETIREMENT FOR   18-01-2020 BY IKECHUKWU ROBERT E."]
[]
[null,null,"    Date","Vehicle Number","Filling Station","  Mileage","     Type","Quantity","Amount per Litre","TRACKING REPORT LITRE","Variance","            RATE","PURCHASE POINT","CONTRACT","   NAME","PHONE NO","COMMENT","VEHICLE MAKE"]
[null,null,"18/1/2020","KSF 654 XX","ENDU PET",206169,"PETROL",41,145,35,6,6000,"OWERRI","HUAWEI","EMMANUEL EDEH",9062394963," ","MITS.L200"]
[null,null,null,null,null,null,null,null,null,null,"TOTAL",{"$f":"SUM(L8:L8)","v":6000}]

{"sheet":"22-01-2020","index":340,"n_rows":13,"n_cols":18,"rows_kept":13,"cut":false,"hidden":false,"merged":[]}
[]
[]
[]
[]
[null,null,null,null,null,null,null,null,"HUAWEI FUEL RETIREMENT FOR   22-01-2020 BY IKECHUKWU ROBERT E."]
[]
[null,null,"    Date","Vehicle Number","Filling Station","  Mileage","     Type","Quantity","Amount per Litre","TRACKING REPORT LITRE","Variance","            RATE","PURCHASE POINT","CONTRACT","   NAME","PHONE NO","COMMENT","VEHICLE MAKE"]
[null,null,"19/01/2020","KSF 654 XX","OASSIS PET ",206300,"PETROL",28,145,28,0,4000,"OWERRI","HUAWEI","EMMANUEL EDEH",9062394963," ","TOYOTA HILUX"]
[null,null,"20/01/2020","KSF 654 XX","ENDU PET ",206410,"PETROL",35,145,33,2,5000,"OWERRI","HUAWEI","EMMANUEL EDEH",9062394963," ","TOYOTA HILUX"]
[null,null,"21/01/2020","KSF 654 XX","MKT OIL",206520,"PETROL",21,145,17,4,3000,"OWERRI","HUAWEI","EMMANUEL EDEH",9062394964," ","TOYOTA HILUX"]
[null,null,"22/01/2020","KSF 654 XX","HUMMER PET",206700,"PETROL",14,145,9,5,2000,"OWERRI","HUAWEI","EMMANUEL EDEH",9062394964," ","TOYOTA HILUX"]
[null,null,"22/01/2020","KRD 337 XB","MOBIL",113497,"PETROL",28,145,"NOT CAPTURED ",0,4000,"PHC","HUAWEI","DIDI SOLOMON",8134352566,null,"TOYOTA HILUX"]
[null,null,null,null,null,null,null,null,null,null,"TOTAL",{"$f":"SUM(L8:L12)","v":18000}]

{"sheet":"24-01-2020","index":341,"n_rows":15,"n_cols":17,"rows_kept":15,"cut":false,"hidden":false,"merged":[]}
[]
[]
[]
[]
[null,null,null,null,null,null,null,"HUAWEI FUEL RETIREMENT FOR   24-01-2020 BY IKECHUKWU ROBERT E."]
[]
[null,"    Date","Vehicle Number","Filling Station","  Mileage","     Type","Quantity","Amount per Litre","TRACKING REPORT LITRE","Variance","            RATE","PURCHASE POINT","CONTRACT","   NAME","PHONE NO","COMMENT","VEHICLE MAKE"]
[null,"23/01/2020","KSF 654 XX","OASSIS PET ",206860,"PETROL",14,145,9,5,2000,"OWERRI","HUAWEI","EMMANUEL EDEH",9062394963," ","TOYOTA HILUX"]
[null,"23/01/2020","LSD 460 XM","SOSO PET",142324,"PETROL",35,45,36,1,5000,"PHC","HUAWEI","KINGSLEY OKEREKE",8063799963," ","TOYOTA HILUX"]
[null,"24/01/2020","KRD 337 XB","MOBIL",113800,"PETROL",28,145,10.5,17.5,4000,"PHC","HUAWEI","DIDI SOLOMON",8134352566,"KINDLY DEDUCT N2,537.5 FROM THE DRIVER","TOYOTA HILUX"]
[null,"24/01/2020","KSF 654 XX","ENDU PET ",206410,"PETROL",28,145,25,4,4000,"OWERRI","HUAWEI","EMMANUEL EDEH",9062394963," ","TOYOTA HILUX"]
[null,"24/01/2020","AAA 632 XM","MKT OIL",165323,"PETROL",28,145,22,6,4000,"PHC","HUAWEI","DENNIS ADOYE",9062959266," ","TOYOTA HILUX"]
[null,"24/01/2020","LSD 460 XM","HUMMER PET",142533,"PETROL",28,145,"NOT CAPTURED ",0,4000,"PHC","HUAWEI","KINGSLEY OKEREKE",8063799963," ","TOYOTA HILUX"]
[]
[null,null,null,null,null,null,null,null,null,"TOTAL",{"$f":"SUM(K8:K13)","v":23000}]

{"sheet":"27-01-2020","index":342,"n_rows":11,"n_cols":17,"rows_kept":11,"cut":false,"hidden":false,"merged":[]}
[]
[]
[]
[]
[null,null,null,null,null,null,null,"HUAWEI FUEL RETIREMENT FOR   27-01-2020 BY IKECHUKWU ROBERT E."]
[]
[null,"    Date","Vehicle Number","Filling Station","  Mileage","     Type","Quantity","Amount per Litre","TRACKING REPORT LITRE","Variance","            RATE","PURCHASE POINT","CONTRACT","   NAME","PHONE NO","COMMENT","VEHICLE MAKE"]
[null,"24/01/2020","KSF 654 XX","ENDU PET ",206960,"PETROL",28,145,11,17,4000,"OWERRI","HUAWEI","EMMANUEL EDEH",9062394963,"KINDLY DEDUCT N2,465.0 FROM THE DRIVER","TOYOTA HILUX"]
[null,"26/01/2020","LSD 460 XM","HUMMER PET",142923,"PETROL",35,145,37,2,5000,"BENIN","HUAWEI","KINGSLEY OKEREKE",8063799963," ","TOYOTA HILUX"]
[null,"27/01/2020","KRD 337 XB","MOBIL",113898,"PETROL",28,145,14,14,4000,"PHC","HUAWEI","DIDI SOLOMON",8134352566,"KINDLY DEDUCT N2,000. FROM THE DRIVER","TOYOTA HILUX"]
[null,null,null,null,null,null,null,null,null,"TOTAL",{"$f":"SUM(K8:K10)","v":13000}]

{"sheet":"31-01-2020","index":343,"n_rows":11,"n_cols":17,"rows_kept":11,"cut":false,"hidden":false,"merged":[]}
[]
[]
[]
[]
[]
[null,null,null,null,null,null,null,"HUAWEI FUEL RETIREMENT FOR   31-01-2020 BY IKECHUKWU ROBERT E."]
[]
[null,"    Date","Vehicle Number","Filling Station","  Mileage","     Type","Quantity","Amount per Litre","TRACKING REPORT LITRE","Variance","            RATE","PURCHASE POINT","CONTRACT","   NAME","PHONE NO","COMMENT","VEHICLE MAKE"]
[null,"31/01/2020","LSD 460 XM","FORTE OIL",143852,"PETROL",35,145,27,8,5000,"PHC","HUAWEI","KINGSLEY OKEREKE",8063799963,"Kindly deduct N1160.00 From the driver","TOYOTA HILUX"]
[null,"31/1/2020","AGL 924 FH","OANDO",44064,"PETROL",35,145," NOT CAPTURED",0,5000,"PHC","HUAWEI","JAMES OKWORI",9062533949," ","TOYOTA HILUX"]
[null,null,null,null,null,null,null,null,null,"TOTAL",{"$f":"SUM(K9:K10)","v":10000}]

{"sheet":"07-02-2020","index":344,"n_rows":9,"n_cols":17,"rows_kept":9,"cut":false,"hidden":false,"merged":[]}
[]
[]
[]
[]
[null,null,null,null,null,null,null,"HUAWEI FUEL RETIREMENT FOR   7-02-2020 BY IKECHUKWU ROBERT E."]
[]
[null,"    Date","Vehicle Number","Filling Station","  Mileage","     Type","Quantity","Amount per Litre","TRACKING REPORT LITRE","Variance","            RATE","PURCHASE POINT","CONTRACT","   NAME","PHONE NO","COMMENT","VEHICLE MAKE"]
[null,"2020-07-02","KSF 654 XX","ENDU PET ",209009,"PETROL",35,145,34,1,5000,"OWERRI","HUAWEI","EMMANUEL EDEH",9062394963," ","TOYOTA HILUX"]
[null,null,null,null,null,null,null,null,null,"TOTAL",{"$f":"SUM(K8:K8)","v":5000}]

{"sheet":" 10-02-2020","index":345,"n_rows":11,"n_cols":18,"rows_kept":11,"cut":false,"hidden":false,"merged":[]}
[]
[]
[]
[null,null,null,null,null,null,null,null,"HUAWEI FUEL RETIREMENT FOR   10-02-2020 BY IKECHUKWU ROBERT E."]
[]
[null,null,"    Date","Vehicle Number","Filling Station","  Mileage","     Type","Quantity","Amount per Litre","TRACKING REPORT LITRE","Variance","            RATE","PURCHASE POINT","CONTRACT","   NAME","PHONE NO","COMMENT","VEHICLE MAKE"]
[null,null,"2020-08-02","KSF 654 XX","ENDU PET ",209009,"PETROL",14,145,9,5,2000,"OWERRI","HUAWEI","EMMANUEL EDEH",9062394963," ","TOYOTA HILUX"]
[null,null,"2020-08-02","KSF 654 XX","ENDU PET ",209010,"PETROL",14,145,16,2,2000,"OWERRI","HUAWEI","EMMANUEL EDEH",9062394964," ","TOYOTA HILUX"]
[null,null,"2020-09-02","KSF 654 XX","ENDU PET ",209010,"PETROL",41,145,36.5,4.5,6000,"OWERRI","HUAWEI","EMMANUEL EDEH",9062394964," ","TOYOTA HILUX"]
[null,null,"2020-10-02","KSF 654 XX","ENDU PET ",209011,"PETROL",28,145,"NOT CAPTURED",0,4000,"OKIGWE","HUAWEI","EMMANUEL EDEH",9062394965," ","TOYOTA HILUX"]
[null,null,null,null,null,null,null,null,null,null,"TOTAL",{"$f":"SUM(L7:L10)","v":14000}]

{"sheet":"12-02-2020","index":346,"n_rows":13,"n_cols":18,"rows_kept":13,"cut":false,"hidden":false,"merged":[]}
[]
[]
[]
[]
[]
[null,null,null,null,null,null,null,null,"HUAWEI FUEL RETIREMENT FOR   12-02-2020 BY IKECHUKWU ROBERT E."]
[]
[null,null,"    Date","Vehicle Number","Filling Station","  Mileage","     Type","Quantity","Amount per Litre","TRACKING REPORT LITRE","Variance","            RATE","PURCHASE POINT","CONTRACT","   NAME","PHONE NO","COMMENT","VEHICLE MAKE"]
[null,null,"2020-11-02","LSD 460 XM","FORTE OIL",145826,"PETROL",35,145,47,12,5000," ONITSHA","HUAWEI","KINGSLEY OKEREKE",8060000000,"PAID INTO FME'S ACCOUNT (DRIVER FORGOT HIS ATM CARD) ","TOYOTA HILUX"]
[null,null,"2020-11-02","AAA 637 XM","OANDO",129528,"PETROL",28,145,"NOT CAPTURED",0,4000,"WARRI","HUAWEI","IMINABOR HORSFALL ",9060000000," ","TOYOTA HILUX"]
[null,null,"2020-12-02","AAA 632 XM","TOTAL",164130,"PETROL",35,145,29.5,5.5,5000,"UGHELLI","HUAWEI","DENNIS ADOYE",9060000000," ","TOYOTA HILUX"]
[null,null,"2020-12-02","AAA 637 XM","SANDI",129741,"PETROL",48,145,44,4,7000,"ENUGU","HUAWEI","IMINABOR HORSFALL ",9060000000," ","TOYOTA HILUX"]
[null,null,null,null,null,null,null,null,null,null,"TOTAL",21000]

{"sheet":" 13-02-2020","index":347,"n_rows":11,"n_cols":17,"rows_kept":11,"cut":false,"hidden":false,"merged":[]}
[]
[]
[]
[]
[]
[null,null,null,null,null,null,null,"HUAWEI FUEL RETIREMENT FOR   13-02-2020 BY IKECHUKWU ROBERT E."]
[]
[null,"    Date","Vehicle Number","Filling Station","  Mileage","     Type","Quantity","Amount per Litre","TRACKING REPORT LITRE","Variance","            RATE","PURCHASE POINT","CONTRACT","   NAME","PHONE NO","COMMENT","VEHICLE MAKE"]
[null,"13/2/2020","LSD 460 XM","FORTE OIL",146093,"PETROL",48,145,37.5,10.5,7000,"PHC","HUAWEI","KINGSLEY OKEREKE",8063799963,"PAID INTO FME'S ACCOUNT (DRIVER FORGOT HIS ATM CARD) KINDLY DEDUCT N1,522.5 FROM DRIVERS ACCOUNT ","TOYOTA HILUX"]
[null,"13/2/2020","AAA 632 XM","TOTAL",164549,"PETROL",35,145,32,3,5000,"CALABAR","HUAWEI","DENNIS ADOYE",9062959266," ","TOYOTA HILUX"]
[null,null,null,null,null,null,null,null,null,"TOTAL",{"$f":"SUM(K9:K10)","v":12000}]

{"sheet":"17-02-2020","index":348,"n_rows":19,"n_cols":17,"rows_kept":19,"cut":false,"hidden":false,"merged":[]}
[]
[]
[]
[]
[]
[]
[]
[null,null,null,null,null,null,null,"HUAWEI FUEL RETIREMENT FOR   17-02-2020 BY IKECHUKWU ROBERT E."]
[]
[null,"    Date","Vehicle Number","Filling Station","  Mileage","     Type","Quantity","Amount per Litre","TRACKING REPORT LITRE","Variance","            RATE","PURCHASE POINT","CONTRACT","   NAME","PHONE NO","COMMENT","VEHICLE MAKE"]
[null,"14/2/2020","AAA 632 XM","UKEM PET",164723,"PETROL",35,145,32,3,4000,"IKOM","HUAWEI","DENNIS ADOYE",9062959266," ","TOYOTA HILUX"]
[null,"14/2/2020","LSD 460 XM","FORTE OIL",146193,"PETROL",48,145,51,3,7000,"OWERRI","HUAWEI","KINGSLEY OKEREKE",8063799963,"PAID INTO FME'S ACCOUNT (DRIVER FORGOT HIS ATM CARD)","TOYOTA HILUX"]
[null,"14/2/2020","LSD 460 XM","TOBA OIL",146298,"PETROL",28,145,"NOT CAPTURED",0,4000,"ONITSHA","HUAWEI","KINGSLEY OKEREKE",8063799964,"PAID INTO FME'S ACCOUNT (DRIVER FORGOT HIS ATM CARD)  ","TOYOTA HILUX"]
[null,"15/2/2020","LSD 460 XM","MEKUS PET",146418,"PETROL",35,145,32,3,6000,"ENUGU","HUAWEI","KINGSLEY OKEREKE",8063799965,"PAID INTO FME'S ACCOUNT (DRIVER FORGOT HIS ATM CARD)","TOYOTA HILUX"]
[null,"16/2/2020","LSD 460 XM","RAIN OIL",146641,"PETROL",35,145,31,4,5000,"MARKURDI","HUAWEI","KINGSLEY OKEREKE",8063799966,"PAID INTO FME'S ACCOUNT (DRIVER FORGOT HIS ATM CARD)","TOYOTA HILUX"]
[null,"16/2/2020","LSD 460 XM","TEDUN OIL",146827,"PETROL",35,145,27,8,5000,"ENUGU","HUAWEI","KINGSLEY OKEREKE",8063799967,"PAID INTO FME'S ACCOUNT (DRIVER FORGOT HIS ATM CARD) KINDLY DEDUCT N1,160.00 FROM THE DRIVER","TOYOTA HILUX"]
[null,"17/2/2020","KRD 337 XB","OANDO",116326,"PETROL",35,145,"NOT CAPTURED",0,5000,"PHC","HUAWEI","DIDI SOLOMON",9062533930,null,"TOYOTA HILUX"]
[null,"17/2/2020","LSD 460 XM","HUMMER PET",147336,"PETROL",41,145,35,6,6000,"ENUGU","HUAWEI","KINGSLEY OKEREKE",8063799966,"PAID INTO FME'S ACCOUNT (DRIVER FORGOT HIS ATM CARD)  ","TOYOTA HILUX"]
[null,null,null,null,null,null,null,null,null,"TOTAL",{"$f":"SUM(K11:K18)","v":42000}]

{"sheet":" 18-02-2020","index":349,"n_rows":11,"n_cols":17,"rows_kept":11,"cut":false,"hidden":false,"merged":[]}
[]
[]
[]
[]
[]
[null,null,null,null,null,null,null,"HUAWEI FUEL RETIREMENT FOR   18-02-2020 BY IKECHUKWU ROBERT E."]
[]
[null,"    Date","Vehicle Number","Filling Station","  Mileage","     Type","Quantity","Amount per Litre","TRACKING REPORT LITRE","Variance","            RATE","PURCHASE POINT","CONTRACT","   NAME","PHONE NO","COMMENT","VEHICLE MAKE"]
[null,"18/2/2020","KSF 654 XX","MOPET",211035,"PETROL",41,145,40,1,6000,"OWERRI","HUAWEI","EMMANUEL EDEH",9062394963," ","TOYOTA HILUX"]
[]
[null,null,null,null,null,null,null,null,null,null,6000]

{"sheet":"20-02-2020","index":350,"n_rows":10,"n_cols":17,"rows_kept":10,"cut":false,"hidden":false,"merged":[]}
[]
[]
[]
[null,null,null,null,null,null,null,"HUAWEI FUEL RETIREMENT FOR   20-02-2020 BY IKECHUKWU ROBERT E."]
[]
[null,"    Date","Vehicle Number","Filling Station","  Mileage","     Type","Quantity","Amount per Litre","TRACKING REPORT LITRE","Variance","            RATE","PURCHASE POINT","CONTRACT","   NAME","PHONE NO","COMMENT","VEHICLE MAKE"]
[null,"19/2/2020","LSD 460 XM","CHELSEA FUEL STATION",147683,"PETROL",14,145,10,4,2000,"PHC","HUAWEI","KINGSLEY OKEREKE",8063799963,"PAID INTO FME'S ACCOUNT (DRIVER FORGOT HIS ATM CARD) EMMANUEL EZE CHUKWUEMEKA 08167059741 ","TOYOTA HILUX"]
[null,"20/2/2020","LSD 460 XM",null,147792,"PETROL",14,145,15,1,2000,"PHC","HUAWEI","KINGSLEY OKEREKE",8063799964,"PAID INTO FME'S ACCOUNT (DRIVER FORGOT HIS ATM CARD)  EMMANUEL EZE CHUKWUEMEKA 08167059741","TOYOTA HILUX"]
[null,"20/2/2020","LSD 460 XM","FORTE OIL",147974,"PETROL",21,145,17,4,3000,"PHC","HUAWEI","KINGSLEY OKEREKE",8063799965,"PAID INTO FME'S ACCOUNT (DRIVER FORGOT HIS ATM CARD) EMMANUEL EZE CHUKWUEMEKA 08167059741 ","TOYOTA HILUX"]
[null,null,null,null,null,null,null,null,null,"TOTAL",{"$f":"SUM(K7:K9)","v":7000}]

{"sheet":"24-02-2020","index":351,"n_rows":11,"n_cols":18,"rows_kept":11,"cut":false,"hidden":false,"merged":[]}
[]
[]
[]
[]
[null,null,null,null,null,null,null,null,"HUAWEI FUEL RETIREMENT FOR   24-02-2020 BY IKECHUKWU ROBERT E."]
[]
[null,null,"    Date","Vehicle Number","Filling Station","  Mileage","     Type","Quantity","Amount per Litre","TRACKING REPORT LITRE","Variance","            RATE","PURCHASE POINT","CONTRACT","   NAME","PHONE NO","COMMENT","VEHICLE MAKE"]
[null,null,"23/2/2020","LSD 460 XM"," TUSPEN",148832,"PETROL",48,145,45.5,2.5,7000,"ASABA","HUAWEI","KINGSLEY OKEREKE",8063799963,"PAID INTO FME'S ACCOUNT (DRIVER FORGOT HIS ATM CARD) EMMANUEL EZE CHUKWUEMEKA 08167059741 ","TOYOTA HILUX"]
[null,null,"24/2/2020","LSD 460 XM","PROPEL",149316,"PETROL",35,145,28.5,6.5,5000,"PHC","HUAWEI","KINGSLEY OKEREKE",8063799964,"PAID INTO FME'S ACCOUNT (DRIVER FORGOT HIS ATM CARD)  EMMANUEL EZE CHUKWUEMEKA 08167059741","TOYOTA HILUX"]
[null,null,"24/2/2020","AAA 632 XM","UKEM PET",165122,"PETROL",41,145,"NOT CAPTURED",0,6000,"UYO","HUAWEI","DENNIS ADOYE",9062959266," ","TOYOTA HILUX"]
[null,null,null,null,null,null,null,null,null,null,"TOTAL",{"$f":"SUM(L8:L10)","v":18000}]

{"sheet":"25-02-2020","index":352,"n_rows":12,"n_cols":18,"rows_kept":12,"cut":false,"hidden":false,"merged":[]}
[]
[]
[]
[]
[]
[]
[null,null,null,null,null,null,null,null,"HUAWEI FUEL RETIREMENT FOR   25-02-2020 BY IKECHUKWU ROBERT E."]
[]
[null,null,"    Date","Vehicle Number","Filling Station","  Mileage","     Type","Quantity","Amount per Litre","TRACKING REPORT LITRE","Variance","            RATE","PURCHASE POINT","CONTRACT","   NAME","PHONE NO","COMMENT","VEHICLE MAKE"]
[null,null,"25/2/2020","LSD 460 XM","PROPEL",149689,"PETROL",48,145,50,2,7000,"ONITSHA","HUAWEI","KINGSLEY OKEREKE",8063799964,"PAID INTO FME'S ACCOUNT (DRIVER FORGOT HIS ATM CARD)  EMMANUEL EZE CHUKWUEMEKA 08167059741","TOYOTA HILUX"]
[null,null,"25/2/2020","AAA 632 XM","UKEM PET",166870,"PETROL",35,145,25,0,5000,"PHC","HUAWEI","DENNIS ADOYE",9062959266," ","TOYOTA HILUX"]
[null,null,null,null,null,null,null,null,null,null,"TOTAL",{"$f":"SUM(L10:L11)","v":12000}]

{"sheet":"26-02-2020","index":353,"n_rows":13,"n_cols":18,"rows_kept":13,"cut":false,"hidden":false,"merged":[]}
[]
[]
[]
[]
[]
[]
[null,null,null,null,null,null,null,null,"HUAWEI FUEL RETIREMENT FOR   26-02-2020 BY IKECHUKWU ROBERT E."]
[]
[null,null,"    Date","Vehicle Number","Filling Station","  Mileage","     Type","Quantity","Amount per Litre","TRACKING REPORT LITRE","Variance","            RATE","PURCHASE POINT","CONTRACT","   NAME","PHONE NO","COMMENT","VEHICLE MAKE"]
[null,null,"25/2/2020","KSF 654 XX","MOPET",212200,"PETROL",28,145,25,3,4000,"OWERRI","HUAWEI","EMMANUEL EDEH",9062394963," ","TOYOTA HILUX"]
[null,null,"26/2/2020","LSD 460 XM","PROPEL",149918,"PETROL",41,145,21,20,6000,"ONITSHA ","HUAWEI","KINGSLEY OKEREKE",8063799964,"KINDLY DEDUCT N3,045.00 FROM DRIVER","TOYOTA HILUX"]
[null,null,"26/2/2020","AAA 632 XM","UKEM PET",167062,"PETROL",28,145,27,1,4000,"PHC","HUAWEI","DENNIS ADOYE",9062959266," ","TOYOTA HILUX"]
[null,null,null,null,null,null,null,null,null,null,"TOTAL",{"$f":"SUM(L10:L12)","v":14000}]

{"sheet":"27-02-2020","index":354,"n_rows":11,"n_cols":17,"rows_kept":11,"cut":false,"hidden":false,"merged":[]}
[]
[]
[]
[]
[]
[]
[null,null,null,null,null,null,null,"HUAWEI FUEL RETIREMENT FOR   27-02-2020 BY IKECHUKWU ROBERT E."]
[]
[null,"    Date","Vehicle Number","Filling Station","  Mileage","     Type","Quantity","Amount per Litre","TRACKING REPORT LITRE","Variance","            RATE","PURCHASE POINT","CONTRACT","   NAME","PHONE NO","COMMENT","VEHICLE MAKE"]
[null,"25/2/2020","KSF 654 XX","MOPET",212410,"PETROL",41,145,37,4,6000,"OWERRI","HUAWEI","EMMANUEL EDEH",9062394963," ","TOYOTA HILUX"]
[null,null,null,null,null,null,null,null,null,"TOTAL",{"$f":"SUM(K10:K10)","v":6000}]

{"sheet":" 29-02-2020","index":355,"n_rows":13,"n_cols":18,"rows_kept":13,"cut":false,"hidden":false,"merged":[]}
[]
[]
[]
[]
[]
[]
[null,null,null,null,null,null,null,null,"HUAWEI FUEL RETIREMENT FOR   29-02-2020 BY IKECHUKWU ROBERT E."]
[]
[null,null,"    Date","Vehicle Number","Filling Station","  Mileage","     Type","Quantity","Amount per Litre","TRACKING REPORT LITRE","Variance","            RATE","PURCHASE POINT","CONTRACT","   NAME","PHONE NO","COMMENT","VEHICLE MAKE"]
[null,null,"27/2/2020","AAA 632 XM","PROPEL",167231,"PETROL",35,145,33,2,5000,"PHC","HUAWEI","DENNIS ADOYE",9062959266," ","TOYOTA HILUX"]
[null,null,"27/2/2020","KSF 654 XX","OANDO",212540,"PETROL",14,145,18,4,2000,"OWERRI","HUAWEI","EMMANUEL EDEH",9062394963," ","TOYOTA HILUX"]
[null,null,"27/2/2021","KSF 654 XX","ANZU PET",212603,"PETROL",28,145,27,1,4000,"OWERRI","HUAWEI","EMMANUEL EDEH",9062394964," ","TOYOTA HILUX"]
[null,null,null,null,null,null,null,null,null,null,"TOTAL",{"$f":"SUM(L10:L12)","v":11000}]

{"sheet":"04-03-2020","index":356,"n_rows":11,"n_cols":18,"rows_kept":11,"cut":false,"hidden":false,"merged":[]}
[]
[]
[]
[]
[null,null,null,null,null,null,null,null,"HUAWEI FUEL RETIREMENT FOR   04-03-2020 BY IKECHUKWU ROBERT E."]
[]
[null,null,"    Date","Vehicle Number","Filling Station","  Mileage","     Type","Quantity","Amount per Litre","TRACKING REPORT LITRE","Variance","            RATE","PURCHASE POINT","CONTRACT","   NAME","PHONE NO","COMMENT","VEHICLE MAKE"]
[null,null,"2020-03-02","KSF 654 XX","ANZU PET",213430,"PETROL",28,145,28,0,4000,"OWERRI","HUAWEI","EMMANUEL EDEH",9062394964," ","TOYOTA HILUX"]
[null,null,"2020-04-03","KSF 654 XX","OANDO",213615,"PETROL",28,145,26,2,4000,"OWERRI","HUAWEI","EMMANUEL EDEH",9062394963," ","TOYOTA HILUX"]
[null,null,"2020-04-03","LSD 460 XM","PROPEL",149918,"PETROL",35,145,22,13,5000,"ONITSHA ","HUAWEI","KINGSLEY OKEREKE",8063799964,"KINDLY DEDUCT N1,885.00 FROM DRIVER","TOYOTA HILUX"]
[null,null,null,null,null,null,null,null,null,null,"TOTAL",{"$f":"SUM(L8:L10)","v":13000}]

{"sheet":"05-03-2020","index":357,"n_rows":13,"n_cols":18,"rows_kept":13,"cut":false,"hidden":false,"merged":[]}
[]
[]
[]
[]
[]
[]
[null,null,null,null,null,null,null,null,"HUAWEI FUEL RETIREMENT FOR   05-03-2020 BY IKECHUKWU ROBERT E."]
[]
[null,null,"    Date","Vehicle Number","Filling Station","  Mileage","     Type","Quantity","Amount per Litre","TRACKING REPORT LITRE","Variance","            RATE","PURCHASE POINT","CONTRACT","   NAME","PHONE NO","COMMENT","VEHICLE MAKE"]
[null,null,"2020-05-02","KSF 654 XX","ANZU PET",213739,"PETROL",35,145,32,3,5000,"OWERRI","HUAWEI","EMMANUEL EDEH",9062394964," ","TOYOTA HILUX"]
[null,null,"2020-05-03","KRD 337 XB","RESTOPARK",118654,"PETROL",35,145,14.5,20.5,5000,"PHC","HUAWEI","EMMANUEL EDEH",9062394963,"KINDLY DEDUCT N2972.50 FROM DRIVER","TOYOTA HILUX"]
[null,null,"2020-05-03","LSD 460 XM","PROPEL",151110,"PETROL",48,145,29," ",7000,"OWERRI","HUAWEI","KINGSLEY OKEREKE",8063799964,"KINDLY DEDUCT N2,755.00 FROM DRIVER","TOYOTA HILUX"]
[null,null,null,null,null,null,null,null,null,null,"TOTAL",{"$f":"SUM(L10:L12)","v":17000}]

{"sheet":"09-03-2020","index":358,"n_rows":11,"n_cols":19,"rows_kept":11,"cut":false,"hidden":false,"merged":[]}
[]
[]
[]
[]
[]
[null,null,null,null,null,null,null,null,null,"HUAWEI FUEL RETIREMENT FOR   09-03-2020 BY IKECHUKWU ROBERT E."]
[]
[null,null,null,"    Date","Vehicle Number","Filling Station","  Mileage","     Type","Quantity","Amount per Litre","TRACKING REPORT LITRE","Variance","            RATE","PURCHASE POINT","CONTRACT","   NAME","PHONE NO","COMMENT","VEHICLE MAKE"]
[null,null,null,"2020-05-02","KSF 654 XX","MANU T. PET",213860,"PETROL",21,145,20,1,3000,"OWERRI","HUAWEI","EMMANUEL EDEH",9062394964," ","TOYOTA HILUX"]
[null,null,null,"2020-09-03","LSD 460 XM","SOBAZ",152054,"PETROL",41,145,37,4,6000,"OKIGWE","HUAWEI","KINGSLEY OKEREKE",8063799964," ","TOYOTA HILUX"]
[null,null,null,null,null,null,null,null,null,null,null,"TOTAL",{"$f":"SUM(M9:M10)","v":9000}]

{"sheet":"10-02-2020","index":359,"n_rows":12,"n_cols":18,"rows_kept":12,"cut":false,"hidden":false,"merged":[]}
[]
[]
[]
[]
[]
[]
[null,null,null,null,null,null,null,null,"HUAWEI FUEL RETIREMENT FOR   10-03-2020 BY IKECHUKWU ROBERT E."]
[]
[null,null,"    Date","Vehicle Number","Filling Station","  Mileage","     Type","Quantity","Amount per Litre","TRACKING REPORT LITRE","Variance","            RATE","PURCHASE POINT","CONTRACT","   NAME","PHONE NO","COMMENT","VEHICLE MAKE"]
[null,null,"2020-10-03","AAA 632 XM","MANU T. PET",169107,"PETROL",21,145,20,1,3000,"PHC","HUAWEI","DENNIS ADOYE",9062533872," ","TOYOTA HILUX"]
[null,null,"2020-10-03","LSD 460 XM","PROPEL",152229,"PETROL",48,145,34,14,7000,"PHC","HUAWEI","KINGSLEY OKEREKE",8063799964,"KINDLY DEDUCT N2,030.00 FROM THE DRIVER","TOYOTA HILUX"]
[null,null,null,null,null,null,null,null,null,null,"TOTAL",{"$f":"SUM(L10:L11)","v":10000}]